Workbook

Sheet Report - ALL (DASHBOARD)
A2: Dashboard | B2: Select Parameter: | F2: Select Statistic: | I2: Select Seasonal Period: | L2: Do you want to convert CFS values to TAF/Mon? | W2: 67
W3: 1
W4: 10
L5: News | W5: FALSE
L6: - parameter list updated to include all items on the appendix list (in addition to other locations of interest)
L7: - year type sorting is now done by calendar year
L8: - year type sorting is provided for 60-20-20 index as well as 40-30-30 index
L9: - format modified to be consistent with appendix reports
L10: - check out the new spinners!
B13: =CONCATENATE('Report Data'!$P$7," / seasonal statistics (",$W$2,"-",$W$3,"-",$W$4,"-",IF(NOT($W$5),1,2),"a):") -> Oroville Storage / seasonal statistics (67-1-10-1a):
C17: ='Report Data'!P6 -> July
C18: ='Report Data'!P7 -> Oroville Storage
C19: ='Report Data'!P9 -> (S6/STORAGE)
C20: ='Report Data'!P8 -> Averages
C21: ='Report Data'!P11 -> Volume (TAF) | F21: =CONCATENATE("Difference from ",'Report Data'!Q13) -> Difference from NAA 011221
C25: =IF('Report Data'!O14=0,"",'Report Data'!O14) -> NAA 011221 | E25: =IFERROR('Report Data'!P14,"") -> 2355.300613
C26: =IF('Report Data'!O15=0,"",'Report Data'!O15) -> Alt 1B 011221 | E26: =IFERROR('Report Data'!P15,"") -> 2378.080148 | F26: =IFERROR('Report Data'!Q15,"") -> 22.77953479
C27: =IF('Report Data'!O16=0,"",'Report Data'!O16) -> Alt 1B 011221 No Oro | E27: =IFERROR('Report Data'!P16,"") -> 2353.273308 | F27: =IFERROR('Report Data'!Q16,"") -> -2.027305427
C28: =IF('Report Data'!O17=0,"",'Report Data'!O17) ->  | E28: =IFERROR('Report Data'!P17,"") ->  | F28: =IFERROR('Report Data'!Q17,"") -> 
C29: =IF('Report Data'!O18=0,"",'Report Data'!O18) ->  | E29: =IFERROR('Report Data'!P18,"") ->  | F29: =IFERROR('Report Data'!Q18,"") -> 
C30: =IF('Report Data'!O19=0,"",'Report Data'!O19) ->  | E30: =IFERROR('Report Data'!P19,"") ->  | F30: =IFERROR('Report Data'!Q19,"") -> 
B60: =CONCATENATE('Report Data'!$P$7," / monthly statistics (",$W$2,"-",$W$3,"-",$W$4,"-",IF(NOT($W$5),1,2),"b):") -> Oroville Storage / monthly statistics (67-1-10-1b):
B88: =CONCATENATE('Report Data'!$P$7," / time series (",$W$2,"-",$W$3,"-",$W$4,"-",IF(NOT($W$5),1,2),"c):") -> Oroville Storage / time series (67-1-10-1c):

Sheet Chart - Prob Exc
S2: Select Parameter: | X2: Select Statistic: | AB2: Select Seasonal Period: | AE2: Do you want to convert CFS values to TAF/Mon?

Sheet Chart - Pattern
S2: Select Parameter: | X2: Select Statistic: | AB2: Select Seasonal Period: | AE2: Do you want to convert CFS values to TAF/Mon?

Sheet Chart - WYT
S2: Select Parameter: | X2: Select Statistic: | AB2: Select Seasonal Period: | AE2: Do you want to convert CFS values to TAF/Mon?

Sheet Report Data
A2: Information, Tables and Calculations for Reports
A4: Table of Selected Values for Monthly Chart: | O4: Trend Evaluation: | U4: Water Year Type Averages:
A6: Title: | B6: ='Compile Data'!$B$5 -> Oroville Storage | O6: Title: | P6: =INDEX(Other!$B$9:$B$33,'Report - ALL (DASHBOARD)'!$W$4) -> July | U6: Title: | V6: =INDEX(Other!$B$9:$B$33,'Report - ALL (DASHBOARD)'!$W$4) -> July
B7: =INDEX(Other!$C$9:$C$35,'Report - ALL (DASHBOARD)'!$W$3) -> Averages | P7: ='Compile Data'!$B$5 -> Oroville Storage | V7: ='Compile Data'!$B$5 -> Oroville Storage
B8: =CONCATENATE("(",'Compile Data'!$B$6,"/",'Compile Data'!$B$7,")") -> (S6/STORAGE) | P8: =CONCATENATE(INDEX(Other!$C$9:$C$35,'Report - ALL (DASHBOARD)'!$W$3)," ",IF('Report - ALL (DASHBOARD)'!$W$3>4,IF(AND('Compile Data'!$B$10="TAF",'Compile Data'!$B$8="PER-AVER"),"Totals","Averages"),"")) -> Averages | V8: =CONCATENATE(INDEX(Other!$C$9:$C$35,'Report - ALL (DASHBOARD)'!$W$3)," ",IF('Report - ALL (DASHBOARD)'!$W$3>4,IF(AND('Compile Data'!$B$10="TAF",'Compile Data'!$B$8="PER-AVER"),"Totals","Averages"),"")) -> Averages
P9: =CONCATENATE("(",'Compile Data'!$B$6,"/",'Compile Data'!$B$7,")") -> (S6/STORAGE) | V9: =CONCATENATE("(",'Compile Data'!$B$6,"/",'Compile Data'!$B$7,")") -> (S6/STORAGE)
A11: Y-axis: | B11: =IF('Compile Data'!$B$10="CFS","Flow (CFS)",IF('Compile Data'!$B$10="TAF","Volume (TAF)",IF('Compile Data'!$B$10="KM","POSITION (KM)",""))) -> Volume (TAF) | P11: =IF('Compile Data'!$B$10="CFS","Flow (CFS)",IF('Compile Data'!$B$10="TAF","Volume (TAF)",IF('Compile Data'!$B$10="KM","POSITION (KM)",""))) -> Volume (TAF) | V11: =IF('Compile Data'!$B$10="CFS","Flow (CFS)",IF('Compile Data'!$B$10="TAF","Volume (TAF)",IF('Compile Data'!$B$10="KM","POSITION (KM)",""))) -> Volume (TAF)
Q12: Diff from | R12: Diff from
B13: OCT | C13: NOV | D13: DEC | E13: JAN | F13: FEB | G13: MAR | H13: APR | I13: MAY | J13: JUN | K13: JUL | L13: AUG | M13: SEP | P13: Value | Q13: =$O$14 -> NAA 011221 | R13: =$O$15 -> Alt 1B 011221 | V13: Wet | W13: Above Normal | X13: Below Normal | Y13: Dry | Z13: Critically Dry
A14: ='Compile Data'!$B$1 -> NAA 011221 | B14: =INDEX('Compile Data'!L$95:L$120,'Report - ALL (DASHBOARD)'!$W$3) -> 1746.604486 | C14: =INDEX('Compile Data'!M$95:M$120,'Report - ALL (DASHBOARD)'!$W$3) -> 1721.922324 | D14: =INDEX('Compile Data'!N$95:N$120,'Report - ALL (DASHBOARD)'!$W$3) -> 1821.930735 | E14: =INDEX('Compile Data'!O$95:O$120,'Report - ALL (DASHBOARD)'!$W$3) -> 2025.84527 | F14: =INDEX('Compile Data'!P$95:P$120,'Report - ALL (DASHBOARD)'!$W$3) -> 2263.645439 | G14: =INDEX('Compile Data'!Q$95:Q$120,'Report - ALL (DASHBOARD)'!$W$3) -> 2495.424557 | H14: =INDEX('Compile Data'!R$95:R$120,'Report - ALL (DASHBOARD)'!$W$3) -> 2776.325344 | I14: =INDEX('Compile Data'!S$95:S$120,'Report - ALL (DASHBOARD)'!$W$3) -> 2900.227656 | J14: =INDEX('Compile Data'!T$95:T$120,'Report - ALL (DASHBOARD)'!$W$3) -> 2766.042543 | K14: =INDEX('Compile Data'!U$95:U$120,'Report - ALL (DASHBOARD)'!$W$3) -> 2355.300613 | L14: =INDEX('Compile Data'!V$95:V$120,'Report - ALL (DASHBOARD)'!$W$3) -> 2088.296453 | M14: =INDEX('Compile Data'!W$95:W$120,'Report - ALL (DASHBOARD)'!$W$3) -> 1866.969615 | O14: ='Compile Data'!$B$1 -> NAA 011221 | P14: =INDEX('Compile Data'!$L$95:$AI$120,'Report - ALL (DASHBOARD)'!$W$3,'Report - ALL (DASHBOARD)'!$W$4) -> 2355.300613 | U14: ='Compile Data'!$B$1 -> NAA 011221 | V14: =INDEX('Compile Data'!$L$95:$AI$120,14,'Report - ALL (DASHBOARD)'!$W$4) -> 3191.360194 | W14: =INDEX('Compile Data'!$L$95:$AI$120,15,'Report - ALL (DASHBOARD)'!$W$4) -> 2898.949591 | X14: =INDEX('Compile Data'!$L$95:$AI$120,16,'Report - ALL (DASHBOARD)'!$W$4) -> 2338.489 | Y14: =INDEX('Compile Data'!$L$95:$AI$120,17,'Report - ALL (DASHBOARD)'!$W$4) -> 1619.387669 | Z14: =INDEX('Compile Data'!$L$95:$AI$120,18,'Report - ALL (DASHBOARD)'!$W$4) -> 1123.672173
A15: ='Compile Data'!$C$1 -> Alt 1B 011221 | B15: =INDEX('Compile Data'!AL$95:AL$120,'Report - ALL (DASHBOARD)'!$W$3) -> 1743.150042 | C15: =INDEX('Compile Data'!AM$95:AM$120,'Report - ALL (DASHBOARD)'!$W$3) -> 1715.231842 | D15: =INDEX('Compile Data'!AN$95:AN$120,'Report - ALL (DASHBOARD)'!$W$3) -> 1814.668588 | E15: =INDEX('Compile Data'!AO$95:AO$120,'Report - ALL (DASHBOARD)'!$W$3) -> 2019.139542 | F15: =INDEX('Compile Data'!AP$95:AP$120,'Report - ALL (DASHBOARD)'!$W$3) -> 2256.984994 | G15: =INDEX('Compile Data'!AQ$95:AQ$120,'Report - ALL (DASHBOARD)'!$W$3) -> 2489.723686 | H15: =INDEX('Compile Data'!AR$95:AR$120,'Report - ALL (DASHBOARD)'!$W$3) -> 2770.603709 | I15: =INDEX('Compile Data'!AS$95:AS$120,'Report - ALL (DASHBOARD)'!$W$3) -> 2894.529128 | J15: =INDEX('Compile Data'!AT$95:AT$120,'Report - ALL (DASHBOARD)'!$W$3) -> 2778.060485 | K15: =INDEX('Compile Data'!AU$95:AU$120,'Report - ALL (DASHBOARD)'!$W$3) -> 2378.080148 | L15: =INDEX('Compile Data'!AV$95:AV$120,'Report - ALL (DASHBOARD)'!$W$3) -> 2104.28054 | M15: =INDEX('Compile Data'!AW$95:AW$120,'Report - ALL (DASHBOARD)'!$W$3) -> 1878.686439 | O15: ='Compile Data'!$C$1 -> Alt 1B 011221 | P15: =INDEX('Compile Data'!$AL$95:$BI$120,'Report - ALL (DASHBOARD)'!$W$3,'Report - ALL (DASHBOARD)'!$W$4) -> 2378.080148 | Q15: =$P15-$P$14 -> 22.77953479 | U15: ='Compile Data'!$C$1 -> Alt 1B 011221 | V15: =INDEX('Compile Data'!$AL$95:$BI$120,14,'Report - ALL (DASHBOARD)'!$W$4) -> 3193.642054 | W15: =INDEX('Compile Data'!$AL$95:$BI$120,15,'Report - ALL (DASHBOARD)'!$W$4) -> 2897.9591 | X15: =INDEX('Compile Data'!$AL$95:$BI$120,16,'Report - ALL (DASHBOARD)'!$W$4) -> 2368.140897 | Y15: =INDEX('Compile Data'!$AL$95:$BI$120,17,'Report - ALL (DASHBOARD)'!$W$4) -> 1682.748778 | Z15: =INDEX('Compile Data'!$AL$95:$BI$120,18,'Report - ALL (DASHBOARD)'!$W$4) -> 1145.743245
A16: ='Compile Data'!$D$1 -> Alt 1B 011221 No Oro | B16: =INDEX('Compile Data'!BL$95:BL$120,'Report - ALL (DASHBOARD)'!$W$3) -> 1742.540301 | C16: =INDEX('Compile Data'!BM$95:BM$120,'Report - ALL (DASHBOARD)'!$W$3) -> 1717.256133 | D16: =INDEX('Compile Data'!BN$95:BN$120,'Report - ALL (DASHBOARD)'!$W$3) -> 1817.177095 | E16: =INDEX('Compile Data'!BO$95:BO$120,'Report - ALL (DASHBOARD)'!$W$3) -> 2021.124738 | F16: =INDEX('Compile Data'!BP$95:BP$120,'Report - ALL (DASHBOARD)'!$W$3) -> 2259.208996 | G16: =INDEX('Compile Data'!BQ$95:BQ$120,'Report - ALL (DASHBOARD)'!$W$3) -> 2491.673934 | H16: =INDEX('Compile Data'!BR$95:BR$120,'Report - ALL (DASHBOARD)'!$W$3) -> 2772.368321 | I16: =INDEX('Compile Data'!BS$95:BS$120,'Report - ALL (DASHBOARD)'!$W$3) -> 2896.333899 | J16: =INDEX('Compile Data'!BT$95:BT$120,'Report - ALL (DASHBOARD)'!$W$3) -> 2763.239683 | K16: =INDEX('Compile Data'!BU$95:BU$120,'Report - ALL (DASHBOARD)'!$W$3) -> 2353.273308 | L16: =INDEX('Compile Data'!BV$95:BV$120,'Report - ALL (DASHBOARD)'!$W$3) -> 2085.577214 | M16: =INDEX('Compile Data'!BW$95:BW$120,'Report - ALL (DASHBOARD)'!$W$3) -> 1865.01628 | O16: ='Compile Data'!$D$1 -> Alt 1B 011221 No Oro | P16: =INDEX('Compile Data'!$BL$95:$CI$120,'Report - ALL (DASHBOARD)'!$W$3,'Report - ALL (DASHBOARD)'!$W$4) -> 2353.273308 | Q16: -2.027305427 | R16: =$P16-$P$15 -> -24.80684021 | U16: ='Compile Data'!$D$1 -> Alt 1B 011221 No Oro | V16: =INDEX('Compile Data'!$BL$95:$CI$120,14,'Report - ALL (DASHBOARD)'!$W$4) -> 3193.639326 | W16: =INDEX('Compile Data'!$BL$95:$CI$120,15,'Report - ALL (DASHBOARD)'!$W$4) -> 2898.002128 | X16: =INDEX('Compile Data'!$BL$95:$CI$120,16,'Report - ALL (DASHBOARD)'!$W$4) -> 2333.16627 | Y16: =INDEX('Compile Data'!$BL$95:$CI$120,17,'Report - ALL (DASHBOARD)'!$W$4) -> 1615.762447 | Z16: =INDEX('Compile Data'!$BL$95:$CI$120,18,'Report - ALL (DASHBOARD)'!$W$4) -> 1117.475948
A17: ='Compile Data'!$E$1 -> 0 | B17: =INDEX('Compile Data'!CL$95:CL$120,'Report - ALL (DASHBOARD)'!$W$3) ->  | C17: =INDEX('Compile Data'!CM$95:CM$120,'Report - ALL (DASHBOARD)'!$W$3) ->  | D17: =INDEX('Compile Data'!CN$95:CN$120,'Report - ALL (DASHBOARD)'!$W$3) ->  | E17: =INDEX('Compile Data'!CO$95:CO$120,'Report - ALL (DASHBOARD)'!$W$3) ->  | F17: =INDEX('Compile Data'!CP$95:CP$120,'Report - ALL (DASHBOARD)'!$W$3) ->  | G17: =INDEX('Compile Data'!CQ$95:CQ$120,'Report - ALL (DASHBOARD)'!$W$3) ->  | H17: =INDEX('Compile Data'!CR$95:CR$120,'Report - ALL (DASHBOARD)'!$W$3) ->  | I17: =INDEX('Compile Data'!CS$95:CS$120,'Report - ALL (DASHBOARD)'!$W$3) ->  | J17: =INDEX('Compile Data'!CT$95:CT$120,'Report - ALL (DASHBOARD)'!$W$3) ->  | K17: =INDEX('Compile Data'!CU$95:CU$120,'Report - ALL (DASHBOARD)'!$W$3) ->  | L17: =INDEX('Compile Data'!CV$95:CV$120,'Report - ALL (DASHBOARD)'!$W$3) ->  | M17: =INDEX('Compile Data'!CW$95:CW$120,'Report - ALL (DASHBOARD)'!$W$3) ->  | O17: ='Compile Data'!$E$1 -> 0 | P17: =INDEX('Compile Data'!$CL$95:$DI$120,'Report - ALL (DASHBOARD)'!$W$3,'Report - ALL (DASHBOARD)'!$W$4) ->  | R17: =$P17-$P$15 ->  | U17: ='Compile Data'!$E$1 -> 0 | V17: =INDEX('Compile Data'!$CL$95:$DI$120,14,'Report - ALL (DASHBOARD)'!$W$4) ->  | W17: =INDEX('Compile Data'!$CL$95:$DI$120,15,'Report - ALL (DASHBOARD)'!$W$4) ->  | X17: =INDEX('Compile Data'!$CL$95:$DI$120,16,'Report - ALL (DASHBOARD)'!$W$4) ->  | Y17: =INDEX('Compile Data'!$CL$95:$DI$120,17,'Report - ALL (DASHBOARD)'!$W$4) ->  | Z17: =INDEX('Compile Data'!$CL$95:$DI$120,18,'Report - ALL (DASHBOARD)'!$W$4) -> 
A18: ='Compile Data'!$F$1 -> 0 | B18: =INDEX('Compile Data'!DL$95:DL$120,'Report - ALL (DASHBOARD)'!$W$3) ->  | C18: =INDEX('Compile Data'!DM$95:DM$120,'Report - ALL (DASHBOARD)'!$W$3) ->  | D18: =INDEX('Compile Data'!DN$95:DN$120,'Report - ALL (DASHBOARD)'!$W$3) ->  | E18: =INDEX('Compile Data'!DO$95:DO$120,'Report - ALL (DASHBOARD)'!$W$3) ->  | F18: =INDEX('Compile Data'!DP$95:DP$120,'Report - ALL (DASHBOARD)'!$W$3) ->  | G18: =INDEX('Compile Data'!DQ$95:DQ$120,'Report - ALL (DASHBOARD)'!$W$3) ->  | H18: =INDEX('Compile Data'!DR$95:DR$120,'Report - ALL (DASHBOARD)'!$W$3) ->  | I18: =INDEX('Compile Data'!DS$95:DS$120,'Report - ALL (DASHBOARD)'!$W$3) ->  | J18: =INDEX('Compile Data'!DT$95:DT$120,'Report - ALL (DASHBOARD)'!$W$3) ->  | K18: =INDEX('Compile Data'!DU$95:DU$120,'Report - ALL (DASHBOARD)'!$W$3) ->  | L18: =INDEX('Compile Data'!DV$95:DV$120,'Report - ALL (DASHBOARD)'!$W$3) ->  | M18: =INDEX('Compile Data'!DW$95:DW$120,'Report - ALL (DASHBOARD)'!$W$3) ->  | O18: ='Compile Data'!$F$1 -> 0 | P18: =INDEX('Compile Data'!$DL$95:$EI$120,'Report - ALL (DASHBOARD)'!$W$3,'Report - ALL (DASHBOARD)'!$W$4) ->  | Q18: =$P18-$P$14 ->  | R18: =$P18-$P$15 ->  | U18: ='Compile Data'!$F$1 -> 0 | V18: =INDEX('Compile Data'!$DL$95:$EI$120,14,'Report - ALL (DASHBOARD)'!$W$4) ->  | W18: =INDEX('Compile Data'!$DL$95:$EI$120,15,'Report - ALL (DASHBOARD)'!$W$4) ->  | X18: =INDEX('Compile Data'!$DL$95:$EI$120,16,'Report - ALL (DASHBOARD)'!$W$4) ->  | Y18: =INDEX('Compile Data'!$DL$95:$EI$120,17,'Report - ALL (DASHBOARD)'!$W$4) ->  | Z18: =INDEX('Compile Data'!$DL$95:$EI$120,18,'Report - ALL (DASHBOARD)'!$W$4) -> 
A19: ='Compile Data'!$G$1 -> 0 | B19: =INDEX('Compile Data'!EL$95:EL$120,'Report - ALL (DASHBOARD)'!$W$3) ->  | C19: =INDEX('Compile Data'!EM$95:EM$120,'Report - ALL (DASHBOARD)'!$W$3) ->  | D19: =INDEX('Compile Data'!EN$95:EN$120,'Report - ALL (DASHBOARD)'!$W$3) ->  | E19: =INDEX('Compile Data'!EO$95:EO$120,'Report - ALL (DASHBOARD)'!$W$3) ->  | F19: =INDEX('Compile Data'!EP$95:EP$120,'Report - ALL (DASHBOARD)'!$W$3) ->  | G19: =INDEX('Compile Data'!EQ$95:EQ$120,'Report - ALL (DASHBOARD)'!$W$3) ->  | H19: =INDEX('Compile Data'!ER$95:ER$120,'Report - ALL (DASHBOARD)'!$W$3) ->  | I19: =INDEX('Compile Data'!ES$95:ES$120,'Report - ALL (DASHBOARD)'!$W$3) ->  | J19: =INDEX('Compile Data'!ET$95:ET$120,'Report - ALL (DASHBOARD)'!$W$3) ->  | K19: =INDEX('Compile Data'!EU$95:EU$120,'Report - ALL (DASHBOARD)'!$W$3) ->  | L19: =INDEX('Compile Data'!EV$95:EV$120,'Report - ALL (DASHBOARD)'!$W$3) ->  | M19: =INDEX('Compile Data'!EW$95:EW$120,'Report - ALL (DASHBOARD)'!$W$3) ->  | O19: ='Compile Data'!$G$1 -> 0 | P19: =INDEX('Compile Data'!$EL$95:$FI$120,'Report - ALL (DASHBOARD)'!$W$3,'Report - ALL (DASHBOARD)'!$W$4) ->  | R19: =$P19-$P$15 ->  | U19: ='Compile Data'!$G$1 -> 0 | V19: =INDEX('Compile Data'!$EL$95:$FI$120,14,'Report - ALL (DASHBOARD)'!$W$4) ->  | W19: =INDEX('Compile Data'!$EL$95:$FI$120,15,'Report - ALL (DASHBOARD)'!$W$4) ->  | X19: =INDEX('Compile Data'!$EL$95:$FI$120,16,'Report - ALL (DASHBOARD)'!$W$4) ->  | Y19: =INDEX('Compile Data'!$EL$95:$FI$120,17,'Report - ALL (DASHBOARD)'!$W$4) ->  | Z19: =INDEX('Compile Data'!$EL$95:$FI$120,18,'Report - ALL (DASHBOARD)'!$W$4) -> 
A21: Annuals Plot: | O21: Exceedence Plot:
A23: Title: | B23: =INDEX(Other!$B$9:$B$33,'Report - ALL (DASHBOARD)'!$W$4) -> July | O23: Title: | P23: =INDEX(Other!$B$9:$B$33,'Report - ALL (DASHBOARD)'!$W$4) -> July
B24: ='Compile Data'!$B$5 -> Oroville Storage | P24: ='Compile Data'!$B$5 -> Oroville Storage
B25: =IF('Compile Data'!$B$10="CFS","Flow (CFS)",IF('Compile Data'!$B$10="TAF","Volume (TAF)",IF('Compile Data'!$B$10="KM","POSITION (KM)",""))) -> Volume (TAF) | P25: =IF('Compile Data'!$B$10="CFS","Flow (CFS)",IF('Compile Data'!$B$10="TAF","Volume (TAF)",IF('Compile Data'!$B$10="KM","POSITION (KM)",""))) -> Volume (TAF)
B27: ='Compile Data'!$B$1 -> NAA 011221 | C27: ='Compile Data'!$C$1 -> Alt 1B 011221 | D27: ='Compile Data'!$D$1 -> Alt 1B 011221 No Oro | E27: ='Compile Data'!$E$1 -> 0 | F27: ='Compile Data'!$F$1 -> 0 | G27: ='Compile Data'!$G$1 -> 0 | Q27: ='Compile Data'!$B$1 -> NAA 011221 | R27: ='Compile Data'!$C$1 -> Alt 1B 011221 | S27: ='Compile Data'!$D$1 -> Alt 1B 011221 No Oro | T27: ='Compile Data'!$E$1 -> 0 | U27: ='Compile Data'!$F$1 -> 0 | V27: ='Compile Data'!$G$1 -> 0
A28: 1922 | B28: =INDEX('Compile Data'!$L$12:$AI$93,$A28-1921,'Report - ALL (DASHBOARD)'!$W$4) -> 3144.394789 | C28: =INDEX('Compile Data'!$AL$12:$BI$93,$A28-1921,'Report - ALL (DASHBOARD)'!$W$4) -> 3138.901786 | D28: =INDEX('Compile Data'!$BL$12:$CI$93,$A28-1921,'Report - ALL (DASHBOARD)'!$W$4) -> 3138.901786 | E28: =INDEX('Compile Data'!$CL$12:$DI$93,$A28-1921,'Report - ALL (DASHBOARD)'!$W$4) ->  | F28: =INDEX('Compile Data'!$DL$12:$EI$93,$A28-1921,'Report - ALL (DASHBOARD)'!$W$4) ->  | G28: =INDEX('Compile Data'!$EL$12:$FI$93,$A28-1921,'Report - ALL (DASHBOARD)'!$W$4) ->  | O28: 1 | P28: =(O28-1)/81 -> 0 | Q28: =INDEX('Compile Data'!$L$123:$AI$204,$O28,'Report - ALL (DASHBOARD)'!$W$4) -> 3538 | R28: =INDEX('Compile Data'!$AL$123:$BI$204,$O28,'Report - ALL (DASHBOARD)'!$W$4) -> 3538 | S28: =INDEX('Compile Data'!$BL$123:$CI$204,$O28,'Report - ALL (DASHBOARD)'!$W$4) -> 3538 | T28: =INDEX('Compile Data'!$CL$123:$DI$204,$O28,'Report - ALL (DASHBOARD)'!$W$4) ->  | U28: =INDEX('Compile Data'!$DL$123:$EI$204,$O28,'Report - ALL (DASHBOARD)'!$W$4) ->  | V28: =INDEX('Compile Data'!$EL$123:$FI$204,$O28,'Report - ALL (DASHBOARD)'!$W$4) -> 
A29: =A28+1 -> 1923 | B29: =INDEX('Compile Data'!$L$12:$AI$93,$A29-1921,'Report - ALL (DASHBOARD)'!$W$4) -> 2323.081116 | C29: =INDEX('Compile Data'!$AL$12:$BI$93,$A29-1921,'Report - ALL (DASHBOARD)'!$W$4) -> 2364.899675 | D29: =INDEX('Compile Data'!$BL$12:$CI$93,$A29-1921,'Report - ALL (DASHBOARD)'!$W$4) -> 2337.683045 | E29: =INDEX('Compile Data'!$CL$12:$DI$93,$A29-1921,'Report - ALL (DASHBOARD)'!$W$4) ->  | F29: =INDEX('Compile Data'!$DL$12:$EI$93,$A29-1921,'Report - ALL (DASHBOARD)'!$W$4) ->  | G29: =INDEX('Compile Data'!$EL$12:$FI$93,$A29-1921,'Report - ALL (DASHBOARD)'!$W$4) ->  | O29: 2 | P29: 0.01234567901 | Q29: =INDEX('Compile Data'!$L$123:$AI$204,$O29,'Report - ALL (DASHBOARD)'!$W$4) -> 3538 | R29: =INDEX('Compile Data'!$AL$123:$BI$204,$O29,'Report - ALL (DASHBOARD)'!$W$4) -> 3538 | S29: =INDEX('Compile Data'!$BL$123:$CI$204,$O29,'Report - ALL (DASHBOARD)'!$W$4) -> 3538 | T29: =INDEX('Compile Data'!$CL$123:$DI$204,$O29,'Report - ALL (DASHBOARD)'!$W$4) ->  | U29: =INDEX('Compile Data'!$DL$123:$EI$204,$O29,'Report - ALL (DASHBOARD)'!$W$4) ->  | V29: =INDEX('Compile Data'!$EL$123:$FI$204,$O29,'Report - ALL (DASHBOARD)'!$W$4) -> 
A30: =A29+1 -> 1924 | B30: =INDEX('Compile Data'!$L$12:$AI$93,$A30-1921,'Report - ALL (DASHBOARD)'!$W$4) -> 768.3293818 | C30: =INDEX('Compile Data'!$AL$12:$BI$93,$A30-1921,'Report - ALL (DASHBOARD)'!$W$4) -> 776.2056258 | D30: =INDEX('Compile Data'!$BL$12:$CI$93,$A30-1921,'Report - ALL (DASHBOARD)'!$W$4) -> 754.4423851 | E30: =INDEX('Compile Data'!$CL$12:$DI$93,$A30-1921,'Report - ALL (DASHBOARD)'!$W$4) ->  | F30: =INDEX('Compile Data'!$DL$12:$EI$93,$A30-1921,'Report - ALL (DASHBOARD)'!$W$4) ->  | G30: =INDEX('Compile Data'!$EL$12:$FI$93,$A30-1921,'Report - ALL (DASHBOARD)'!$W$4) ->  | O30: 3 | P30: 0.02469135802 | Q30: =INDEX('Compile Data'!$L$123:$AI$204,$O30,'Report - ALL (DASHBOARD)'!$W$4) -> 3538 | R30: =INDEX('Compile Data'!$AL$123:$BI$204,$O30,'Report - ALL (DASHBOARD)'!$W$4) -> 3538 | S30: =INDEX('Compile Data'!$BL$123:$CI$204,$O30,'Report - ALL (DASHBOARD)'!$W$4) -> 3538 | T30: =INDEX('Compile Data'!$CL$123:$DI$204,$O30,'Report - ALL (DASHBOARD)'!$W$4) ->  | U30: =INDEX('Compile Data'!$DL$123:$EI$204,$O30,'Report - ALL (DASHBOARD)'!$W$4) ->  | V30: =INDEX('Compile Data'!$EL$123:$FI$204,$O30,'Report - ALL (DASHBOARD)'!$W$4) -> 
A31: 1925 | B31: =INDEX('Compile Data'!$L$12:$AI$93,$A31-1921,'Report - ALL (DASHBOARD)'!$W$4) -> 1616.250474 | C31: =INDEX('Compile Data'!$AL$12:$BI$93,$A31-1921,'Report - ALL (DASHBOARD)'!$W$4) -> 1653.583227 | D31: =INDEX('Compile Data'!$BL$12:$CI$93,$A31-1921,'Report - ALL (DASHBOARD)'!$W$4) -> 1620.486878 | E31: =INDEX('Compile Data'!$CL$12:$DI$93,$A31-1921,'Report - ALL (DASHBOARD)'!$W$4) ->  | F31: =INDEX('Compile Data'!$DL$12:$EI$93,$A31-1921,'Report - ALL (DASHBOARD)'!$W$4) ->  | G31: =INDEX('Compile Data'!$EL$12:$FI$93,$A31-1921,'Report - ALL (DASHBOARD)'!$W$4) ->  | O31: 4 | P31: 0.03703703704 | Q31: =INDEX('Compile Data'!$L$123:$AI$204,$O31,'Report - ALL (DASHBOARD)'!$W$4) -> 3538 | R31: =INDEX('Compile Data'!$AL$123:$BI$204,$O31,'Report - ALL (DASHBOARD)'!$W$4) -> 3538 | S31: =INDEX('Compile Data'!$BL$123:$CI$204,$O31,'Report - ALL (DASHBOARD)'!$W$4) -> 3538 | T31: =INDEX('Compile Data'!$CL$123:$DI$204,$O31,'Report - ALL (DASHBOARD)'!$W$4) ->  | U31: =INDEX('Compile Data'!$DL$123:$EI$204,$O31,'Report - ALL (DASHBOARD)'!$W$4) ->  | V31: =INDEX('Compile Data'!$EL$123:$FI$204,$O31,'Report - ALL (DASHBOARD)'!$W$4) -> 
A32: 1926 | B32: =INDEX('Compile Data'!$L$12:$AI$93,$A32-1921,'Report - ALL (DASHBOARD)'!$W$4) -> 1717.266195 | C32: =INDEX('Compile Data'!$AL$12:$BI$93,$A32-1921,'Report - ALL (DASHBOARD)'!$W$4) -> 1692.972928 | D32: =INDEX('Compile Data'!$BL$12:$CI$93,$A32-1921,'Report - ALL (DASHBOARD)'!$W$4) -> 1706.048616 | E32: =INDEX('Compile Data'!$CL$12:$DI$93,$A32-1921,'Report - ALL (DASHBOARD)'!$W$4) ->  | F32: =INDEX('Compile Data'!$DL$12:$EI$93,$A32-1921,'Report - ALL (DASHBOARD)'!$W$4) ->  | G32: =INDEX('Compile Data'!$EL$12:$FI$93,$A32-1921,'Report - ALL (DASHBOARD)'!$W$4) ->  | O32: 5 | P32: 0.04938271605 | Q32: =INDEX('Compile Data'!$L$123:$AI$204,$O32,'Report - ALL (DASHBOARD)'!$W$4) -> 3538 | R32: =INDEX('Compile Data'!$AL$123:$BI$204,$O32,'Report - ALL (DASHBOARD)'!$W$4) -> 3538 | S32: =INDEX('Compile Data'!$BL$123:$CI$204,$O32,'Report - ALL (DASHBOARD)'!$W$4) -> 3538 | T32: =INDEX('Compile Data'!$CL$123:$DI$204,$O32,'Report - ALL (DASHBOARD)'!$W$4) ->  | U32: =INDEX('Compile Data'!$DL$123:$EI$204,$O32,'Report - ALL (DASHBOARD)'!$W$4) ->  | V32: =INDEX('Compile Data'!$EL$123:$FI$204,$O32,'Report - ALL (DASHBOARD)'!$W$4) -> 
A33: 1927 | B33: =INDEX('Compile Data'!$L$12:$AI$93,$A33-1921,'Report - ALL (DASHBOARD)'!$W$4) -> 3044.331767 | C33: =INDEX('Compile Data'!$AL$12:$BI$93,$A33-1921,'Report - ALL (DASHBOARD)'!$W$4) -> 3044.227594 | D33: =INDEX('Compile Data'!$BL$12:$CI$93,$A33-1921,'Report - ALL (DASHBOARD)'!$W$4) -> 3044.2243 | E33: =INDEX('Compile Data'!$CL$12:$DI$93,$A33-1921,'Report - ALL (DASHBOARD)'!$W$4) ->  | F33: =INDEX('Compile Data'!$DL$12:$EI$93,$A33-1921,'Report - ALL (DASHBOARD)'!$W$4) ->  | G33: =INDEX('Compile Data'!$EL$12:$FI$93,$A33-1921,'Report - ALL (DASHBOARD)'!$W$4) ->  | O33: 6 | P33: 0.06172839506 | Q33: =INDEX('Compile Data'!$L$123:$AI$204,$O33,'Report - ALL (DASHBOARD)'!$W$4) -> 3526.162081 | R33: =INDEX('Compile Data'!$AL$123:$BI$204,$O33,'Report - ALL (DASHBOARD)'!$W$4) -> 3526.706139 | S33: =INDEX('Compile Data'!$BL$123:$CI$204,$O33,'Report - ALL (DASHBOARD)'!$W$4) -> 3526.678989 | T33: =INDEX('Compile Data'!$CL$123:$DI$204,$O33,'Report - ALL (DASHBOARD)'!$W$4) ->  | U33: =INDEX('Compile Data'!$DL$123:$EI$204,$O33,'Report - ALL (DASHBOARD)'!$W$4) ->  | V33: =INDEX('Compile Data'!$EL$123:$FI$204,$O33,'Report - ALL (DASHBOARD)'!$W$4) -> 
A34: 1928 | B34: =INDEX('Compile Data'!$L$12:$AI$93,$A34-1921,'Report - ALL (DASHBOARD)'!$W$4) -> 2538.844851 | C34: =INDEX('Compile Data'!$AL$12:$BI$93,$A34-1921,'Report - ALL (DASHBOARD)'!$W$4) -> 2541.054512 | D34: =INDEX('Compile Data'!$BL$12:$CI$93,$A34-1921,'Report - ALL (DASHBOARD)'!$W$4) -> 2541.630382 | E34: =INDEX('Compile Data'!$CL$12:$DI$93,$A34-1921,'Report - ALL (DASHBOARD)'!$W$4) ->  | F34: =INDEX('Compile Data'!$DL$12:$EI$93,$A34-1921,'Report - ALL (DASHBOARD)'!$W$4) ->  | G34: =INDEX('Compile Data'!$EL$12:$FI$93,$A34-1921,'Report - ALL (DASHBOARD)'!$W$4) ->  | O34: 7 | P34: 0.07407407407 | Q34: =INDEX('Compile Data'!$L$123:$AI$204,$O34,'Report - ALL (DASHBOARD)'!$W$4) -> 3444.685871 | R34: =INDEX('Compile Data'!$AL$123:$BI$204,$O34,'Report - ALL (DASHBOARD)'!$W$4) -> 3443.8937 | S34: =INDEX('Compile Data'!$BL$123:$CI$204,$O34,'Report - ALL (DASHBOARD)'!$W$4) -> 3443.902312 | T34: =INDEX('Compile Data'!$CL$123:$DI$204,$O34,'Report - ALL (DASHBOARD)'!$W$4) ->  | U34: =INDEX('Compile Data'!$DL$123:$EI$204,$O34,'Report - ALL (DASHBOARD)'!$W$4) ->  | V34: =INDEX('Compile Data'!$EL$123:$FI$204,$O34,'Report - ALL (DASHBOARD)'!$W$4) -> 
A35: 1929 | B35: =INDEX('Compile Data'!$L$12:$AI$93,$A35-1921,'Report - ALL (DASHBOARD)'!$W$4) -> 1027.736804 | C35: =INDEX('Compile Data'!$AL$12:$BI$93,$A35-1921,'Report - ALL (DASHBOARD)'!$W$4) -> 1089.935672 | D35: =INDEX('Compile Data'!$BL$12:$CI$93,$A35-1921,'Report - ALL (DASHBOARD)'!$W$4) -> 1031.98333 | E35: =INDEX('Compile Data'!$CL$12:$DI$93,$A35-1921,'Report - ALL (DASHBOARD)'!$W$4) ->  | F35: =INDEX('Compile Data'!$DL$12:$EI$93,$A35-1921,'Report - ALL (DASHBOARD)'!$W$4) ->  | G35: =INDEX('Compile Data'!$EL$12:$FI$93,$A35-1921,'Report - ALL (DASHBOARD)'!$W$4) ->  | O35: 8 | P35: 0.08641975309 | Q35: =INDEX('Compile Data'!$L$123:$AI$204,$O35,'Report - ALL (DASHBOARD)'!$W$4) -> 3435.045573 | R35: =INDEX('Compile Data'!$AL$123:$BI$204,$O35,'Report - ALL (DASHBOARD)'!$W$4) -> 3433.15697 | S35: =INDEX('Compile Data'!$BL$123:$CI$204,$O35,'Report - ALL (DASHBOARD)'!$W$4) -> 3433.146743 | T35: =INDEX('Compile Data'!$CL$123:$DI$204,$O35,'Report - ALL (DASHBOARD)'!$W$4) ->  | U35: =INDEX('Compile Data'!$DL$123:$EI$204,$O35,'Report - ALL (DASHBOARD)'!$W$4) ->  | V35: =INDEX('Compile Data'!$EL$123:$FI$204,$O35,'Report - ALL (DASHBOARD)'!$W$4) -> 
A36: 1930 | B36: =INDEX('Compile Data'!$L$12:$AI$93,$A36-1921,'Report - ALL (DASHBOARD)'!$W$4) -> 1668.988032 | C36: =INDEX('Compile Data'!$AL$12:$BI$93,$A36-1921,'Report - ALL (DASHBOARD)'!$W$4) -> 1667.467708 | D36: =INDEX('Compile Data'!$BL$12:$CI$93,$A36-1921,'Report - ALL (DASHBOARD)'!$W$4) -> 1634.255146 | E36: =INDEX('Compile Data'!$CL$12:$DI$93,$A36-1921,'Report - ALL (DASHBOARD)'!$W$4) ->  | F36: =INDEX('Compile Data'!$DL$12:$EI$93,$A36-1921,'Report - ALL (DASHBOARD)'!$W$4) ->  | G36: =INDEX('Compile Data'!$EL$12:$FI$93,$A36-1921,'Report - ALL (DASHBOARD)'!$W$4) ->  | O36: 9 | P36: 0.0987654321 | Q36: =INDEX('Compile Data'!$L$123:$AI$204,$O36,'Report - ALL (DASHBOARD)'!$W$4) -> 3386.989862 | R36: =INDEX('Compile Data'!$AL$123:$BI$204,$O36,'Report - ALL (DASHBOARD)'!$W$4) -> 3408.223951 | S36: =INDEX('Compile Data'!$BL$123:$CI$204,$O36,'Report - ALL (DASHBOARD)'!$W$4) -> 3408.191016 | T36: =INDEX('Compile Data'!$CL$123:$DI$204,$O36,'Report - ALL (DASHBOARD)'!$W$4) ->  | U36: =INDEX('Compile Data'!$DL$123:$EI$204,$O36,'Report - ALL (DASHBOARD)'!$W$4) ->  | V36: =INDEX('Compile Data'!$EL$123:$FI$204,$O36,'Report - ALL (DASHBOARD)'!$W$4) -> 
A37: 1931 | B37: =INDEX('Compile Data'!$L$12:$AI$93,$A37-1921,'Report - ALL (DASHBOARD)'!$W$4) -> 1053.843716 | C37: =INDEX('Compile Data'!$AL$12:$BI$93,$A37-1921,'Report - ALL (DASHBOARD)'!$W$4) -> 969.3424376 | D37: =INDEX('Compile Data'!$BL$12:$CI$93,$A37-1921,'Report - ALL (DASHBOARD)'!$W$4) -> 1003.500939 | E37: =INDEX('Compile Data'!$CL$12:$DI$93,$A37-1921,'Report - ALL (DASHBOARD)'!$W$4) ->  | F37: =INDEX('Compile Data'!$DL$12:$EI$93,$A37-1921,'Report - ALL (DASHBOARD)'!$W$4) ->  | G37: =INDEX('Compile Data'!$EL$12:$FI$93,$A37-1921,'Report - ALL (DASHBOARD)'!$W$4) ->  | O37: 10 | P37: 0.1111111111 | Q37: =INDEX('Compile Data'!$L$123:$AI$204,$O37,'Report - ALL (DASHBOARD)'!$W$4) -> 3338.453341 | R37: =INDEX('Compile Data'!$AL$123:$BI$204,$O37,'Report - ALL (DASHBOARD)'!$W$4) -> 3330.598067 | S37: =INDEX('Compile Data'!$BL$123:$CI$204,$O37,'Report - ALL (DASHBOARD)'!$W$4) -> 3330.589734 | T37: =INDEX('Compile Data'!$CL$123:$DI$204,$O37,'Report - ALL (DASHBOARD)'!$W$4) ->  | U37: =INDEX('Compile Data'!$DL$123:$EI$204,$O37,'Report - ALL (DASHBOARD)'!$W$4) ->  | V37: =INDEX('Compile Data'!$EL$123:$FI$204,$O37,'Report - ALL (DASHBOARD)'!$W$4) -> 
A38: 1932 | B38: =INDEX('Compile Data'!$L$12:$AI$93,$A38-1921,'Report - ALL (DASHBOARD)'!$W$4) -> 1676.946913 | C38: =INDEX('Compile Data'!$AL$12:$BI$93,$A38-1921,'Report - ALL (DASHBOARD)'!$W$4) -> 1669.472905 | D38: =INDEX('Compile Data'!$BL$12:$CI$93,$A38-1921,'Report - ALL (DASHBOARD)'!$W$4) -> 1671.552215 | E38: =INDEX('Compile Data'!$CL$12:$DI$93,$A38-1921,'Report - ALL (DASHBOARD)'!$W$4) ->  | F38: =INDEX('Compile Data'!$DL$12:$EI$93,$A38-1921,'Report - ALL (DASHBOARD)'!$W$4) ->  | G38: =INDEX('Compile Data'!$EL$12:$FI$93,$A38-1921,'Report - ALL (DASHBOARD)'!$W$4) ->  | O38: 11 | P38: 0.1234567901 | Q38: =INDEX('Compile Data'!$L$123:$AI$204,$O38,'Report - ALL (DASHBOARD)'!$W$4) -> 3282.267469 | R38: =INDEX('Compile Data'!$AL$123:$BI$204,$O38,'Report - ALL (DASHBOARD)'!$W$4) -> 3283.113476 | S38: =INDEX('Compile Data'!$BL$123:$CI$204,$O38,'Report - ALL (DASHBOARD)'!$W$4) -> 3283.087289 | T38: =INDEX('Compile Data'!$CL$123:$DI$204,$O38,'Report - ALL (DASHBOARD)'!$W$4) ->  | U38: =INDEX('Compile Data'!$DL$123:$EI$204,$O38,'Report - ALL (DASHBOARD)'!$W$4) ->  | V38: =INDEX('Compile Data'!$EL$123:$FI$204,$O38,'Report - ALL (DASHBOARD)'!$W$4) -> 
A39: 1933 | B39: =INDEX('Compile Data'!$L$12:$AI$93,$A39-1921,'Report - ALL (DASHBOARD)'!$W$4) -> 1072.054481 | C39: =INDEX('Compile Data'!$AL$12:$BI$93,$A39-1921,'Report - ALL (DASHBOARD)'!$W$4) -> 1066.499393 | D39: =INDEX('Compile Data'!$BL$12:$CI$93,$A39-1921,'Report - ALL (DASHBOARD)'!$W$4) -> 1067.317412 | E39: =INDEX('Compile Data'!$CL$12:$DI$93,$A39-1921,'Report - ALL (DASHBOARD)'!$W$4) ->  | F39: =INDEX('Compile Data'!$DL$12:$EI$93,$A39-1921,'Report - ALL (DASHBOARD)'!$W$4) ->  | G39: =INDEX('Compile Data'!$EL$12:$FI$93,$A39-1921,'Report - ALL (DASHBOARD)'!$W$4) ->  | O39: 12 | P39: 0.1358024691 | Q39: =INDEX('Compile Data'!$L$123:$AI$204,$O39,'Report - ALL (DASHBOARD)'!$W$4) -> 3244.799573 | R39: =INDEX('Compile Data'!$AL$123:$BI$204,$O39,'Report - ALL (DASHBOARD)'!$W$4) -> 3244.675703 | S39: =INDEX('Compile Data'!$BL$123:$CI$204,$O39,'Report - ALL (DASHBOARD)'!$W$4) -> 3244.715014 | T39: =INDEX('Compile Data'!$CL$123:$DI$204,$O39,'Report - ALL (DASHBOARD)'!$W$4) ->  | U39: =INDEX('Compile Data'!$DL$123:$EI$204,$O39,'Report - ALL (DASHBOARD)'!$W$4) ->  | V39: =INDEX('Compile Data'!$EL$123:$FI$204,$O39,'Report - ALL (DASHBOARD)'!$W$4) -> 
A40: 1934 | B40: =INDEX('Compile Data'!$L$12:$AI$93,$A40-1921,'Report - ALL (DASHBOARD)'!$W$4) -> 783.977708 | C40: =INDEX('Compile Data'!$AL$12:$BI$93,$A40-1921,'Report - ALL (DASHBOARD)'!$W$4) -> 779.3644423 | D40: =INDEX('Compile Data'!$BL$12:$CI$93,$A40-1921,'Report - ALL (DASHBOARD)'!$W$4) -> 780.1549682 | E40: =INDEX('Compile Data'!$CL$12:$DI$93,$A40-1921,'Report - ALL (DASHBOARD)'!$W$4) ->  | F40: =INDEX('Compile Data'!$DL$12:$EI$93,$A40-1921,'Report - ALL (DASHBOARD)'!$W$4) ->  | G40: =INDEX('Compile Data'!$EL$12:$FI$93,$A40-1921,'Report - ALL (DASHBOARD)'!$W$4) ->  | O40: 13 | P40: 0.1481481481 | Q40: =INDEX('Compile Data'!$L$123:$AI$204,$O40,'Report - ALL (DASHBOARD)'!$W$4) -> 3236.303643 | R40: =INDEX('Compile Data'!$AL$123:$BI$204,$O40,'Report - ALL (DASHBOARD)'!$W$4) -> 3227.90101 | S40: =INDEX('Compile Data'!$BL$123:$CI$204,$O40,'Report - ALL (DASHBOARD)'!$W$4) -> 3227.981621 | T40: =INDEX('Compile Data'!$CL$123:$DI$204,$O40,'Report - ALL (DASHBOARD)'!$W$4) ->  | U40: =INDEX('Compile Data'!$DL$123:$EI$204,$O40,'Report - ALL (DASHBOARD)'!$W$4) ->  | V40: =INDEX('Compile Data'!$EL$123:$FI$204,$O40,'Report - ALL (DASHBOARD)'!$W$4) -> 
A41: 1935 | B41: =INDEX('Compile Data'!$L$12:$AI$93,$A41-1921,'Report - ALL (DASHBOARD)'!$W$4) -> 2290.914385 | C41: =INDEX('Compile Data'!$AL$12:$BI$93,$A41-1921,'Report - ALL (DASHBOARD)'!$W$4) -> 2308.875179 | D41: =INDEX('Compile Data'!$BL$12:$CI$93,$A41-1921,'Report - ALL (DASHBOARD)'!$W$4) -> 2239.735926 | E41: =INDEX('Compile Data'!$CL$12:$DI$93,$A41-1921,'Report - ALL (DASHBOARD)'!$W$4) ->  | F41: =INDEX('Compile Data'!$DL$12:$EI$93,$A41-1921,'Report - ALL (DASHBOARD)'!$W$4) ->  | G41: =INDEX('Compile Data'!$EL$12:$FI$93,$A41-1921,'Report - ALL (DASHBOARD)'!$W$4) ->  | O41: 14 | P41: 0.1604938272 | Q41: =INDEX('Compile Data'!$L$123:$AI$204,$O41,'Report - ALL (DASHBOARD)'!$W$4) -> 3172.400745 | R41: =INDEX('Compile Data'!$AL$123:$BI$204,$O41,'Report - ALL (DASHBOARD)'!$W$4) -> 3166.007051 | S41: =INDEX('Compile Data'!$BL$123:$CI$204,$O41,'Report - ALL (DASHBOARD)'!$W$4) -> 3165.999359 | T41: =INDEX('Compile Data'!$CL$123:$DI$204,$O41,'Report - ALL (DASHBOARD)'!$W$4) ->  | U41: =INDEX('Compile Data'!$DL$123:$EI$204,$O41,'Report - ALL (DASHBOARD)'!$W$4) ->  | V41: =INDEX('Compile Data'!$EL$123:$FI$204,$O41,'Report - ALL (DASHBOARD)'!$W$4) -> 
A42: 1936 | B42: =INDEX('Compile Data'!$L$12:$AI$93,$A42-1921,'Report - ALL (DASHBOARD)'!$W$4) -> 2908.932721 | C42: =INDEX('Compile Data'!$AL$12:$BI$93,$A42-1921,'Report - ALL (DASHBOARD)'!$W$4) -> 2906.304274 | D42: =INDEX('Compile Data'!$BL$12:$CI$93,$A42-1921,'Report - ALL (DASHBOARD)'!$W$4) -> 2899.839512 | E42: =INDEX('Compile Data'!$CL$12:$DI$93,$A42-1921,'Report - ALL (DASHBOARD)'!$W$4) ->  | F42: =INDEX('Compile Data'!$DL$12:$EI$93,$A42-1921,'Report - ALL (DASHBOARD)'!$W$4) ->  | G42: =INDEX('Compile Data'!$EL$12:$FI$93,$A42-1921,'Report - ALL (DASHBOARD)'!$W$4) ->  | O42: 15 | P42: 0.1728395062 | Q42: =INDEX('Compile Data'!$L$123:$AI$204,$O42,'Report - ALL (DASHBOARD)'!$W$4) -> 3144.394789 | R42: =INDEX('Compile Data'!$AL$123:$BI$204,$O42,'Report - ALL (DASHBOARD)'!$W$4) -> 3157.758316 | S42: =INDEX('Compile Data'!$BL$123:$CI$204,$O42,'Report - ALL (DASHBOARD)'!$W$4) -> 3157.725464 | T42: =INDEX('Compile Data'!$CL$123:$DI$204,$O42,'Report - ALL (DASHBOARD)'!$W$4) ->  | U42: =INDEX('Compile Data'!$DL$123:$EI$204,$O42,'Report - ALL (DASHBOARD)'!$W$4) ->  | V42: =INDEX('Compile Data'!$EL$123:$FI$204,$O42,'Report - ALL (DASHBOARD)'!$W$4) -> 
A43: 1937 | B43: =INDEX('Compile Data'!$L$12:$AI$93,$A43-1921,'Report - ALL (DASHBOARD)'!$W$4) -> 2203.240266 | C43: =INDEX('Compile Data'!$AL$12:$BI$93,$A43-1921,'Report - ALL (DASHBOARD)'!$W$4) -> 2244.11413 | D43: =INDEX('Compile Data'!$BL$12:$CI$93,$A43-1921,'Report - ALL (DASHBOARD)'!$W$4) -> 2198.146482 | E43: =INDEX('Compile Data'!$CL$12:$DI$93,$A43-1921,'Report - ALL (DASHBOARD)'!$W$4) ->  | F43: =INDEX('Compile Data'!$DL$12:$EI$93,$A43-1921,'Report - ALL (DASHBOARD)'!$W$4) ->  | G43: =INDEX('Compile Data'!$EL$12:$FI$93,$A43-1921,'Report - ALL (DASHBOARD)'!$W$4) ->  | O43: 16 | P43: 0.1851851852 | Q43: =INDEX('Compile Data'!$L$123:$AI$204,$O43,'Report - ALL (DASHBOARD)'!$W$4) -> 3130.093117 | R43: =INDEX('Compile Data'!$AL$123:$BI$204,$O43,'Report - ALL (DASHBOARD)'!$W$4) -> 3138.901786 | S43: =INDEX('Compile Data'!$BL$123:$CI$204,$O43,'Report - ALL (DASHBOARD)'!$W$4) -> 3138.901786 | T43: =INDEX('Compile Data'!$CL$123:$DI$204,$O43,'Report - ALL (DASHBOARD)'!$W$4) ->  | U43: =INDEX('Compile Data'!$DL$123:$EI$204,$O43,'Report - ALL (DASHBOARD)'!$W$4) ->  | V43: =INDEX('Compile Data'!$EL$123:$FI$204,$O43,'Report - ALL (DASHBOARD)'!$W$4) -> 
A44: 1938 | B44: =INDEX('Compile Data'!$L$12:$AI$93,$A44-1921,'Report - ALL (DASHBOARD)'!$W$4) -> 3435.045573 | C44: =INDEX('Compile Data'!$AL$12:$BI$93,$A44-1921,'Report - ALL (DASHBOARD)'!$W$4) -> 3433.15697 | D44: =INDEX('Compile Data'!$BL$12:$CI$93,$A44-1921,'Report - ALL (DASHBOARD)'!$W$4) -> 3433.146743 | E44: =INDEX('Compile Data'!$CL$12:$DI$93,$A44-1921,'Report - ALL (DASHBOARD)'!$W$4) ->  | F44: =INDEX('Compile Data'!$DL$12:$EI$93,$A44-1921,'Report - ALL (DASHBOARD)'!$W$4) ->  | G44: =INDEX('Compile Data'!$EL$12:$FI$93,$A44-1921,'Report - ALL (DASHBOARD)'!$W$4) ->  | O44: 17 | P44: 0.1975308642 | Q44: =INDEX('Compile Data'!$L$123:$AI$204,$O44,'Report - ALL (DASHBOARD)'!$W$4) -> 3090.133507 | R44: =INDEX('Compile Data'!$AL$123:$BI$204,$O44,'Report - ALL (DASHBOARD)'!$W$4) -> 3090.384156 | S44: =INDEX('Compile Data'!$BL$123:$CI$204,$O44,'Report - ALL (DASHBOARD)'!$W$4) -> 3090.380349 | T44: =INDEX('Compile Data'!$CL$123:$DI$204,$O44,'Report - ALL (DASHBOARD)'!$W$4) ->  | U44: =INDEX('Compile Data'!$DL$123:$EI$204,$O44,'Report - ALL (DASHBOARD)'!$W$4) ->  | V44: =INDEX('Compile Data'!$EL$123:$FI$204,$O44,'Report - ALL (DASHBOARD)'!$W$4) -> 
A45: 1939 | B45: =INDEX('Compile Data'!$L$12:$AI$93,$A45-1921,'Report - ALL (DASHBOARD)'!$W$4) -> 1559.229239 | C45: =INDEX('Compile Data'!$AL$12:$BI$93,$A45-1921,'Report - ALL (DASHBOARD)'!$W$4) -> 1661.309049 | D45: =INDEX('Compile Data'!$BL$12:$CI$93,$A45-1921,'Report - ALL (DASHBOARD)'!$W$4) -> 1559.206941 | E45: =INDEX('Compile Data'!$CL$12:$DI$93,$A45-1921,'Report - ALL (DASHBOARD)'!$W$4) ->  | F45: =INDEX('Compile Data'!$DL$12:$EI$93,$A45-1921,'Report - ALL (DASHBOARD)'!$W$4) ->  | G45: =INDEX('Compile Data'!$EL$12:$FI$93,$A45-1921,'Report - ALL (DASHBOARD)'!$W$4) ->  | O45: 18 | P45: 0.2098765432 | Q45: =INDEX('Compile Data'!$L$123:$AI$204,$O45,'Report - ALL (DASHBOARD)'!$W$4) -> 3084.132513 | R45: =INDEX('Compile Data'!$AL$123:$BI$204,$O45,'Report - ALL (DASHBOARD)'!$W$4) -> 3084.338592 | S45: =INDEX('Compile Data'!$BL$123:$CI$204,$O45,'Report - ALL (DASHBOARD)'!$W$4) -> 3084.335353 | T45: =INDEX('Compile Data'!$CL$123:$DI$204,$O45,'Report - ALL (DASHBOARD)'!$W$4) ->  | U45: =INDEX('Compile Data'!$DL$123:$EI$204,$O45,'Report - ALL (DASHBOARD)'!$W$4) ->  | V45: =INDEX('Compile Data'!$EL$123:$FI$204,$O45,'Report - ALL (DASHBOARD)'!$W$4) -> 
A46: 1940 | B46: =INDEX('Compile Data'!$L$12:$AI$93,$A46-1921,'Report - ALL (DASHBOARD)'!$W$4) -> 2704.554899 | C46: =INDEX('Compile Data'!$AL$12:$BI$93,$A46-1921,'Report - ALL (DASHBOARD)'!$W$4) -> 2694.602177 | D46: =INDEX('Compile Data'!$BL$12:$CI$93,$A46-1921,'Report - ALL (DASHBOARD)'!$W$4) -> 2695.363454 | E46: =INDEX('Compile Data'!$CL$12:$DI$93,$A46-1921,'Report - ALL (DASHBOARD)'!$W$4) ->  | F46: =INDEX('Compile Data'!$DL$12:$EI$93,$A46-1921,'Report - ALL (DASHBOARD)'!$W$4) ->  | G46: =INDEX('Compile Data'!$EL$12:$FI$93,$A46-1921,'Report - ALL (DASHBOARD)'!$W$4) ->  | O46: 19 | P46: 0.2222222222 | Q46: =INDEX('Compile Data'!$L$123:$AI$204,$O46,'Report - ALL (DASHBOARD)'!$W$4) -> 3073.300523 | R46: =INDEX('Compile Data'!$AL$123:$BI$204,$O46,'Report - ALL (DASHBOARD)'!$W$4) -> 3073.530895 | S46: =INDEX('Compile Data'!$BL$123:$CI$204,$O46,'Report - ALL (DASHBOARD)'!$W$4) -> 3073.526323 | T46: =INDEX('Compile Data'!$CL$123:$DI$204,$O46,'Report - ALL (DASHBOARD)'!$W$4) ->  | U46: =INDEX('Compile Data'!$DL$123:$EI$204,$O46,'Report - ALL (DASHBOARD)'!$W$4) ->  | V46: =INDEX('Compile Data'!$EL$123:$FI$204,$O46,'Report - ALL (DASHBOARD)'!$W$4) -> 
A47: 1941 | B47: =INDEX('Compile Data'!$L$12:$AI$93,$A47-1921,'Report - ALL (DASHBOARD)'!$W$4) -> 3244.799573 | C47: =INDEX('Compile Data'!$AL$12:$BI$93,$A47-1921,'Report - ALL (DASHBOARD)'!$W$4) -> 3244.675703 | D47: =INDEX('Compile Data'!$BL$12:$CI$93,$A47-1921,'Report - ALL (DASHBOARD)'!$W$4) -> 3244.715014 | E47: =INDEX('Compile Data'!$CL$12:$DI$93,$A47-1921,'Report - ALL (DASHBOARD)'!$W$4) ->  | F47: =INDEX('Compile Data'!$DL$12:$EI$93,$A47-1921,'Report - ALL (DASHBOARD)'!$W$4) ->  | G47: =INDEX('Compile Data'!$EL$12:$FI$93,$A47-1921,'Report - ALL (DASHBOARD)'!$W$4) ->  | O47: 20 | P47: 0.2345679012 | Q47: =INDEX('Compile Data'!$L$123:$AI$204,$O47,'Report - ALL (DASHBOARD)'!$W$4) -> 3072.632605 | R47: =INDEX('Compile Data'!$AL$123:$BI$204,$O47,'Report - ALL (DASHBOARD)'!$W$4) -> 3070.990106 | S47: =INDEX('Compile Data'!$BL$123:$CI$204,$O47,'Report - ALL (DASHBOARD)'!$W$4) -> 3070.96202 | T47: =INDEX('Compile Data'!$CL$123:$DI$204,$O47,'Report - ALL (DASHBOARD)'!$W$4) ->  | U47: =INDEX('Compile Data'!$DL$123:$EI$204,$O47,'Report - ALL (DASHBOARD)'!$W$4) ->  | V47: =INDEX('Compile Data'!$EL$123:$FI$204,$O47,'Report - ALL (DASHBOARD)'!$W$4) -> 
A48: 1942 | B48: =INDEX('Compile Data'!$L$12:$AI$93,$A48-1921,'Report - ALL (DASHBOARD)'!$W$4) -> 3282.267469 | C48: =INDEX('Compile Data'!$AL$12:$BI$93,$A48-1921,'Report - ALL (DASHBOARD)'!$W$4) -> 3283.113476 | D48: =INDEX('Compile Data'!$BL$12:$CI$93,$A48-1921,'Report - ALL (DASHBOARD)'!$W$4) -> 3283.087289 | E48: =INDEX('Compile Data'!$CL$12:$DI$93,$A48-1921,'Report - ALL (DASHBOARD)'!$W$4) ->  | F48: =INDEX('Compile Data'!$DL$12:$EI$93,$A48-1921,'Report - ALL (DASHBOARD)'!$W$4) ->  | G48: =INDEX('Compile Data'!$EL$12:$FI$93,$A48-1921,'Report - ALL (DASHBOARD)'!$W$4) ->  | O48: 21 | P48: 0.2469135802 | Q48: =INDEX('Compile Data'!$L$123:$AI$204,$O48,'Report - ALL (DASHBOARD)'!$W$4) -> 3070.605723 | R48: =INDEX('Compile Data'!$AL$123:$BI$204,$O48,'Report - ALL (DASHBOARD)'!$W$4) -> 3070.872022 | S48: =INDEX('Compile Data'!$BL$123:$CI$204,$O48,'Report - ALL (DASHBOARD)'!$W$4) -> 3070.855812 | T48: =INDEX('Compile Data'!$CL$123:$DI$204,$O48,'Report - ALL (DASHBOARD)'!$W$4) ->  | U48: =INDEX('Compile Data'!$DL$123:$EI$204,$O48,'Report - ALL (DASHBOARD)'!$W$4) ->  | V48: =INDEX('Compile Data'!$EL$123:$FI$204,$O48,'Report - ALL (DASHBOARD)'!$W$4) -> 
A49: 1943 | B49: =INDEX('Compile Data'!$L$12:$AI$93,$A49-1921,'Report - ALL (DASHBOARD)'!$W$4) -> 3010.281986 | C49: =INDEX('Compile Data'!$AL$12:$BI$93,$A49-1921,'Report - ALL (DASHBOARD)'!$W$4) -> 3017.263677 | D49: =INDEX('Compile Data'!$BL$12:$CI$93,$A49-1921,'Report - ALL (DASHBOARD)'!$W$4) -> 3017.263442 | E49: =INDEX('Compile Data'!$CL$12:$DI$93,$A49-1921,'Report - ALL (DASHBOARD)'!$W$4) ->  | F49: =INDEX('Compile Data'!$DL$12:$EI$93,$A49-1921,'Report - ALL (DASHBOARD)'!$W$4) ->  | G49: =INDEX('Compile Data'!$EL$12:$FI$93,$A49-1921,'Report - ALL (DASHBOARD)'!$W$4) ->  | O49: 22 | P49: 0.2592592593 | Q49: =INDEX('Compile Data'!$L$123:$AI$204,$O49,'Report - ALL (DASHBOARD)'!$W$4) -> 3056.279049 | R49: =INDEX('Compile Data'!$AL$123:$BI$204,$O49,'Report - ALL (DASHBOARD)'!$W$4) -> 3054.130619 | S49: =INDEX('Compile Data'!$BL$123:$CI$204,$O49,'Report - ALL (DASHBOARD)'!$W$4) -> 3054.126032 | T49: =INDEX('Compile Data'!$CL$123:$DI$204,$O49,'Report - ALL (DASHBOARD)'!$W$4) ->  | U49: =INDEX('Compile Data'!$DL$123:$EI$204,$O49,'Report - ALL (DASHBOARD)'!$W$4) ->  | V49: =INDEX('Compile Data'!$EL$123:$FI$204,$O49,'Report - ALL (DASHBOARD)'!$W$4) -> 
A50: 1944 | B50: =INDEX('Compile Data'!$L$12:$AI$93,$A50-1921,'Report - ALL (DASHBOARD)'!$W$4) -> 1558.975687 | C50: =INDEX('Compile Data'!$AL$12:$BI$93,$A50-1921,'Report - ALL (DASHBOARD)'!$W$4) -> 1689.838249 | D50: =INDEX('Compile Data'!$BL$12:$CI$93,$A50-1921,'Report - ALL (DASHBOARD)'!$W$4) -> 1558.989726 | E50: =INDEX('Compile Data'!$CL$12:$DI$93,$A50-1921,'Report - ALL (DASHBOARD)'!$W$4) ->  | F50: =INDEX('Compile Data'!$DL$12:$EI$93,$A50-1921,'Report - ALL (DASHBOARD)'!$W$4) ->  | G50: =INDEX('Compile Data'!$EL$12:$FI$93,$A50-1921,'Report - ALL (DASHBOARD)'!$W$4) ->  | O50: 23 | P50: 0.2716049383 | Q50: =INDEX('Compile Data'!$L$123:$AI$204,$O50,'Report - ALL (DASHBOARD)'!$W$4) -> 3048.670463 | R50: =INDEX('Compile Data'!$AL$123:$BI$204,$O50,'Report - ALL (DASHBOARD)'!$W$4) -> 3049.998328 | S50: =INDEX('Compile Data'!$BL$123:$CI$204,$O50,'Report - ALL (DASHBOARD)'!$W$4) -> 3050.003477 | T50: =INDEX('Compile Data'!$CL$123:$DI$204,$O50,'Report - ALL (DASHBOARD)'!$W$4) ->  | U50: =INDEX('Compile Data'!$DL$123:$EI$204,$O50,'Report - ALL (DASHBOARD)'!$W$4) ->  | V50: =INDEX('Compile Data'!$EL$123:$FI$204,$O50,'Report - ALL (DASHBOARD)'!$W$4) -> 
A51: 1945 | B51: =INDEX('Compile Data'!$L$12:$AI$93,$A51-1921,'Report - ALL (DASHBOARD)'!$W$4) -> 2039.915256 | C51: =INDEX('Compile Data'!$AL$12:$BI$93,$A51-1921,'Report - ALL (DASHBOARD)'!$W$4) -> 2142.788057 | D51: =INDEX('Compile Data'!$BL$12:$CI$93,$A51-1921,'Report - ALL (DASHBOARD)'!$W$4) -> 2042.735061 | E51: =INDEX('Compile Data'!$CL$12:$DI$93,$A51-1921,'Report - ALL (DASHBOARD)'!$W$4) ->  | F51: =INDEX('Compile Data'!$DL$12:$EI$93,$A51-1921,'Report - ALL (DASHBOARD)'!$W$4) ->  | G51: =INDEX('Compile Data'!$EL$12:$FI$93,$A51-1921,'Report - ALL (DASHBOARD)'!$W$4) ->  | O51: 24 | P51: 0.2839506173 | Q51: =INDEX('Compile Data'!$L$123:$AI$204,$O51,'Report - ALL (DASHBOARD)'!$W$4) -> 3044.331767 | R51: =INDEX('Compile Data'!$AL$123:$BI$204,$O51,'Report - ALL (DASHBOARD)'!$W$4) -> 3044.227594 | S51: =INDEX('Compile Data'!$BL$123:$CI$204,$O51,'Report - ALL (DASHBOARD)'!$W$4) -> 3044.2243 | T51: =INDEX('Compile Data'!$CL$123:$DI$204,$O51,'Report - ALL (DASHBOARD)'!$W$4) ->  | U51: =INDEX('Compile Data'!$DL$123:$EI$204,$O51,'Report - ALL (DASHBOARD)'!$W$4) ->  | V51: =INDEX('Compile Data'!$EL$123:$FI$204,$O51,'Report - ALL (DASHBOARD)'!$W$4) -> 
A52: 1946 | B52: =INDEX('Compile Data'!$L$12:$AI$93,$A52-1921,'Report - ALL (DASHBOARD)'!$W$4) -> 2621.231241 | C52: =INDEX('Compile Data'!$AL$12:$BI$93,$A52-1921,'Report - ALL (DASHBOARD)'!$W$4) -> 2706.859403 | D52: =INDEX('Compile Data'!$BL$12:$CI$93,$A52-1921,'Report - ALL (DASHBOARD)'!$W$4) -> 2596.600181 | E52: =INDEX('Compile Data'!$CL$12:$DI$93,$A52-1921,'Report - ALL (DASHBOARD)'!$W$4) ->  | F52: =INDEX('Compile Data'!$DL$12:$EI$93,$A52-1921,'Report - ALL (DASHBOARD)'!$W$4) ->  | G52: =INDEX('Compile Data'!$EL$12:$FI$93,$A52-1921,'Report - ALL (DASHBOARD)'!$W$4) ->  | O52: 25 | P52: 0.2962962963 | Q52: =INDEX('Compile Data'!$L$123:$AI$204,$O52,'Report - ALL (DASHBOARD)'!$W$4) -> 3013.054024 | R52: =INDEX('Compile Data'!$AL$123:$BI$204,$O52,'Report - ALL (DASHBOARD)'!$W$4) -> 3032.778863 | S52: =INDEX('Compile Data'!$BL$123:$CI$204,$O52,'Report - ALL (DASHBOARD)'!$W$4) -> 3032.783568 | T52: =INDEX('Compile Data'!$CL$123:$DI$204,$O52,'Report - ALL (DASHBOARD)'!$W$4) ->  | U52: =INDEX('Compile Data'!$DL$123:$EI$204,$O52,'Report - ALL (DASHBOARD)'!$W$4) ->  | V52: =INDEX('Compile Data'!$EL$123:$FI$204,$O52,'Report - ALL (DASHBOARD)'!$W$4) -> 
A53: 1947 | B53: =INDEX('Compile Data'!$L$12:$AI$93,$A53-1921,'Report - ALL (DASHBOARD)'!$W$4) -> 1589.375007 | C53: =INDEX('Compile Data'!$AL$12:$BI$93,$A53-1921,'Report - ALL (DASHBOARD)'!$W$4) -> 1717.563195 | D53: =INDEX('Compile Data'!$BL$12:$CI$93,$A53-1921,'Report - ALL (DASHBOARD)'!$W$4) -> 1589.375424 | E53: =INDEX('Compile Data'!$CL$12:$DI$93,$A53-1921,'Report - ALL (DASHBOARD)'!$W$4) ->  | F53: =INDEX('Compile Data'!$DL$12:$EI$93,$A53-1921,'Report - ALL (DASHBOARD)'!$W$4) ->  | G53: =INDEX('Compile Data'!$EL$12:$FI$93,$A53-1921,'Report - ALL (DASHBOARD)'!$W$4) ->  | O53: 26 | P53: 0.3086419753 | Q53: =INDEX('Compile Data'!$L$123:$AI$204,$O53,'Report - ALL (DASHBOARD)'!$W$4) -> 3010.281986 | R53: =INDEX('Compile Data'!$AL$123:$BI$204,$O53,'Report - ALL (DASHBOARD)'!$W$4) -> 3017.263677 | S53: =INDEX('Compile Data'!$BL$123:$CI$204,$O53,'Report - ALL (DASHBOARD)'!$W$4) -> 3017.263442 | T53: =INDEX('Compile Data'!$CL$123:$DI$204,$O53,'Report - ALL (DASHBOARD)'!$W$4) ->  | U53: =INDEX('Compile Data'!$DL$123:$EI$204,$O53,'Report - ALL (DASHBOARD)'!$W$4) ->  | V53: =INDEX('Compile Data'!$EL$123:$FI$204,$O53,'Report - ALL (DASHBOARD)'!$W$4) -> 
A54: 1948 | B54: =INDEX('Compile Data'!$L$12:$AI$93,$A54-1921,'Report - ALL (DASHBOARD)'!$W$4) -> 2420.007243 | C54: =INDEX('Compile Data'!$AL$12:$BI$93,$A54-1921,'Report - ALL (DASHBOARD)'!$W$4) -> 2422.273561 | D54: =INDEX('Compile Data'!$BL$12:$CI$93,$A54-1921,'Report - ALL (DASHBOARD)'!$W$4) -> 2419.747432 | E54: =INDEX('Compile Data'!$CL$12:$DI$93,$A54-1921,'Report - ALL (DASHBOARD)'!$W$4) ->  | F54: =INDEX('Compile Data'!$DL$12:$EI$93,$A54-1921,'Report - ALL (DASHBOARD)'!$W$4) ->  | G54: =INDEX('Compile Data'!$EL$12:$FI$93,$A54-1921,'Report - ALL (DASHBOARD)'!$W$4) ->  | O54: 27 | P54: 0.3209876543 | Q54: =INDEX('Compile Data'!$L$123:$AI$204,$O54,'Report - ALL (DASHBOARD)'!$W$4) -> 2974.054214 | R54: =INDEX('Compile Data'!$AL$123:$BI$204,$O54,'Report - ALL (DASHBOARD)'!$W$4) -> 2970.914706 | S54: =INDEX('Compile Data'!$BL$123:$CI$204,$O54,'Report - ALL (DASHBOARD)'!$W$4) -> 2970.887779 | T54: =INDEX('Compile Data'!$CL$123:$DI$204,$O54,'Report - ALL (DASHBOARD)'!$W$4) ->  | U54: =INDEX('Compile Data'!$DL$123:$EI$204,$O54,'Report - ALL (DASHBOARD)'!$W$4) ->  | V54: =INDEX('Compile Data'!$EL$123:$FI$204,$O54,'Report - ALL (DASHBOARD)'!$W$4) -> 
A55: 1949 | B55: =INDEX('Compile Data'!$L$12:$AI$93,$A55-1921,'Report - ALL (DASHBOARD)'!$W$4) -> 1558.835494 | C55: =INDEX('Compile Data'!$AL$12:$BI$93,$A55-1921,'Report - ALL (DASHBOARD)'!$W$4) -> 1610.404094 | D55: =INDEX('Compile Data'!$BL$12:$CI$93,$A55-1921,'Report - ALL (DASHBOARD)'!$W$4) -> 1558.908526 | E55: =INDEX('Compile Data'!$CL$12:$DI$93,$A55-1921,'Report - ALL (DASHBOARD)'!$W$4) ->  | F55: =INDEX('Compile Data'!$DL$12:$EI$93,$A55-1921,'Report - ALL (DASHBOARD)'!$W$4) ->  | G55: =INDEX('Compile Data'!$EL$12:$FI$93,$A55-1921,'Report - ALL (DASHBOARD)'!$W$4) ->  | O55: 28 | P55: 0.3333333333 | Q55: =INDEX('Compile Data'!$L$123:$AI$204,$O55,'Report - ALL (DASHBOARD)'!$W$4) -> 2923.96315 | R55: =INDEX('Compile Data'!$AL$123:$BI$204,$O55,'Report - ALL (DASHBOARD)'!$W$4) -> 2921.463472 | S55: =INDEX('Compile Data'!$BL$123:$CI$204,$O55,'Report - ALL (DASHBOARD)'!$W$4) -> 2920.646745 | T55: =INDEX('Compile Data'!$CL$123:$DI$204,$O55,'Report - ALL (DASHBOARD)'!$W$4) ->  | U55: =INDEX('Compile Data'!$DL$123:$EI$204,$O55,'Report - ALL (DASHBOARD)'!$W$4) ->  | V55: =INDEX('Compile Data'!$EL$123:$FI$204,$O55,'Report - ALL (DASHBOARD)'!$W$4) -> 
A56: 1950 | B56: =INDEX('Compile Data'!$L$12:$AI$93,$A56-1921,'Report - ALL (DASHBOARD)'!$W$4) -> 2463.684517 | C56: =INDEX('Compile Data'!$AL$12:$BI$93,$A56-1921,'Report - ALL (DASHBOARD)'!$W$4) -> 2475.133596 | D56: =INDEX('Compile Data'!$BL$12:$CI$93,$A56-1921,'Report - ALL (DASHBOARD)'!$W$4) -> 2461.19445 | E56: =INDEX('Compile Data'!$CL$12:$DI$93,$A56-1921,'Report - ALL (DASHBOARD)'!$W$4) ->  | F56: =INDEX('Compile Data'!$DL$12:$EI$93,$A56-1921,'Report - ALL (DASHBOARD)'!$W$4) ->  | G56: =INDEX('Compile Data'!$EL$12:$FI$93,$A56-1921,'Report - ALL (DASHBOARD)'!$W$4) ->  | O56: 29 | P56: 0.3456790123 | Q56: =INDEX('Compile Data'!$L$123:$AI$204,$O56,'Report - ALL (DASHBOARD)'!$W$4) -> 2908.932721 | R56: =INDEX('Compile Data'!$AL$123:$BI$204,$O56,'Report - ALL (DASHBOARD)'!$W$4) -> 2906.304274 | S56: =INDEX('Compile Data'!$BL$123:$CI$204,$O56,'Report - ALL (DASHBOARD)'!$W$4) -> 2899.839512 | T56: =INDEX('Compile Data'!$CL$123:$DI$204,$O56,'Report - ALL (DASHBOARD)'!$W$4) ->  | U56: =INDEX('Compile Data'!$DL$123:$EI$204,$O56,'Report - ALL (DASHBOARD)'!$W$4) ->  | V56: =INDEX('Compile Data'!$EL$123:$FI$204,$O56,'Report - ALL (DASHBOARD)'!$W$4) -> 
A57: 1951 | B57: =INDEX('Compile Data'!$L$12:$AI$93,$A57-1921,'Report - ALL (DASHBOARD)'!$W$4) -> 2847.991797 | C57: =INDEX('Compile Data'!$AL$12:$BI$93,$A57-1921,'Report - ALL (DASHBOARD)'!$W$4) -> 2858.721264 | D57: =INDEX('Compile Data'!$BL$12:$CI$93,$A57-1921,'Report - ALL (DASHBOARD)'!$W$4) -> 2858.738816 | E57: =INDEX('Compile Data'!$CL$12:$DI$93,$A57-1921,'Report - ALL (DASHBOARD)'!$W$4) ->  | F57: =INDEX('Compile Data'!$DL$12:$EI$93,$A57-1921,'Report - ALL (DASHBOARD)'!$W$4) ->  | G57: =INDEX('Compile Data'!$EL$12:$FI$93,$A57-1921,'Report - ALL (DASHBOARD)'!$W$4) ->  | O57: 30 | P57: 0.3580246914 | Q57: =INDEX('Compile Data'!$L$123:$AI$204,$O57,'Report - ALL (DASHBOARD)'!$W$4) -> 2882.10589 | R57: =INDEX('Compile Data'!$AL$123:$BI$204,$O57,'Report - ALL (DASHBOARD)'!$W$4) -> 2886.585083 | S57: =INDEX('Compile Data'!$BL$123:$CI$204,$O57,'Report - ALL (DASHBOARD)'!$W$4) -> 2886.671467 | T57: =INDEX('Compile Data'!$CL$123:$DI$204,$O57,'Report - ALL (DASHBOARD)'!$W$4) ->  | U57: =INDEX('Compile Data'!$DL$123:$EI$204,$O57,'Report - ALL (DASHBOARD)'!$W$4) ->  | V57: =INDEX('Compile Data'!$EL$123:$FI$204,$O57,'Report - ALL (DASHBOARD)'!$W$4) -> 
A58: 1952 | B58: =INDEX('Compile Data'!$L$12:$AI$93,$A58-1921,'Report - ALL (DASHBOARD)'!$W$4) -> 3538 | C58: =INDEX('Compile Data'!$AL$12:$BI$93,$A58-1921,'Report - ALL (DASHBOARD)'!$W$4) -> 3538 | D58: =INDEX('Compile Data'!$BL$12:$CI$93,$A58-1921,'Report - ALL (DASHBOARD)'!$W$4) -> 3538 | E58: =INDEX('Compile Data'!$CL$12:$DI$93,$A58-1921,'Report - ALL (DASHBOARD)'!$W$4) ->  | F58: =INDEX('Compile Data'!$DL$12:$EI$93,$A58-1921,'Report - ALL (DASHBOARD)'!$W$4) ->  | G58: =INDEX('Compile Data'!$EL$12:$FI$93,$A58-1921,'Report - ALL (DASHBOARD)'!$W$4) ->  | O58: 31 | P58: 0.3703703704 | Q58: =INDEX('Compile Data'!$L$123:$AI$204,$O58,'Report - ALL (DASHBOARD)'!$W$4) -> 2847.991797 | R58: =INDEX('Compile Data'!$AL$123:$BI$204,$O58,'Report - ALL (DASHBOARD)'!$W$4) -> 2858.721264 | S58: =INDEX('Compile Data'!$BL$123:$CI$204,$O58,'Report - ALL (DASHBOARD)'!$W$4) -> 2858.738816 | T58: =INDEX('Compile Data'!$CL$123:$DI$204,$O58,'Report - ALL (DASHBOARD)'!$W$4) ->  | U58: =INDEX('Compile Data'!$DL$123:$EI$204,$O58,'Report - ALL (DASHBOARD)'!$W$4) ->  | V58: =INDEX('Compile Data'!$EL$123:$FI$204,$O58,'Report - ALL (DASHBOARD)'!$W$4) -> 
A59: 1953 | B59: =INDEX('Compile Data'!$L$12:$AI$93,$A59-1921,'Report - ALL (DASHBOARD)'!$W$4) -> 3084.132513 | C59: =INDEX('Compile Data'!$AL$12:$BI$93,$A59-1921,'Report - ALL (DASHBOARD)'!$W$4) -> 3084.338592 | D59: =INDEX('Compile Data'!$BL$12:$CI$93,$A59-1921,'Report - ALL (DASHBOARD)'!$W$4) -> 3084.335353 | E59: =INDEX('Compile Data'!$CL$12:$DI$93,$A59-1921,'Report - ALL (DASHBOARD)'!$W$4) ->  | F59: =INDEX('Compile Data'!$DL$12:$EI$93,$A59-1921,'Report - ALL (DASHBOARD)'!$W$4) ->  | G59: =INDEX('Compile Data'!$EL$12:$FI$93,$A59-1921,'Report - ALL (DASHBOARD)'!$W$4) ->  | O59: 32 | P59: 0.3827160494 | Q59: =INDEX('Compile Data'!$L$123:$AI$204,$O59,'Report - ALL (DASHBOARD)'!$W$4) -> 2815.662116 | R59: =INDEX('Compile Data'!$AL$123:$BI$204,$O59,'Report - ALL (DASHBOARD)'!$W$4) -> 2816.061507 | S59: =INDEX('Compile Data'!$BL$123:$CI$204,$O59,'Report - ALL (DASHBOARD)'!$W$4) -> 2816.053139 | T59: =INDEX('Compile Data'!$CL$123:$DI$204,$O59,'Report - ALL (DASHBOARD)'!$W$4) ->  | U59: =INDEX('Compile Data'!$DL$123:$EI$204,$O59,'Report - ALL (DASHBOARD)'!$W$4) ->  | V59: =INDEX('Compile Data'!$EL$123:$FI$204,$O59,'Report - ALL (DASHBOARD)'!$W$4) -> 
A60: 1954 | B60: =INDEX('Compile Data'!$L$12:$AI$93,$A60-1921,'Report - ALL (DASHBOARD)'!$W$4) -> 2721.9398 | C60: =INDEX('Compile Data'!$AL$12:$BI$93,$A60-1921,'Report - ALL (DASHBOARD)'!$W$4) -> 2723.933109 | D60: =INDEX('Compile Data'!$BL$12:$CI$93,$A60-1921,'Report - ALL (DASHBOARD)'!$W$4) -> 2723.895301 | E60: =INDEX('Compile Data'!$CL$12:$DI$93,$A60-1921,'Report - ALL (DASHBOARD)'!$W$4) ->  | F60: =INDEX('Compile Data'!$DL$12:$EI$93,$A60-1921,'Report - ALL (DASHBOARD)'!$W$4) ->  | G60: =INDEX('Compile Data'!$EL$12:$FI$93,$A60-1921,'Report - ALL (DASHBOARD)'!$W$4) ->  | O60: 33 | P60: 0.3950617284 | Q60: =INDEX('Compile Data'!$L$123:$AI$204,$O60,'Report - ALL (DASHBOARD)'!$W$4) -> 2797.326935 | R60: =INDEX('Compile Data'!$AL$123:$BI$204,$O60,'Report - ALL (DASHBOARD)'!$W$4) -> 2797.962591 | S60: =INDEX('Compile Data'!$BL$123:$CI$204,$O60,'Report - ALL (DASHBOARD)'!$W$4) -> 2797.954203 | T60: =INDEX('Compile Data'!$CL$123:$DI$204,$O60,'Report - ALL (DASHBOARD)'!$W$4) ->  | U60: =INDEX('Compile Data'!$DL$123:$EI$204,$O60,'Report - ALL (DASHBOARD)'!$W$4) ->  | V60: =INDEX('Compile Data'!$EL$123:$FI$204,$O60,'Report - ALL (DASHBOARD)'!$W$4) -> 
A61: 1955 | B61: =INDEX('Compile Data'!$L$12:$AI$93,$A61-1921,'Report - ALL (DASHBOARD)'!$W$4) -> 1589.83471 | C61: =INDEX('Compile Data'!$AL$12:$BI$93,$A61-1921,'Report - ALL (DASHBOARD)'!$W$4) -> 1619.303413 | D61: =INDEX('Compile Data'!$BL$12:$CI$93,$A61-1921,'Report - ALL (DASHBOARD)'!$W$4) -> 1589.835054 | E61: =INDEX('Compile Data'!$CL$12:$DI$93,$A61-1921,'Report - ALL (DASHBOARD)'!$W$4) ->  | F61: =INDEX('Compile Data'!$DL$12:$EI$93,$A61-1921,'Report - ALL (DASHBOARD)'!$W$4) ->  | G61: =INDEX('Compile Data'!$EL$12:$FI$93,$A61-1921,'Report - ALL (DASHBOARD)'!$W$4) ->  | O61: 34 | P61: 0.4074074074 | Q61: =INDEX('Compile Data'!$L$123:$AI$204,$O61,'Report - ALL (DASHBOARD)'!$W$4) -> 2778.744824 | R61: =INDEX('Compile Data'!$AL$123:$BI$204,$O61,'Report - ALL (DASHBOARD)'!$W$4) -> 2779.066143 | S61: =INDEX('Compile Data'!$BL$123:$CI$204,$O61,'Report - ALL (DASHBOARD)'!$W$4) -> 2779.059954 | T61: =INDEX('Compile Data'!$CL$123:$DI$204,$O61,'Report - ALL (DASHBOARD)'!$W$4) ->  | U61: =INDEX('Compile Data'!$DL$123:$EI$204,$O61,'Report - ALL (DASHBOARD)'!$W$4) ->  | V61: =INDEX('Compile Data'!$EL$123:$FI$204,$O61,'Report - ALL (DASHBOARD)'!$W$4) -> 
A62: 1956 | B62: =INDEX('Compile Data'!$L$12:$AI$93,$A62-1921,'Report - ALL (DASHBOARD)'!$W$4) -> 3172.400745 | C62: =INDEX('Compile Data'!$AL$12:$BI$93,$A62-1921,'Report - ALL (DASHBOARD)'!$W$4) -> 3166.007051 | D62: =INDEX('Compile Data'!$BL$12:$CI$93,$A62-1921,'Report - ALL (DASHBOARD)'!$W$4) -> 3165.999359 | E62: =INDEX('Compile Data'!$CL$12:$DI$93,$A62-1921,'Report - ALL (DASHBOARD)'!$W$4) ->  | F62: =INDEX('Compile Data'!$DL$12:$EI$93,$A62-1921,'Report - ALL (DASHBOARD)'!$W$4) ->  | G62: =INDEX('Compile Data'!$EL$12:$FI$93,$A62-1921,'Report - ALL (DASHBOARD)'!$W$4) ->  | O62: 35 | P62: 0.4197530864 | Q62: =INDEX('Compile Data'!$L$123:$AI$204,$O62,'Report - ALL (DASHBOARD)'!$W$4) -> 2721.9398 | R62: =INDEX('Compile Data'!$AL$123:$BI$204,$O62,'Report - ALL (DASHBOARD)'!$W$4) -> 2723.933109 | S62: =INDEX('Compile Data'!$BL$123:$CI$204,$O62,'Report - ALL (DASHBOARD)'!$W$4) -> 2723.895301 | T62: =INDEX('Compile Data'!$CL$123:$DI$204,$O62,'Report - ALL (DASHBOARD)'!$W$4) ->  | U62: =INDEX('Compile Data'!$DL$123:$EI$204,$O62,'Report - ALL (DASHBOARD)'!$W$4) ->  | V62: =INDEX('Compile Data'!$EL$123:$FI$204,$O62,'Report - ALL (DASHBOARD)'!$W$4) -> 
A63: 1957 | B63: =INDEX('Compile Data'!$L$12:$AI$93,$A63-1921,'Report - ALL (DASHBOARD)'!$W$4) -> 2923.96315 | C63: =INDEX('Compile Data'!$AL$12:$BI$93,$A63-1921,'Report - ALL (DASHBOARD)'!$W$4) -> 2921.463472 | D63: =INDEX('Compile Data'!$BL$12:$CI$93,$A63-1921,'Report - ALL (DASHBOARD)'!$W$4) -> 2920.646745 | E63: =INDEX('Compile Data'!$CL$12:$DI$93,$A63-1921,'Report - ALL (DASHBOARD)'!$W$4) ->  | F63: =INDEX('Compile Data'!$DL$12:$EI$93,$A63-1921,'Report - ALL (DASHBOARD)'!$W$4) ->  | G63: =INDEX('Compile Data'!$EL$12:$FI$93,$A63-1921,'Report - ALL (DASHBOARD)'!$W$4) ->  | O63: 36 | P63: 0.4320987654 | Q63: =INDEX('Compile Data'!$L$123:$AI$204,$O63,'Report - ALL (DASHBOARD)'!$W$4) -> 2704.554899 | R63: =INDEX('Compile Data'!$AL$123:$BI$204,$O63,'Report - ALL (DASHBOARD)'!$W$4) -> 2706.859403 | S63: =INDEX('Compile Data'!$BL$123:$CI$204,$O63,'Report - ALL (DASHBOARD)'!$W$4) -> 2695.363454 | T63: =INDEX('Compile Data'!$CL$123:$DI$204,$O63,'Report - ALL (DASHBOARD)'!$W$4) ->  | U63: =INDEX('Compile Data'!$DL$123:$EI$204,$O63,'Report - ALL (DASHBOARD)'!$W$4) ->  | V63: =INDEX('Compile Data'!$EL$123:$FI$204,$O63,'Report - ALL (DASHBOARD)'!$W$4) -> 
A64: 1958 | B64: =INDEX('Compile Data'!$L$12:$AI$93,$A64-1921,'Report - ALL (DASHBOARD)'!$W$4) -> 3526.162081 | C64: =INDEX('Compile Data'!$AL$12:$BI$93,$A64-1921,'Report - ALL (DASHBOARD)'!$W$4) -> 3526.706139 | D64: =INDEX('Compile Data'!$BL$12:$CI$93,$A64-1921,'Report - ALL (DASHBOARD)'!$W$4) -> 3526.678989 | E64: =INDEX('Compile Data'!$CL$12:$DI$93,$A64-1921,'Report - ALL (DASHBOARD)'!$W$4) ->  | F64: =INDEX('Compile Data'!$DL$12:$EI$93,$A64-1921,'Report - ALL (DASHBOARD)'!$W$4) ->  | G64: =INDEX('Compile Data'!$EL$12:$FI$93,$A64-1921,'Report - ALL (DASHBOARD)'!$W$4) ->  | O64: 37 | P64: 0.4444444444 | Q64: =INDEX('Compile Data'!$L$123:$AI$204,$O64,'Report - ALL (DASHBOARD)'!$W$4) -> 2649.348899 | R64: =INDEX('Compile Data'!$AL$123:$BI$204,$O64,'Report - ALL (DASHBOARD)'!$W$4) -> 2694.602177 | S64: =INDEX('Compile Data'!$BL$123:$CI$204,$O64,'Report - ALL (DASHBOARD)'!$W$4) -> 2647.536285 | T64: =INDEX('Compile Data'!$CL$123:$DI$204,$O64,'Report - ALL (DASHBOARD)'!$W$4) ->  | U64: =INDEX('Compile Data'!$DL$123:$EI$204,$O64,'Report - ALL (DASHBOARD)'!$W$4) ->  | V64: =INDEX('Compile Data'!$EL$123:$FI$204,$O64,'Report - ALL (DASHBOARD)'!$W$4) -> 
A65: 1959 | B65: =INDEX('Compile Data'!$L$12:$AI$93,$A65-1921,'Report - ALL (DASHBOARD)'!$W$4) -> 2226.688246 | C65: =INDEX('Compile Data'!$AL$12:$BI$93,$A65-1921,'Report - ALL (DASHBOARD)'!$W$4) -> 2245.901016 | D65: =INDEX('Compile Data'!$BL$12:$CI$93,$A65-1921,'Report - ALL (DASHBOARD)'!$W$4) -> 2233.452707 | E65: =INDEX('Compile Data'!$CL$12:$DI$93,$A65-1921,'Report - ALL (DASHBOARD)'!$W$4) ->  | F65: =INDEX('Compile Data'!$DL$12:$EI$93,$A65-1921,'Report - ALL (DASHBOARD)'!$W$4) ->  | G65: =INDEX('Compile Data'!$EL$12:$FI$93,$A65-1921,'Report - ALL (DASHBOARD)'!$W$4) ->  | O65: 38 | P65: 0.4567901235 | Q65: =INDEX('Compile Data'!$L$123:$AI$204,$O65,'Report - ALL (DASHBOARD)'!$W$4) -> 2621.231241 | R65: =INDEX('Compile Data'!$AL$123:$BI$204,$O65,'Report - ALL (DASHBOARD)'!$W$4) -> 2647.544494 | S65: =INDEX('Compile Data'!$BL$123:$CI$204,$O65,'Report - ALL (DASHBOARD)'!$W$4) -> 2596.600181 | T65: =INDEX('Compile Data'!$CL$123:$DI$204,$O65,'Report - ALL (DASHBOARD)'!$W$4) ->  | U65: =INDEX('Compile Data'!$DL$123:$EI$204,$O65,'Report - ALL (DASHBOARD)'!$W$4) ->  | V65: =INDEX('Compile Data'!$EL$123:$FI$204,$O65,'Report - ALL (DASHBOARD)'!$W$4) -> 
A66: 1960 | B66: =INDEX('Compile Data'!$L$12:$AI$93,$A66-1921,'Report - ALL (DASHBOARD)'!$W$4) -> 1835.625868 | C66: =INDEX('Compile Data'!$AL$12:$BI$93,$A66-1921,'Report - ALL (DASHBOARD)'!$W$4) -> 1897.874496 | D66: =INDEX('Compile Data'!$BL$12:$CI$93,$A66-1921,'Report - ALL (DASHBOARD)'!$W$4) -> 1812.79506 | E66: =INDEX('Compile Data'!$CL$12:$DI$93,$A66-1921,'Report - ALL (DASHBOARD)'!$W$4) ->  | F66: =INDEX('Compile Data'!$DL$12:$EI$93,$A66-1921,'Report - ALL (DASHBOARD)'!$W$4) ->  | G66: =INDEX('Compile Data'!$EL$12:$FI$93,$A66-1921,'Report - ALL (DASHBOARD)'!$W$4) ->  | O66: 39 | P66: 0.4691358025 | Q66: =INDEX('Compile Data'!$L$123:$AI$204,$O66,'Report - ALL (DASHBOARD)'!$W$4) -> 2538.844851 | R66: =INDEX('Compile Data'!$AL$123:$BI$204,$O66,'Report - ALL (DASHBOARD)'!$W$4) -> 2541.054512 | S66: =INDEX('Compile Data'!$BL$123:$CI$204,$O66,'Report - ALL (DASHBOARD)'!$W$4) -> 2541.630382 | T66: =INDEX('Compile Data'!$CL$123:$DI$204,$O66,'Report - ALL (DASHBOARD)'!$W$4) ->  | U66: =INDEX('Compile Data'!$DL$123:$EI$204,$O66,'Report - ALL (DASHBOARD)'!$W$4) ->  | V66: =INDEX('Compile Data'!$EL$123:$FI$204,$O66,'Report - ALL (DASHBOARD)'!$W$4) -> 
A67: 1961 | B67: =INDEX('Compile Data'!$L$12:$AI$93,$A67-1921,'Report - ALL (DASHBOARD)'!$W$4) -> 1589.539727 | C67: =INDEX('Compile Data'!$AL$12:$BI$93,$A67-1921,'Report - ALL (DASHBOARD)'!$W$4) -> 1689.059287 | D67: =INDEX('Compile Data'!$BL$12:$CI$93,$A67-1921,'Report - ALL (DASHBOARD)'!$W$4) -> 1589.531205 | E67: =INDEX('Compile Data'!$CL$12:$DI$93,$A67-1921,'Report - ALL (DASHBOARD)'!$W$4) ->  | F67: =INDEX('Compile Data'!$DL$12:$EI$93,$A67-1921,'Report - ALL (DASHBOARD)'!$W$4) ->  | G67: =INDEX('Compile Data'!$EL$12:$FI$93,$A67-1921,'Report - ALL (DASHBOARD)'!$W$4) ->  | O67: 40 | P67: 0.4814814815 | Q67: =INDEX('Compile Data'!$L$123:$AI$204,$O67,'Report - ALL (DASHBOARD)'!$W$4) -> 2533.204539 | R67: =INDEX('Compile Data'!$AL$123:$BI$204,$O67,'Report - ALL (DASHBOARD)'!$W$4) -> 2532.842538 | S67: =INDEX('Compile Data'!$BL$123:$CI$204,$O67,'Report - ALL (DASHBOARD)'!$W$4) -> 2532.830492 | T67: =INDEX('Compile Data'!$CL$123:$DI$204,$O67,'Report - ALL (DASHBOARD)'!$W$4) ->  | U67: =INDEX('Compile Data'!$DL$123:$EI$204,$O67,'Report - ALL (DASHBOARD)'!$W$4) ->  | V67: =INDEX('Compile Data'!$EL$123:$FI$204,$O67,'Report - ALL (DASHBOARD)'!$W$4) -> 
A68: 1962 | B68: =INDEX('Compile Data'!$L$12:$AI$93,$A68-1921,'Report - ALL (DASHBOARD)'!$W$4) -> 2042.928374 | C68: =INDEX('Compile Data'!$AL$12:$BI$93,$A68-1921,'Report - ALL (DASHBOARD)'!$W$4) -> 2061.153147 | D68: =INDEX('Compile Data'!$BL$12:$CI$93,$A68-1921,'Report - ALL (DASHBOARD)'!$W$4) -> 2022.066852 | E68: =INDEX('Compile Data'!$CL$12:$DI$93,$A68-1921,'Report - ALL (DASHBOARD)'!$W$4) ->  | F68: =INDEX('Compile Data'!$DL$12:$EI$93,$A68-1921,'Report - ALL (DASHBOARD)'!$W$4) ->  | G68: =INDEX('Compile Data'!$EL$12:$FI$93,$A68-1921,'Report - ALL (DASHBOARD)'!$W$4) ->  | O68: 41 | P68: 0.4938271605 | Q68: =INDEX('Compile Data'!$L$123:$AI$204,$O68,'Report - ALL (DASHBOARD)'!$W$4) -> 2463.684517 | R68: =INDEX('Compile Data'!$AL$123:$BI$204,$O68,'Report - ALL (DASHBOARD)'!$W$4) -> 2476.470414 | S68: =INDEX('Compile Data'!$BL$123:$CI$204,$O68,'Report - ALL (DASHBOARD)'!$W$4) -> 2461.19445 | T68: =INDEX('Compile Data'!$CL$123:$DI$204,$O68,'Report - ALL (DASHBOARD)'!$W$4) ->  | U68: =INDEX('Compile Data'!$DL$123:$EI$204,$O68,'Report - ALL (DASHBOARD)'!$W$4) ->  | V68: =INDEX('Compile Data'!$EL$123:$FI$204,$O68,'Report - ALL (DASHBOARD)'!$W$4) -> 
A69: 1963 | B69: =INDEX('Compile Data'!$L$12:$AI$93,$A69-1921,'Report - ALL (DASHBOARD)'!$W$4) -> 3013.054024 | C69: =INDEX('Compile Data'!$AL$12:$BI$93,$A69-1921,'Report - ALL (DASHBOARD)'!$W$4) -> 3032.778863 | D69: =INDEX('Compile Data'!$BL$12:$CI$93,$A69-1921,'Report - ALL (DASHBOARD)'!$W$4) -> 3032.783568 | E69: =INDEX('Compile Data'!$CL$12:$DI$93,$A69-1921,'Report - ALL (DASHBOARD)'!$W$4) ->  | F69: =INDEX('Compile Data'!$DL$12:$EI$93,$A69-1921,'Report - ALL (DASHBOARD)'!$W$4) ->  | G69: =INDEX('Compile Data'!$EL$12:$FI$93,$A69-1921,'Report - ALL (DASHBOARD)'!$W$4) ->  | O69: 42 | P69: 0.5061728395 | Q69: =INDEX('Compile Data'!$L$123:$AI$204,$O69,'Report - ALL (DASHBOARD)'!$W$4) -> 2453.105672 | R69: =INDEX('Compile Data'!$AL$123:$BI$204,$O69,'Report - ALL (DASHBOARD)'!$W$4) -> 2475.133596 | S69: =INDEX('Compile Data'!$BL$123:$CI$204,$O69,'Report - ALL (DASHBOARD)'!$W$4) -> 2453.400262 | T69: =INDEX('Compile Data'!$CL$123:$DI$204,$O69,'Report - ALL (DASHBOARD)'!$W$4) ->  | U69: =INDEX('Compile Data'!$DL$123:$EI$204,$O69,'Report - ALL (DASHBOARD)'!$W$4) ->  | V69: =INDEX('Compile Data'!$EL$123:$FI$204,$O69,'Report - ALL (DASHBOARD)'!$W$4) -> 
A70: 1964 | B70: =INDEX('Compile Data'!$L$12:$AI$93,$A70-1921,'Report - ALL (DASHBOARD)'!$W$4) -> 1653.082792 | C70: =INDEX('Compile Data'!$AL$12:$BI$93,$A70-1921,'Report - ALL (DASHBOARD)'!$W$4) -> 1782.440052 | D70: =INDEX('Compile Data'!$BL$12:$CI$93,$A70-1921,'Report - ALL (DASHBOARD)'!$W$4) -> 1672.310932 | E70: =INDEX('Compile Data'!$CL$12:$DI$93,$A70-1921,'Report - ALL (DASHBOARD)'!$W$4) ->  | F70: =INDEX('Compile Data'!$DL$12:$EI$93,$A70-1921,'Report - ALL (DASHBOARD)'!$W$4) ->  | G70: =INDEX('Compile Data'!$EL$12:$FI$93,$A70-1921,'Report - ALL (DASHBOARD)'!$W$4) ->  | O70: 43 | P70: 0.5185185185 | Q70: =INDEX('Compile Data'!$L$123:$AI$204,$O70,'Report - ALL (DASHBOARD)'!$W$4) -> 2420.007243 | R70: =INDEX('Compile Data'!$AL$123:$BI$204,$O70,'Report - ALL (DASHBOARD)'!$W$4) -> 2422.273561 | S70: =INDEX('Compile Data'!$BL$123:$CI$204,$O70,'Report - ALL (DASHBOARD)'!$W$4) -> 2419.747432 | T70: =INDEX('Compile Data'!$CL$123:$DI$204,$O70,'Report - ALL (DASHBOARD)'!$W$4) ->  | U70: =INDEX('Compile Data'!$DL$123:$EI$204,$O70,'Report - ALL (DASHBOARD)'!$W$4) ->  | V70: =INDEX('Compile Data'!$EL$123:$FI$204,$O70,'Report - ALL (DASHBOARD)'!$W$4) -> 
A71: 1965 | B71: =INDEX('Compile Data'!$L$12:$AI$93,$A71-1921,'Report - ALL (DASHBOARD)'!$W$4) -> 3072.632605 | C71: =INDEX('Compile Data'!$AL$12:$BI$93,$A71-1921,'Report - ALL (DASHBOARD)'!$W$4) -> 3070.872022 | D71: =INDEX('Compile Data'!$BL$12:$CI$93,$A71-1921,'Report - ALL (DASHBOARD)'!$W$4) -> 3070.855812 | E71: =INDEX('Compile Data'!$CL$12:$DI$93,$A71-1921,'Report - ALL (DASHBOARD)'!$W$4) ->  | F71: =INDEX('Compile Data'!$DL$12:$EI$93,$A71-1921,'Report - ALL (DASHBOARD)'!$W$4) ->  | G71: =INDEX('Compile Data'!$EL$12:$FI$93,$A71-1921,'Report - ALL (DASHBOARD)'!$W$4) ->  | O71: 44 | P71: 0.5308641975 | Q71: =INDEX('Compile Data'!$L$123:$AI$204,$O71,'Report - ALL (DASHBOARD)'!$W$4) -> 2376.815216 | R71: =INDEX('Compile Data'!$AL$123:$BI$204,$O71,'Report - ALL (DASHBOARD)'!$W$4) -> 2380.555547 | S71: =INDEX('Compile Data'!$BL$123:$CI$204,$O71,'Report - ALL (DASHBOARD)'!$W$4) -> 2374.717688 | T71: =INDEX('Compile Data'!$CL$123:$DI$204,$O71,'Report - ALL (DASHBOARD)'!$W$4) ->  | U71: =INDEX('Compile Data'!$DL$123:$EI$204,$O71,'Report - ALL (DASHBOARD)'!$W$4) ->  | V71: =INDEX('Compile Data'!$EL$123:$FI$204,$O71,'Report - ALL (DASHBOARD)'!$W$4) -> 
A72: 1966 | B72: =INDEX('Compile Data'!$L$12:$AI$93,$A72-1921,'Report - ALL (DASHBOARD)'!$W$4) -> 2187.928838 | C72: =INDEX('Compile Data'!$AL$12:$BI$93,$A72-1921,'Report - ALL (DASHBOARD)'!$W$4) -> 2208.929865 | D72: =INDEX('Compile Data'!$BL$12:$CI$93,$A72-1921,'Report - ALL (DASHBOARD)'!$W$4) -> 2189.824303 | E72: =INDEX('Compile Data'!$CL$12:$DI$93,$A72-1921,'Report - ALL (DASHBOARD)'!$W$4) ->  | F72: =INDEX('Compile Data'!$DL$12:$EI$93,$A72-1921,'Report - ALL (DASHBOARD)'!$W$4) ->  | G72: =INDEX('Compile Data'!$EL$12:$FI$93,$A72-1921,'Report - ALL (DASHBOARD)'!$W$4) ->  | O72: 45 | P72: 0.5432098765 | Q72: =INDEX('Compile Data'!$L$123:$AI$204,$O72,'Report - ALL (DASHBOARD)'!$W$4) -> 2323.081116 | R72: =INDEX('Compile Data'!$AL$123:$BI$204,$O72,'Report - ALL (DASHBOARD)'!$W$4) -> 2364.899675 | S72: =INDEX('Compile Data'!$BL$123:$CI$204,$O72,'Report - ALL (DASHBOARD)'!$W$4) -> 2337.683045 | T72: =INDEX('Compile Data'!$CL$123:$DI$204,$O72,'Report - ALL (DASHBOARD)'!$W$4) ->  | U72: =INDEX('Compile Data'!$DL$123:$EI$204,$O72,'Report - ALL (DASHBOARD)'!$W$4) ->  | V72: =INDEX('Compile Data'!$EL$123:$FI$204,$O72,'Report - ALL (DASHBOARD)'!$W$4) -> 
A73: 1967 | B73: =INDEX('Compile Data'!$L$12:$AI$93,$A73-1921,'Report - ALL (DASHBOARD)'!$W$4) -> 3538 | C73: =INDEX('Compile Data'!$AL$12:$BI$93,$A73-1921,'Report - ALL (DASHBOARD)'!$W$4) -> 3538 | D73: =INDEX('Compile Data'!$BL$12:$CI$93,$A73-1921,'Report - ALL (DASHBOARD)'!$W$4) -> 3538 | E73: =INDEX('Compile Data'!$CL$12:$DI$93,$A73-1921,'Report - ALL (DASHBOARD)'!$W$4) ->  | F73: =INDEX('Compile Data'!$DL$12:$EI$93,$A73-1921,'Report - ALL (DASHBOARD)'!$W$4) ->  | G73: =INDEX('Compile Data'!$EL$12:$FI$93,$A73-1921,'Report - ALL (DASHBOARD)'!$W$4) ->  | O73: 46 | P73: 0.5555555556 | Q73: =INDEX('Compile Data'!$L$123:$AI$204,$O73,'Report - ALL (DASHBOARD)'!$W$4) -> 2290.914385 | R73: =INDEX('Compile Data'!$AL$123:$BI$204,$O73,'Report - ALL (DASHBOARD)'!$W$4) -> 2308.875179 | S73: =INDEX('Compile Data'!$BL$123:$CI$204,$O73,'Report - ALL (DASHBOARD)'!$W$4) -> 2239.735926 | T73: =INDEX('Compile Data'!$CL$123:$DI$204,$O73,'Report - ALL (DASHBOARD)'!$W$4) ->  | U73: =INDEX('Compile Data'!$DL$123:$EI$204,$O73,'Report - ALL (DASHBOARD)'!$W$4) ->  | V73: =INDEX('Compile Data'!$EL$123:$FI$204,$O73,'Report - ALL (DASHBOARD)'!$W$4) -> 
A74: 1968 | B74: =INDEX('Compile Data'!$L$12:$AI$93,$A74-1921,'Report - ALL (DASHBOARD)'!$W$4) -> 2453.105672 | C74: =INDEX('Compile Data'!$AL$12:$BI$93,$A74-1921,'Report - ALL (DASHBOARD)'!$W$4) -> 2476.470414 | D74: =INDEX('Compile Data'!$BL$12:$CI$93,$A74-1921,'Report - ALL (DASHBOARD)'!$W$4) -> 2453.400262 | E74: =INDEX('Compile Data'!$CL$12:$DI$93,$A74-1921,'Report - ALL (DASHBOARD)'!$W$4) ->  | F74: =INDEX('Compile Data'!$DL$12:$EI$93,$A74-1921,'Report - ALL (DASHBOARD)'!$W$4) ->  | G74: =INDEX('Compile Data'!$EL$12:$FI$93,$A74-1921,'Report - ALL (DASHBOARD)'!$W$4) ->  | O74: 47 | P74: 0.5679012346 | Q74: =INDEX('Compile Data'!$L$123:$AI$204,$O74,'Report - ALL (DASHBOARD)'!$W$4) -> 2226.688246 | R74: =INDEX('Compile Data'!$AL$123:$BI$204,$O74,'Report - ALL (DASHBOARD)'!$W$4) -> 2245.901016 | S74: =INDEX('Compile Data'!$BL$123:$CI$204,$O74,'Report - ALL (DASHBOARD)'!$W$4) -> 2233.452707 | T74: =INDEX('Compile Data'!$CL$123:$DI$204,$O74,'Report - ALL (DASHBOARD)'!$W$4) ->  | U74: =INDEX('Compile Data'!$DL$123:$EI$204,$O74,'Report - ALL (DASHBOARD)'!$W$4) ->  | V74: =INDEX('Compile Data'!$EL$123:$FI$204,$O74,'Report - ALL (DASHBOARD)'!$W$4) -> 
A75: 1969 | B75: =INDEX('Compile Data'!$L$12:$AI$93,$A75-1921,'Report - ALL (DASHBOARD)'!$W$4) -> 3338.453341 | C75: =INDEX('Compile Data'!$AL$12:$BI$93,$A75-1921,'Report - ALL (DASHBOARD)'!$W$4) -> 3330.598067 | D75: =INDEX('Compile Data'!$BL$12:$CI$93,$A75-1921,'Report - ALL (DASHBOARD)'!$W$4) -> 3330.589734 | E75: =INDEX('Compile Data'!$CL$12:$DI$93,$A75-1921,'Report - ALL (DASHBOARD)'!$W$4) ->  | F75: =INDEX('Compile Data'!$DL$12:$EI$93,$A75-1921,'Report - ALL (DASHBOARD)'!$W$4) ->  | G75: =INDEX('Compile Data'!$EL$12:$FI$93,$A75-1921,'Report - ALL (DASHBOARD)'!$W$4) ->  | O75: 48 | P75: 0.5802469136 | Q75: =INDEX('Compile Data'!$L$123:$AI$204,$O75,'Report - ALL (DASHBOARD)'!$W$4) -> 2203.240266 | R75: =INDEX('Compile Data'!$AL$123:$BI$204,$O75,'Report - ALL (DASHBOARD)'!$W$4) -> 2244.11413 | S75: =INDEX('Compile Data'!$BL$123:$CI$204,$O75,'Report - ALL (DASHBOARD)'!$W$4) -> 2198.146482 | T75: =INDEX('Compile Data'!$CL$123:$DI$204,$O75,'Report - ALL (DASHBOARD)'!$W$4) ->  | U75: =INDEX('Compile Data'!$DL$123:$EI$204,$O75,'Report - ALL (DASHBOARD)'!$W$4) ->  | V75: =INDEX('Compile Data'!$EL$123:$FI$204,$O75,'Report - ALL (DASHBOARD)'!$W$4) -> 
A76: 1970 | B76: =INDEX('Compile Data'!$L$12:$AI$93,$A76-1921,'Report - ALL (DASHBOARD)'!$W$4) -> 2533.204539 | C76: =INDEX('Compile Data'!$AL$12:$BI$93,$A76-1921,'Report - ALL (DASHBOARD)'!$W$4) -> 2532.842538 | D76: =INDEX('Compile Data'!$BL$12:$CI$93,$A76-1921,'Report - ALL (DASHBOARD)'!$W$4) -> 2532.830492 | E76: =INDEX('Compile Data'!$CL$12:$DI$93,$A76-1921,'Report - ALL (DASHBOARD)'!$W$4) ->  | F76: =INDEX('Compile Data'!$DL$12:$EI$93,$A76-1921,'Report - ALL (DASHBOARD)'!$W$4) ->  | G76: =INDEX('Compile Data'!$EL$12:$FI$93,$A76-1921,'Report - ALL (DASHBOARD)'!$W$4) ->  | O76: 49 | P76: 0.5925925926 | Q76: =INDEX('Compile Data'!$L$123:$AI$204,$O76,'Report - ALL (DASHBOARD)'!$W$4) -> 2187.928838 | R76: =INDEX('Compile Data'!$AL$123:$BI$204,$O76,'Report - ALL (DASHBOARD)'!$W$4) -> 2209.714689 | S76: =INDEX('Compile Data'!$BL$123:$CI$204,$O76,'Report - ALL (DASHBOARD)'!$W$4) -> 2195.183883 | T76: =INDEX('Compile Data'!$CL$123:$DI$204,$O76,'Report - ALL (DASHBOARD)'!$W$4) ->  | U76: =INDEX('Compile Data'!$DL$123:$EI$204,$O76,'Report - ALL (DASHBOARD)'!$W$4) ->  | V76: =INDEX('Compile Data'!$EL$123:$FI$204,$O76,'Report - ALL (DASHBOARD)'!$W$4) -> 
A77: 1971 | B77: =INDEX('Compile Data'!$L$12:$AI$93,$A77-1921,'Report - ALL (DASHBOARD)'!$W$4) -> 3090.133507 | C77: =INDEX('Compile Data'!$AL$12:$BI$93,$A77-1921,'Report - ALL (DASHBOARD)'!$W$4) -> 3090.384156 | D77: =INDEX('Compile Data'!$BL$12:$CI$93,$A77-1921,'Report - ALL (DASHBOARD)'!$W$4) -> 3090.380349 | E77: =INDEX('Compile Data'!$CL$12:$DI$93,$A77-1921,'Report - ALL (DASHBOARD)'!$W$4) ->  | F77: =INDEX('Compile Data'!$DL$12:$EI$93,$A77-1921,'Report - ALL (DASHBOARD)'!$W$4) ->  | G77: =INDEX('Compile Data'!$EL$12:$FI$93,$A77-1921,'Report - ALL (DASHBOARD)'!$W$4) ->  | O77: 50 | P77: 0.6049382716 | Q77: =INDEX('Compile Data'!$L$123:$AI$204,$O77,'Report - ALL (DASHBOARD)'!$W$4) -> 2180.372915 | R77: =INDEX('Compile Data'!$AL$123:$BI$204,$O77,'Report - ALL (DASHBOARD)'!$W$4) -> 2208.929865 | S77: =INDEX('Compile Data'!$BL$123:$CI$204,$O77,'Report - ALL (DASHBOARD)'!$W$4) -> 2189.824303 | T77: =INDEX('Compile Data'!$CL$123:$DI$204,$O77,'Report - ALL (DASHBOARD)'!$W$4) ->  | U77: =INDEX('Compile Data'!$DL$123:$EI$204,$O77,'Report - ALL (DASHBOARD)'!$W$4) ->  | V77: =INDEX('Compile Data'!$EL$123:$FI$204,$O77,'Report - ALL (DASHBOARD)'!$W$4) -> 
A78: 1972 | B78: =INDEX('Compile Data'!$L$12:$AI$93,$A78-1921,'Report - ALL (DASHBOARD)'!$W$4) -> 2376.815216 | C78: =INDEX('Compile Data'!$AL$12:$BI$93,$A78-1921,'Report - ALL (DASHBOARD)'!$W$4) -> 2380.555547 | D78: =INDEX('Compile Data'!$BL$12:$CI$93,$A78-1921,'Report - ALL (DASHBOARD)'!$W$4) -> 2374.717688 | E78: =INDEX('Compile Data'!$CL$12:$DI$93,$A78-1921,'Report - ALL (DASHBOARD)'!$W$4) ->  | F78: =INDEX('Compile Data'!$DL$12:$EI$93,$A78-1921,'Report - ALL (DASHBOARD)'!$W$4) ->  | G78: =INDEX('Compile Data'!$EL$12:$FI$93,$A78-1921,'Report - ALL (DASHBOARD)'!$W$4) ->  | O78: 51 | P78: 0.6172839506 | Q78: =INDEX('Compile Data'!$L$123:$AI$204,$O78,'Report - ALL (DASHBOARD)'!$W$4) -> 2042.928374 | R78: =INDEX('Compile Data'!$AL$123:$BI$204,$O78,'Report - ALL (DASHBOARD)'!$W$4) -> 2142.788057 | S78: =INDEX('Compile Data'!$BL$123:$CI$204,$O78,'Report - ALL (DASHBOARD)'!$W$4) -> 2042.735061 | T78: =INDEX('Compile Data'!$CL$123:$DI$204,$O78,'Report - ALL (DASHBOARD)'!$W$4) ->  | U78: =INDEX('Compile Data'!$DL$123:$EI$204,$O78,'Report - ALL (DASHBOARD)'!$W$4) ->  | V78: =INDEX('Compile Data'!$EL$123:$FI$204,$O78,'Report - ALL (DASHBOARD)'!$W$4) -> 
A79: 1973 | B79: =INDEX('Compile Data'!$L$12:$AI$93,$A79-1921,'Report - ALL (DASHBOARD)'!$W$4) -> 2797.326935 | C79: =INDEX('Compile Data'!$AL$12:$BI$93,$A79-1921,'Report - ALL (DASHBOARD)'!$W$4) -> 2797.962591 | D79: =INDEX('Compile Data'!$BL$12:$CI$93,$A79-1921,'Report - ALL (DASHBOARD)'!$W$4) -> 2797.954203 | E79: =INDEX('Compile Data'!$CL$12:$DI$93,$A79-1921,'Report - ALL (DASHBOARD)'!$W$4) ->  | F79: =INDEX('Compile Data'!$DL$12:$EI$93,$A79-1921,'Report - ALL (DASHBOARD)'!$W$4) ->  | G79: =INDEX('Compile Data'!$EL$12:$FI$93,$A79-1921,'Report - ALL (DASHBOARD)'!$W$4) ->  | O79: 52 | P79: 0.6296296296 | Q79: =INDEX('Compile Data'!$L$123:$AI$204,$O79,'Report - ALL (DASHBOARD)'!$W$4) -> 2039.915256 | R79: =INDEX('Compile Data'!$AL$123:$BI$204,$O79,'Report - ALL (DASHBOARD)'!$W$4) -> 2061.153147 | S79: =INDEX('Compile Data'!$BL$123:$CI$204,$O79,'Report - ALL (DASHBOARD)'!$W$4) -> 2022.066852 | T79: =INDEX('Compile Data'!$CL$123:$DI$204,$O79,'Report - ALL (DASHBOARD)'!$W$4) ->  | U79: =INDEX('Compile Data'!$DL$123:$EI$204,$O79,'Report - ALL (DASHBOARD)'!$W$4) ->  | V79: =INDEX('Compile Data'!$EL$123:$FI$204,$O79,'Report - ALL (DASHBOARD)'!$W$4) -> 
A80: 1974 | B80: =INDEX('Compile Data'!$L$12:$AI$93,$A80-1921,'Report - ALL (DASHBOARD)'!$W$4) -> 3386.989862 | C80: =INDEX('Compile Data'!$AL$12:$BI$93,$A80-1921,'Report - ALL (DASHBOARD)'!$W$4) -> 3408.223951 | D80: =INDEX('Compile Data'!$BL$12:$CI$93,$A80-1921,'Report - ALL (DASHBOARD)'!$W$4) -> 3408.191016 | E80: =INDEX('Compile Data'!$CL$12:$DI$93,$A80-1921,'Report - ALL (DASHBOARD)'!$W$4) ->  | F80: =INDEX('Compile Data'!$DL$12:$EI$93,$A80-1921,'Report - ALL (DASHBOARD)'!$W$4) ->  | G80: =INDEX('Compile Data'!$EL$12:$FI$93,$A80-1921,'Report - ALL (DASHBOARD)'!$W$4) ->  | O80: 53 | P80: 0.6419753086 | Q80: =INDEX('Compile Data'!$L$123:$AI$204,$O80,'Report - ALL (DASHBOARD)'!$W$4) -> 1852.182566 | R80: =INDEX('Compile Data'!$AL$123:$BI$204,$O80,'Report - ALL (DASHBOARD)'!$W$4) -> 1925.303239 | S80: =INDEX('Compile Data'!$BL$123:$CI$204,$O80,'Report - ALL (DASHBOARD)'!$W$4) -> 1856.688872 | T80: =INDEX('Compile Data'!$CL$123:$DI$204,$O80,'Report - ALL (DASHBOARD)'!$W$4) ->  | U80: =INDEX('Compile Data'!$DL$123:$EI$204,$O80,'Report - ALL (DASHBOARD)'!$W$4) ->  | V80: =INDEX('Compile Data'!$EL$123:$FI$204,$O80,'Report - ALL (DASHBOARD)'!$W$4) -> 
A81: 1975 | B81: =INDEX('Compile Data'!$L$12:$AI$93,$A81-1921,'Report - ALL (DASHBOARD)'!$W$4) -> 3130.093117 | C81: =INDEX('Compile Data'!$AL$12:$BI$93,$A81-1921,'Report - ALL (DASHBOARD)'!$W$4) -> 3157.758316 | D81: =INDEX('Compile Data'!$BL$12:$CI$93,$A81-1921,'Report - ALL (DASHBOARD)'!$W$4) -> 3157.725464 | E81: =INDEX('Compile Data'!$CL$12:$DI$93,$A81-1921,'Report - ALL (DASHBOARD)'!$W$4) ->  | F81: =INDEX('Compile Data'!$DL$12:$EI$93,$A81-1921,'Report - ALL (DASHBOARD)'!$W$4) ->  | G81: =INDEX('Compile Data'!$EL$12:$FI$93,$A81-1921,'Report - ALL (DASHBOARD)'!$W$4) ->  | O81: 54 | P81: 0.6543209877 | Q81: =INDEX('Compile Data'!$L$123:$AI$204,$O81,'Report - ALL (DASHBOARD)'!$W$4) -> 1835.625868 | R81: =INDEX('Compile Data'!$AL$123:$BI$204,$O81,'Report - ALL (DASHBOARD)'!$W$4) -> 1897.874496 | S81: =INDEX('Compile Data'!$BL$123:$CI$204,$O81,'Report - ALL (DASHBOARD)'!$W$4) -> 1812.79506 | T81: =INDEX('Compile Data'!$CL$123:$DI$204,$O81,'Report - ALL (DASHBOARD)'!$W$4) ->  | U81: =INDEX('Compile Data'!$DL$123:$EI$204,$O81,'Report - ALL (DASHBOARD)'!$W$4) ->  | V81: =INDEX('Compile Data'!$EL$123:$FI$204,$O81,'Report - ALL (DASHBOARD)'!$W$4) -> 
A82: 1976 | B82: =INDEX('Compile Data'!$L$12:$AI$93,$A82-1921,'Report - ALL (DASHBOARD)'!$W$4) -> 1738.9067 | C82: =INDEX('Compile Data'!$AL$12:$BI$93,$A82-1921,'Report - ALL (DASHBOARD)'!$W$4) -> 1826.948533 | D82: =INDEX('Compile Data'!$BL$12:$CI$93,$A82-1921,'Report - ALL (DASHBOARD)'!$W$4) -> 1743.602697 | E82: =INDEX('Compile Data'!$CL$12:$DI$93,$A82-1921,'Report - ALL (DASHBOARD)'!$W$4) ->  | F82: =INDEX('Compile Data'!$DL$12:$EI$93,$A82-1921,'Report - ALL (DASHBOARD)'!$W$4) ->  | G82: =INDEX('Compile Data'!$EL$12:$FI$93,$A82-1921,'Report - ALL (DASHBOARD)'!$W$4) ->  | O82: 55 | P82: 0.6666666667 | Q82: =INDEX('Compile Data'!$L$123:$AI$204,$O82,'Report - ALL (DASHBOARD)'!$W$4) -> 1738.9067 | R82: =INDEX('Compile Data'!$AL$123:$BI$204,$O82,'Report - ALL (DASHBOARD)'!$W$4) -> 1826.948533 | S82: =INDEX('Compile Data'!$BL$123:$CI$204,$O82,'Report - ALL (DASHBOARD)'!$W$4) -> 1743.602697 | T82: =INDEX('Compile Data'!$CL$123:$DI$204,$O82,'Report - ALL (DASHBOARD)'!$W$4) ->  | U82: =INDEX('Compile Data'!$DL$123:$EI$204,$O82,'Report - ALL (DASHBOARD)'!$W$4) ->  | V82: =INDEX('Compile Data'!$EL$123:$FI$204,$O82,'Report - ALL (DASHBOARD)'!$W$4) -> 
A83: 1977 | B83: =INDEX('Compile Data'!$L$12:$AI$93,$A83-1921,'Report - ALL (DASHBOARD)'!$W$4) -> 434.5094751 | C83: =INDEX('Compile Data'!$AL$12:$BI$93,$A83-1921,'Report - ALL (DASHBOARD)'!$W$4) -> 479.628833 | D83: =INDEX('Compile Data'!$BL$12:$CI$93,$A83-1921,'Report - ALL (DASHBOARD)'!$W$4) -> 427.5950829 | E83: =INDEX('Compile Data'!$CL$12:$DI$93,$A83-1921,'Report - ALL (DASHBOARD)'!$W$4) ->  | F83: =INDEX('Compile Data'!$DL$12:$EI$93,$A83-1921,'Report - ALL (DASHBOARD)'!$W$4) ->  | G83: =INDEX('Compile Data'!$EL$12:$FI$93,$A83-1921,'Report - ALL (DASHBOARD)'!$W$4) ->  | O83: 56 | P83: 0.6790123457 | Q83: =INDEX('Compile Data'!$L$123:$AI$204,$O83,'Report - ALL (DASHBOARD)'!$W$4) -> 1717.266195 | R83: =INDEX('Compile Data'!$AL$123:$BI$204,$O83,'Report - ALL (DASHBOARD)'!$W$4) -> 1782.440052 | S83: =INDEX('Compile Data'!$BL$123:$CI$204,$O83,'Report - ALL (DASHBOARD)'!$W$4) -> 1706.048616 | T83: =INDEX('Compile Data'!$CL$123:$DI$204,$O83,'Report - ALL (DASHBOARD)'!$W$4) ->  | U83: =INDEX('Compile Data'!$DL$123:$EI$204,$O83,'Report - ALL (DASHBOARD)'!$W$4) ->  | V83: =INDEX('Compile Data'!$EL$123:$FI$204,$O83,'Report - ALL (DASHBOARD)'!$W$4) -> 
A84: 1978 | B84: =INDEX('Compile Data'!$L$12:$AI$93,$A84-1921,'Report - ALL (DASHBOARD)'!$W$4) -> 3070.605723 | C84: =INDEX('Compile Data'!$AL$12:$BI$93,$A84-1921,'Report - ALL (DASHBOARD)'!$W$4) -> 3070.990106 | D84: =INDEX('Compile Data'!$BL$12:$CI$93,$A84-1921,'Report - ALL (DASHBOARD)'!$W$4) -> 3070.96202 | E84: =INDEX('Compile Data'!$CL$12:$DI$93,$A84-1921,'Report - ALL (DASHBOARD)'!$W$4) ->  | F84: =INDEX('Compile Data'!$DL$12:$EI$93,$A84-1921,'Report - ALL (DASHBOARD)'!$W$4) ->  | G84: =INDEX('Compile Data'!$EL$12:$FI$93,$A84-1921,'Report - ALL (DASHBOARD)'!$W$4) ->  | O84: 57 | P84: 0.6913580247 | Q84: =INDEX('Compile Data'!$L$123:$AI$204,$O84,'Report - ALL (DASHBOARD)'!$W$4) -> 1701.438627 | R84: =INDEX('Compile Data'!$AL$123:$BI$204,$O84,'Report - ALL (DASHBOARD)'!$W$4) -> 1737.327508 | S84: =INDEX('Compile Data'!$BL$123:$CI$204,$O84,'Report - ALL (DASHBOARD)'!$W$4) -> 1681.716303 | T84: =INDEX('Compile Data'!$CL$123:$DI$204,$O84,'Report - ALL (DASHBOARD)'!$W$4) ->  | U84: =INDEX('Compile Data'!$DL$123:$EI$204,$O84,'Report - ALL (DASHBOARD)'!$W$4) ->  | V84: =INDEX('Compile Data'!$EL$123:$FI$204,$O84,'Report - ALL (DASHBOARD)'!$W$4) -> 
A85: 1979 | B85: =INDEX('Compile Data'!$L$12:$AI$93,$A85-1921,'Report - ALL (DASHBOARD)'!$W$4) -> 2180.372915 | C85: =INDEX('Compile Data'!$AL$12:$BI$93,$A85-1921,'Report - ALL (DASHBOARD)'!$W$4) -> 2209.714689 | D85: =INDEX('Compile Data'!$BL$12:$CI$93,$A85-1921,'Report - ALL (DASHBOARD)'!$W$4) -> 2195.183883 | E85: =INDEX('Compile Data'!$CL$12:$DI$93,$A85-1921,'Report - ALL (DASHBOARD)'!$W$4) ->  | F85: =INDEX('Compile Data'!$DL$12:$EI$93,$A85-1921,'Report - ALL (DASHBOARD)'!$W$4) ->  | G85: =INDEX('Compile Data'!$EL$12:$FI$93,$A85-1921,'Report - ALL (DASHBOARD)'!$W$4) ->  | O85: 58 | P85: 0.7037037037 | Q85: =INDEX('Compile Data'!$L$123:$AI$204,$O85,'Report - ALL (DASHBOARD)'!$W$4) -> 1676.946913 | R85: =INDEX('Compile Data'!$AL$123:$BI$204,$O85,'Report - ALL (DASHBOARD)'!$W$4) -> 1717.563195 | S85: =INDEX('Compile Data'!$BL$123:$CI$204,$O85,'Report - ALL (DASHBOARD)'!$W$4) -> 1672.310932 | T85: =INDEX('Compile Data'!$CL$123:$DI$204,$O85,'Report - ALL (DASHBOARD)'!$W$4) ->  | U85: =INDEX('Compile Data'!$DL$123:$EI$204,$O85,'Report - ALL (DASHBOARD)'!$W$4) ->  | V85: =INDEX('Compile Data'!$EL$123:$FI$204,$O85,'Report - ALL (DASHBOARD)'!$W$4) -> 
A86: 1980 | B86: =INDEX('Compile Data'!$L$12:$AI$93,$A86-1921,'Report - ALL (DASHBOARD)'!$W$4) -> 3236.303643 | C86: =INDEX('Compile Data'!$AL$12:$BI$93,$A86-1921,'Report - ALL (DASHBOARD)'!$W$4) -> 3227.90101 | D86: =INDEX('Compile Data'!$BL$12:$CI$93,$A86-1921,'Report - ALL (DASHBOARD)'!$W$4) -> 3227.981621 | E86: =INDEX('Compile Data'!$CL$12:$DI$93,$A86-1921,'Report - ALL (DASHBOARD)'!$W$4) ->  | F86: =INDEX('Compile Data'!$DL$12:$EI$93,$A86-1921,'Report - ALL (DASHBOARD)'!$W$4) ->  | G86: =INDEX('Compile Data'!$EL$12:$FI$93,$A86-1921,'Report - ALL (DASHBOARD)'!$W$4) ->  | O86: 59 | P86: 0.7160493827 | Q86: =INDEX('Compile Data'!$L$123:$AI$204,$O86,'Report - ALL (DASHBOARD)'!$W$4) -> 1668.988032 | R86: =INDEX('Compile Data'!$AL$123:$BI$204,$O86,'Report - ALL (DASHBOARD)'!$W$4) -> 1692.972928 | S86: =INDEX('Compile Data'!$BL$123:$CI$204,$O86,'Report - ALL (DASHBOARD)'!$W$4) -> 1671.552215 | T86: =INDEX('Compile Data'!$CL$123:$DI$204,$O86,'Report - ALL (DASHBOARD)'!$W$4) ->  | U86: =INDEX('Compile Data'!$DL$123:$EI$204,$O86,'Report - ALL (DASHBOARD)'!$W$4) ->  | V86: =INDEX('Compile Data'!$EL$123:$FI$204,$O86,'Report - ALL (DASHBOARD)'!$W$4) -> 
A87: 1981 | B87: =INDEX('Compile Data'!$L$12:$AI$93,$A87-1921,'Report - ALL (DASHBOARD)'!$W$4) -> 1852.182566 | C87: =INDEX('Compile Data'!$AL$12:$BI$93,$A87-1921,'Report - ALL (DASHBOARD)'!$W$4) -> 1925.303239 | D87: =INDEX('Compile Data'!$BL$12:$CI$93,$A87-1921,'Report - ALL (DASHBOARD)'!$W$4) -> 1856.688872 | E87: =INDEX('Compile Data'!$CL$12:$DI$93,$A87-1921,'Report - ALL (DASHBOARD)'!$W$4) ->  | F87: =INDEX('Compile Data'!$DL$12:$EI$93,$A87-1921,'Report - ALL (DASHBOARD)'!$W$4) ->  | G87: =INDEX('Compile Data'!$EL$12:$FI$93,$A87-1921,'Report - ALL (DASHBOARD)'!$W$4) ->  | O87: 60 | P87: 0.7283950617 | Q87: =INDEX('Compile Data'!$L$123:$AI$204,$O87,'Report - ALL (DASHBOARD)'!$W$4) -> 1653.082792 | R87: =INDEX('Compile Data'!$AL$123:$BI$204,$O87,'Report - ALL (DASHBOARD)'!$W$4) -> 1689.838249 | S87: =INDEX('Compile Data'!$BL$123:$CI$204,$O87,'Report - ALL (DASHBOARD)'!$W$4) -> 1634.255146 | T87: =INDEX('Compile Data'!$CL$123:$DI$204,$O87,'Report - ALL (DASHBOARD)'!$W$4) ->  | U87: =INDEX('Compile Data'!$DL$123:$EI$204,$O87,'Report - ALL (DASHBOARD)'!$W$4) ->  | V87: =INDEX('Compile Data'!$EL$123:$FI$204,$O87,'Report - ALL (DASHBOARD)'!$W$4) -> 
A88: 1982 | B88: =INDEX('Compile Data'!$L$12:$AI$93,$A88-1921,'Report - ALL (DASHBOARD)'!$W$4) -> 3444.685871 | C88: =INDEX('Compile Data'!$AL$12:$BI$93,$A88-1921,'Report - ALL (DASHBOARD)'!$W$4) -> 3443.8937 | D88: =INDEX('Compile Data'!$BL$12:$CI$93,$A88-1921,'Report - ALL (DASHBOARD)'!$W$4) -> 3443.902312 | E88: =INDEX('Compile Data'!$CL$12:$DI$93,$A88-1921,'Report - ALL (DASHBOARD)'!$W$4) ->  | F88: =INDEX('Compile Data'!$DL$12:$EI$93,$A88-1921,'Report - ALL (DASHBOARD)'!$W$4) ->  | G88: =INDEX('Compile Data'!$EL$12:$FI$93,$A88-1921,'Report - ALL (DASHBOARD)'!$W$4) ->  | O88: 61 | P88: 0.7407407407 | Q88: =INDEX('Compile Data'!$L$123:$AI$204,$O88,'Report - ALL (DASHBOARD)'!$W$4) -> 1616.250474 | R88: =INDEX('Compile Data'!$AL$123:$BI$204,$O88,'Report - ALL (DASHBOARD)'!$W$4) -> 1689.059287 | S88: =INDEX('Compile Data'!$BL$123:$CI$204,$O88,'Report - ALL (DASHBOARD)'!$W$4) -> 1620.486878 | T88: =INDEX('Compile Data'!$CL$123:$DI$204,$O88,'Report - ALL (DASHBOARD)'!$W$4) ->  | U88: =INDEX('Compile Data'!$DL$123:$EI$204,$O88,'Report - ALL (DASHBOARD)'!$W$4) ->  | V88: =INDEX('Compile Data'!$EL$123:$FI$204,$O88,'Report - ALL (DASHBOARD)'!$W$4) -> 
A89: 1983 | B89: =INDEX('Compile Data'!$L$12:$AI$93,$A89-1921,'Report - ALL (DASHBOARD)'!$W$4) -> 3538 | C89: =INDEX('Compile Data'!$AL$12:$BI$93,$A89-1921,'Report - ALL (DASHBOARD)'!$W$4) -> 3538 | D89: =INDEX('Compile Data'!$BL$12:$CI$93,$A89-1921,'Report - ALL (DASHBOARD)'!$W$4) -> 3538 | E89: =INDEX('Compile Data'!$CL$12:$DI$93,$A89-1921,'Report - ALL (DASHBOARD)'!$W$4) ->  | F89: =INDEX('Compile Data'!$DL$12:$EI$93,$A89-1921,'Report - ALL (DASHBOARD)'!$W$4) ->  | G89: =INDEX('Compile Data'!$EL$12:$FI$93,$A89-1921,'Report - ALL (DASHBOARD)'!$W$4) ->  | O89: 62 | P89: 0.7530864198 | Q89: =INDEX('Compile Data'!$L$123:$AI$204,$O89,'Report - ALL (DASHBOARD)'!$W$4) -> 1589.83471 | R89: =INDEX('Compile Data'!$AL$123:$BI$204,$O89,'Report - ALL (DASHBOARD)'!$W$4) -> 1670.7815 | S89: =INDEX('Compile Data'!$BL$123:$CI$204,$O89,'Report - ALL (DASHBOARD)'!$W$4) -> 1589.835054 | T89: =INDEX('Compile Data'!$CL$123:$DI$204,$O89,'Report - ALL (DASHBOARD)'!$W$4) ->  | U89: =INDEX('Compile Data'!$DL$123:$EI$204,$O89,'Report - ALL (DASHBOARD)'!$W$4) ->  | V89: =INDEX('Compile Data'!$EL$123:$FI$204,$O89,'Report - ALL (DASHBOARD)'!$W$4) -> 
A90: 1984 | B90: =INDEX('Compile Data'!$L$12:$AI$93,$A90-1921,'Report - ALL (DASHBOARD)'!$W$4) -> 2815.662116 | C90: =INDEX('Compile Data'!$AL$12:$BI$93,$A90-1921,'Report - ALL (DASHBOARD)'!$W$4) -> 2816.061507 | D90: =INDEX('Compile Data'!$BL$12:$CI$93,$A90-1921,'Report - ALL (DASHBOARD)'!$W$4) -> 2816.053139 | E90: =INDEX('Compile Data'!$CL$12:$DI$93,$A90-1921,'Report - ALL (DASHBOARD)'!$W$4) ->  | F90: =INDEX('Compile Data'!$DL$12:$EI$93,$A90-1921,'Report - ALL (DASHBOARD)'!$W$4) ->  | G90: =INDEX('Compile Data'!$EL$12:$FI$93,$A90-1921,'Report - ALL (DASHBOARD)'!$W$4) ->  | O90: 63 | P90: 0.7654320988 | Q90: =INDEX('Compile Data'!$L$123:$AI$204,$O90,'Report - ALL (DASHBOARD)'!$W$4) -> 1589.539727 | R90: =INDEX('Compile Data'!$AL$123:$BI$204,$O90,'Report - ALL (DASHBOARD)'!$W$4) -> 1669.472905 | S90: =INDEX('Compile Data'!$BL$123:$CI$204,$O90,'Report - ALL (DASHBOARD)'!$W$4) -> 1589.531205 | T90: =INDEX('Compile Data'!$CL$123:$DI$204,$O90,'Report - ALL (DASHBOARD)'!$W$4) ->  | U90: =INDEX('Compile Data'!$DL$123:$EI$204,$O90,'Report - ALL (DASHBOARD)'!$W$4) ->  | V90: =INDEX('Compile Data'!$EL$123:$FI$204,$O90,'Report - ALL (DASHBOARD)'!$W$4) -> 
A91: 1985 | B91: =INDEX('Compile Data'!$L$12:$AI$93,$A91-1921,'Report - ALL (DASHBOARD)'!$W$4) -> 1558.840489 | C91: =INDEX('Compile Data'!$AL$12:$BI$93,$A91-1921,'Report - ALL (DASHBOARD)'!$W$4) -> 1640.604679 | D91: =INDEX('Compile Data'!$BL$12:$CI$93,$A91-1921,'Report - ALL (DASHBOARD)'!$W$4) -> 1558.821057 | E91: =INDEX('Compile Data'!$CL$12:$DI$93,$A91-1921,'Report - ALL (DASHBOARD)'!$W$4) ->  | F91: =INDEX('Compile Data'!$DL$12:$EI$93,$A91-1921,'Report - ALL (DASHBOARD)'!$W$4) ->  | G91: =INDEX('Compile Data'!$EL$12:$FI$93,$A91-1921,'Report - ALL (DASHBOARD)'!$W$4) ->  | O91: 64 | P91: 0.7777777778 | Q91: =INDEX('Compile Data'!$L$123:$AI$204,$O91,'Report - ALL (DASHBOARD)'!$W$4) -> 1589.536005 | R91: =INDEX('Compile Data'!$AL$123:$BI$204,$O91,'Report - ALL (DASHBOARD)'!$W$4) -> 1667.467708 | S91: =INDEX('Compile Data'!$BL$123:$CI$204,$O91,'Report - ALL (DASHBOARD)'!$W$4) -> 1589.481637 | T91: =INDEX('Compile Data'!$CL$123:$DI$204,$O91,'Report - ALL (DASHBOARD)'!$W$4) ->  | U91: =INDEX('Compile Data'!$DL$123:$EI$204,$O91,'Report - ALL (DASHBOARD)'!$W$4) ->  | V91: =INDEX('Compile Data'!$EL$123:$FI$204,$O91,'Report - ALL (DASHBOARD)'!$W$4) -> 
A92: 1986 | B92: =INDEX('Compile Data'!$L$12:$AI$93,$A92-1921,'Report - ALL (DASHBOARD)'!$W$4) -> 2882.10589 | C92: =INDEX('Compile Data'!$AL$12:$BI$93,$A92-1921,'Report - ALL (DASHBOARD)'!$W$4) -> 2886.585083 | D92: =INDEX('Compile Data'!$BL$12:$CI$93,$A92-1921,'Report - ALL (DASHBOARD)'!$W$4) -> 2886.671467 | E92: =INDEX('Compile Data'!$CL$12:$DI$93,$A92-1921,'Report - ALL (DASHBOARD)'!$W$4) ->  | F92: =INDEX('Compile Data'!$DL$12:$EI$93,$A92-1921,'Report - ALL (DASHBOARD)'!$W$4) ->  | G92: =INDEX('Compile Data'!$EL$12:$FI$93,$A92-1921,'Report - ALL (DASHBOARD)'!$W$4) ->  | O92: 65 | P92: =(O92-1)/81 -> 0.7901234568 | Q92: =INDEX('Compile Data'!$L$123:$AI$204,$O92,'Report - ALL (DASHBOARD)'!$W$4) -> 1589.375007 | R92: =INDEX('Compile Data'!$AL$123:$BI$204,$O92,'Report - ALL (DASHBOARD)'!$W$4) -> 1661.309049 | S92: =INDEX('Compile Data'!$BL$123:$CI$204,$O92,'Report - ALL (DASHBOARD)'!$W$4) -> 1589.375424 | T92: =INDEX('Compile Data'!$CL$123:$DI$204,$O92,'Report - ALL (DASHBOARD)'!$W$4) ->  | U92: =INDEX('Compile Data'!$DL$123:$EI$204,$O92,'Report - ALL (DASHBOARD)'!$W$4) ->  | V92: =INDEX('Compile Data'!$EL$123:$FI$204,$O92,'Report - ALL (DASHBOARD)'!$W$4) -> 
A93: 1987 | B93: =INDEX('Compile Data'!$L$12:$AI$93,$A93-1921,'Report - ALL (DASHBOARD)'!$W$4) -> 1464.11241 | C93: =INDEX('Compile Data'!$AL$12:$BI$93,$A93-1921,'Report - ALL (DASHBOARD)'!$W$4) -> 1528.284916 | D93: =INDEX('Compile Data'!$BL$12:$CI$93,$A93-1921,'Report - ALL (DASHBOARD)'!$W$4) -> 1465.328167 | E93: =INDEX('Compile Data'!$CL$12:$DI$93,$A93-1921,'Report - ALL (DASHBOARD)'!$W$4) ->  | F93: =INDEX('Compile Data'!$DL$12:$EI$93,$A93-1921,'Report - ALL (DASHBOARD)'!$W$4) ->  | G93: =INDEX('Compile Data'!$EL$12:$FI$93,$A93-1921,'Report - ALL (DASHBOARD)'!$W$4) ->  | O93: 66 | P93: 0.8024691358 | Q93: =INDEX('Compile Data'!$L$123:$AI$204,$O93,'Report - ALL (DASHBOARD)'!$W$4) -> 1559.229239 | R93: =INDEX('Compile Data'!$AL$123:$BI$204,$O93,'Report - ALL (DASHBOARD)'!$W$4) -> 1653.583227 | S93: =INDEX('Compile Data'!$BL$123:$CI$204,$O93,'Report - ALL (DASHBOARD)'!$W$4) -> 1559.206941 | T93: =INDEX('Compile Data'!$CL$123:$DI$204,$O93,'Report - ALL (DASHBOARD)'!$W$4) ->  | U93: =INDEX('Compile Data'!$DL$123:$EI$204,$O93,'Report - ALL (DASHBOARD)'!$W$4) ->  | V93: =INDEX('Compile Data'!$EL$123:$FI$204,$O93,'Report - ALL (DASHBOARD)'!$W$4) -> 
A94: =A93+1 -> 1988 | B94: =INDEX('Compile Data'!$L$12:$AI$93,$A94-1921,'Report - ALL (DASHBOARD)'!$W$4) -> 1251.094788 | C94: =INDEX('Compile Data'!$AL$12:$BI$93,$A94-1921,'Report - ALL (DASHBOARD)'!$W$4) -> 1312.970753 | D94: =INDEX('Compile Data'!$BL$12:$CI$93,$A94-1921,'Report - ALL (DASHBOARD)'!$W$4) -> 1243.567021 | E94: =INDEX('Compile Data'!$CL$12:$DI$93,$A94-1921,'Report - ALL (DASHBOARD)'!$W$4) ->  | F94: =INDEX('Compile Data'!$DL$12:$EI$93,$A94-1921,'Report - ALL (DASHBOARD)'!$W$4) ->  | G94: =INDEX('Compile Data'!$EL$12:$FI$93,$A94-1921,'Report - ALL (DASHBOARD)'!$W$4) ->  | O94: 67 | P94: 0.8148148148 | Q94: =INDEX('Compile Data'!$L$123:$AI$204,$O94,'Report - ALL (DASHBOARD)'!$W$4) -> 1558.975687 | R94: =INDEX('Compile Data'!$AL$123:$BI$204,$O94,'Report - ALL (DASHBOARD)'!$W$4) -> 1640.604679 | S94: =INDEX('Compile Data'!$BL$123:$CI$204,$O94,'Report - ALL (DASHBOARD)'!$W$4) -> 1558.989726 | T94: =INDEX('Compile Data'!$CL$123:$DI$204,$O94,'Report - ALL (DASHBOARD)'!$W$4) ->  | U94: =INDEX('Compile Data'!$DL$123:$EI$204,$O94,'Report - ALL (DASHBOARD)'!$W$4) ->  | V94: =INDEX('Compile Data'!$EL$123:$FI$204,$O94,'Report - ALL (DASHBOARD)'!$W$4) -> 
A95: 1989 | B95: =INDEX('Compile Data'!$L$12:$AI$93,$A95-1921,'Report - ALL (DASHBOARD)'!$W$4) -> 1701.438627 | C95: =INDEX('Compile Data'!$AL$12:$BI$93,$A95-1921,'Report - ALL (DASHBOARD)'!$W$4) -> 1737.327508 | D95: =INDEX('Compile Data'!$BL$12:$CI$93,$A95-1921,'Report - ALL (DASHBOARD)'!$W$4) -> 1681.716303 | E95: =INDEX('Compile Data'!$CL$12:$DI$93,$A95-1921,'Report - ALL (DASHBOARD)'!$W$4) ->  | F95: =INDEX('Compile Data'!$DL$12:$EI$93,$A95-1921,'Report - ALL (DASHBOARD)'!$W$4) ->  | G95: =INDEX('Compile Data'!$EL$12:$FI$93,$A95-1921,'Report - ALL (DASHBOARD)'!$W$4) ->  | O95: 68 | P95: 0.8271604938 | Q95: =INDEX('Compile Data'!$L$123:$AI$204,$O95,'Report - ALL (DASHBOARD)'!$W$4) -> 1558.840489 | R95: =INDEX('Compile Data'!$AL$123:$BI$204,$O95,'Report - ALL (DASHBOARD)'!$W$4) -> 1619.303413 | S95: =INDEX('Compile Data'!$BL$123:$CI$204,$O95,'Report - ALL (DASHBOARD)'!$W$4) -> 1558.908526 | T95: =INDEX('Compile Data'!$CL$123:$DI$204,$O95,'Report - ALL (DASHBOARD)'!$W$4) ->  | U95: =INDEX('Compile Data'!$DL$123:$EI$204,$O95,'Report - ALL (DASHBOARD)'!$W$4) ->  | V95: =INDEX('Compile Data'!$EL$123:$FI$204,$O95,'Report - ALL (DASHBOARD)'!$W$4) -> 
A96: 1990 | B96: =INDEX('Compile Data'!$L$12:$AI$93,$A96-1921,'Report - ALL (DASHBOARD)'!$W$4) -> 1538.247246 | C96: =INDEX('Compile Data'!$AL$12:$BI$93,$A96-1921,'Report - ALL (DASHBOARD)'!$W$4) -> 1547.414793 | D96: =INDEX('Compile Data'!$BL$12:$CI$93,$A96-1921,'Report - ALL (DASHBOARD)'!$W$4) -> 1541.034699 | E96: =INDEX('Compile Data'!$CL$12:$DI$93,$A96-1921,'Report - ALL (DASHBOARD)'!$W$4) ->  | F96: =INDEX('Compile Data'!$DL$12:$EI$93,$A96-1921,'Report - ALL (DASHBOARD)'!$W$4) ->  | G96: =INDEX('Compile Data'!$EL$12:$FI$93,$A96-1921,'Report - ALL (DASHBOARD)'!$W$4) ->  | O96: 69 | P96: 0.8395061728 | Q96: =INDEX('Compile Data'!$L$123:$AI$204,$O96,'Report - ALL (DASHBOARD)'!$W$4) -> 1558.835494 | R96: =INDEX('Compile Data'!$AL$123:$BI$204,$O96,'Report - ALL (DASHBOARD)'!$W$4) -> 1610.404094 | S96: =INDEX('Compile Data'!$BL$123:$CI$204,$O96,'Report - ALL (DASHBOARD)'!$W$4) -> 1558.821057 | T96: =INDEX('Compile Data'!$CL$123:$DI$204,$O96,'Report - ALL (DASHBOARD)'!$W$4) ->  | U96: =INDEX('Compile Data'!$DL$123:$EI$204,$O96,'Report - ALL (DASHBOARD)'!$W$4) ->  | V96: =INDEX('Compile Data'!$EL$123:$FI$204,$O96,'Report - ALL (DASHBOARD)'!$W$4) -> 
A97: 1991 | B97: =INDEX('Compile Data'!$L$12:$AI$93,$A97-1921,'Report - ALL (DASHBOARD)'!$W$4) -> 1538.923534 | C97: =INDEX('Compile Data'!$AL$12:$BI$93,$A97-1921,'Report - ALL (DASHBOARD)'!$W$4) -> 1551.845109 | D97: =INDEX('Compile Data'!$BL$12:$CI$93,$A97-1921,'Report - ALL (DASHBOARD)'!$W$4) -> 1538.634217 | E97: =INDEX('Compile Data'!$CL$12:$DI$93,$A97-1921,'Report - ALL (DASHBOARD)'!$W$4) ->  | F97: =INDEX('Compile Data'!$DL$12:$EI$93,$A97-1921,'Report - ALL (DASHBOARD)'!$W$4) ->  | G97: =INDEX('Compile Data'!$EL$12:$FI$93,$A97-1921,'Report - ALL (DASHBOARD)'!$W$4) ->  | O97: 70 | P97: 0.8518518519 | Q97: =INDEX('Compile Data'!$L$123:$AI$204,$O97,'Report - ALL (DASHBOARD)'!$W$4) -> 1538.923534 | R97: =INDEX('Compile Data'!$AL$123:$BI$204,$O97,'Report - ALL (DASHBOARD)'!$W$4) -> 1551.845109 | S97: =INDEX('Compile Data'!$BL$123:$CI$204,$O97,'Report - ALL (DASHBOARD)'!$W$4) -> 1541.034699 | T97: =INDEX('Compile Data'!$CL$123:$DI$204,$O97,'Report - ALL (DASHBOARD)'!$W$4) ->  | U97: =INDEX('Compile Data'!$DL$123:$EI$204,$O97,'Report - ALL (DASHBOARD)'!$W$4) ->  | V97: =INDEX('Compile Data'!$EL$123:$FI$204,$O97,'Report - ALL (DASHBOARD)'!$W$4) -> 
A98: 1992 | B98: =INDEX('Compile Data'!$L$12:$AI$93,$A98-1921,'Report - ALL (DASHBOARD)'!$W$4) -> 952.3813346 | C98: =INDEX('Compile Data'!$AL$12:$BI$93,$A98-1921,'Report - ALL (DASHBOARD)'!$W$4) -> 951.6439013 | D98: =INDEX('Compile Data'!$BL$12:$CI$93,$A98-1921,'Report - ALL (DASHBOARD)'!$W$4) -> 950.5342852 | E98: =INDEX('Compile Data'!$CL$12:$DI$93,$A98-1921,'Report - ALL (DASHBOARD)'!$W$4) ->  | F98: =INDEX('Compile Data'!$DL$12:$EI$93,$A98-1921,'Report - ALL (DASHBOARD)'!$W$4) ->  | G98: =INDEX('Compile Data'!$EL$12:$FI$93,$A98-1921,'Report - ALL (DASHBOARD)'!$W$4) ->  | O98: 71 | P98: 0.8641975309 | Q98: =INDEX('Compile Data'!$L$123:$AI$204,$O98,'Report - ALL (DASHBOARD)'!$W$4) -> 1538.247246 | R98: =INDEX('Compile Data'!$AL$123:$BI$204,$O98,'Report - ALL (DASHBOARD)'!$W$4) -> 1547.414793 | S98: =INDEX('Compile Data'!$BL$123:$CI$204,$O98,'Report - ALL (DASHBOARD)'!$W$4) -> 1538.634217 | T98: =INDEX('Compile Data'!$CL$123:$DI$204,$O98,'Report - ALL (DASHBOARD)'!$W$4) ->  | U98: =INDEX('Compile Data'!$DL$123:$EI$204,$O98,'Report - ALL (DASHBOARD)'!$W$4) ->  | V98: =INDEX('Compile Data'!$EL$123:$FI$204,$O98,'Report - ALL (DASHBOARD)'!$W$4) -> 
A99: 1993 | B99: =INDEX('Compile Data'!$L$12:$AI$93,$A99-1921,'Report - ALL (DASHBOARD)'!$W$4) -> 3048.670463 | C99: =INDEX('Compile Data'!$AL$12:$BI$93,$A99-1921,'Report - ALL (DASHBOARD)'!$W$4) -> 3049.998328 | D99: =INDEX('Compile Data'!$BL$12:$CI$93,$A99-1921,'Report - ALL (DASHBOARD)'!$W$4) -> 3050.003477 | E99: =INDEX('Compile Data'!$CL$12:$DI$93,$A99-1921,'Report - ALL (DASHBOARD)'!$W$4) ->  | F99: =INDEX('Compile Data'!$DL$12:$EI$93,$A99-1921,'Report - ALL (DASHBOARD)'!$W$4) ->  | G99: =INDEX('Compile Data'!$EL$12:$FI$93,$A99-1921,'Report - ALL (DASHBOARD)'!$W$4) ->  | O99: 72 | P99: 0.8765432099 | Q99: =INDEX('Compile Data'!$L$123:$AI$204,$O99,'Report - ALL (DASHBOARD)'!$W$4) -> 1464.11241 | R99: =INDEX('Compile Data'!$AL$123:$BI$204,$O99,'Report - ALL (DASHBOARD)'!$W$4) -> 1528.284916 | S99: =INDEX('Compile Data'!$BL$123:$CI$204,$O99,'Report - ALL (DASHBOARD)'!$W$4) -> 1465.328167 | T99: =INDEX('Compile Data'!$CL$123:$DI$204,$O99,'Report - ALL (DASHBOARD)'!$W$4) ->  | U99: =INDEX('Compile Data'!$DL$123:$EI$204,$O99,'Report - ALL (DASHBOARD)'!$W$4) ->  | V99: =INDEX('Compile Data'!$EL$123:$FI$204,$O99,'Report - ALL (DASHBOARD)'!$W$4) -> 
A100: 1994 | B100: =INDEX('Compile Data'!$L$12:$AI$93,$A100-1921,'Report - ALL (DASHBOARD)'!$W$4) -> 1324.06091 | C100: =INDEX('Compile Data'!$AL$12:$BI$93,$A100-1921,'Report - ALL (DASHBOARD)'!$W$4) -> 1397.119444 | D100: =INDEX('Compile Data'!$BL$12:$CI$93,$A100-1921,'Report - ALL (DASHBOARD)'!$W$4) -> 1327.344333 | E100: =INDEX('Compile Data'!$CL$12:$DI$93,$A100-1921,'Report - ALL (DASHBOARD)'!$W$4) ->  | F100: =INDEX('Compile Data'!$DL$12:$EI$93,$A100-1921,'Report - ALL (DASHBOARD)'!$W$4) ->  | G100: =INDEX('Compile Data'!$EL$12:$FI$93,$A100-1921,'Report - ALL (DASHBOARD)'!$W$4) ->  | O100: 73 | P100: 0.8888888889 | Q100: =INDEX('Compile Data'!$L$123:$AI$204,$O100,'Report - ALL (DASHBOARD)'!$W$4) -> 1368.917807 | R100: =INDEX('Compile Data'!$AL$123:$BI$204,$O100,'Report - ALL (DASHBOARD)'!$W$4) -> 1435.887565 | S100: =INDEX('Compile Data'!$BL$123:$CI$204,$O100,'Report - ALL (DASHBOARD)'!$W$4) -> 1368.392285 | T100: =INDEX('Compile Data'!$CL$123:$DI$204,$O100,'Report - ALL (DASHBOARD)'!$W$4) ->  | U100: =INDEX('Compile Data'!$DL$123:$EI$204,$O100,'Report - ALL (DASHBOARD)'!$W$4) ->  | V100: =INDEX('Compile Data'!$EL$123:$FI$204,$O100,'Report - ALL (DASHBOARD)'!$W$4) -> 
A101: 1995 | B101: =INDEX('Compile Data'!$L$12:$AI$93,$A101-1921,'Report - ALL (DASHBOARD)'!$W$4) -> 3538 | C101: =INDEX('Compile Data'!$AL$12:$BI$93,$A101-1921,'Report - ALL (DASHBOARD)'!$W$4) -> 3538 | D101: =INDEX('Compile Data'!$BL$12:$CI$93,$A101-1921,'Report - ALL (DASHBOARD)'!$W$4) -> 3538 | E101: =INDEX('Compile Data'!$CL$12:$DI$93,$A101-1921,'Report - ALL (DASHBOARD)'!$W$4) ->  | F101: =INDEX('Compile Data'!$DL$12:$EI$93,$A101-1921,'Report - ALL (DASHBOARD)'!$W$4) ->  | G101: =INDEX('Compile Data'!$EL$12:$FI$93,$A101-1921,'Report - ALL (DASHBOARD)'!$W$4) ->  | O101: 74 | P101: 0.9012345679 | Q101: =INDEX('Compile Data'!$L$123:$AI$204,$O101,'Report - ALL (DASHBOARD)'!$W$4) -> 1324.06091 | R101: =INDEX('Compile Data'!$AL$123:$BI$204,$O101,'Report - ALL (DASHBOARD)'!$W$4) -> 1397.119444 | S101: =INDEX('Compile Data'!$BL$123:$CI$204,$O101,'Report - ALL (DASHBOARD)'!$W$4) -> 1327.344333 | T101: =INDEX('Compile Data'!$CL$123:$DI$204,$O101,'Report - ALL (DASHBOARD)'!$W$4) ->  | U101: =INDEX('Compile Data'!$DL$123:$EI$204,$O101,'Report - ALL (DASHBOARD)'!$W$4) ->  | V101: =INDEX('Compile Data'!$EL$123:$FI$204,$O101,'Report - ALL (DASHBOARD)'!$W$4) -> 
A102: 1996 | B102: =INDEX('Compile Data'!$L$12:$AI$93,$A102-1921,'Report - ALL (DASHBOARD)'!$W$4) -> 3073.300523 | C102: =INDEX('Compile Data'!$AL$12:$BI$93,$A102-1921,'Report - ALL (DASHBOARD)'!$W$4) -> 3073.530895 | D102: =INDEX('Compile Data'!$BL$12:$CI$93,$A102-1921,'Report - ALL (DASHBOARD)'!$W$4) -> 3073.526323 | E102: =INDEX('Compile Data'!$CL$12:$DI$93,$A102-1921,'Report - ALL (DASHBOARD)'!$W$4) ->  | F102: =INDEX('Compile Data'!$DL$12:$EI$93,$A102-1921,'Report - ALL (DASHBOARD)'!$W$4) ->  | G102: =INDEX('Compile Data'!$EL$12:$FI$93,$A102-1921,'Report - ALL (DASHBOARD)'!$W$4) ->  | O102: 75 | P102: 0.9135802469 | Q102: =INDEX('Compile Data'!$L$123:$AI$204,$O102,'Report - ALL (DASHBOARD)'!$W$4) -> 1251.094788 | R102: =INDEX('Compile Data'!$AL$123:$BI$204,$O102,'Report - ALL (DASHBOARD)'!$W$4) -> 1312.970753 | S102: =INDEX('Compile Data'!$BL$123:$CI$204,$O102,'Report - ALL (DASHBOARD)'!$W$4) -> 1243.567021 | T102: =INDEX('Compile Data'!$CL$123:$DI$204,$O102,'Report - ALL (DASHBOARD)'!$W$4) ->  | U102: =INDEX('Compile Data'!$DL$123:$EI$204,$O102,'Report - ALL (DASHBOARD)'!$W$4) ->  | V102: =INDEX('Compile Data'!$EL$123:$FI$204,$O102,'Report - ALL (DASHBOARD)'!$W$4) -> 
A103: 1997 | B103: =INDEX('Compile Data'!$L$12:$AI$93,$A103-1921,'Report - ALL (DASHBOARD)'!$W$4) -> 2649.348899 | C103: =INDEX('Compile Data'!$AL$12:$BI$93,$A103-1921,'Report - ALL (DASHBOARD)'!$W$4) -> 2647.544494 | D103: =INDEX('Compile Data'!$BL$12:$CI$93,$A103-1921,'Report - ALL (DASHBOARD)'!$W$4) -> 2647.536285 | E103: =INDEX('Compile Data'!$CL$12:$DI$93,$A103-1921,'Report - ALL (DASHBOARD)'!$W$4) ->  | F103: =INDEX('Compile Data'!$DL$12:$EI$93,$A103-1921,'Report - ALL (DASHBOARD)'!$W$4) ->  | G103: =INDEX('Compile Data'!$EL$12:$FI$93,$A103-1921,'Report - ALL (DASHBOARD)'!$W$4) ->  | O103: 76 | P103: 0.9259259259 | Q103: =INDEX('Compile Data'!$L$123:$AI$204,$O103,'Report - ALL (DASHBOARD)'!$W$4) -> 1072.054481 | R103: =INDEX('Compile Data'!$AL$123:$BI$204,$O103,'Report - ALL (DASHBOARD)'!$W$4) -> 1089.935672 | S103: =INDEX('Compile Data'!$BL$123:$CI$204,$O103,'Report - ALL (DASHBOARD)'!$W$4) -> 1067.317412 | T103: =INDEX('Compile Data'!$CL$123:$DI$204,$O103,'Report - ALL (DASHBOARD)'!$W$4) ->  | U103: =INDEX('Compile Data'!$DL$123:$EI$204,$O103,'Report - ALL (DASHBOARD)'!$W$4) ->  | V103: =INDEX('Compile Data'!$EL$123:$FI$204,$O103,'Report - ALL (DASHBOARD)'!$W$4) -> 
A104: 1998 | B104: =INDEX('Compile Data'!$L$12:$AI$93,$A104-1921,'Report - ALL (DASHBOARD)'!$W$4) -> 3538 | C104: =INDEX('Compile Data'!$AL$12:$BI$93,$A104-1921,'Report - ALL (DASHBOARD)'!$W$4) -> 3538 | D104: =INDEX('Compile Data'!$BL$12:$CI$93,$A104-1921,'Report - ALL (DASHBOARD)'!$W$4) -> 3538 | E104: =INDEX('Compile Data'!$CL$12:$DI$93,$A104-1921,'Report - ALL (DASHBOARD)'!$W$4) ->  | F104: =INDEX('Compile Data'!$DL$12:$EI$93,$A104-1921,'Report - ALL (DASHBOARD)'!$W$4) ->  | G104: =INDEX('Compile Data'!$EL$12:$FI$93,$A104-1921,'Report - ALL (DASHBOARD)'!$W$4) ->  | O104: 77 | P104: 0.9382716049 | Q104: =INDEX('Compile Data'!$L$123:$AI$204,$O104,'Report - ALL (DASHBOARD)'!$W$4) -> 1053.843716 | R104: =INDEX('Compile Data'!$AL$123:$BI$204,$O104,'Report - ALL (DASHBOARD)'!$W$4) -> 1066.499393 | S104: =INDEX('Compile Data'!$BL$123:$CI$204,$O104,'Report - ALL (DASHBOARD)'!$W$4) -> 1031.98333 | T104: =INDEX('Compile Data'!$CL$123:$DI$204,$O104,'Report - ALL (DASHBOARD)'!$W$4) ->  | U104: =INDEX('Compile Data'!$DL$123:$EI$204,$O104,'Report - ALL (DASHBOARD)'!$W$4) ->  | V104: =INDEX('Compile Data'!$EL$123:$FI$204,$O104,'Report - ALL (DASHBOARD)'!$W$4) -> 
A105: 1999 | B105: =INDEX('Compile Data'!$L$12:$AI$93,$A105-1921,'Report - ALL (DASHBOARD)'!$W$4) -> 3056.279049 | C105: =INDEX('Compile Data'!$AL$12:$BI$93,$A105-1921,'Report - ALL (DASHBOARD)'!$W$4) -> 3054.130619 | D105: =INDEX('Compile Data'!$BL$12:$CI$93,$A105-1921,'Report - ALL (DASHBOARD)'!$W$4) -> 3054.126032 | E105: =INDEX('Compile Data'!$CL$12:$DI$93,$A105-1921,'Report - ALL (DASHBOARD)'!$W$4) ->  | F105: =INDEX('Compile Data'!$DL$12:$EI$93,$A105-1921,'Report - ALL (DASHBOARD)'!$W$4) ->  | G105: =INDEX('Compile Data'!$EL$12:$FI$93,$A105-1921,'Report - ALL (DASHBOARD)'!$W$4) ->  | O105: 78 | P105: 0.950617284 | Q105: =INDEX('Compile Data'!$L$123:$AI$204,$O105,'Report - ALL (DASHBOARD)'!$W$4) -> 1027.736804 | R105: =INDEX('Compile Data'!$AL$123:$BI$204,$O105,'Report - ALL (DASHBOARD)'!$W$4) -> 969.3424376 | S105: =INDEX('Compile Data'!$BL$123:$CI$204,$O105,'Report - ALL (DASHBOARD)'!$W$4) -> 1003.500939 | T105: =INDEX('Compile Data'!$CL$123:$DI$204,$O105,'Report - ALL (DASHBOARD)'!$W$4) ->  | U105: =INDEX('Compile Data'!$DL$123:$EI$204,$O105,'Report - ALL (DASHBOARD)'!$W$4) ->  | V105: =INDEX('Compile Data'!$EL$123:$FI$204,$O105,'Report - ALL (DASHBOARD)'!$W$4) -> 
A106: 2000 | B106: =INDEX('Compile Data'!$L$12:$AI$93,$A106-1921,'Report - ALL (DASHBOARD)'!$W$4) -> 2778.744824 | C106: =INDEX('Compile Data'!$AL$12:$BI$93,$A106-1921,'Report - ALL (DASHBOARD)'!$W$4) -> 2779.066143 | D106: =INDEX('Compile Data'!$BL$12:$CI$93,$A106-1921,'Report - ALL (DASHBOARD)'!$W$4) -> 2779.059954 | E106: =INDEX('Compile Data'!$CL$12:$DI$93,$A106-1921,'Report - ALL (DASHBOARD)'!$W$4) ->  | F106: =INDEX('Compile Data'!$DL$12:$EI$93,$A106-1921,'Report - ALL (DASHBOARD)'!$W$4) ->  | G106: =INDEX('Compile Data'!$EL$12:$FI$93,$A106-1921,'Report - ALL (DASHBOARD)'!$W$4) ->  | O106: 79 | P106: 0.962962963 | Q106: =INDEX('Compile Data'!$L$123:$AI$204,$O106,'Report - ALL (DASHBOARD)'!$W$4) -> 952.3813346 | R106: =INDEX('Compile Data'!$AL$123:$BI$204,$O106,'Report - ALL (DASHBOARD)'!$W$4) -> 951.6439013 | S106: =INDEX('Compile Data'!$BL$123:$CI$204,$O106,'Report - ALL (DASHBOARD)'!$W$4) -> 950.5342852 | T106: =INDEX('Compile Data'!$CL$123:$DI$204,$O106,'Report - ALL (DASHBOARD)'!$W$4) ->  | U106: =INDEX('Compile Data'!$DL$123:$EI$204,$O106,'Report - ALL (DASHBOARD)'!$W$4) ->  | V106: =INDEX('Compile Data'!$EL$123:$FI$204,$O106,'Report - ALL (DASHBOARD)'!$W$4) -> 
A107: 2001 | B107: =INDEX('Compile Data'!$L$12:$AI$93,$A107-1921,'Report - ALL (DASHBOARD)'!$W$4) -> 1368.917807 | C107: =INDEX('Compile Data'!$AL$12:$BI$93,$A107-1921,'Report - ALL (DASHBOARD)'!$W$4) -> 1435.887565 | D107: =INDEX('Compile Data'!$BL$12:$CI$93,$A107-1921,'Report - ALL (DASHBOARD)'!$W$4) -> 1368.392285 | E107: =INDEX('Compile Data'!$CL$12:$DI$93,$A107-1921,'Report - ALL (DASHBOARD)'!$W$4) ->  | F107: =INDEX('Compile Data'!$DL$12:$EI$93,$A107-1921,'Report - ALL (DASHBOARD)'!$W$4) ->  | G107: =INDEX('Compile Data'!$EL$12:$FI$93,$A107-1921,'Report - ALL (DASHBOARD)'!$W$4) ->  | O107: 80 | P107: 0.975308642 | Q107: =INDEX('Compile Data'!$L$123:$AI$204,$O107,'Report - ALL (DASHBOARD)'!$W$4) -> 783.977708 | R107: =INDEX('Compile Data'!$AL$123:$BI$204,$O107,'Report - ALL (DASHBOARD)'!$W$4) -> 779.3644423 | S107: =INDEX('Compile Data'!$BL$123:$CI$204,$O107,'Report - ALL (DASHBOARD)'!$W$4) -> 780.1549682 | T107: =INDEX('Compile Data'!$CL$123:$DI$204,$O107,'Report - ALL (DASHBOARD)'!$W$4) ->  | U107: =INDEX('Compile Data'!$DL$123:$EI$204,$O107,'Report - ALL (DASHBOARD)'!$W$4) ->  | V107: =INDEX('Compile Data'!$EL$123:$FI$204,$O107,'Report - ALL (DASHBOARD)'!$W$4) -> 
A108: 2002 | B108: =INDEX('Compile Data'!$L$12:$AI$93,$A108-1921,'Report - ALL (DASHBOARD)'!$W$4) -> 1589.536005 | C108: =INDEX('Compile Data'!$AL$12:$BI$93,$A108-1921,'Report - ALL (DASHBOARD)'!$W$4) -> 1670.7815 | D108: =INDEX('Compile Data'!$BL$12:$CI$93,$A108-1921,'Report - ALL (DASHBOARD)'!$W$4) -> 1589.481637 | E108: =INDEX('Compile Data'!$CL$12:$DI$93,$A108-1921,'Report - ALL (DASHBOARD)'!$W$4) ->  | F108: =INDEX('Compile Data'!$DL$12:$EI$93,$A108-1921,'Report - ALL (DASHBOARD)'!$W$4) ->  | G108: =INDEX('Compile Data'!$EL$12:$FI$93,$A108-1921,'Report - ALL (DASHBOARD)'!$W$4) ->  | O108: 81 | P108: 0.987654321 | Q108: =INDEX('Compile Data'!$L$123:$AI$204,$O108,'Report - ALL (DASHBOARD)'!$W$4) -> 768.3293818 | R108: =INDEX('Compile Data'!$AL$123:$BI$204,$O108,'Report - ALL (DASHBOARD)'!$W$4) -> 776.2056258 | S108: =INDEX('Compile Data'!$BL$123:$CI$204,$O108,'Report - ALL (DASHBOARD)'!$W$4) -> 754.4423851 | T108: =INDEX('Compile Data'!$CL$123:$DI$204,$O108,'Report - ALL (DASHBOARD)'!$W$4) ->  | U108: =INDEX('Compile Data'!$DL$123:$EI$204,$O108,'Report - ALL (DASHBOARD)'!$W$4) ->  | V108: =INDEX('Compile Data'!$EL$123:$FI$204,$O108,'Report - ALL (DASHBOARD)'!$W$4) -> 
A109: 2003 | B109: =INDEX('Compile Data'!$L$12:$AI$93,$A109-1921,'Report - ALL (DASHBOARD)'!$W$4) -> 2974.054214 | C109: =INDEX('Compile Data'!$AL$12:$BI$93,$A109-1921,'Report - ALL (DASHBOARD)'!$W$4) -> 2970.914706 | D109: =INDEX('Compile Data'!$BL$12:$CI$93,$A109-1921,'Report - ALL (DASHBOARD)'!$W$4) -> 2970.887779 | E109: =INDEX('Compile Data'!$CL$12:$DI$93,$A109-1921,'Report - ALL (DASHBOARD)'!$W$4) ->  | F109: =INDEX('Compile Data'!$DL$12:$EI$93,$A109-1921,'Report - ALL (DASHBOARD)'!$W$4) ->  | G109: =INDEX('Compile Data'!$EL$12:$FI$93,$A109-1921,'Report - ALL (DASHBOARD)'!$W$4) ->  | O109: 82 | P109: 1 | Q109: =INDEX('Compile Data'!$L$123:$AI$204,$O109,'Report - ALL (DASHBOARD)'!$W$4) -> 434.5094751 | R109: =INDEX('Compile Data'!$AL$123:$BI$204,$O109,'Report - ALL (DASHBOARD)'!$W$4) -> 479.628833 | S109: =INDEX('Compile Data'!$BL$123:$CI$204,$O109,'Report - ALL (DASHBOARD)'!$W$4) -> 427.5950829 | T109: =INDEX('Compile Data'!$CL$123:$DI$204,$O109,'Report - ALL (DASHBOARD)'!$W$4) ->  | U109: =INDEX('Compile Data'!$DL$123:$EI$204,$O109,'Report - ALL (DASHBOARD)'!$W$4) ->  | V109: =INDEX('Compile Data'!$EL$123:$FI$204,$O109,'Report - ALL (DASHBOARD)'!$W$4) -> 

Sheet Compile Data
B1: =Control!$B$5 -> NAA 011221 | C1: =Control!$B$6 -> Alt 1B 011221 | D1: =Control!$B$7 -> Alt 1B 011221 No Oro | E1: =Control!$B$8 -> 0 | F1: =Control!$B$9 -> 0 | G1: =Control!$B$10 -> 0 | AE1: =$B$8 -> INST-VAL | BE1: =$C$8 -> INST-VAL | CE1: =$D$8 -> INST-VAL | DE1: =$E$8 -> INST-VAL | EE1: =$F$8 -> INST-VAL | FE1: =$G$8 -> INST-VAL
A2: Index: | B2: ='Report - ALL (DASHBOARD)'!W2 -> 67 | C2: =B2 -> 67 | D2: 67 | E2: 67 | F2: 67 | G2: 67
A3: Convert? | B3: =IF('Report - ALL (DASHBOARD)'!W5,1,0) -> 0 | C3: 0 | D3: 0 | E3: 0 | F3: 0 | G3: 0
A4: Column: | B4: =TRIM(VLOOKUP(B$2+2,DSSPathnames!$H$7:$K$168,2)) -> BQ | C4: BQ | D4: BQ | E4: BQ | F4: BQ | G4: BQ
A5: Title: | B5: =TRIM(VLOOKUP(B$2+2,DSSPathnames!$H$7:$K$168,4)) -> Oroville Storage | C5: =TRIM(VLOOKUP(C$2+2,DSSPathnames!$H$7:$K$168,4)) -> Oroville Storage | D5: =TRIM(VLOOKUP(D$2+2,DSSPathnames!$H$7:$K$168,4)) -> Oroville Storage | E5: =TRIM(VLOOKUP(E$2+2,DSSPathnames!$H$7:$K$168,4)) -> Oroville Storage | F5: =TRIM(VLOOKUP(F$2+2,DSSPathnames!$H$7:$K$168,4)) -> Oroville Storage | G5: =TRIM(VLOOKUP(G$2+2,DSSPathnames!$H$7:$K$168,4)) -> Oroville Storage
A6: Parameter: | B6: =INDIRECT(CONCATENATE("'",B$1,"'!",B$4,2)) -> S6 | C6: S6 | D6: S6
B7: =INDIRECT(CONCATENATE("'",B$1,"'!",B$4,3)) -> STORAGE | C7: STORAGE | D7: STORAGE
A8: Type: | B8: =TRIM(VLOOKUP(B$2+2,DSSPathnames!$H$7:$K$168,3)) -> INST-VAL | C8: =TRIM(VLOOKUP(C$2+2,DSSPathnames!$H$7:$K$168,3)) -> INST-VAL | D8: =TRIM(VLOOKUP(D$2+2,DSSPathnames!$H$7:$K$168,3)) -> INST-VAL | E8: =TRIM(VLOOKUP(E$2+2,DSSPathnames!$H$7:$K$168,3)) -> INST-VAL | F8: =TRIM(VLOOKUP(F$2+2,DSSPathnames!$H$7:$K$168,3)) -> INST-VAL | G8: =TRIM(VLOOKUP(G$2+2,DSSPathnames!$H$7:$K$168,3)) -> INST-VAL | K8: =CONCATENATE(TRIM(B$1),": ",TRIM(B$5)," - ",TRIM(B$6)," ",TRIM(B$7)," (",TRIM(B$10),") ",TRIM(B$11)) -> NAA 011221: Oroville Storage - S6 STORAGE (TAF) | AK8: =CONCATENATE(TRIM(C$1),": ",TRIM(C$5)," - ",TRIM(C$6)," ",TRIM(C$7)," (",TRIM(C$10),") ",TRIM(C$11)) -> Alt 1B 011221: Oroville Storage - S6 STORAGE (TAF) | BK8: =CONCATENATE(TRIM(D$1),": ",TRIM(D$5)," - ",TRIM(D$6)," ",TRIM(D$7)," (",TRIM(D$10),") ",TRIM(D$11)) -> Alt 1B 011221 No Oro: Oroville Storage - S6 STORAGE (TAF) | CK8: =CONCATENATE(TRIM(E$1),": ",TRIM(E$5)," - ",TRIM(E$6)," ",TRIM(E$7)," (",TRIM(E$10),") ",TRIM(E$11)) ->  | DK8: =CONCATENATE(TRIM(F$1),": ",TRIM(F$5)," - ",TRIM(F$6)," ",TRIM(F$7)," (",TRIM(F$10),") ",TRIM(F$11)) ->  | EK8: =CONCATENATE(TRIM(G$1),": ",TRIM(G$5)," - ",TRIM(G$6)," ",TRIM(G$7)," (",TRIM(G$10),") ",TRIM(G$11)) -> 
A9: Units-native: | B9: =TRIM(INDIRECT(CONCATENATE("'",B$1,"'!",B$4,11))) -> TAF | C9: TAF | D9: TAF
A10: Units-shown: | B10: =IF(AND(B$3>0,B$9="CFS"),"TAF",B$9) -> TAF | C10: TAF | D10: TAF | Y10: Jan-Dec | Z10: Mar-Feb | AA10: Oct-Sep | AC10: Nov-Mar | AD10: Aug-Oct | AE10: Oct-Jan | AF10: Dec-Feb | AG10: Mar-Jun | AH10: Jun-Sep | AI10: Sep-Nov | AY10: Jan-Dec | AZ10: Mar-Feb | BA10: Oct-Sep | BC10: Nov-Mar | BD10: Aug-Oct | BE10: Oct-Jan | BF10: Dec-Feb | BG10: Mar-Jun | BH10: Jun-Sep | BI10: Sep-Nov | BY10: Jan-Dec | BZ10: Mar-Feb | CA10: Oct-Sep | CC10: Nov-Mar | CD10: Aug-Oct | CE10: Oct-Jan | CF10: Dec-Feb | CG10: Mar-Jun | CH10: Jun-Sep | CI10: Sep-Nov | CY10: Jan-Dec | CZ10: Mar-Feb | DA10: Oct-Sep | DC10: Nov-Mar | DD10: Aug-Oct | DE10: Oct-Jan | DF10: Dec-Feb | DG10: Mar-Jun | DH10: Jun-Sep | DI10: Sep-Nov | DY10: Jan-Dec | DZ10: Mar-Feb | EA10: Oct-Sep | EC10: Nov-Mar | ED10: Aug-Oct | EE10: Oct-Jan | EF10: Dec-Feb | EG10: Mar-Jun | EH10: Jun-Sep | EI10: Sep-Nov | EY10: Jan-Dec | EZ10: Mar-Feb | FA10: Oct-Sep | FC10: Nov-Mar | FD10: Aug-Oct | FE10: Oct-Jan | FF10: Dec-Feb | FG10: Mar-Jun | FH10: Jun-Sep | FI10: Sep-Nov
A11: Date | B11: =IF(ISNUMBER(FIND("PRV",B$6)),"SHIFTED","") ->  | C11: =IF(ISNUMBER(FIND("PRV",C$6)),"SHIFTED","") ->  | D11: =IF(ISNUMBER(FIND("PRV",D$6)),"SHIFTED","") ->  | E11: =IF(ISNUMBER(FIND("PRV",E$6)),"SHIFTED","") ->  | F11: =IF(ISNUMBER(FIND("PRV",F$6)),"SHIFTED","") ->  | K11: YEAR | L11: OCT | M11: NOV | N11: DEC | O11: JAN | P11: FEB | Q11: MAR | R11: APR | S11: MAY | T11: JUN | U11: JUL | V11: AUG | W11: SEP | Y11: =IF(AND($B$10="TAF",$B$8="PER-AVER"),"TOT","AVG") -> AVG | Z11: =IF(AND($B$10="TAF",$B$8="PER-AVER"),"TOT","AVG") -> AVG | AA11: =IF(AND($B$10="TAF",$B$8="PER-AVER"),"TOT","AVG") -> AVG | AC11: =IF(AND($B$10="TAF",$B$8="PER-AVER"),"TOT","AVG") -> AVG | AD11: AVG | AE11: AVG | AF11: AVG | AG11: AVG | AH11: AVG | AI11: AVG | AK11: YEAR | AL11: OCT | AM11: NOV | AN11: DEC | AO11: JAN | AP11: FEB | AQ11: MAR | AR11: APR | AS11: MAY | AT11: JUN | AU11: JUL | AV11: AUG | AW11: SEP | AY11: =IF(AND($C$10="TAF",$C$8="PER-AVER"),"TOT","AVG") -> AVG | AZ11: =IF(AND($C$10="TAF",$C$8="PER-AVER"),"TOT","AVG") -> AVG | BA11: =IF(AND($C$10="TAF",$C$8="PER-AVER"),"TOT","AVG") -> AVG | BC11: =IF(AND($B$10="TAF",$B$8="PER-AVER"),"TOT","AVG") -> AVG | BD11: =IF(AND($B$10="TAF",$B$8="PER-AVER"),"TOT","AVG") -> AVG | BE11: =IF(AND($C$10="TAF",$C$8="PER-AVER"),"TOT","AVG") -> AVG | BF11: =IF(AND($C$10="TAF",$C$8="PER-AVER"),"TOT","AVG") -> AVG | BG11: =IF(AND($C$10="TAF",$C$8="PER-AVER"),"TOT","AVG") -> AVG | BH11: =IF(AND($C$10="TAF",$C$8="PER-AVER"),"TOT","AVG") -> AVG | BI11: =IF(AND($C$10="TAF",$C$8="PER-AVER"),"TOT","AVG") -> AVG | BK11: YEAR | BL11: OCT | BM11: NOV | BN11: DEC | BO11: JAN | BP11: FEB | BQ11: MAR | BR11: APR | BS11: MAY | BT11: JUN | BU11: JUL | BV11: AUG | BW11: SEP | BY11: =IF(AND($D$10="TAF",$D$8="PER-AVER"),"TOT","AVG") -> AVG | BZ11: =IF(AND($D$10="TAF",$D$8="PER-AVER"),"TOT","AVG") -> AVG | CA11: =IF(AND($D$10="TAF",$D$8="PER-AVER"),"TOT","AVG") -> AVG | CC11: =IF(AND($B$10="TAF",$B$8="PER-AVER"),"TOT","AVG") -> AVG | CD11: =IF(AND($B$10="TAF",$B$8="PER-AVER"),"TOT","AVG") -> AVG | CE11: =IF(AND($D$10="TAF",$D$8="PER-AVER"),"TOT","AVG") -> AVG | CF11: =IF(AND($D$10="TAF",$D$8="PER-AVER"),"TOT","AVG") -> AVG | CG11: =IF(AND($D$10="TAF",$D$8="PER-AVER"),"TOT","AVG") -> AVG | CH11: =IF(AND($D$10="TAF",$D$8="PER-AVER"),"TOT","AVG") -> AVG | CI11: =IF(AND($D$10="TAF",$D$8="PER-AVER"),"TOT","AVG") -> AVG | CK11: YEAR | CL11: OCT | CM11: NOV | CN11: DEC | CO11: JAN | CP11: FEB | CQ11: MAR | CR11: APR | CS11: MAY | CT11: JUN | CU11: JUL | CV11: AUG | CW11: SEP | CY11: =IF(AND($E$10="TAF",$E$8="PER-AVER"),"TOT","AVG") ->  | CZ11: =IF(AND($E$10="TAF",$E$8="PER-AVER"),"TOT","AVG") ->  | DA11: =IF(AND($E$10="TAF",$E$8="PER-AVER"),"TOT","AVG") ->  | DC11: =IF(AND($B$10="TAF",$B$8="PER-AVER"),"TOT","AVG") -> AVG | DD11: =IF(AND($B$10="TAF",$B$8="PER-AVER"),"TOT","AVG") -> AVG | DE11: =IF(AND($E$10="TAF",$E$8="PER-AVER"),"TOT","AVG") ->  | DF11: =IF(AND($E$10="TAF",$E$8="PER-AVER"),"TOT","AVG") ->  | DG11: =IF(AND($E$10="TAF",$E$8="PER-AVER"),"TOT","AVG") ->  | DH11: =IF(AND($E$10="TAF",$E$8="PER-AVER"),"TOT","AVG") ->  | DI11: =IF(AND($E$10="TAF",$E$8="PER-AVER"),"TOT","AVG") ->  | DK11: YEAR | DL11: OCT | DM11: NOV | DN11: DEC | DO11: JAN | DP11: FEB | DQ11: MAR | DR11: APR | DS11: MAY | DT11: JUN | DU11: JUL | DV11: AUG | DW11: SEP | DY11: =IF(AND($F$10="TAF",$F$8="PER-AVER"),"TOT","AVG") ->  | DZ11: =IF(AND($F$10="TAF",$F$8="PER-AVER"),"TOT","AVG") ->  | EA11: =IF(AND($F$10="TAF",$F$8="PER-AVER"),"TOT","AVG") ->  | EC11: =IF(AND($B$10="TAF",$B$8="PER-AVER"),"TOT","AVG") -> AVG | ED11: =IF(AND($B$10="TAF",$B$8="PER-AVER"),"TOT","AVG") -> AVG | EE11: =IF(AND($F$10="TAF",$F$8="PER-AVER"),"TOT","AVG") ->  | EF11: =IF(AND($F$10="TAF",$F$8="PER-AVER"),"TOT","AVG") ->  | EG11: =IF(AND($F$10="TAF",$F$8="PER-AVER"),"TOT","AVG") ->  | EH11: =IF(AND($F$10="TAF",$F$8="PER-AVER"),"TOT","AVG") ->  | EI11: =IF(AND($F$10="TAF",$F$8="PER-AVER"),"TOT","AVG") ->  | EK11: YEAR | EL11: OCT | EM11: NOV | EN11: DEC | EO11: JAN | EP11: FEB | EQ11: MAR | ER11: APR | ES11: MAY | ET11: JUN | EU11: JUL | EV11: AUG | EW11: SEP | EY11: =IF(AND($F$10="TAF",$F$8="PER-AVER"),"TOT","AVG") ->  | EZ11: =IF(AND($F$10="TAF",$F$8="PER-AVER"),"TOT","AVG") ->  | FA11: =IF(AND($F$10="TAF",$F$8="PER-AVER"),"TOT","AVG") ->  | FC11: =IF(AND($B$10="TAF",$B$8="PER-AVER"),"TOT","AVG") -> AVG | FD11: =IF(AND($B$10="TAF",$B$8="PER-AVER"),"TOT","AVG") -> AVG | FE11: =IF(AND($F$10="TAF",$F$8="PER-AVER"),"TOT","AVG") ->  | FF11: =IF(AND($F$10="TAF",$F$8="PER-AVER"),"TOT","AVG") ->  | FG11: =IF(AND($F$10="TAF",$F$8="PER-AVER"),"TOT","AVG") ->  | FH11: =IF(AND($F$10="TAF",$F$8="PER-AVER"),"TOT","AVG") ->  | FI11: =IF(AND($F$10="TAF",$F$8="PER-AVER"),"TOT","AVG") -> 
A12: 1921-09-30 | K12: 1922 | L12: =B13 -> 2289.124687 | M12: =B14 -> 2184.713374 | N12: =B15 -> 2131.573741 | O12: =B16 -> 2231.287506 | P12: =B17 -> 2567.684798 | Q12: =B18 -> 2864.941874 | R12: =B19 -> 3406.727527 | S12: =B20 -> 3538 | T12: =B21 -> 3538 | U12: =B22 -> 3144.394789 | V12: =B23 -> 2683.121615 | W12: =B24 -> 2219.039337 | Y12: =IF(Y$11="AVG",AVERAGE(O12:W12,L13:N13),SUM(O12:W12,L13:N13)) -> 2677.638868 | Z12: =IF(Z$11="AVG",AVERAGE(Q12:W12,L13:P13),SUM(Q12:W12,L13:P13)) -> 2649.191008 | AA12: =IF(AA$11="AVG",AVERAGE(L12:W12),SUM(L12:W12)) -> 2733.217437 | AC12: =IF(AC$11="AVG",IF(AE$1="INST-VAL",AVERAGE(L12:P12,M12:Q12),AVERAGE(M12:Q12)),SUM(M12:Q12)) -> 2338.45854 | AD12: =IF(AD$11="AVG",IF(AE$1="INST-VAL",AVERAGE(U12:W12,V12:W12,L13),AVERAGE(V12:W12,L13)),SUM(V12:W12,L13)) -> 2497.555043 | AE12: =IF(AE$11="AVG",IF(AE$1="INST-VAL",AVERAGE(W11,L12:N12,L12:O12),AVERAGE(L12:O12)),SUM(L12:O12)) -> 2206.015873 | AF12: =IF(AF$11="AVG",IF(AE$1="INST-VAL",AVERAGE(M12:O12,N12:P12),AVERAGE(N12:P12)),SUM(N12:P12)) -> 2246.353444 | AG12: =IF(AG$11="AVG",IF(AE$1="INST-VAL",AVERAGE(P12:S12,Q12:T12),AVERAGE(Q12:T12)),SUM(Q12:T12)) -> 3215.62795 | AH12: =IF(AH$11="AVG",IF(AE$1="INST-VAL",AVERAGE(S12:V12,T12:W12),AVERAGE(T12:W12)),SUM(T12:W12)) -> 3061.009018 | AI12: =IF(AI$11="AVG",IF(AE$1="INST-VAL",AVERAGE(V12:W12,L13,W12,L13:M13),AVERAGE(W12,L13:M13)),SUM(W12,L13:M13)) -> 2190.328827 | AK12: 1922 | AL12: =C13 -> 2289.124687 | AM12: =C14 -> 2184.713374 | AN12: =C15 -> 2131.573737 | AO12: =C16 -> 2231.28737 | AP12: =C17 -> 2567.684443 | AQ12: =C18 -> 2864.941518 | AR12: =C19 -> 3406.727171 | AS12: =C20 -> 3538 | AT12: =C21 -> 3538 | AU12: =C22 -> 3138.901786 | AV12: =C23 -> 2677.517021 | AW12: =C24 -> 2213.468348 | AY12: =IF(AY$11="AVG",AVERAGE(AO12:AW12,AL13:AN13),SUM(AO12:AW12,AL13:AN13)) -> 2678.376451 | AZ12: =IF(AZ$11="AVG",AVERAGE(AQ12:AW12,AL13:AP13),SUM(AQ12:AW12,AL13:AP13)) -> 2652.525161 | BA12: =IF(BA$11="AVG",AVERAGE(AL12:AW12),SUM(AL12:AW12)) -> 2731.828288 | BC12: =IF(BC$11="AVG",IF(BE$1="INST-VAL",AVERAGE(AL12:AP12,AM12:AQ12),AVERAGE(AM12:AQ12)),SUM(AM12:AQ12)) -> 2338.458405 | BD12: =IF(BD$11="AVG",IF(BE$1="INST-VAL",AVERAGE(AU12:AW12,AV12:AW12,AL13),AVERAGE(AV12:AW12,AL13)),SUM(AV12:AW12,AL13)) -> 2491.986575 | BE12: =IF(BE$11="AVG",IF(BE$1="INST-VAL",AVERAGE(AW11,AL12:AN12,AL12:AO12),AVERAGE(AL12:AO12)),SUM(AL12:AO12)) -> 2206.015852 | BF12: =IF(BF$11="AVG",IF(BE$1="INST-VAL",AVERAGE(AM12:AO12,AN12:AP12),AVERAGE(AN12:AP12)),SUM(AN12:AP12)) -> 2246.353338 | BG12: =IF(BG$11="AVG",IF(BE$1="INST-VAL",AVERAGE(AP12:AS12,AQ12:AT12),AVERAGE(AQ12:AT12)),SUM(AQ12:AT12)) -> 3215.627728 | BH12: =IF(BH$11="AVG",IF(BE$1="INST-VAL",AVERAGE(AS12:AV12,AT12:AW12),AVERAGE(AT12:AW12)),SUM(AT12:AW12)) -> 3057.538245 | BI12: =IF(BI$11="AVG",IF(BE$1="INST-VAL",AVERAGE(AV12:AW12,AL13,AW12,AL13:AM13),AVERAGE(AW12,AL13:AM13)),SUM(AW12,AL13:AM13)) -> 2188.261628 | BK12: 1922 | BL12: =D13 -> 2289.124687 | BM12: =D14 -> 2184.713374 | BN12: =D15 -> 2131.573737 | BO12: =D16 -> 2231.28737 | BP12: =D17 -> 2567.684443 | BQ12: =D18 -> 2864.941518 | BR12: =D19 -> 3406.727171 | BS12: =D20 -> 3538 | BT12: =D21 -> 3538 | BU12: =D22 -> 3138.901786 | BV12: =D23 -> 2677.517021 | BW12: =D24 -> 2213.468348 | BY12: =IF(BY$11="AVG",AVERAGE(BO12:BW12,BL13:BN13),SUM(BO12:BW12,BL13:BN13)) -> 2678.376451 | BZ12: =IF(BZ$11="AVG",AVERAGE(BQ12:BW12,BL13:BP13),SUM(BQ12:BW12,BL13:BP13)) -> 2652.525161 | CA12: =IF(CA$11="AVG",AVERAGE(BL12:BW12),SUM(BL12:BW12)) -> 2731.828288 | CC12: =IF(CC$11="AVG",IF(CE$1="INST-VAL",AVERAGE(BL12:BP12,BM12:BQ12),AVERAGE(BM12:BQ12)),SUM(BM12:BQ12)) -> 2338.458405 | CD12: =IF(CD$11="AVG",IF(CE$1="INST-VAL",AVERAGE(BU12:BW12,BV12:BW12,BL13),AVERAGE(BV12:BW12,BL13)),SUM(BV12:BW12,BL13)) -> 2491.986575 | CE12: =IF(CE$11="AVG",IF(CE$1="INST-VAL",AVERAGE(BW11,BL12:BN12,BL12:BO12),AVERAGE(BL12:BO12)),SUM(BL12:BO12)) -> 2206.015852 | CF12: =IF(CF$11="AVG",IF(CE$1="INST-VAL",AVERAGE(BM12:BO12,BN12:BP12),AVERAGE(BN12:BP12)),SUM(BN12:BP12)) -> 2246.353338 | CG12: =IF(CG$11="AVG",IF(CE$1="INST-VAL",AVERAGE(BP12:BS12,BQ12:BT12),AVERAGE(BQ12:BT12)),SUM(BQ12:BT12)) -> 3215.627728 | CH12: =IF(CH$11="AVG",IF(CE$1="INST-VAL",AVERAGE(BS12:BV12,BT12:BW12),AVERAGE(BT12:BW12)),SUM(BT12:BW12)) -> 3057.538245 | CI12: =IF(CI$11="AVG",IF(CE$1="INST-VAL",AVERAGE(BV12:BW12,BL13,BW12,BL13:BM13),AVERAGE(BW12,BL13:BM13)),SUM(BW12,BL13:BM13)) -> 2188.261628 | CK12: 1922 | CL12: =E13 ->  | CM12: =E14 ->  | CN12: =E15 ->  | CO12: =E16 ->  | CP12: =E17 ->  | CQ12: =E18 ->  | CR12: =E19 ->  | CS12: =E20 ->  | CT12: =E21 ->  | CU12: =E22 ->  | CV12: =E23 ->  | CW12: =E24 ->  | CY12: =IF(CY$11="AVG",AVERAGE(CO12:CW12,CL13:CN13),SUM(CO12:CW12,CL13:CN13)) ->  | CZ12: =IF(CZ$11="AVG",AVERAGE(CQ12:CW12,CL13:CP13),SUM(CQ12:CW12,CL13:CP13)) ->  | DA12: =IF(DA$11="AVG",AVERAGE(CL12:CW12),SUM(CL12:CW12)) ->  | DC12: =IF(DC$11="AVG",IF(DE$1="INST-VAL",AVERAGE(CL12:CP12,CM12:CQ12),AVERAGE(CM12:CQ12)),SUM(CM12:CQ12)) ->  | DD12: =IF(DD$11="AVG",IF(DE$1="INST-VAL",AVERAGE(CU12:CW12,CV12:CW12,CL13),AVERAGE(CV12:CW12,CL13)),SUM(CV12:CW12,CL13)) ->  | DE12: =IF(DE$11="AVG",IF(DE$1="INST-VAL",AVERAGE(CW11,CL12:CN12,CL12:CO12),AVERAGE(CL12:CO12)),SUM(CL12:CO12)) ->  | DF12: =IF(DF$11="AVG",IF(DE$1="INST-VAL",AVERAGE(CM12:CO12,CN12:CP12),AVERAGE(CN12:CP12)),SUM(CN12:CP12)) ->  | DG12: =IF(DG$11="AVG",IF(DE$1="INST-VAL",AVERAGE(CP12:CS12,CQ12:CT12),AVERAGE(CQ12:CT12)),SUM(CQ12:CT12)) ->  | DH12: =IF(DH$11="AVG",IF(DE$1="INST-VAL",AVERAGE(CS12:CV12,CT12:CW12),AVERAGE(CT12:CW12)),SUM(CT12:CW12)) ->  | DI12: =IF(DI$11="AVG",IF(DE$1="INST-VAL",AVERAGE(CV12:CW12,CL13,CW12,CL13:CM13),AVERAGE(CW12,CL13:CM13)),SUM(CW12,CL13:CM13)) ->  | DK12: 1922 | DL12: =F13 ->  | DM12: =F14 ->  | DN12: =F15 ->  | DO12: =F16 ->  | DP12: =F17 ->  | DQ12: =F18 ->  | DR12: =F19 ->  | DS12: =F20 ->  | DT12: =F21 ->  | DU12: =F22 ->  | DV12: =F23 ->  | DW12: =F24 ->  | DY12: =IF(DY$11="AVG",AVERAGE(DO12:DW12,DL13:DN13),SUM(DO12:DW12,DL13:DN13)) ->  | DZ12: =IF(DZ$11="AVG",AVERAGE(DQ12:DW12,DL13:DP13),SUM(DQ12:DW12,DL13:DP13)) ->  | EA12: =IF(EA$11="AVG",AVERAGE(DL12:DW12),SUM(DL12:DW12)) ->  | EC12: =IF(EC$11="AVG",IF(EE$1="INST-VAL",AVERAGE(DL12:DP12,DM12:DQ12),AVERAGE(DM12:DQ12)),SUM(DM12:DQ12)) ->  | ED12: =IF(ED$11="AVG",IF(EE$1="INST-VAL",AVERAGE(DU12:DW12,DV12:DW12,DL13),AVERAGE(DV12:DW12,DL13)),SUM(DV12:DW12,DL13)) ->  | EE12: =IF(EE$11="AVG",IF(EE$1="INST-VAL",AVERAGE(DW11,DL12:DN12,DL12:DO12),AVERAGE(DL12:DO12)),SUM(DL12:DO12)) ->  | EF12: =IF(EF$11="AVG",IF(EE$1="INST-VAL",AVERAGE(DM12:DO12,DN12:DP12),AVERAGE(DN12:DP12)),SUM(DN12:DP12)) ->  | EG12: =IF(EG$11="AVG",IF(EE$1="INST-VAL",AVERAGE(DP12:DS12,DQ12:DT12),AVERAGE(DQ12:DT12)),SUM(DQ12:DT12)) ->  | EH12: =IF(EH$11="AVG",IF(EE$1="INST-VAL",AVERAGE(DS12:DV12,DT12:DW12),AVERAGE(DT12:DW12)),SUM(DT12:DW12)) ->  | EI12: =IF(EI$11="AVG",IF(EE$1="INST-VAL",AVERAGE(DV12:DW12,DL13,DW12,DL13:DM13),AVERAGE(DW12,DL13:DM13)),SUM(DW12,DL13:DM13)) ->  | EK12: 1922 | EL12: =G13 ->  | EM12: =G14 ->  | EN12: =G15 ->  | EO12: =G16 ->  | EP12: =G17 ->  | EQ12: =G18 ->  | ER12: =G19 ->  | ES12: =G20 ->  | ET12: =G21 ->  | EU12: =G22 ->  | EV12: =G23 ->  | EW12: =G24 ->  | EY12: =IF(EY$11="AVG",AVERAGE(EO12:EW12,EL13:EN13),SUM(EO12:EW12,EL13:EN13)) ->  | EZ12: =IF(EZ$11="AVG",AVERAGE(EQ12:EW12,EL13:EP13),SUM(EQ12:EW12,EL13:EP13)) ->  | FA12: =IF(FA$11="AVG",AVERAGE(EL12:EW12),SUM(EL12:EW12)) ->  | FC12: =IF(FC$11="AVG",IF(FE$1="INST-VAL",AVERAGE(EL12:EP12,EM12:EQ12),AVERAGE(EM12:EQ12)),SUM(EM12:EQ12)) ->  | FD12: =IF(FD$11="AVG",IF(FE$1="INST-VAL",AVERAGE(EU12:EW12,EV12:EW12,EL13),AVERAGE(EV12:EW12,EL13)),SUM(EV12:EW12,EL13)) ->  | FE12: =IF(FE$11="AVG",IF(FE$1="INST-VAL",AVERAGE(EW11,EL12:EN12,EL12:EO12),AVERAGE(EL12:EO12)),SUM(EL12:EO12)) ->  | FF12: =IF(FF$11="AVG",IF(FE$1="INST-VAL",AVERAGE(EM12:EO12,EN12:EP12),AVERAGE(EN12:EP12)),SUM(EN12:EP12)) ->  | FG12: =IF(FG$11="AVG",IF(FE$1="INST-VAL",AVERAGE(EP12:ES12,EQ12:ET12),AVERAGE(EQ12:ET12)),SUM(EQ12:ET12)) ->  | FH12: =IF(FH$11="AVG",IF(FE$1="INST-VAL",AVERAGE(ES12:EV12,ET12:EW12),AVERAGE(ET12:EW12)),SUM(ET12:EW12)) ->  | FI12: =IF(FI$11="AVG",IF(FE$1="INST-VAL",AVERAGE(EV12:EW12,EL13,EW12,EL13:EM13),AVERAGE(EW12,EL13:EM13)),SUM(EW12,EL13:EM13)) -> 
A13: 1921-10-31 | B13: =INDIRECT(CONCATENATE("'",B$1,"'!",B$4,(YEAR($A13)-1921)*12+MONTH($A13)+3+IF(ISNUMBER(FIND("PRV",B$6)),1,0)))*IF(AND(B$3>0,TRIM(B$9)="CFS"),Conversions!$C13,1) -> 2289.124687 | C13: =INDIRECT(CONCATENATE("'",C$1,"'!",C$4,(YEAR($A13)-1921)*12+MONTH($A13)+3+IF(ISNUMBER(FIND("PRV",C$6)),1,0)))*IF(AND(C$3>0,TRIM(C$9)="CFS"),Conversions!$C13,1) -> 2289.124687 | D13: =INDIRECT(CONCATENATE("'",D$1,"'!",D$4,(YEAR($A13)-1921)*12+MONTH($A13)+3+IF(ISNUMBER(FIND("PRV",D$6)),1,0)))*IF(AND(D$3>0,TRIM(D$9)="CFS"),Conversions!$C13,1) -> 2289.124687 | E13: =INDIRECT(CONCATENATE("'",E$1,"'!",E$4,(YEAR($A13)-1921)*12+MONTH($A13)+3+IF(ISNUMBER(FIND("PRV",E$6)),1,0)))*IF(AND(E$3>0,TRIM(E$9)="CFS"),Conversions!$C13,1) ->  | F13: =INDIRECT(CONCATENATE("'",F$1,"'!",F$4,(YEAR($A13)-1921)*12+MONTH($A13)+3+IF(ISNUMBER(FIND("PRV",F$6)),1,0)))*IF(AND(F$3>0,TRIM(F$9)="CFS"),Conversions!$C13,1) ->  | G13: =INDIRECT(CONCATENATE("'",G$1,"'!",G$4,(YEAR($A13)-1921)*12+MONTH($A13)+3+IF(ISNUMBER(FIND("PRV",G$6)),1,0)))*IF(AND(G$3>0,TRIM(G$9)="CFS"),Conversions!$C13,1) ->  | K13: 1923 | L13: =B25 -> 2036.613566 | M13: =B26 -> 1947.545541 | N13: =B27 -> 1954.309869 | O13: =B28 -> 2173.254146 | P13: =B29 -> 2284.343836 | Q13: =B30 -> 2475.019043 | R13: =B31 -> 2833.021479 | S13: =B32 -> 2909.613909 | T13: =B33 -> 2882.126203 | U13: =B34 -> 2323.081116 | V13: =B35 -> 1819.815458 | W13: =B36 -> 1702.942332 | Y13: 2136.478451 | Z13: 1992.516325 | AA13: 2278.473875 | AC13: =IF(AC$11="AVG",IF(AE$1="INST-VAL",AVERAGE(L13:P13,M13:Q13),AVERAGE(M13:Q13)),SUM(M13:Q13)) -> 2123.053939 | AD13: =IF(AD$11="AVG",IF(AE$1="INST-VAL",AVERAGE(U13:W13,V13:W13,L14),AVERAGE(V13:W13,L14)),SUM(V13:W13,L14)) -> 1824.855724 | AE13: =IF(AE$11="AVG",IF(AE$1="INST-VAL",AVERAGE(W12,L13:N13,L13:O13),AVERAGE(L13:O13)),SUM(L13:O13)) -> 2033.653929 | AF13: 2081.169568 | AG13: 2700.222363 | AH13: 2332.825224 | AI13: 1630.857615 | AK13: 1923 | AL13: =C25 -> 2031.046929 | AM13: =C26 -> 1963.02219 | AN13: =C27 -> 1969.920635 | AO13: =C28 -> 2188.826334 | AP13: =C29 -> 2299.929995 | AQ13: =C30 -> 2490.608443 | AR13: =C31 -> 2848.603465 | AS13: =C32 -> 2925.174271 | AT13: =C33 -> 2897.659967 | AU13: =C34 -> 2364.899675 | AV13: =C35 -> 1861.431609 | AW13: =C36 -> 1673.339507 | AY13: 2134.538653 | AZ13: 1978.481734 | BA13: 2292.871918 | BC13: =IF(BC$11="AVG",IF(BE$1="INST-VAL",AVERAGE(AL13:AP13,AM13:AQ13),AVERAGE(AM13:AQ13)),SUM(AM13:AQ13)) -> 2136.505368 | BD13: =IF(BD$11="AVG",IF(BE$1="INST-VAL",AVERAGE(AU13:AW13,AV13:AW13,AL14),AVERAGE(AV13:AW13,AL14)),SUM(AV13:AW13,AL14)) -> 1826.360262 | BE13: 2041.284274 | BF13: 2096.74102 | BG13: 2715.79529 | BH13: 2355.812035 | BI13: 1599.510712 | BK13: 1923 | BL13: =D25 -> 2031.046929 | BM13: =D26 -> 1963.02219 | BN13: =D27 -> 1969.920635 | BO13: =D28 -> 2188.826334 | BP13: =D29 -> 2299.929995 | BQ13: =D30 -> 2490.608443 | BR13: =D31 -> 2848.603465 | BS13: =D32 -> 2925.174271 | BT13: =D33 -> 2897.659967 | BU13: =D34 -> 2337.683045 | BV13: =D35 -> 1834.257634 | BW13: =D36 -> 1688.081543 | BY13: 2141.732492 | BZ13: 1992.693059 | CA13: 2289.567871 | CC13: =IF(CC$11="AVG",IF(CE$1="INST-VAL",AVERAGE(BL13:BP13,BM13:BQ13),AVERAGE(BM13:BQ13)),SUM(BM13:BQ13)) -> 2136.505368 | CD13: =IF(CD$11="AVG",IF(CE$1="INST-VAL",AVERAGE(BU13:BW13,BV13:BW13,BL14),AVERAGE(BV13:BW13,BL14)),SUM(BV13:BW13,BL14)) -> 1824.674999 | CE13: 2041.284274 | CF13: 2096.74102 | CG13: 2715.79529 | CH13: 2344.057138 | CI13: 1620.884868 | CK13: 1923 | CL13: =E25 ->  | CM13: =E26 ->  | CN13: =E27 ->  | CO13: =E28 ->  | CP13: =E29 ->  | CQ13: =E30 ->  | CR13: =E31 ->  | CS13: =E32 ->  | CT13: =E33 ->  | CU13: =E34 ->  | CV13: =E35 ->  | CW13: =E36 ->  | DK13: 1923 | DL13: =F25 ->  | DM13: =F26 ->  | DN13: =F27 ->  | DO13: =F28 ->  | DP13: =F29 ->  | DQ13: =F30 ->  | DR13: =F31 ->  | DS13: =F32 ->  | DT13: =F33 ->  | DU13: =F34 ->  | DV13: =F35 ->  | DW13: =F36 ->  | EK13: 1923 | EL13: =G25 ->  | EM13: =G26 ->  | EN13: =G27 ->  | EO13: =G28 ->  | EP13: =G29 ->  | EQ13: =G30 ->  | ER13: =G31 ->  | ES13: =G32 ->  | ET13: =G33 ->  | EU13: =G34 ->  | EV13: =G35 ->  | EW13: =G36 -> 
A14: 1921-11-30 | B14: =INDIRECT(CONCATENATE("'",B$1,"'!",B$4,(YEAR($A14)-1921)*12+MONTH($A14)+3+IF(ISNUMBER(FIND("PRV",B$6)),1,0)))*IF(AND(B$3>0,TRIM(B$9)="CFS"),Conversions!$C14,1) -> 2184.713374 | C14: =INDIRECT(CONCATENATE("'",C$1,"'!",C$4,(YEAR($A14)-1921)*12+MONTH($A14)+3+IF(ISNUMBER(FIND("PRV",C$6)),1,0)))*IF(AND(C$3>0,TRIM(C$9)="CFS"),Conversions!$C14,1) -> 2184.713374 | D14: =INDIRECT(CONCATENATE("'",D$1,"'!",D$4,(YEAR($A14)-1921)*12+MONTH($A14)+3+IF(ISNUMBER(FIND("PRV",D$6)),1,0)))*IF(AND(D$3>0,TRIM(D$9)="CFS"),Conversions!$C14,1) -> 2184.713374 | E14: =INDIRECT(CONCATENATE("'",E$1,"'!",E$4,(YEAR($A14)-1921)*12+MONTH($A14)+3+IF(ISNUMBER(FIND("PRV",E$6)),1,0)))*IF(AND(E$3>0,TRIM(E$9)="CFS"),Conversions!$C14,1) ->  | F14: =INDIRECT(CONCATENATE("'",F$1,"'!",F$4,(YEAR($A14)-1921)*12+MONTH($A14)+3+IF(ISNUMBER(FIND("PRV",F$6)),1,0)))*IF(AND(F$3>0,TRIM(F$9)="CFS"),Conversions!$C14,1) ->  | G14: =INDIRECT(CONCATENATE("'",G$1,"'!",G$4,(YEAR($A14)-1921)*12+MONTH($A14)+3+IF(ISNUMBER(FIND("PRV",G$6)),1,0)))*IF(AND(G$3>0,TRIM(G$9)="CFS"),Conversions!$C14,1) ->  | K14: 1924 | L14: =B37 -> 1580.537651 | M14: =B38 -> 1398.370264 | N14: =B39 -> 1255.615981 | O14: =B40 -> 1275.111937 | P14: =B41 -> 1454.94053 | Q14: =B42 -> 1419.217207 | R14: =B43 -> 1400.011192 | S14: =B44 -> 1251.606961 | T14: =B45 -> 1020.595045 | U14: =B46 -> 768.3293818 | V14: =B47 -> 597.897665 | W14: =B48 -> 563.5488974 | Y14: 968.3847643 | Z14: 928.505466 | AA14: 1165.481893 | AC14: =IF(AC$11="AVG",IF(AE$1="INST-VAL",AVERAGE(L14:P14,M14:Q14),AVERAGE(M14:Q14)),SUM(M14:Q14)) -> 1376.783228 | AD14: =IF(AD$11="AVG",IF(AE$1="INST-VAL",AVERAGE(U14:W14,V14:W14,L15),AVERAGE(V14:W14,L15)),SUM(V14:W14,L15)) -> 610.428919 | AE14: =IF(AE$11="AVG",IF(AE$1="INST-VAL",AVERAGE(W13,L14:N14,L14:O14),AVERAGE(L14:O14)),SUM(L14:O14)) -> 1430.887758 | AF14: 1319.127772 | AG14: 1327.150787 | AH14: 823.6000053 | AI14: 580.6568609 | AK14: 1924 | AL14: =C37 -> 1523.719663 | AM14: =C38 -> 1341.514324 | AN14: =C39 -> 1198.756588 | AO14: =C40 -> 1218.150353 | AP14: =C41 -> 1397.922949 | AQ14: =C42 -> 1362.286378 | AR14: =C43 -> 1343.191673 | AS14: =C44 -> 1195.889377 | AT14: =C45 -> 1028.641445 | AU14: =C46 -> 776.2056258 | AV14: =C47 -> 597.8837941 | AW14: =C48 -> 499.8781998 | AY14: 924.806335 | AZ14: 883.7301472 | BA14: 1123.670031 | BC14: =IF(BC$11="AVG",IF(BE$1="INST-VAL",AVERAGE(AL14:AP14,AM14:AQ14),AVERAGE(AM14:AQ14)),SUM(AM14:AQ14)) -> 1319.869447 | BD14: 579.8756637 | BE14: 1377.433876 | BF14: 1262.208526 | BG14: 1278.662406 | BH14: 812.6536634 | BI14: 527.5034827 | BK14: 1924 | BL14: =D37 -> 1565.688597 | BM14: =D38 -> 1383.511292 | BN14: =D39 -> 1240.765316 | BO14: =D40 -> 1260.234582 | BP14: =D41 -> 1440.048549 | BQ14: =D42 -> 1404.42138 | BR14: =D43 -> 1385.293622 | BS14: =D44 -> 1237.911243 | BT14: =D45 -> 1006.829177 | BU14: =D46 -> 754.4423851 | BV14: =D47 -> 596.2674273 | BW14: =D48 -> 562.1288713 | BY14: 959.3875168 | BZ14: 921.7497062 | CA14: 1153.128537 | CC14: =IF(CC$11="AVG",IF(CE$1="INST-VAL",AVERAGE(BL14:BP14,BM14:BQ14),AVERAGE(BM14:BQ14)),SUM(BM14:BQ14)) -> 1361.922945 | CD14: 606.8603286 | CE14: 1416.030817 | CF14: 1304.25994 | CG14: 1312.766277 | CH14: 814.3897616 | CI14: 579.1989218 | CK14: 1924 | CL14: =E37 ->  | CM14: =E38 ->  | CN14: =E39 ->  | CO14: =E40 ->  | CP14: =E41 ->  | CQ14: =E42 ->  | CR14: =E43 ->  | CS14: =E44 ->  | CT14: =E45 ->  | CU14: =E46 ->  | CV14: =E47 ->  | CW14: =E48 ->  | DK14: 1924 | DL14: =F37 ->  | DM14: =F38 ->  | DN14: =F39 ->  | DO14: =F40 ->  | DP14: =F41 ->  | DQ14: =F42 ->  | DR14: =F43 ->  | DS14: =F44 ->  | DT14: =F45 ->  | DU14: =F46 ->  | DV14: =F47 ->  | DW14: =F48 ->  | EK14: 1924 | EL14: =G37 ->  | EM14: =G38 ->  | EN14: =G39 ->  | EO14: =G40 ->  | EP14: =G41 ->  | EQ14: =G42 ->  | ER14: =G43 ->  | ES14: =G44 ->  | ET14: =G45 ->  | EU14: =G46 ->  | EV14: =G47 ->  | EW14: =G48 -> 
A15: 1921-12-31 | B15: =INDIRECT(CONCATENATE("'",B$1,"'!",B$4,(YEAR($A15)-1921)*12+MONTH($A15)+3+IF(ISNUMBER(FIND("PRV",B$6)),1,0)))*IF(AND(B$3>0,TRIM(B$9)="CFS"),Conversions!$C15,1) -> 2131.573741 | C15: =INDIRECT(CONCATENATE("'",C$1,"'!",C$4,(YEAR($A15)-1921)*12+MONTH($A15)+3+IF(ISNUMBER(FIND("PRV",C$6)),1,0)))*IF(AND(C$3>0,TRIM(C$9)="CFS"),Conversions!$C15,1) -> 2131.573737 | D15: =INDIRECT(CONCATENATE("'",D$1,"'!",D$4,(YEAR($A15)-1921)*12+MONTH($A15)+3+IF(ISNUMBER(FIND("PRV",D$6)),1,0)))*IF(AND(D$3>0,TRIM(D$9)="CFS"),Conversions!$C15,1) -> 2131.573737 | E15: =INDIRECT(CONCATENATE("'",E$1,"'!",E$4,(YEAR($A15)-1921)*12+MONTH($A15)+3+IF(ISNUMBER(FIND("PRV",E$6)),1,0)))*IF(AND(E$3>0,TRIM(E$9)="CFS"),Conversions!$C15,1) ->  | F15: =INDIRECT(CONCATENATE("'",F$1,"'!",F$4,(YEAR($A15)-1921)*12+MONTH($A15)+3+IF(ISNUMBER(FIND("PRV",F$6)),1,0)))*IF(AND(F$3>0,TRIM(F$9)="CFS"),Conversions!$C15,1) ->  | G15: =INDIRECT(CONCATENATE("'",G$1,"'!",G$4,(YEAR($A15)-1921)*12+MONTH($A15)+3+IF(ISNUMBER(FIND("PRV",G$6)),1,0)))*IF(AND(G$3>0,TRIM(G$9)="CFS"),Conversions!$C15,1) ->  | K15: 1925 | L15: =B49 -> 571.3510073 | M15: =B50 -> 616.243691 | N15: =B51 -> 681.7636572 | O15: =B52 -> 818.4761777 | P15: =B53 -> 1433.024709 | Q15: =B54 -> 1661.571017 | R15: =B55 -> 1960.178307 | S15: =B56 -> 2102.980615 | T15: =B57 -> 2019.483276 | U15: =B58 -> 1616.250474 | V15: =B59 -> 1524.884455 | W15: =B60 -> 1456.706069 | Y15: 1530.484562 | Z15: 1596.441656 | AA15: 1371.909455 | AC15: =IF(AC$11="AVG",IF(AE$1="INST-VAL",AVERAGE(L15:P15,M15:Q15),AVERAGE(M15:Q15)),SUM(M15:Q15)) -> 933.1938495 | AD15: 1486.714664 | AE15: 640.0927233 | AF15: 841.6246783 | AG15: 1862.745983 | AH15: 1735.115387 | AI15: 1395.602056 | AK15: 1925 | AL15: =C49 -> 507.5243684 | AM15: =C50 -> 552.3319659 | AN15: =C51 -> 617.7698908 | AO15: =C52 -> 754.3417426 | AP15: =C53 -> 1368.817306 | AQ15: =C54 -> 1600.618369 | AR15: =C55 -> 1896.53785 | AS15: =C56 -> 2039.515898 | AT15: =C57 -> 1967.26963 | AU15: =C58 -> 1653.583227 | AV15: =C59 -> 1498.558903 | AW15: =C60 -> 1430.222981 | AY15: 1492.064093 | AZ15: 1564.629856 | BA15: 1323.924344 | BC15: =IF(BC$11="AVG",IF(BE$1="INST-VAL",AVERAGE(AL15:AP15,AM15:AQ15),AVERAGE(AM15:AQ15)),SUM(AM15:AQ15)) -> 869.4664548 | BD15: =IF(BD$11="AVG",IF(BE$1="INST-VAL",AVERAGE(AU15:AW15,AV15:AW15,AL16),AVERAGE(AV15:AW15,AL16)),SUM(AV15:AW15,AL16)) -> 1470.952636 | BE15: 576.1840491 | BF15: 777.5620898 | BG15: 1801.178896 | BH15: 1713.5703 | BI15: 1369.258157 | BK15: 1925 | BL15: =D49 -> 569.9269895 | BM15: =D50 -> 614.8143822 | BN15: =D51 -> 680.331594 | BO15: =D52 -> 817.0409666 | BP15: =D53 -> 1431.588438 | BQ15: =D54 -> 1660.142513 | BR15: =D55 -> 1958.778415 | BS15: =D56 -> 2101.590005 | BT15: =D57 -> 2012.514493 | BU15: =D58 -> 1620.486878 | BV15: =D59 -> 1526.926013 | BW15: =D60 -> 1458.753333 | BY15: 1530.669248 | BZ15: 1597.502917 | CA15: 1371.074502 | CC15: 931.7620263 | CD15: 1489.12724 | CE15: 638.6644712 | CF15: 840.1913235 | CG15: 1860.640599 | CH15: 1735.024763 | CI15: 1397.657409 | CK15: 1925 | CL15: =E49 ->  | CM15: =E50 ->  | CN15: =E51 ->  | CO15: =E52 ->  | CP15: =E53 ->  | CQ15: =E54 ->  | CR15: =E55 ->  | CS15: =E56 ->  | CT15: =E57 ->  | CU15: =E58 ->  | CV15: =E59 ->  | CW15: =E60 ->  | DK15: 1925 | DL15: =F49 ->  | DM15: =F50 ->  | DN15: =F51 ->  | DO15: =F52 ->  | DP15: =F53 ->  | DQ15: =F54 ->  | DR15: =F55 ->  | DS15: =F56 ->  | DT15: =F57 ->  | DU15: =F58 ->  | DV15: =F59 ->  | DW15: =F60 ->  | EK15: 1925 | EL15: =G49 ->  | EM15: =G50 ->  | EN15: =G51 ->  | EO15: =G52 ->  | EP15: =G53 ->  | EQ15: =G54 ->  | ER15: =G55 ->  | ES15: =G56 ->  | ET15: =G57 ->  | EU15: =G58 ->  | EV15: =G59 ->  | EW15: =G60 -> 
A16: 1922-01-31 | B16: =INDIRECT(CONCATENATE("'",B$1,"'!",B$4,(YEAR($A16)-1921)*12+MONTH($A16)+3+IF(ISNUMBER(FIND("PRV",B$6)),1,0)))*IF(AND(B$3>0,TRIM(B$9)="CFS"),Conversions!$C16,1) -> 2231.287506 | C16: =INDIRECT(CONCATENATE("'",C$1,"'!",C$4,(YEAR($A16)-1921)*12+MONTH($A16)+3+IF(ISNUMBER(FIND("PRV",C$6)),1,0)))*IF(AND(C$3>0,TRIM(C$9)="CFS"),Conversions!$C16,1) -> 2231.28737 | D16: =INDIRECT(CONCATENATE("'",D$1,"'!",D$4,(YEAR($A16)-1921)*12+MONTH($A16)+3+IF(ISNUMBER(FIND("PRV",D$6)),1,0)))*IF(AND(D$3>0,TRIM(D$9)="CFS"),Conversions!$C16,1) -> 2231.28737 | E16: =INDIRECT(CONCATENATE("'",E$1,"'!",E$4,(YEAR($A16)-1921)*12+MONTH($A16)+3+IF(ISNUMBER(FIND("PRV",E$6)),1,0)))*IF(AND(E$3>0,TRIM(E$9)="CFS"),Conversions!$C16,1) ->  | F16: =INDIRECT(CONCATENATE("'",F$1,"'!",F$4,(YEAR($A16)-1921)*12+MONTH($A16)+3+IF(ISNUMBER(FIND("PRV",F$6)),1,0)))*IF(AND(F$3>0,TRIM(F$9)="CFS"),Conversions!$C16,1) ->  | G16: =INDIRECT(CONCATENATE("'",G$1,"'!",G$4,(YEAR($A16)-1921)*12+MONTH($A16)+3+IF(ISNUMBER(FIND("PRV",G$6)),1,0)))*IF(AND(G$3>0,TRIM(G$9)="CFS"),Conversions!$C16,1) ->  | K16: 1926 | L16: =B61 -> 1340.856461 | M16: =B62 -> 1253.602823 | N16: =B63 -> 1177.800365 | O16: =B64 -> 1291.438027 | P16: =B65 -> 1751.547981 | Q16: =B66 -> 2006.360077 | R16: =B67 -> 2631.801934 | S16: =B68 -> 2545.841327 | T16: =B69 -> 2294.709712 | U16: =B70 -> 1717.266195 | V16: =B71 -> 1590.674554 | W16: =B72 -> 1492.477818 | Y16: 1823.112898 | Z16: 1950.403954 | AA16: 1757.864773 | AC16: 1429.599493 | AD16: 1547.645399 | AE16: 1286.582924 | AF16: 1323.937931 | AG16: 2301.783046 | AH16: 1905.452508 | AI16: 1496.9253 | AK16: 1926 | AL16: =C61 -> 1314.56882 | AM16: =C62 -> 1227.406436 | AN16: =C63 -> 1153.327958 | AO16: =C64 -> 1266.921552 | AP16: =C65 -> 1727.026643 | AQ16: =C66 -> 1982.12158 | AR16: =C67 -> 2607.591467 | AS16: =C68 -> 2516.112803 | AT16: =C69 -> 2273.732122 | AU16: =C70 -> 1692.972928 | AV16: =C71 -> 1548.606956 | AW16: =C72 -> 1450.432609 | AY16: 1793.046674 | AZ16: 1920.926283 | BA16: 1730.06849 | BC16: 1404.605558 | BD16: 1508.563962 | BE16: 1260.96887 | BF16: 1299.15535 | BG16: 2276.551308 | BH16: 1874.646178 | BI16: 1458.524277 | BK16: 1926 | BL16: =D61 -> 1342.917868 | BM16: =D62 -> 1255.676038 | BN16: =D63 -> 1181.616014 | BO16: =D64 -> 1295.260547 | BP16: =D65 -> 1755.372881 | BQ16: =D66 -> 2010.416968 | BR16: =D67 -> 2635.857522 | BS16: =D68 -> 2544.322927 | BT16: =D69 -> 2291.066656 | BU16: =D70 -> 1706.048616 | BV16: =D71 -> 1585.030646 | BW16: =D72 -> 1486.878327 | BY16: 1821.19075 | BZ16: 1947.376108 | CA16: 1757.538751 | CC16: 1432.91858 | CD16: 1541.09645 | CE16: 1289.304215 | CF16: 1327.467007 | CG16: 2303.454296 | CH16: 1899.436637 | CI16: 1492.254749 | CK16: 1926 | CL16: =E61 ->  | CM16: =E62 ->  | CN16: =E63 ->  | CO16: =E64 ->  | CP16: =E65 ->  | CQ16: =E66 ->  | CR16: =E67 ->  | CS16: =E68 ->  | CT16: =E69 ->  | CU16: =E70 ->  | CV16: =E71 ->  | CW16: =E72 ->  | DK16: 1926 | DL16: =F61 ->  | DM16: =F62 ->  | DN16: =F63 ->  | DO16: =F64 ->  | DP16: =F65 ->  | DQ16: =F66 ->  | DR16: =F67 ->  | DS16: =F68 ->  | DT16: =F69 ->  | DU16: =F70 ->  | DV16: =F71 ->  | DW16: =F72 ->  | EK16: 1926 | EL16: =G61 ->  | EM16: =G62 ->  | EN16: =G63 ->  | EO16: =G64 ->  | EP16: =G65 ->  | EQ16: =G66 ->  | ER16: =G67 ->  | ES16: =G68 ->  | ET16: =G69 ->  | EU16: =G70 ->  | EV16: =G71 ->  | EW16: =G72 -> 
A17: 1922-02-28 | B17: =INDIRECT(CONCATENATE("'",B$1,"'!",B$4,(YEAR($A17)-1921)*12+MONTH($A17)+3+IF(ISNUMBER(FIND("PRV",B$6)),1,0)))*IF(AND(B$3>0,TRIM(B$9)="CFS"),Conversions!$C17,1) -> 2567.684798 | C17: =INDIRECT(CONCATENATE("'",C$1,"'!",C$4,(YEAR($A17)-1921)*12+MONTH($A17)+3+IF(ISNUMBER(FIND("PRV",C$6)),1,0)))*IF(AND(C$3>0,TRIM(C$9)="CFS"),Conversions!$C17,1) -> 2567.684443 | D17: =INDIRECT(CONCATENATE("'",D$1,"'!",D$4,(YEAR($A17)-1921)*12+MONTH($A17)+3+IF(ISNUMBER(FIND("PRV",D$6)),1,0)))*IF(AND(D$3>0,TRIM(D$9)="CFS"),Conversions!$C17,1) -> 2567.684443 | E17: =INDIRECT(CONCATENATE("'",E$1,"'!",E$4,(YEAR($A17)-1921)*12+MONTH($A17)+3+IF(ISNUMBER(FIND("PRV",E$6)),1,0)))*IF(AND(E$3>0,TRIM(E$9)="CFS"),Conversions!$C17,1) ->  | F17: =INDIRECT(CONCATENATE("'",F$1,"'!",F$4,(YEAR($A17)-1921)*12+MONTH($A17)+3+IF(ISNUMBER(FIND("PRV",F$6)),1,0)))*IF(AND(F$3>0,TRIM(F$9)="CFS"),Conversions!$C17,1) ->  | G17: =INDIRECT(CONCATENATE("'",G$1,"'!",G$4,(YEAR($A17)-1921)*12+MONTH($A17)+3+IF(ISNUMBER(FIND("PRV",G$6)),1,0)))*IF(AND(G$3>0,TRIM(G$9)="CFS"),Conversions!$C17,1) ->  | K17: 1927 | L17: =B73 -> 1402.301455 | M17: =B74 -> 1601.318696 | N17: =B75 -> 1551.617003 | O17: =B76 -> 1782.478672 | P17: =B77 -> 2788 | Q17: =B78 -> 2999 | R17: =B79 -> 3396 | S17: =B80 -> 3538 | T17: =B81 -> 3538 | U17: =B82 -> 3044.331767 | V17: =B83 -> 2588.804353 | W17: =B84 -> 2129.972327 | Y17: 2615.318576 | Z17: 2574.650018 | AA17: 2529.985356 | AC17: 1984.81302 | AD17: 2388.679126 | AE17: 1548.17885 | AF17: 1842.918341 | AG17: 3274 | AH17: 3001.280571 | AI17: 2075.188689 | AK17: 1927 | AL17: =C73 -> 1360.331717 | AM17: =C74 -> 1581.010052 | AN17: =C75 -> 1509.699654 | AO17: =C76 -> 1740.503511 | AP17: =C77 -> 2788 | AQ17: =C78 -> 2999 | AR17: =C79 -> 3396 | AS17: =C80 -> 3538 | AT17: =C81 -> 3538 | AU17: =C82 -> 3044.227594 | AV17: =C83 -> 2588.38941 | AW17: =C84 -> 2129.843744 | AY17: 2611.734512 | AZ17: 2574.557944 | BA17: 2517.750474 | BC17: 1959.775815 | BD17: 2388.459176 | BE17: 1511.627371 | BF17: 1811.569397 | BG17: 3274 | BH17: 3001.134719 | BI17: 2075.012418 | BK17: 1927 | BL17: =D73 -> 1396.712138 | BM17: =D74 -> 1601.316917 | BN17: =D75 -> 1546.004851 | BO17: =D76 -> 1776.857729 | BP17: =D77 -> 2788 | BQ17: =D78 -> 2999 | BR17: =D79 -> 3396 | BS17: =D80 -> 3538 | BT17: =D81 -> 3538 | BU17: =D82 -> 3044.2243 | BV17: =D83 -> 2588.382866 | BW17: =D84 -> 2129.8332 | BY17: 2614.76012 | BZ17: 2574.542611 | CA17: 2528.527667 | CC17: =IF(CC$11="AVG",IF(CE$1="INST-VAL",AVERAGE(BL17:BP17,BM17:BQ17),AVERAGE(BM17:BQ17)),SUM(BM17:BQ17)) -> 1982.007113 | CD17: =IF(CD$11="AVG",IF(CE$1="INST-VAL",AVERAGE(BU17:BW17,BV17:BW17,BL18),AVERAGE(BV17:BW17,BL18)),SUM(BV17:BW17,BL18)) -> 2388.451175 | CE17: 1543.975483 | CF17: 1839.17368 | CG17: 3274 | CH17: 3001.130942 | CI17: 2075.002544 | CK17: 1927 | CL17: =E73 ->  | CM17: =E74 ->  | CN17: =E75 ->  | CO17: =E76 ->  | CP17: =E77 ->  | CQ17: =E78 ->  | CR17: =E79 ->  | CS17: =E80 ->  | CT17: =E81 ->  | CU17: =E82 ->  | CV17: =E83 ->  | CW17: =E84 ->  | DK17: 1927 | DL17: =F73 ->  | DM17: =F74 ->  | DN17: =F75 ->  | DO17: =F76 ->  | DP17: =F77 ->  | DQ17: =F78 ->  | DR17: =F79 ->  | DS17: =F80 ->  | DT17: =F81 ->  | DU17: =F82 ->  | DV17: =F83 ->  | DW17: =F84 ->  | EK17: 1927 | EL17: =G73 ->  | EM17: =G74 ->  | EN17: =G75 ->  | EO17: =G76 ->  | EP17: =G77 ->  | EQ17: =G78 ->  | ER17: =G79 ->  | ES17: =G80 ->  | ET17: =G81 ->  | EU17: =G82 ->  | EV17: =G83 ->  | EW17: =G84 -> 
A18: 1922-03-31 | B18: =INDIRECT(CONCATENATE("'",B$1,"'!",B$4,(YEAR($A18)-1921)*12+MONTH($A18)+3+IF(ISNUMBER(FIND("PRV",B$6)),1,0)))*IF(AND(B$3>0,TRIM(B$9)="CFS"),Conversions!$C18,1) -> 2864.941874 | C18: =INDIRECT(CONCATENATE("'",C$1,"'!",C$4,(YEAR($A18)-1921)*12+MONTH($A18)+3+IF(ISNUMBER(FIND("PRV",C$6)),1,0)))*IF(AND(C$3>0,TRIM(C$9)="CFS"),Conversions!$C18,1) -> 2864.941518 | D18: =INDIRECT(CONCATENATE("'",D$1,"'!",D$4,(YEAR($A18)-1921)*12+MONTH($A18)+3+IF(ISNUMBER(FIND("PRV",D$6)),1,0)))*IF(AND(D$3>0,TRIM(D$9)="CFS"),Conversions!$C18,1) -> 2864.941518 | E18: =INDIRECT(CONCATENATE("'",E$1,"'!",E$4,(YEAR($A18)-1921)*12+MONTH($A18)+3+IF(ISNUMBER(FIND("PRV",E$6)),1,0)))*IF(AND(E$3>0,TRIM(E$9)="CFS"),Conversions!$C18,1) ->  | F18: =INDIRECT(CONCATENATE("'",F$1,"'!",F$4,(YEAR($A18)-1921)*12+MONTH($A18)+3+IF(ISNUMBER(FIND("PRV",F$6)),1,0)))*IF(AND(F$3>0,TRIM(F$9)="CFS"),Conversions!$C18,1) ->  | G18: =INDIRECT(CONCATENATE("'",G$1,"'!",G$4,(YEAR($A18)-1921)*12+MONTH($A18)+3+IF(ISNUMBER(FIND("PRV",G$6)),1,0)))*IF(AND(G$3>0,TRIM(G$9)="CFS"),Conversions!$C18,1) ->  | K18: 1928 | L18: =B85 -> 1850.18963 | M18: =B86 -> 1902.003864 | N18: =B87 -> 1827.042299 | O18: =B88 -> 1966.429354 | P18: =B89 -> 2116.026621 | Q18: =B90 -> 2797 | R18: =B91 -> 3232.842053 | S18: =B92 -> 3360.439584 | T18: =B93 -> 3130.014071 | U18: =B94 -> 2538.844851 | V18: =B95 -> 2055.140425 | W18: =B96 -> 1592.772877 | Y18: 2230.674972 | Z18: 2106.891066 | AA18: 2364.062136 | AC18: 2027.019391 | AD18: 1879.740109 | AE18: 1906.859158 | AF18: 1934.162298 | AG18: 3003.325496 | AH18: 2550.151394 | AI18: 1572.415636 | AK18: 1928 | AL18: =C85 -> 1850.061153 | AM18: =C86 -> 1901.875302 | AN18: =C87 -> 1826.913429 | AO18: =C88 -> 1966.371981 | AP18: =C89 -> 2116.012711 | AQ18: =C90 -> 2797 | AR18: =C91 -> 3232.842053 | AS18: =C92 -> 3360.439584 | AT18: =C93 -> 3130.132271 | AU18: =C94 -> 2541.054512 | AV18: =C95 -> 2057.725635 | AW18: =C96 -> 1592.770392 | AY18: 2231.79348 | AZ18: 2108.493996 | BA18: 2364.433252 | BC18: 2026.9408 | BD18: 1881.445648 | BE18: 1906.739437 | BF18: 1934.076472 | BG18: 3003.338532 | BH18: 2551.379352 | BI18: 1574.275114 | BK18: 1928 | BL18: =D85 -> 1850.050618 | BM18: =D86 -> 1901.86476 | BN18: =D87 -> 1826.907965 | BO18: =D88 -> 1966.316593 | BP18: =D89 -> 2115.931036 | BQ18: =D90 -> 2797 | BR18: =D91 -> 3232.842053 | BS18: =D92 -> 3360.439584 | BT18: =D93 -> 3130.197504 | BU18: =D94 -> 2541.630382 | BV18: =D95 -> 2058.297398 | BW18: =D96 -> 1592.769842 | BY18: 2232.023951 | BZ18: 2108.830126 | CA18: 2364.520645 | CC18: 2026.909132 | CD18: 1881.82585 | CE18: 1906.72456 | CF18: 1934.040818 | CG18: 3003.336477 | CH18: 2551.682499 | CI18: 1574.651755 | CK18: 1928 | CL18: =E85 ->  | CM18: =E86 ->  | CN18: =E87 ->  | CO18: =E88 ->  | CP18: =E89 ->  | CQ18: =E90 ->  | CR18: =E91 ->  | CS18: =E92 ->  | CT18: =E93 ->  | CU18: =E94 ->  | CV18: =E95 ->  | CW18: =E96 ->  | DC18: =IF(DC$11="AVG",IF(DE$1="INST-VAL",AVERAGE(CL18:CP18,CM18:CQ18),AVERAGE(CM18:CQ18)),SUM(CM18:CQ18)) ->  | DD18: =IF(DD$11="AVG",IF(DE$1="INST-VAL",AVERAGE(CU18:CW18,CV18:CW18,CL19),AVERAGE(CV18:CW18,CL19)),SUM(CV18:CW18,CL19)) ->  | DK18: 1928 | DL18: =F85 ->  | DM18: =F86 ->  | DN18: =F87 ->  | DO18: =F88 ->  | DP18: =F89 ->  | DQ18: =F90 ->  | DR18: =F91 ->  | DS18: =F92 ->  | DT18: =F93 ->  | DU18: =F94 ->  | DV18: =F95 ->  | DW18: =F96 ->  | EC18: =IF(EC$11="AVG",IF(EE$1="INST-VAL",AVERAGE(DL18:DP18,DM18:DQ18),AVERAGE(DM18:DQ18)),SUM(DM18:DQ18)) ->  | ED18: =IF(ED$11="AVG",IF(EE$1="INST-VAL",AVERAGE(DU18:DW18,DV18:DW18,DL19),AVERAGE(DV18:DW18,DL19)),SUM(DV18:DW18,DL19)) ->  | EK18: 1928 | EL18: =G85 ->  | EM18: =G86 ->  | EN18: =G87 ->  | EO18: =G88 ->  | EP18: =G89 ->  | EQ18: =G90 ->  | ER18: =G91 ->  | ES18: =G92 ->  | ET18: =G93 ->  | EU18: =G94 ->  | EV18: =G95 ->  | EW18: =G96 ->  | FC18: =IF(FC$11="AVG",IF(FE$1="INST-VAL",AVERAGE(EL18:EP18,EM18:EQ18),AVERAGE(EM18:EQ18)),SUM(EM18:EQ18)) -> 
A19: 1922-04-30 | B19: =INDIRECT(CONCATENATE("'",B$1,"'!",B$4,(YEAR($A19)-1921)*12+MONTH($A19)+3+IF(ISNUMBER(FIND("PRV",B$6)),1,0)))*IF(AND(B$3>0,TRIM(B$9)="CFS"),Conversions!$C19,1) -> 3406.727527 | C19: =INDIRECT(CONCATENATE("'",C$1,"'!",C$4,(YEAR($A19)-1921)*12+MONTH($A19)+3+IF(ISNUMBER(FIND("PRV",C$6)),1,0)))*IF(AND(C$3>0,TRIM(C$9)="CFS"),Conversions!$C19,1) -> 3406.727171 | D19: =INDIRECT(CONCATENATE("'",D$1,"'!",D$4,(YEAR($A19)-1921)*12+MONTH($A19)+3+IF(ISNUMBER(FIND("PRV",D$6)),1,0)))*IF(AND(D$3>0,TRIM(D$9)="CFS"),Conversions!$C19,1) -> 3406.727171 | E19: =INDIRECT(CONCATENATE("'",E$1,"'!",E$4,(YEAR($A19)-1921)*12+MONTH($A19)+3+IF(ISNUMBER(FIND("PRV",E$6)),1,0)))*IF(AND(E$3>0,TRIM(E$9)="CFS"),Conversions!$C19,1) ->  | F19: =INDIRECT(CONCATENATE("'",F$1,"'!",F$4,(YEAR($A19)-1921)*12+MONTH($A19)+3+IF(ISNUMBER(FIND("PRV",F$6)),1,0)))*IF(AND(F$3>0,TRIM(F$9)="CFS"),Conversions!$C19,1) ->  | G19: =INDIRECT(CONCATENATE("'",G$1,"'!",G$4,(YEAR($A19)-1921)*12+MONTH($A19)+3+IF(ISNUMBER(FIND("PRV",G$6)),1,0)))*IF(AND(G$3>0,TRIM(G$9)="CFS"),Conversions!$C19,1) ->  | K19: 1929 | L19: =B97 -> 1443.769197 | M19: =B98 -> 1306.269242 | N19: =B99 -> 1228.551386 | O19: =B100 -> 1241.13937 | P19: =B101 -> 1355.909743 | Q19: =B102 -> 1492.967533 | R19: =B103 -> 1473.040967 | S19: =B104 -> 1447.287279 | T19: =B105 -> 1287.928428 | U19: =B106 -> 1027.736804 | V19: =B107 -> 870.9611428 | W19: =B108 -> 839.3764153 | Y19: 1157.977858 | Z19: 1205.752313 | AA19: 1251.244792 | AC19: 1320.047621 | AD19: 875.9686507 | AE19: 1348.886487 | AF19: 1266.926749 | AG19: 1433.803716 | AH19: 1082.489555 | AI19: 826.3600299 | AK19: 1929 | AL19: =C97 -> 1446.627322 | AM19: =C98 -> 1309.129621 | AN19: =C99 -> 1231.415677 | AO19: =C100 -> 1244.008819 | AP19: =C101 -> 1358.782063 | AQ19: =C102 -> 1495.831092 | AR19: =C103 -> 1475.925283 | AS19: =C104 -> 1450.198477 | AT19: =C105 -> 1350.843342 | AU19: =C106 -> 1089.935672 | AV19: =C107 -> 925.095368 | AW19: =C108 -> 839.4182251 | AY19: 1167.412186 | AZ19: 1210.232344 | BA19: 1268.100913 | BC19: 1322.913077 | BD19: 899.9230441 | BE19: 1351.390557 | BF19: 1269.793446 | BG19: 1444.191888 | BH19: 1127.670683 | BI19: 821.9815636 | BK19: 1929 | BL19: =D97 -> 1447.190235 | BM19: =D98 -> 1309.692978 | BN19: =D99 -> 1231.979804 | BO19: =D100 -> 1244.573962 | BP19: =D101 -> 1359.347771 | BQ19: =D102 -> 1496.433701 | BR19: =D103 -> 1476.554298 | BS19: =D104 -> 1450.816102 | BT19: =D105 -> 1292.82252 | BU19: =D106 -> 1031.98333 | BV19: =D107 -> 871.1435508 | BW19: =D108 -> 840.4829786 | BY19: 1158.793414 | BZ19: 1204.994279 | CA19: 1254.418436 | CC19: 1323.481297 | CD19: 876.1019973 | CE19: 1351.88373 | CF19: 1270.358047 | CG19: 1437.472312 | CH19: 1085.399735 | CI19: 823.7504861 | CK19: 1929 | CL19: =E97 ->  | CM19: =E98 ->  | CN19: =E99 ->  | CO19: =E100 ->  | CP19: =E101 ->  | CQ19: =E102 ->  | CR19: =E103 ->  | CS19: =E104 ->  | CT19: =E105 ->  | CU19: =E106 ->  | CV19: =E107 ->  | CW19: =E108 ->  | DK19: 1929 | DL19: =F97 ->  | DM19: =F98 ->  | DN19: =F99 ->  | DO19: =F100 ->  | DP19: =F101 ->  | DQ19: =F102 ->  | DR19: =F103 ->  | DS19: =F104 ->  | DT19: =F105 ->  | DU19: =F106 ->  | DV19: =F107 ->  | DW19: =F108 ->  | EK19: 1929 | EL19: =G97 ->  | EM19: =G98 ->  | EN19: =G99 ->  | EO19: =G100 ->  | EP19: =G101 ->  | EQ19: =G102 ->  | ER19: =G103 ->  | ES19: =G104 ->  | ET19: =G105 ->  | EU19: =G106 ->  | EV19: =G107 ->  | EW19: =G108 -> 
A20: 1922-05-31 | B20: =INDIRECT(CONCATENATE("'",B$1,"'!",B$4,(YEAR($A20)-1921)*12+MONTH($A20)+3+IF(ISNUMBER(FIND("PRV",B$6)),1,0)))*IF(AND(B$3>0,TRIM(B$9)="CFS"),Conversions!$C20,1) -> 3538 | C20: =INDIRECT(CONCATENATE("'",C$1,"'!",C$4,(YEAR($A20)-1921)*12+MONTH($A20)+3+IF(ISNUMBER(FIND("PRV",C$6)),1,0)))*IF(AND(C$3>0,TRIM(C$9)="CFS"),Conversions!$C20,1) -> 3538 | D20: =INDIRECT(CONCATENATE("'",D$1,"'!",D$4,(YEAR($A20)-1921)*12+MONTH($A20)+3+IF(ISNUMBER(FIND("PRV",D$6)),1,0)))*IF(AND(D$3>0,TRIM(D$9)="CFS"),Conversions!$C20,1) -> 3538 | E20: =INDIRECT(CONCATENATE("'",E$1,"'!",E$4,(YEAR($A20)-1921)*12+MONTH($A20)+3+IF(ISNUMBER(FIND("PRV",E$6)),1,0)))*IF(AND(E$3>0,TRIM(E$9)="CFS"),Conversions!$C20,1) ->  | F20: =INDIRECT(CONCATENATE("'",F$1,"'!",F$4,(YEAR($A20)-1921)*12+MONTH($A20)+3+IF(ISNUMBER(FIND("PRV",F$6)),1,0)))*IF(AND(F$3>0,TRIM(F$9)="CFS"),Conversions!$C20,1) ->  | G20: =INDIRECT(CONCATENATE("'",G$1,"'!",G$4,(YEAR($A20)-1921)*12+MONTH($A20)+3+IF(ISNUMBER(FIND("PRV",G$6)),1,0)))*IF(AND(G$3>0,TRIM(G$9)="CFS"),Conversions!$C20,1) ->  | K20: 1930 | L20: =B109 -> 807.3999842 | M20: =B110 -> 793.6462377 | N20: =B111 -> 1258.340392 | O20: =B112 -> 1510.410134 | P20: =B113 -> 1659.932436 | Q20: =B114 -> 2122.773118 | R20: =B115 -> 2466.467512 | S20: =B116 -> 2616.924018 | T20: =B117 -> 2205.348179 | U20: =B118 -> 1668.988032 | V20: =B119 -> 1567.545375 | W20: =B120 -> 1505.308191 | Y20: 1771.401273 | Z20: 1742.193694 | AA20: 1681.923634 | AC20: 1337.48315 | AD20: 1533.874216 | AE20: 1008.569972 | AF20: 1331.846621 | AG20: 2284.701239 | AH20: 1875.749423 | AI20: 1442.692769 | AK20: 1930 | AL20: =C109 -> 780.5754066 | AM20: =C110 -> 766.8067505 | AN20: =C111 -> 1231.525739 | AO20: =C112 -> 1483.547288 | AP20: =C113 -> 1633.085481 | AQ20: =C114 -> 2095.919631 | AR20: =C115 -> 2439.636871 | AS20: =C116 -> 2576.581648 | AT20: =C117 -> 2217.561109 | AU20: =C118 -> 1667.467708 | AV20: =C119 -> 1484.142928 | AW20: =C120 -> 1422.063134 | AY20: 1725.279699 | AZ20: 1686.632662 | BA20: 1649.909475 | BC20: 1310.642556 | BD20: 1464.208815 | BE20: 985.0976632 | BF20: 1305.006381 | BG20: 2259.365361 | BH20: 1842.123534 | BI20: 1359.445108 | BK20: 1930 | BL20: =D109 -> 801.3755947 | BM20: =D110 -> 787.6422194 | BN20: =D111 -> 1252.344939 | BO20: =D112 -> 1504.403906 | BP20: =D113 -> 1653.92821 | BQ20: =D114 -> 2116.767413 | BR20: =D115 -> 2460.46822 | BS20: =D116 -> 2597.410051 | BT20: =D117 -> 2204.808223 | BU20: =D118 -> 1634.255146 | BV20: =D119 -> 1518.984008 | BW20: =D120 -> 1456.839175 | BY20: 1744.629945 | BZ20: 1708.320797 | CA20: 1665.768925 | CC20: 1331.478156 | CD20: 1487.670467 | CE20: 1003.451549 | CF20: 1325.844686 | CG20: 2276.003475 | CH20: 1846.292997 | CI20: 1394.222477 | CK20: 1930 | CL20: =E109 ->  | CM20: =E110 ->  | CN20: =E111 ->  | CO20: =E112 ->  | CP20: =E113 ->  | CQ20: =E114 ->  | CR20: =E115 ->  | CS20: =E116 ->  | CT20: =E117 ->  | CU20: =E118 ->  | CV20: =E119 ->  | CW20: =E120 ->  | DK20: 1930 | DL20: =F109 ->  | DM20: =F110 ->  | DN20: =F111 ->  | DO20: =F112 ->  | DP20: =F113 ->  | DQ20: =F114 ->  | DR20: =F115 ->  | DS20: =F116 ->  | DT20: =F117 ->  | DU20: =F118 ->  | DV20: =F119 ->  | DW20: =F120 ->  | EK20: 1930 | EL20: =G109 ->  | EM20: =G110 ->  | EN20: =G111 ->  | EO20: =G112 ->  | EP20: =G113 ->  | EQ20: =G114 ->  | ER20: =G115 ->  | ES20: =G116 ->  | ET20: =G117 ->  | EU20: =G118 ->  | EV20: =G119 ->  | EW20: =G120 -> 
A21: 1922-06-30 | B21: =INDIRECT(CONCATENATE("'",B$1,"'!",B$4,(YEAR($A21)-1921)*12+MONTH($A21)+3+IF(ISNUMBER(FIND("PRV",B$6)),1,0)))*IF(AND(B$3>0,TRIM(B$9)="CFS"),Conversions!$C21,1) -> 3538 | C21: =INDIRECT(CONCATENATE("'",C$1,"'!",C$4,(YEAR($A21)-1921)*12+MONTH($A21)+3+IF(ISNUMBER(FIND("PRV",C$6)),1,0)))*IF(AND(C$3>0,TRIM(C$9)="CFS"),Conversions!$C21,1) -> 3538 | D21: =INDIRECT(CONCATENATE("'",D$1,"'!",D$4,(YEAR($A21)-1921)*12+MONTH($A21)+3+IF(ISNUMBER(FIND("PRV",D$6)),1,0)))*IF(AND(D$3>0,TRIM(D$9)="CFS"),Conversions!$C21,1) -> 3538 | E21: =INDIRECT(CONCATENATE("'",E$1,"'!",E$4,(YEAR($A21)-1921)*12+MONTH($A21)+3+IF(ISNUMBER(FIND("PRV",E$6)),1,0)))*IF(AND(E$3>0,TRIM(E$9)="CFS"),Conversions!$C21,1) ->  | F21: =INDIRECT(CONCATENATE("'",F$1,"'!",F$4,(YEAR($A21)-1921)*12+MONTH($A21)+3+IF(ISNUMBER(FIND("PRV",F$6)),1,0)))*IF(AND(F$3>0,TRIM(F$9)="CFS"),Conversions!$C21,1) ->  | G21: =INDIRECT(CONCATENATE("'",G$1,"'!",G$4,(YEAR($A21)-1921)*12+MONTH($A21)+3+IF(ISNUMBER(FIND("PRV",G$6)),1,0)))*IF(AND(G$3>0,TRIM(G$9)="CFS"),Conversions!$C21,1) ->  | K21: 1931 | L21: =B121 -> 1388.550133 | M21: =B122 -> 1300.894591 | N21: =B123 -> 1243.673553 | O21: =B124 -> 1347.318218 | P21: =B125 -> 1472.533412 | Q21: =B126 -> 1625.48457 | R21: =B127 -> 1594.567771 | S21: =B128 -> 1505.095472 | T21: =B129 -> 1334.661243 | U21: =B130 -> 1053.843716 | V21: =B131 -> 852.0265039 | W21: =B132 -> 818.4111729 | Y21: 1162.188263 | Z21: 1094.248202 | AA21: 1294.75503 | AC21: 1374.287425 | AD21: 866.1371148 | AE21: 1339.85787 | AF21: 1325.901924 | AG21: 1532.186285 | AH21: 1100.571196 | AI21: 818.0768375 | AK21: 1931 | AL21: =C121 -> 1305.373059 | AM21: =C122 -> 1217.655336 | AN21: =C123 -> 1160.322192 | AO21: =C124 -> 1263.84997 | AP21: =C125 -> 1389.018354 | AQ21: =C126 -> 1581.831951 | AR21: =C127 -> 1524.139468 | AS21: =C128 -> 1421.925723 | AT21: =C129 -> 1249.711132 | AU21: =C130 -> 969.3424376 | AV21: =C131 -> 768.4612704 | AW21: =C132 -> 735.0566662 | AY21: 1082.962724 | AZ21: 1014.990047 | BA21: 1215.557297 | BC21: 1294.889672 | BD21: 782.5354696 | BE21: 1256.576785 | BF21: 1242.503002 | BG21: 1461.815471 | BH21: 1016.501509 | BI21: 734.716761 | BK21: 1931 | BL21: =D121 -> 1340.121291 | BM21: =D122 -> 1252.429925 | BN21: =D123 -> 1195.143779 | BO21: =D124 -> 1298.717202 | BP21: =D125 -> 1423.905133 | BQ21: =D126 -> 1600.29536 | BR21: =D127 -> 1558.833965 | BS21: =D128 -> 1456.370497 | BT21: =D129 -> 1283.985941 | BU21: =D130 -> 1003.500939 | BV21: =D131 -> 802.5177904 | BW21: =D132 -> 769.0295799 | BY21: 1115.942243 | BZ21: 1047.841643 | CA21: 1248.737617 | CC21: 1328.080873 | CD21: 816.5614196 | CE21: 1291.368296 | CF21: 1277.342837 | CG21: 1492.36134 | CH21: 1050.676177 | CI21: 768.6916925 | CK21: 1931 | CL21: =E121 ->  | CM21: =E122 ->  | CN21: =E123 ->  | CO21: =E124 ->  | CP21: =E125 ->  | CQ21: =E126 ->  | CR21: =E127 ->  | CS21: =E128 ->  | CT21: =E129 ->  | CU21: =E130 ->  | CV21: =E131 ->  | CW21: =E132 ->  | DK21: 1931 | DL21: =F121 ->  | DM21: =F122 ->  | DN21: =F123 ->  | DO21: =F124 ->  | DP21: =F125 ->  | DQ21: =F126 ->  | DR21: =F127 ->  | DS21: =F128 ->  | DT21: =F129 ->  | DU21: =F130 ->  | DV21: =F131 ->  | DW21: =F132 ->  | EK21: 1931 | EL21: =G121 ->  | EM21: =G122 ->  | EN21: =G123 ->  | EO21: =G124 ->  | EP21: =G125 ->  | EQ21: =G126 ->  | ER21: =G127 ->  | ES21: =G128 ->  | ET21: =G129 ->  | EU21: =G130 ->  | EV21: =G131 ->  | EW21: =G132 -> 
A22: 1922-07-31 | B22: =INDIRECT(CONCATENATE("'",B$1,"'!",B$4,(YEAR($A22)-1921)*12+MONTH($A22)+3+IF(ISNUMBER(FIND("PRV",B$6)),1,0)))*IF(AND(B$3>0,TRIM(B$9)="CFS"),Conversions!$C22,1) -> 3144.394789 | C22: =INDIRECT(CONCATENATE("'",C$1,"'!",C$4,(YEAR($A22)-1921)*12+MONTH($A22)+3+IF(ISNUMBER(FIND("PRV",C$6)),1,0)))*IF(AND(C$3>0,TRIM(C$9)="CFS"),Conversions!$C22,1) -> 3138.901786 | D22: =INDIRECT(CONCATENATE("'",D$1,"'!",D$4,(YEAR($A22)-1921)*12+MONTH($A22)+3+IF(ISNUMBER(FIND("PRV",D$6)),1,0)))*IF(AND(D$3>0,TRIM(D$9)="CFS"),Conversions!$C22,1) -> 3138.901786 | E22: =INDIRECT(CONCATENATE("'",E$1,"'!",E$4,(YEAR($A22)-1921)*12+MONTH($A22)+3+IF(ISNUMBER(FIND("PRV",E$6)),1,0)))*IF(AND(E$3>0,TRIM(E$9)="CFS"),Conversions!$C22,1) ->  | F22: =INDIRECT(CONCATENATE("'",F$1,"'!",F$4,(YEAR($A22)-1921)*12+MONTH($A22)+3+IF(ISNUMBER(FIND("PRV",F$6)),1,0)))*IF(AND(F$3>0,TRIM(F$9)="CFS"),Conversions!$C22,1) ->  | G22: =INDIRECT(CONCATENATE("'",G$1,"'!",G$4,(YEAR($A22)-1921)*12+MONTH($A22)+3+IF(ISNUMBER(FIND("PRV",G$6)),1,0)))*IF(AND(G$3>0,TRIM(G$9)="CFS"),Conversions!$C22,1) ->  | K22: 1932 | L22: =B133 -> 802.1036195 | M22: =B134 -> 815.4049363 | N22: =B135 -> 724.8085177 | O22: =B136 -> 910.6998714 | P22: =B137 -> 1093.871026 | Q22: =B138 -> 1391.360897 | R22: =B139 -> 1643.062758 | S22: =B140 -> 1981.31158 | T22: =B141 -> 1956.962488 | U22: =B142 -> 1676.946913 | V22: =B143 -> 1590.931686 | W22: =B144 -> 1513.381482 | Y22: 1465.257291 | Z22: 1516.561855 | AA22: 1341.737148 | AC22: 928.3033218 | AD22: 1545.367514 | AE22: 801.7181489 | AF22: 863.3821233 | AG22: 1635.287998 | AH22: 1743.046905 | AI22: 1439.136555 | AK22: 1932 | AL22: =C133 -> 718.8345068 | AM22: =C134 -> 732.0569497 | AN22: =C135 -> 641.3242562 | AO22: =C136 -> 827.0320979 | AP22: =C137 -> 1010.164109 | AQ22: =C138 -> 1307.739676 | AR22: =C139 -> 1595.972984 | AS22: =C140 -> 1898.100351 | AT22: =C141 -> 1884.350484 | AU22: =C142 -> 1669.472905 | AV22: =C143 -> 1590.943636 | AW22: =C144 -> 1507.141634 | AY22: 1424.76896 | AZ22: 1489.030295 | BA22: 1281.927799 | BC22: 844.7729008 | BD22: 1541.020676 | BE22: 718.3150237 | BF22: 779.8222945 | BG22: 1562.267577 | BH22: 1711.847004 | BI22: 1433.984406 | BK22: 1932 | BL22: =D133 -> 752.7728383 | BM22: =D134 -> 766.0275285 | BN22: =D135 -> 675.3501464 | BO22: =D136 -> 861.1327825 | BP22: =D137 -> 1044.282352 | BQ22: =D138 -> 1341.846385 | BR22: =D139 -> 1595.963311 | BS22: =D140 -> 1931.955605 | BT22: =D141 -> 1904.683181 | BU22: =D142 -> 1671.552215 | BV22: =D143 -> 1590.940321 | BW22: =D144 -> 1508.065588 | BY22: 1438.271696 | BZ22: 1496.968541 | CA22: 1303.714355 | CC22: 878.8204842 | CD22: 1541.824122 | CE22: 752.3079236 | CF22: 813.8792897 | CG22: 1586.062017 | CH22: 1721.796579 | CI22: 1434.742315 | CK22: 1932 | CL22: =E133 ->  | CM22: =E134 ->  | CN22: =E135 ->  | CO22: =E136 ->  | CP22: =E137 ->  | CQ22: =E138 ->  | CR22: =E139 ->  | CS22: =E140 ->  | CT22: =E141 ->  | CU22: =E142 ->  | CV22: =E143 ->  | CW22: =E144 ->  | DK22: 1932 | DL22: =F133 ->  | DM22: =F134 ->  | DN22: =F135 ->  | DO22: =F136 ->  | DP22: =F137 ->  | DQ22: =F138 ->  | DR22: =F139 ->  | DS22: =F140 ->  | DT22: =F141 ->  | DU22: =F142 ->  | DV22: =F143 ->  | DW22: =F144 ->  | EK22: 1932 | EL22: =G133 ->  | EM22: =G134 ->  | EN22: =G135 ->  | EO22: =G136 ->  | EP22: =G137 ->  | EQ22: =G138 ->  | ER22: =G139 ->  | ES22: =G140 ->  | ET22: =G141 ->  | EU22: =G142 ->  | EV22: =G143 ->  | EW22: =G144 -> 
A23: 1922-08-31 | B23: =INDIRECT(CONCATENATE("'",B$1,"'!",B$4,(YEAR($A23)-1921)*12+MONTH($A23)+3+IF(ISNUMBER(FIND("PRV",B$6)),1,0)))*IF(AND(B$3>0,TRIM(B$9)="CFS"),Conversions!$C23,1) -> 2683.121615 | C23: =INDIRECT(CONCATENATE("'",C$1,"'!",C$4,(YEAR($A23)-1921)*12+MONTH($A23)+3+IF(ISNUMBER(FIND("PRV",C$6)),1,0)))*IF(AND(C$3>0,TRIM(C$9)="CFS"),Conversions!$C23,1) -> 2677.517021 | D23: =INDIRECT(CONCATENATE("'",D$1,"'!",D$4,(YEAR($A23)-1921)*12+MONTH($A23)+3+IF(ISNUMBER(FIND("PRV",D$6)),1,0)))*IF(AND(D$3>0,TRIM(D$9)="CFS"),Conversions!$C23,1) -> 2677.517021 | E23: =INDIRECT(CONCATENATE("'",E$1,"'!",E$4,(YEAR($A23)-1921)*12+MONTH($A23)+3+IF(ISNUMBER(FIND("PRV",E$6)),1,0)))*IF(AND(E$3>0,TRIM(E$9)="CFS"),Conversions!$C23,1) ->  | F23: =INDIRECT(CONCATENATE("'",F$1,"'!",F$4,(YEAR($A23)-1921)*12+MONTH($A23)+3+IF(ISNUMBER(FIND("PRV",F$6)),1,0)))*IF(AND(F$3>0,TRIM(F$9)="CFS"),Conversions!$C23,1) ->  | G23: =INDIRECT(CONCATENATE("'",G$1,"'!",G$4,(YEAR($A23)-1921)*12+MONTH($A23)+3+IF(ISNUMBER(FIND("PRV",G$6)),1,0)))*IF(AND(G$3>0,TRIM(G$9)="CFS"),Conversions!$C23,1) ->  | K23: 1933 | L23: =B145 -> 1386.631833 | M23: =B146 -> 1243.86101 | N23: =B147 -> 1194.065947 | O23: =B148 -> 1266.285607 | P23: =B149 -> 1353.940054 | Q23: =B150 -> 1313.09668 | R23: =B151 -> 1385.096461 | S23: =B152 -> 1410.710238 | T23: =B153 -> 1323.157193 | U23: =B154 -> 1072.054481 | V23: =B155 -> 920.8748467 | W23: =B156 -> 888.7757803 | Y23: 1122.310182 | Z23: 1077.828378 | AA23: 1229.879178 | AC23: 1281.603375 | AD23: 926.6315691 | AE23: 1303.598084 | AF23: 1253.084029 | AG23: 1361.863001 | AH23: 1116.457383 | AI23: 883.4322704 | AK23: 1933 | AL23: =C145 -> 1380.48061 | AM23: =C146 -> 1237.718315 | AN23: =C147 -> 1188.110721 | AO23: =C148 -> 1260.319657 | AP23: =C149 -> 1348.012564 | AQ23: =C150 -> 1307.193038 | AR23: =C151 -> 1379.196576 | AS23: =C152 -> 1404.82166 | AT23: =C153 -> 1318.19041 | AU23: =C154 -> 1066.499393 | AV23: =C155 -> 915.1006902 | AW23: =C156 -> 883.0193386 | AY23: 1116.570262 | AZ23: 1072.119701 | BA23: 1224.055248 | BC23: 1275.599616 | BD23: 920.9045746 | BE23: 1297.510073 | BF23: 1247.098606 | BG23: 1356.07819 | BH23: 1110.927748 | BI23: 877.677948 | BK23: 1933 | BL23: =D145 -> 1381.380697 | BM23: =D146 -> 1238.621 | BN23: =D147 -> 1188.836908 | BO23: =D148 -> 1261.047152 | BP23: =D149 -> 1348.730129 | BQ23: =D150 -> 1307.906716 | BR23: =D151 -> 1379.9098 | BS23: =D152 -> 1405.53476 | BT23: =D153 -> 1318.980898 | BU23: =D154 -> 1067.317412 | BV23: =D155 -> 915.9343426 | BW23: =D156 -> 883.8503284 | BY23: 1117.348911 | BZ23: 1072.915765 | CA23: 1224.837512 | CC23: 1276.375779 | CD23: 921.7340166 | CE23: 1298.348744 | CF23: 1247.853208 | CG23: 1356.801697 | CH23: 1111.731299 | CI23: 878.5085963 | CK23: 1933 | CL23: =E145 ->  | CM23: =E146 ->  | CN23: =E147 ->  | CO23: =E148 ->  | CP23: =E149 ->  | CQ23: =E150 ->  | CR23: =E151 ->  | CS23: =E152 ->  | CT23: =E153 ->  | CU23: =E154 ->  | CV23: =E155 ->  | CW23: =E156 ->  | DK23: 1933 | DL23: =F145 ->  | DM23: =F146 ->  | DN23: =F147 ->  | DO23: =F148 ->  | DP23: =F149 ->  | DQ23: =F150 ->  | DR23: =F151 ->  | DS23: =F152 ->  | DT23: =F153 ->  | DU23: =F154 ->  | DV23: =F155 ->  | DW23: =F156 ->  | EK23: 1933 | EL23: =G145 ->  | EM23: =G146 ->  | EN23: =G147 ->  | EO23: =G148 ->  | EP23: =G149 ->  | EQ23: =G150 ->  | ER23: =G151 ->  | ES23: =G152 ->  | ET23: =G153 ->  | EU23: =G154 ->  | EV23: =G155 ->  | EW23: =G156 -> 
A24: 1922-09-30 | B24: =INDIRECT(CONCATENATE("'",B$1,"'!",B$4,(YEAR($A24)-1921)*12+MONTH($A24)+3+IF(ISNUMBER(FIND("PRV",B$6)),1,0)))*IF(AND(B$3>0,TRIM(B$9)="CFS"),Conversions!$C24,1) -> 2219.039337 | C24: =INDIRECT(CONCATENATE("'",C$1,"'!",C$4,(YEAR($A24)-1921)*12+MONTH($A24)+3+IF(ISNUMBER(FIND("PRV",C$6)),1,0)))*IF(AND(C$3>0,TRIM(C$9)="CFS"),Conversions!$C24,1) -> 2213.468348 | D24: =INDIRECT(CONCATENATE("'",D$1,"'!",D$4,(YEAR($A24)-1921)*12+MONTH($A24)+3+IF(ISNUMBER(FIND("PRV",D$6)),1,0)))*IF(AND(D$3>0,TRIM(D$9)="CFS"),Conversions!$C24,1) -> 2213.468348 | E24: =INDIRECT(CONCATENATE("'",E$1,"'!",E$4,(YEAR($A24)-1921)*12+MONTH($A24)+3+IF(ISNUMBER(FIND("PRV",E$6)),1,0)))*IF(AND(E$3>0,TRIM(E$9)="CFS"),Conversions!$C24,1) ->  | F24: =INDIRECT(CONCATENATE("'",F$1,"'!",F$4,(YEAR($A24)-1921)*12+MONTH($A24)+3+IF(ISNUMBER(FIND("PRV",F$6)),1,0)))*IF(AND(F$3>0,TRIM(F$9)="CFS"),Conversions!$C24,1) ->  | G24: =INDIRECT(CONCATENATE("'",G$1,"'!",G$4,(YEAR($A24)-1921)*12+MONTH($A24)+3+IF(ISNUMBER(FIND("PRV",G$6)),1,0)))*IF(AND(G$3>0,TRIM(G$9)="CFS"),Conversions!$C24,1) ->  | K24: 1934 | L24: =B157 -> 868.4336792 | M24: =B158 -> 865.2998568 | N24: =B159 -> 799.9973102 | O24: =B160 -> 986.5141103 | P24: =B161 -> 1099.929893 | Q24: =B162 -> 1370.54401 | R24: =B163 -> 1456.616584 | S24: =B164 -> 1303.66339 | T24: =B165 -> 1045.017127 | U24: =B166 -> 783.977708 | V24: =B167 -> 617.4037998 | W24: =B168 -> 578.1846397 | Y24: 921.8790675 | Z24: 913.4914792 | AA24: 981.298509 | AC24: 974.2460029 | AD24: 621.3084189 | AE24: 867.8439479 | AF24: 923.0420984 | AG24: 1300.824374 | AH24: 846.8306626 | AI24: 580.2353729 | AK24: 1934 | AL24: =C157 -> 862.6879971 | AM24: =C158 -> 859.5523264 | AN24: =C159 -> 794.2494969 | AO24: =C160 -> 980.7536623 | AP24: =C161 -> 1094.171821 | AQ24: =C162 -> 1364.779281 | AR24: =C163 -> 1451.230698 | AS24: =C164 -> 1298.266542 | AT24: =C165 -> 1040.766515 | AU24: =C166 -> 779.3644423 | AV24: =C167 -> 612.5995691 | AW24: =C168 -> 573.3507551 | AY24: 915.008754 | AZ24: 905.5465958 | BA24: 975.9810922 | BC24: 968.4921891 | BD24: 615.3392586 | BE24: 862.0940802 | BF24: 917.288411 | BG24: 1295.436422 | BH24: 842.1347937 | BI24: 571.8548306 | BK24: 1934 | BL24: =D157 -> 863.5173463 | BM24: =D158 -> 860.381886 | BN24: =D159 -> 795.076159 | BO24: =D160 -> 981.5821416 | BP24: =D161 -> 1094.99739 | BQ24: =D162 -> 1365.604634 | BR24: =D163 -> 1452.050529 | BS24: =D164 -> 1299.080253 | BT24: =D165 -> 1041.565761 | BU24: =D166 -> 780.1549682 | BV24: =D167 -> 613.3860999 | BW24: =D168 -> 574.134077 | BY24: 915.8102789 | BZ24: 906.3405736 | CA24: 976.7942704 | CC24: 969.3197135 | CD24: 616.1245574 | CE24: 862.9229066 | CF24: 918.1159796 | CG24: 1296.254248 | CH24: 842.9284985 | CI24: 572.6378132 | CK24: 1934 | CL24: =E157 ->  | CM24: =E158 ->  | CN24: =E159 ->  | CO24: =E160 ->  | CP24: =E161 ->  | CQ24: =E162 ->  | CR24: =E163 ->  | CS24: =E164 ->  | CT24: =E165 ->  | CU24: =E166 ->  | CV24: =E167 ->  | CW24: =E168 ->  | DK24: 1934 | DL24: =F157 ->  | DM24: =F158 ->  | DN24: =F159 ->  | DO24: =F160 ->  | DP24: =F161 ->  | DQ24: =F162 ->  | DR24: =F163 ->  | DS24: =F164 ->  | DT24: =F165 ->  | DU24: =F166 ->  | DV24: =F167 ->  | DW24: =F168 ->  | EK24: 1934 | EL24: =G157 ->  | EM24: =G158 ->  | EN24: =G159 ->  | EO24: =G160 ->  | EP24: =G161 ->  | EQ24: =G162 ->  | ER24: =G163 ->  | ES24: =G164 ->  | ET24: =G165 ->  | EU24: =G166 ->  | EV24: =G167 ->  | EW24: =G168 -> 
A25: 1922-10-31 | B25: =INDIRECT(CONCATENATE("'",B$1,"'!",B$4,(YEAR($A25)-1921)*12+MONTH($A25)+3+IF(ISNUMBER(FIND("PRV",B$6)),1,0)))*IF(AND(B$3>0,TRIM(B$9)="CFS"),Conversions!$C25,1) -> 2036.613566 | C25: =INDIRECT(CONCATENATE("'",C$1,"'!",C$4,(YEAR($A25)-1921)*12+MONTH($A25)+3+IF(ISNUMBER(FIND("PRV",C$6)),1,0)))*IF(AND(C$3>0,TRIM(C$9)="CFS"),Conversions!$C25,1) -> 2031.046929 | D25: =INDIRECT(CONCATENATE("'",D$1,"'!",D$4,(YEAR($A25)-1921)*12+MONTH($A25)+3+IF(ISNUMBER(FIND("PRV",D$6)),1,0)))*IF(AND(D$3>0,TRIM(D$9)="CFS"),Conversions!$C25,1) -> 2031.046929 | E25: =INDIRECT(CONCATENATE("'",E$1,"'!",E$4,(YEAR($A25)-1921)*12+MONTH($A25)+3+IF(ISNUMBER(FIND("PRV",E$6)),1,0)))*IF(AND(E$3>0,TRIM(E$9)="CFS"),Conversions!$C25,1) ->  | F25: =INDIRECT(CONCATENATE("'",F$1,"'!",F$4,(YEAR($A25)-1921)*12+MONTH($A25)+3+IF(ISNUMBER(FIND("PRV",F$6)),1,0)))*IF(AND(F$3>0,TRIM(F$9)="CFS"),Conversions!$C25,1) ->  | G25: =INDIRECT(CONCATENATE("'",G$1,"'!",G$4,(YEAR($A25)-1921)*12+MONTH($A25)+3+IF(ISNUMBER(FIND("PRV",G$6)),1,0)))*IF(AND(G$3>0,TRIM(G$9)="CFS"),Conversions!$C25,1) ->  | K25: 1935 | L25: =B169 -> 552.6959267 | M25: =B170 -> 602.2473051 | N25: =B171 -> 665.7543165 | O25: =B172 -> 897.3358265 | P25: =B173 -> 1088.457117 | Q25: =B174 -> 1359.600237 | R25: =B175 -> 2334.669219 | S25: =B176 -> 2818.37516 | T25: =B177 -> 2858.899245 | U25: =B178 -> 2290.914385 | V25: =B179 -> 1784.121896 | W25: =B180 -> 1592.981543 | Y25: 1755.25674 | Z25: 1934.443184 | AA25: 1570.504348 | AC25: 841.9885293 | AD25: 1753.630861 | AE25: 639.6144453 | AF25: 802.814118 | AG25: 2121.580699 | AH25: 2284.90347 | AI25: 1541.209305 | AK25: 1935 | AL25: =C169 -> 540.7704606 | AM25: =C170 -> 590.2869828 | AN25: =C171 -> 653.7643192 | AO25: =C172 -> 885.3194732 | AP25: =C173 -> 1076.060111 | AQ25: =C174 -> 1347.293611 | AR25: =C175 -> 2322.466757 | AS25: =C176 -> 2806.189261 | AT25: =C177 -> 2837.052938 | AU25: =C178 -> 2308.875179 | AV25: =C179 -> 1801.783058 | AW25: =C180 -> 1662.898641 | AY25: 1749.114577 | AZ25: 1923.810335 | BA25: 1569.396733 | BC25: 829.8925844 | BD25: 1782.785299 | BE25: 628.5392192 | BF25: 790.7524464 | BG25: 2108.126538 | BH25: 2295.563781 | BI25: 1554.890976 | BK25: 1935 | BL25: =D169 -> 541.5520224 | BM25: =D170 -> 591.0685807 | BN25: =D171 -> 654.5468895 | BO25: =D172 -> 886.1037638 | BP25: =D173 -> 1076.839305 | BQ25: =D174 -> 1348.07444 | BR25: =D175 -> 2323.246542 | BS25: =D176 -> 2806.967988 | BT25: =D177 -> 2807.866522 | BU25: =D178 -> 2239.735926 | BV25: =D179 -> 1732.78409 | BW25: =D180 -> 1593.032963 | BY25: 1735.370154 | BZ25: 1914.903238 | CA25: 1550.151586 | CC25: 830.6743541 | CD25: 1726.455189 | CE25: 629.3216032 | CF25: 791.5348654 | CG25: 2105.160471 | CH25: 2245.096753 | CI25: 1528.017477 | CK25: 1935 | CL25: =E169 ->  | CM25: =E170 ->  | CN25: =E171 ->  | CO25: =E172 ->  | CP25: =E173 ->  | CQ25: =E174 ->  | CR25: =E175 ->  | CS25: =E176 ->  | CT25: =E177 ->  | CU25: =E178 ->  | CV25: =E179 ->  | CW25: =E180 ->  | DK25: 1935 | DL25: =F169 ->  | DM25: =F170 ->  | DN25: =F171 ->  | DO25: =F172 ->  | DP25: =F173 ->  | DQ25: =F174 ->  | DR25: =F175 ->  | DS25: =F176 ->  | DT25: =F177 ->  | DU25: =F178 ->  | DV25: =F179 ->  | DW25: =F180 ->  | EK25: 1935 | EL25: =G169 ->  | EM25: =G170 ->  | EN25: =G171 ->  | EO25: =G172 ->  | EP25: =G173 ->  | EQ25: =G174 ->  | ER25: =G175 ->  | ES25: =G176 ->  | ET25: =G177 ->  | EU25: =G178 ->  | EV25: =G179 ->  | EW25: =G180 -> 
A26: 1922-11-30 | B26: =INDIRECT(CONCATENATE("'",B$1,"'!",B$4,(YEAR($A26)-1921)*12+MONTH($A26)+3+IF(ISNUMBER(FIND("PRV",B$6)),1,0)))*IF(AND(B$3>0,TRIM(B$9)="CFS"),Conversions!$C26,1) -> 1947.545541 | C26: =INDIRECT(CONCATENATE("'",C$1,"'!",C$4,(YEAR($A26)-1921)*12+MONTH($A26)+3+IF(ISNUMBER(FIND("PRV",C$6)),1,0)))*IF(AND(C$3>0,TRIM(C$9)="CFS"),Conversions!$C26,1) -> 1963.02219 | D26: =INDIRECT(CONCATENATE("'",D$1,"'!",D$4,(YEAR($A26)-1921)*12+MONTH($A26)+3+IF(ISNUMBER(FIND("PRV",D$6)),1,0)))*IF(AND(D$3>0,TRIM(D$9)="CFS"),Conversions!$C26,1) -> 1963.02219 | E26: =INDIRECT(CONCATENATE("'",E$1,"'!",E$4,(YEAR($A26)-1921)*12+MONTH($A26)+3+IF(ISNUMBER(FIND("PRV",E$6)),1,0)))*IF(AND(E$3>0,TRIM(E$9)="CFS"),Conversions!$C26,1) ->  | F26: =INDIRECT(CONCATENATE("'",F$1,"'!",F$4,(YEAR($A26)-1921)*12+MONTH($A26)+3+IF(ISNUMBER(FIND("PRV",F$6)),1,0)))*IF(AND(F$3>0,TRIM(F$9)="CFS"),Conversions!$C26,1) ->  | G26: =INDIRECT(CONCATENATE("'",G$1,"'!",G$4,(YEAR($A26)-1921)*12+MONTH($A26)+3+IF(ISNUMBER(FIND("PRV",G$6)),1,0)))*IF(AND(G$3>0,TRIM(G$9)="CFS"),Conversions!$C26,1) ->  | K26: 1936 | L26: =B181 -> 1476.663901 | M26: =B182 -> 1323.843047 | N26: =B183 -> 1237.219305 | O26: =B184 -> 1681.1345 | P26: =B185 -> 2454.895771 | Q26: =B186 -> 2855.157185 | R26: =B187 -> 3254.722848 | S26: =B188 -> 3446.200266 | T26: =B189 -> 3481.528106 | U26: =B190 -> 2908.932721 | V26: =B191 -> 2391.589387 | W26: =B192 -> 1996.949065 | Y26: 2425.334139 | Z26: 2334.152896 | AA26: 2375.736342 | AC26: 1772.600633 | AD26: 2226.055591 | AE26: 1418.696068 | AF26: 1602.574404 | AG26: 3131.073059 | AH26: 2875.90622 | AI26: 1876.878635 | AK26: 1936 | AL26: =C181 -> 1458.473215 | AM26: =C182 -> 1284.819086 | AN26: =C183 -> 1198.143598 | AO26: =C184 -> 1641.988564 | AP26: =C185 -> 2415.740113 | AQ26: =C186 -> 2815.994646 | AR26: =C187 -> 3215.581295 | AS26: =C188 -> 3407.113572 | AT26: =C189 -> 3442.516488 | AU26: =C190 -> 2906.304274 | AV26: =C191 -> 2388.767188 | AW26: =C192 -> 1993.319966 | AY26: 2398.496846 | AZ26: 2308.35167 | BA26: 2347.396834 | BC26: 1735.585058 | BD26: 2222.759852 | BE26: 1398.469876 | BF26: 1563.470587 | BG26: 3091.954453 | BH26: 2859.45118 | BI26: 1867.61987 | BK26: 1936 | BL26: =D181 -> 1467.3611 | BM26: =D182 -> 1314.532647 | BN26: =D183 -> 1227.89656 | BO26: =D184 -> 1671.795 | BP26: =D185 -> 2445.545072 | BQ26: =D186 -> 2845.804841 | BR26: =D187 -> 3245.375516 | BS26: =D188 -> 3436.866035 | BT26: =D189 -> 3472.211803 | BU26: =D190 -> 2899.839512 | BV26: =D191 -> 2382.267666 | BW26: =D192 -> 1986.853437 | BY26: 2415.705749 | BZ26: 2325.052065 | CA26: 2366.362433 | CC26: 1763.27045 | CD26: 2216.347601 | CE26: 1410.551072 | CF26: 1593.243473 | CG26: 3121.731207 | CH26: 2866.544679 | CI26: 1866.798473 | CK26: 1936 | CL26: =E181 ->  | CM26: =E182 ->  | CN26: =E183 ->  | CO26: =E184 ->  | CP26: =E185 ->  | CQ26: =E186 ->  | CR26: =E187 ->  | CS26: =E188 ->  | CT26: =E189 ->  | CU26: =E190 ->  | CV26: =E191 ->  | CW26: =E192 ->  | DK26: 1936 | DL26: =F181 ->  | DM26: =F182 ->  | DN26: =F183 ->  | DO26: =F184 ->  | DP26: =F185 ->  | DQ26: =F186 ->  | DR26: =F187 ->  | DS26: =F188 ->  | DT26: =F189 ->  | DU26: =F190 ->  | DV26: =F191 ->  | DW26: =F192 ->  | EK26: 1936 | EL26: =G181 ->  | EM26: =G182 ->  | EN26: =G183 ->  | EO26: =G184 ->  | EP26: =G185 ->  | EQ26: =G186 ->  | ER26: =G187 ->  | ES26: =G188 ->  | ET26: =G189 ->  | EU26: =G190 ->  | EV26: =G191 ->  | EW26: =G192 -> 
A27: 1922-12-31 | B27: =INDIRECT(CONCATENATE("'",B$1,"'!",B$4,(YEAR($A27)-1921)*12+MONTH($A27)+3+IF(ISNUMBER(FIND("PRV",B$6)),1,0)))*IF(AND(B$3>0,TRIM(B$9)="CFS"),Conversions!$C27,1) -> 1954.309869 | C27: =INDIRECT(CONCATENATE("'",C$1,"'!",C$4,(YEAR($A27)-1921)*12+MONTH($A27)+3+IF(ISNUMBER(FIND("PRV",C$6)),1,0)))*IF(AND(C$3>0,TRIM(C$9)="CFS"),Conversions!$C27,1) -> 1969.920635 | D27: =INDIRECT(CONCATENATE("'",D$1,"'!",D$4,(YEAR($A27)-1921)*12+MONTH($A27)+3+IF(ISNUMBER(FIND("PRV",D$6)),1,0)))*IF(AND(D$3>0,TRIM(D$9)="CFS"),Conversions!$C27,1) -> 1969.920635 | E27: =INDIRECT(CONCATENATE("'",E$1,"'!",E$4,(YEAR($A27)-1921)*12+MONTH($A27)+3+IF(ISNUMBER(FIND("PRV",E$6)),1,0)))*IF(AND(E$3>0,TRIM(E$9)="CFS"),Conversions!$C27,1) ->  | F27: =INDIRECT(CONCATENATE("'",F$1,"'!",F$4,(YEAR($A27)-1921)*12+MONTH($A27)+3+IF(ISNUMBER(FIND("PRV",F$6)),1,0)))*IF(AND(F$3>0,TRIM(F$9)="CFS"),Conversions!$C27,1) ->  | G27: =INDIRECT(CONCATENATE("'",G$1,"'!",G$4,(YEAR($A27)-1921)*12+MONTH($A27)+3+IF(ISNUMBER(FIND("PRV",G$6)),1,0)))*IF(AND(G$3>0,TRIM(G$9)="CFS"),Conversions!$C27,1) ->  | K27: 1937 | L27: =B193 -> 1670.323924 | M27: =B194 -> 1535.136448 | N27: =B195 -> 1427.439449 | O27: =B196 -> 1439.765023 | P27: =B197 -> 1602.090329 | Q27: =B198 -> 1920.930833 | R27: =B199 -> 2304.83523 | S27: =B200 -> 2646.723924 | T27: =B201 -> 2461.854616 | U27: =B202 -> 2203.240266 | V27: =B203 -> 1837.057769 | W27: =B204 -> 1727.95531 | Y27: 1987.00372 | Z27: 2192.322604 | AA27: 1898.11276 | AC27: 1560.011725 | AD27: 1821.839585 | AE27: 1587.814216 | AF27: 1478.605953 | AG27: 2226.115615 | AH27: 2172.373067 | AI27: 1687.759313 | AK27: 1937 | AL27: =C193 -> 1666.080531 | AM27: =C194 -> 1498.151035 | AN27: =C195 -> 1390.404482 | AO27: =C196 -> 1402.663366 | AP27: =C197 -> 1573.323193 | AQ27: =C198 -> 1883.796647 | AR27: =C199 -> 2267.721042 | AS27: =C200 -> 2609.663417 | AT27: =C201 -> 2469.771065 | AU27: =C202 -> 2244.11413 | AV27: =C203 -> 1862.034383 | AW27: =C204 -> 1698.102727 | AY27: 1975.90174 | AZ27: 2186.710791 | BA27: 1880.485501 | BC27: 1527.896133 | BD27: 1827.028769 | BE27: 1563.156929 | BF27: 1442.934987 | BG27: 2195.682059 | BH27: 2182.450662 | BI27: 1681.977811 | BK27: 1937 | BL27: =D193 -> 1660.003886 | BM27: =D194 -> 1524.808527 | BN27: =D195 -> 1417.097691 | BO27: =D196 -> 1429.404642 | BP27: =D197 -> 1600.091221 | BQ27: =D198 -> 1910.539251 | BR27: =D199 -> 2294.449244 | BS27: =D200 -> 2636.352977 | BT27: =D201 -> 2456.780593 | BU27: =D202 -> 2198.146482 | BV27: =D203 -> 1828.077686 | BW27: =D204 -> 1718.985213 | BY27: 1981.03589 | BZ27: 2187.385066 | CA27: 1889.561451 | CC27: 1551.33473 | CD27: 1815.007895 | CE27: 1577.509786 | CF27: 1469.650736 | CG27: 2217.444345 | CH27: 2165.168464 | CI27: 1683.274604 | CK27: 1937 | CL27: =E193 ->  | CM27: =E194 ->  | CN27: =E195 ->  | CO27: =E196 ->  | CP27: =E197 ->  | CQ27: =E198 ->  | CR27: =E199 ->  | CS27: =E200 ->  | CT27: =E201 ->  | CU27: =E202 ->  | CV27: =E203 ->  | CW27: =E204 ->  | DK27: 1937 | DL27: =F193 ->  | DM27: =F194 ->  | DN27: =F195 ->  | DO27: =F196 ->  | DP27: =F197 ->  | DQ27: =F198 ->  | DR27: =F199 ->  | DS27: =F200 ->  | DT27: =F201 ->  | DU27: =F202 ->  | DV27: =F203 ->  | DW27: =F204 ->  | EK27: 1937 | EL27: =G193 ->  | EM27: =G194 ->  | EN27: =G195 ->  | EO27: =G196 ->  | EP27: =G197 ->  | EQ27: =G198 ->  | ER27: =G199 ->  | ES27: =G200 ->  | ET27: =G201 ->  | EU27: =G202 ->  | EV27: =G203 ->  | EW27: =G204 -> 
A28: 1923-01-31 | B28: =INDIRECT(CONCATENATE("'",B$1,"'!",B$4,(YEAR($A28)-1921)*12+MONTH($A28)+3+IF(ISNUMBER(FIND("PRV",B$6)),1,0)))*IF(AND(B$3>0,TRIM(B$9)="CFS"),Conversions!$C28,1) -> 2173.254146 | C28: =INDIRECT(CONCATENATE("'",C$1,"'!",C$4,(YEAR($A28)-1921)*12+MONTH($A28)+3+IF(ISNUMBER(FIND("PRV",C$6)),1,0)))*IF(AND(C$3>0,TRIM(C$9)="CFS"),Conversions!$C28,1) -> 2188.826334 | D28: =INDIRECT(CONCATENATE("'",D$1,"'!",D$4,(YEAR($A28)-1921)*12+MONTH($A28)+3+IF(ISNUMBER(FIND("PRV",D$6)),1,0)))*IF(AND(D$3>0,TRIM(D$9)="CFS"),Conversions!$C28,1) -> 2188.826334 | E28: =INDIRECT(CONCATENATE("'",E$1,"'!",E$4,(YEAR($A28)-1921)*12+MONTH($A28)+3+IF(ISNUMBER(FIND("PRV",E$6)),1,0)))*IF(AND(E$3>0,TRIM(E$9)="CFS"),Conversions!$C28,1) ->  | F28: =INDIRECT(CONCATENATE("'",F$1,"'!",F$4,(YEAR($A28)-1921)*12+MONTH($A28)+3+IF(ISNUMBER(FIND("PRV",F$6)),1,0)))*IF(AND(F$3>0,TRIM(F$9)="CFS"),Conversions!$C28,1) ->  | G28: =INDIRECT(CONCATENATE("'",G$1,"'!",G$4,(YEAR($A28)-1921)*12+MONTH($A28)+3+IF(ISNUMBER(FIND("PRV",G$6)),1,0)))*IF(AND(G$3>0,TRIM(G$9)="CFS"),Conversions!$C28,1) ->  | K28: 1938 | L28: =B205 -> 1597.771085 | M28: =B206 -> 1638.045315 | N28: =B207 -> 2463.774937 | O28: =B208 -> 2717.681957 | P28: =B209 -> 2788 | Q28: =B210 -> 2788 | R28: =B211 -> 3277 | S28: =B212 -> 3538 | T28: =B213 -> 3538 | U28: =B214 -> 3435.045573 | V28: =B215 -> 3126.112073 | W28: =B216 -> 2748.076566 | Y28: 2963.11094 | Z28: 2940.376883 | AA28: 2804.625626 | AC28: 2360.07755 | AD28: 2961.815114 | AE28: 1980.602493 | AF28: 2464.826517 | AG28: 3191.5 | AH28: 3310.548982 | AI28: 2715.885241 | AK28: 1938 | AL28: =C205 -> 1597.784264 | AM28: =C206 -> 1638.058504 | AN28: =C207 -> 2463.788138 | AO28: =C208 -> 2717.695176 | AP28: =C209 -> 2788 | AQ28: =C210 -> 2788 | AR28: =C211 -> 3277 | AS28: =C212 -> 3538 | AT28: =C213 -> 3538 | AU28: =C214 -> 3433.15697 | AV28: =C215 -> 3121.869495 | AW28: =C216 -> 2742.821934 | AY28: 2960.849425 | AZ28: 2937.237519 | BA28: 2803.681207 | BC28: 2360.08679 | BD28: 2957.459422 | BE28: 1976.882464 | BF28: 2464.837522 | BG28: 3191.5 | BH28: 3308.359358 | BI28: 2710.800483 | BK28: 1938 | BL28: =D205 -> 1597.775092 | BM28: =D206 -> 1638.049325 | BN28: =D207 -> 2463.778951 | BO28: =D208 -> 2717.685976 | BP28: =D209 -> 2788 | BQ28: =D210 -> 2788 | BR28: =D211 -> 3277 | BS28: =D212 -> 3538 | BT28: =D213 -> 3538 | BU28: =D214 -> 3433.146743 | BV28: =D215 -> 3121.848849 | BW28: =D216 -> 2742.790805 | BY28: 2960.835709 | BZ28: 2937.219375 | CA28: 2803.672978 | CC28: 2360.08036 | CD28: 2957.435274 | CE28: 1979.484741 | CF28: 2464.829863 | CG28: 3191.5 | CH28: 3308.347749 | CI28: 2710.771108 | CK28: 1938 | CL28: =E205 ->  | CM28: =E206 ->  | CN28: =E207 ->  | CO28: =E208 ->  | CP28: =E209 ->  | CQ28: =E210 ->  | CR28: =E211 ->  | CS28: =E212 ->  | CT28: =E213 ->  | CU28: =E214 ->  | CV28: =E215 ->  | CW28: =E216 ->  | DK28: 1938 | DL28: =F205 ->  | DM28: =F206 ->  | DN28: =F207 ->  | DO28: =F208 ->  | DP28: =F209 ->  | DQ28: =F210 ->  | DR28: =F211 ->  | DS28: =F212 ->  | DT28: =F213 ->  | DU28: =F214 ->  | DV28: =F215 ->  | DW28: =F216 ->  | EK28: 1938 | EL28: =G205 ->  | EM28: =G206 ->  | EN28: =G207 ->  | EO28: =G208 ->  | EP28: =G209 ->  | EQ28: =G210 ->  | ER28: =G211 ->  | ES28: =G212 ->  | ET28: =G213 ->  | EU28: =G214 ->  | EV28: =G215 ->  | EW28: =G216 -> 
A29: 1923-02-28 | B29: =INDIRECT(CONCATENATE("'",B$1,"'!",B$4,(YEAR($A29)-1921)*12+MONTH($A29)+3+IF(ISNUMBER(FIND("PRV",B$6)),1,0)))*IF(AND(B$3>0,TRIM(B$9)="CFS"),Conversions!$C29,1) -> 2284.343836 | C29: =INDIRECT(CONCATENATE("'",C$1,"'!",C$4,(YEAR($A29)-1921)*12+MONTH($A29)+3+IF(ISNUMBER(FIND("PRV",C$6)),1,0)))*IF(AND(C$3>0,TRIM(C$9)="CFS"),Conversions!$C29,1) -> 2299.929995 | D29: =INDIRECT(CONCATENATE("'",D$1,"'!",D$4,(YEAR($A29)-1921)*12+MONTH($A29)+3+IF(ISNUMBER(FIND("PRV",D$6)),1,0)))*IF(AND(D$3>0,TRIM(D$9)="CFS"),Conversions!$C29,1) -> 2299.929995 | E29: =INDIRECT(CONCATENATE("'",E$1,"'!",E$4,(YEAR($A29)-1921)*12+MONTH($A29)+3+IF(ISNUMBER(FIND("PRV",E$6)),1,0)))*IF(AND(E$3>0,TRIM(E$9)="CFS"),Conversions!$C29,1) ->  | F29: =INDIRECT(CONCATENATE("'",F$1,"'!",F$4,(YEAR($A29)-1921)*12+MONTH($A29)+3+IF(ISNUMBER(FIND("PRV",F$6)),1,0)))*IF(AND(F$3>0,TRIM(F$9)="CFS"),Conversions!$C29,1) ->  | G29: =INDIRECT(CONCATENATE("'",G$1,"'!",G$4,(YEAR($A29)-1921)*12+MONTH($A29)+3+IF(ISNUMBER(FIND("PRV",G$6)),1,0)))*IF(AND(G$3>0,TRIM(G$9)="CFS"),Conversions!$C29,1) ->  | K29: 1939 | L29: =B217 -> 2587.467833 | M29: =B218 -> 2498.110575 | N29: =B219 -> 2515.836698 | O29: =B220 -> 2574.963968 | P29: =B221 -> 2657.90931 | Q29: =B222 -> 2816.106952 | R29: =B223 -> 2764.635143 | S29: =B224 -> 2496.676762 | T29: =B225 -> 2158.508207 | U29: =B226 -> 1559.229239 | V29: =B227 -> 1363.27127 | W29: =B228 -> 1282.878387 | Y29: 1898.01072 | Z29: 1781.715881 | AA29: 2272.966195 | AC29: 2589.721589 | AD29: 1333.281881 | AE29: 2565.733843 | AF29: 2556.270203 | AG29: 2621.406904 | AH29: 1742.696573 | AI29: 1204.856665 | AK29: 1939 | AL29: =C217 -> 2582.216702 | AM29: =C218 -> 2492.856132 | AN29: =C219 -> 2510.576693 | AO29: =C220 -> 2569.702525 | AP29: =C221 -> 2652.649777 | AQ29: =C222 -> 2810.867212 | AR29: =C223 -> 2759.405043 | AS29: =C224 -> 2514.39326 | AT29: =C225 -> 2213.084441 | AU29: =C226 -> 1661.309049 | AV29: =C227 -> 1465.483151 | AW29: =C228 -> 1384.863486 | AY29: 1929.582379 | AZ29: 1814.104505 | BA29: 2301.450622 | BC29: 2584.465417 | BD29: 1422.026894 | BE29: 2560.477939 | BF29: 2551.010724 | BG29: 2629.383156 | BH29: 1822.376253 | BI29: 1263.159566 | BK29: 1939 | BL29: =D217 -> 2582.185594 | BM29: =D218 -> 2492.825004 | BN29: =D219 -> 2510.545532 | BO29: =D220 -> 2569.671355 | BP29: =D221 -> 2652.618619 | BQ29: =D222 -> 2810.840393 | BR29: =D223 -> 2759.374962 | BS29: =D224 -> 2514.350076 | BT29: =D225 -> 2174.731972 | BU29: =D226 -> 1559.206941 | BV29: =D227 -> 1364.63362 | BW29: =D228 -> 1284.237713 | BY29: 1899.664466 | BZ29: 1784.525797 | CA29: 2272.935148 | CC29: 2584.434701 | CD29: 1334.411744 | CE29: 2560.446802 | CF29: 2550.979566 | CG29: 2624.560181 | CH29: 1749.466607 | CI29: 1206.21606 | CK29: 1939 | CL29: =E217 ->  | CM29: =E218 ->  | CN29: =E219 ->  | CO29: =E220 ->  | CP29: =E221 ->  | CQ29: =E222 ->  | CR29: =E223 ->  | CS29: =E224 ->  | CT29: =E225 ->  | CU29: =E226 ->  | CV29: =E227 ->  | CW29: =E228 ->  | DK29: 1939 | DL29: =F217 ->  | DM29: =F218 ->  | DN29: =F219 ->  | DO29: =F220 ->  | DP29: =F221 ->  | DQ29: =F222 ->  | DR29: =F223 ->  | DS29: =F224 ->  | DT29: =F225 ->  | DU29: =F226 ->  | DV29: =F227 ->  | DW29: =F228 ->  | EK29: 1939 | EL29: =G217 ->  | EM29: =G218 ->  | EN29: =G219 ->  | EO29: =G220 ->  | EP29: =G221 ->  | EQ29: =G222 ->  | ER29: =G223 ->  | ES29: =G224 ->  | ET29: =G225 ->  | EU29: =G226 ->  | EV29: =G227 ->  | EW29: =G228 -> 
A30: 1923-03-31 | B30: =INDIRECT(CONCATENATE("'",B$1,"'!",B$4,(YEAR($A30)-1921)*12+MONTH($A30)+3+IF(ISNUMBER(FIND("PRV",B$6)),1,0)))*IF(AND(B$3>0,TRIM(B$9)="CFS"),Conversions!$C30,1) -> 2475.019043 | C30: =INDIRECT(CONCATENATE("'",C$1,"'!",C$4,(YEAR($A30)-1921)*12+MONTH($A30)+3+IF(ISNUMBER(FIND("PRV",C$6)),1,0)))*IF(AND(C$3>0,TRIM(C$9)="CFS"),Conversions!$C30,1) -> 2490.608443 | D30: =INDIRECT(CONCATENATE("'",D$1,"'!",D$4,(YEAR($A30)-1921)*12+MONTH($A30)+3+IF(ISNUMBER(FIND("PRV",D$6)),1,0)))*IF(AND(D$3>0,TRIM(D$9)="CFS"),Conversions!$C30,1) -> 2490.608443 | E30: =INDIRECT(CONCATENATE("'",E$1,"'!",E$4,(YEAR($A30)-1921)*12+MONTH($A30)+3+IF(ISNUMBER(FIND("PRV",E$6)),1,0)))*IF(AND(E$3>0,TRIM(E$9)="CFS"),Conversions!$C30,1) ->  | F30: =INDIRECT(CONCATENATE("'",F$1,"'!",F$4,(YEAR($A30)-1921)*12+MONTH($A30)+3+IF(ISNUMBER(FIND("PRV",F$6)),1,0)))*IF(AND(F$3>0,TRIM(F$9)="CFS"),Conversions!$C30,1) ->  | G30: =INDIRECT(CONCATENATE("'",G$1,"'!",G$4,(YEAR($A30)-1921)*12+MONTH($A30)+3+IF(ISNUMBER(FIND("PRV",G$6)),1,0)))*IF(AND(G$3>0,TRIM(G$9)="CFS"),Conversions!$C30,1) ->  | K30: 1940 | L30: =B229 -> 1148.162733 | M30: =B230 -> 1003.786482 | N30: =B231 -> 950.0001821 | O30: =B232 -> 1444.201571 | P30: =B233 -> 2393.13364 | Q30: =B234 -> 2788 | R30: =B235 -> 3238 | S30: =B236 -> 3411.896166 | T30: =B237 -> 3264.790304 | U30: =B238 -> 2704.554899 | V30: =B239 -> 2232.065813 | W30: =B240 -> 1781.792569 | Y30: 2357.227246 | Z30: 2477.280969 | AA30: 2196.698697 | AC30: 1551.840648 | AD30: 2055.008292 | AE30: 1116.372344 | AF30: 1364.220605 | AG30: 3066.714534 | AH30: 2699.563846 | AI30: 1749.304171 | AK30: 1940 | AL30: =C229 -> 1170.159042 | AM30: =C230 -> 1003.429193 | AN30: =C231 -> 949.6423685 | AO30: =C232 -> 1443.843049 | AP30: =C233 -> 2392.774766 | AQ30: =C234 -> 2788 | AR30: =C235 -> 3238 | AS30: =C236 -> 3411.896166 | AT30: =C237 -> 3256.67828 | AU30: =C238 -> 2694.602177 | AV30: =C239 -> 2222.435947 | AW30: =C240 -> 1772.33657 | AY30: 2354.072569 | AZ30: 2474.186387 | BA30: 2195.316463 | BC30: 1553.753779 | BD30: 2046.988209 | BE30: 1134.395968 | BF30: 1363.862466 | BG30: 3065.655672 | BH30: 2691.458193 | BI30: 1744.549173 | BK30: 1940 | BL30: =D229 -> 1149.520856 | BM30: =D230 -> 1005.145601 | BN30: =D231 -> 951.6414891 | BO30: =D232 -> 1445.846125 | BP30: =D233 -> 2394.779811 | BQ30: =D234 -> 2788 | BR30: =D235 -> 3238 | BS30: =D236 -> 3411.896166 | BT30: =D237 -> 3256.659133 | BU30: =D238 -> 2695.363454 | BV30: =D239 -> 2223.16607 | BW30: =D240 -> 1773.049562 | BY30: 2354.588608 | BZ30: 2474.368386 | CA30: 2194.422356 | CC30: 1553.234691 | CD30: 2047.596077 | CE30: 1117.837466 | CF30: 1365.816773 | CG30: 3065.903909 | CH30: 2691.91538 | CI30: 1744.908375 | CK30: 1940 | CL30: =E229 ->  | CM30: =E230 ->  | CN30: =E231 ->  | CO30: =E232 ->  | CP30: =E233 ->  | CQ30: =E234 ->  | CR30: =E235 ->  | CS30: =E236 ->  | CT30: =E237 ->  | CU30: =E238 ->  | CV30: =E239 ->  | CW30: =E240 ->  | DK30: 1940 | DL30: =F229 ->  | DM30: =F230 ->  | DN30: =F231 ->  | DO30: =F232 ->  | DP30: =F233 ->  | DQ30: =F234 ->  | DR30: =F235 ->  | DS30: =F236 ->  | DT30: =F237 ->  | DU30: =F238 ->  | DV30: =F239 ->  | DW30: =F240 ->  | EK30: 1940 | EL30: =G229 ->  | EM30: =G230 ->  | EN30: =G231 ->  | EO30: =G232 ->  | EP30: =G233 ->  | EQ30: =G234 ->  | ER30: =G235 ->  | ES30: =G236 ->  | ET30: =G237 ->  | EU30: =G238 ->  | EV30: =G239 ->  | EW30: =G240 -> 
A31: 1923-04-30 | B31: =INDIRECT(CONCATENATE("'",B$1,"'!",B$4,(YEAR($A31)-1921)*12+MONTH($A31)+3+IF(ISNUMBER(FIND("PRV",B$6)),1,0)))*IF(AND(B$3>0,TRIM(B$9)="CFS"),Conversions!$C31,1) -> 2833.021479 | C31: =INDIRECT(CONCATENATE("'",C$1,"'!",C$4,(YEAR($A31)-1921)*12+MONTH($A31)+3+IF(ISNUMBER(FIND("PRV",C$6)),1,0)))*IF(AND(C$3>0,TRIM(C$9)="CFS"),Conversions!$C31,1) -> 2848.603465 | D31: =INDIRECT(CONCATENATE("'",D$1,"'!",D$4,(YEAR($A31)-1921)*12+MONTH($A31)+3+IF(ISNUMBER(FIND("PRV",D$6)),1,0)))*IF(AND(D$3>0,TRIM(D$9)="CFS"),Conversions!$C31,1) -> 2848.603465 | E31: =INDIRECT(CONCATENATE("'",E$1,"'!",E$4,(YEAR($A31)-1921)*12+MONTH($A31)+3+IF(ISNUMBER(FIND("PRV",E$6)),1,0)))*IF(AND(E$3>0,TRIM(E$9)="CFS"),Conversions!$C31,1) ->  | F31: =INDIRECT(CONCATENATE("'",F$1,"'!",F$4,(YEAR($A31)-1921)*12+MONTH($A31)+3+IF(ISNUMBER(FIND("PRV",F$6)),1,0)))*IF(AND(F$3>0,TRIM(F$9)="CFS"),Conversions!$C31,1) ->  | G31: =INDIRECT(CONCATENATE("'",G$1,"'!",G$4,(YEAR($A31)-1921)*12+MONTH($A31)+3+IF(ISNUMBER(FIND("PRV",G$6)),1,0)))*IF(AND(G$3>0,TRIM(G$9)="CFS"),Conversions!$C31,1) ->  | K31: 1941 | L31: =B241 -> 1597.778087 | M31: =B242 -> 1504.617901 | N31: =B243 -> 1925.895998 | O31: =B244 -> 2489.979891 | P31: =B245 -> 2788 | Q31: =B246 -> 2918 | R31: =B247 -> 3334 | S31: =B248 -> 3538 | T31: =B249 -> 3538 | U31: =B250 -> 3244.799573 | V31: =B251 -> 2975.149305 | W31: =B252 -> 2511.04519 | Y31: 2894.472671 | Z31: 2920.80768 | AA31: 2697.105495 | AC31: 2193.276567 | AD31: 2759.35614 | AE31: 1791.044554 | AF31: 2187.394946 | AG31: 3238.25 | AH31: 3195.617868 | AI31: 2490.814343 | AK31: 1941 | AL31: =C241 -> 1597.782046 | AM31: =C242 -> 1504.621863 | AN31: =C243 -> 1925.899964 | AO31: =C244 -> 2489.983632 | AP31: =C245 -> 2788 | AQ31: =C246 -> 2918 | AR31: =C247 -> 3334 | AS31: =C248 -> 3538 | AT31: =C249 -> 3538 | AU31: =C250 -> 3244.675703 | AV31: =C251 -> 2970.064912 | AW31: =C252 -> 2505.929445 | AY31: 2892.760358 | AZ31: 2919.095055 | BA31: 2696.246464 | BC31: 2193.279296 | BD31: 2755.083427 | BE31: 1789.865993 | BF31: 2187.398176 | BG31: 3238.25 | BH31: 3193.676335 | BI31: 2485.705091 | BK31: 1941 | BL31: =D241 -> 1597.781747 | BM31: =D242 -> 1504.621564 | BN31: =D243 -> 1925.899665 | BO31: =D244 -> 2489.983277 | BP31: =D245 -> 2788 | BQ31: =D246 -> 2918 | BR31: =D247 -> 3334 | BS31: =D248 -> 3538 | BT31: =D249 -> 3538 | BU31: =D250 -> 3244.715014 | BV31: =D251 -> 2970.115876 | BW31: =D252 -> 2505.978743 | BY31: 2892.780172 | BZ31: 2919.114899 | CA31: 2696.25799 | CC31: 2193.279076 | CD31: 2755.131609 | CE31: 1789.954849 | CF31: 2187.397908 | CG31: 3238.25 | CH31: 3193.705065 | CI31: 2485.754654 | CK31: 1941 | CL31: =E241 ->  | CM31: =E242 ->  | CN31: =E243 ->  | CO31: =E244 ->  | CP31: =E245 ->  | CQ31: =E246 ->  | CR31: =E247 ->  | CS31: =E248 ->  | CT31: =E249 ->  | CU31: =E250 ->  | CV31: =E251 ->  | CW31: =E252 ->  | DK31: 1941 | DL31: =F241 ->  | DM31: =F242 ->  | DN31: =F243 ->  | DO31: =F244 ->  | DP31: =F245 ->  | DQ31: =F246 ->  | DR31: =F247 ->  | DS31: =F248 ->  | DT31: =F249 ->  | DU31: =F250 ->  | DV31: =F251 ->  | DW31: =F252 ->  | EK31: 1941 | EL31: =G241 ->  | EM31: =G242 ->  | EN31: =G243 ->  | EO31: =G244 ->  | EP31: =G245 ->  | EQ31: =G246 ->  | ER31: =G247 ->  | ES31: =G248 ->  | ET31: =G249 ->  | EU31: =G250 ->  | EV31: =G251 ->  | EW31: =G252 -> 
A32: 1923-05-31 | B32: =INDIRECT(CONCATENATE("'",B$1,"'!",B$4,(YEAR($A32)-1921)*12+MONTH($A32)+3+IF(ISNUMBER(FIND("PRV",B$6)),1,0)))*IF(AND(B$3>0,TRIM(B$9)="CFS"),Conversions!$C32,1) -> 2909.613909 | C32: =INDIRECT(CONCATENATE("'",C$1,"'!",C$4,(YEAR($A32)-1921)*12+MONTH($A32)+3+IF(ISNUMBER(FIND("PRV",C$6)),1,0)))*IF(AND(C$3>0,TRIM(C$9)="CFS"),Conversions!$C32,1) -> 2925.174271 | D32: =INDIRECT(CONCATENATE("'",D$1,"'!",D$4,(YEAR($A32)-1921)*12+MONTH($A32)+3+IF(ISNUMBER(FIND("PRV",D$6)),1,0)))*IF(AND(D$3>0,TRIM(D$9)="CFS"),Conversions!$C32,1) -> 2925.174271 | E32: =INDIRECT(CONCATENATE("'",E$1,"'!",E$4,(YEAR($A32)-1921)*12+MONTH($A32)+3+IF(ISNUMBER(FIND("PRV",E$6)),1,0)))*IF(AND(E$3>0,TRIM(E$9)="CFS"),Conversions!$C32,1) ->  | F32: =INDIRECT(CONCATENATE("'",F$1,"'!",F$4,(YEAR($A32)-1921)*12+MONTH($A32)+3+IF(ISNUMBER(FIND("PRV",F$6)),1,0)))*IF(AND(F$3>0,TRIM(F$9)="CFS"),Conversions!$C32,1) ->  | G32: =INDIRECT(CONCATENATE("'",G$1,"'!",G$4,(YEAR($A32)-1921)*12+MONTH($A32)+3+IF(ISNUMBER(FIND("PRV",G$6)),1,0)))*IF(AND(G$3>0,TRIM(G$9)="CFS"),Conversions!$C32,1) ->  | K32: 1942 | L32: =B253 -> 2338.948278 | M32: =B254 -> 2269.749816 | N32: =B255 -> 2788 | O32: =B256 -> 2788 | P32: =B257 -> 2806 | Q32: =B258 -> 3058 | R32: =B259 -> 3281 | S32: =B260 -> 3538 | T32: =B261 -> 3538 | U32: =B262 -> 3282.267469 | V32: =B263 -> 2898.338259 | W32: =B264 -> 2444.461564 | Y32: 2889.050582 | Z32: 2896.050582 | AA32: 2919.230449 | AC32: 2670.044791 | AD32: 2699.644473 | AE32: 2511.555172 | AF32: 2704.624969 | AG32: 3262.25 | AH32: 3177.459128 | AI32: 2421.422842 | AK32: 1942 | AL32: =C253 -> 2333.836141 | AM32: =C254 -> 2264.634459 | AN32: =C255 -> 2788 | AO32: =C256 -> 2788 | AP32: =C257 -> 2806 | AQ32: =C258 -> 3058 | AR32: =C259 -> 3281 | AS32: =C260 -> 3538 | AT32: =C261 -> 3538 | AU32: =C262 -> 3283.113476 | AV32: =C263 -> 2898.745382 | AW32: =C264 -> 2444.861706 | AY32: 2889.288389 | AZ32: 2896.288389 | BA32: 2918.51593 | BC32: 2668.510506 | BD32: 2700.121198 | BE32: 2508.358831 | BF32: 2703.77241 | BG32: 3262.25 | BH32: 3177.822428 | BI32: 2421.824028 | BK32: 1942 | BL32: =D253 -> 2333.885404 | BM32: =D254 -> 2264.683753 | BN32: =D255 -> 2788 | BO32: =D256 -> 2788 | BP32: =D257 -> 2806 | BQ32: =D258 -> 3058 | BR32: =D259 -> 3281 | BS32: =D260 -> 3538 | BT32: =D261 -> 3538 | BU32: =D262 -> 3283.087289 | BV32: =D263 -> 2898.69297 | BW32: =D264 -> 2444.804158 | BY32: 2889.262657 | BZ32: 2896.262657 | CA32: 2918.512798 | CC32: 2668.525291 | CD32: 2700.070597 | CE32: 2508.389632 | CF32: 2703.780626 | CG32: 3262.25 | CH32: 3177.795585 | CI32: 2421.767354 | CK32: 1942 | CL32: =E253 ->  | CM32: =E254 ->  | CN32: =E255 ->  | CO32: =E256 ->  | CP32: =E257 ->  | CQ32: =E258 ->  | CR32: =E259 ->  | CS32: =E260 ->  | CT32: =E261 ->  | CU32: =E262 ->  | CV32: =E263 ->  | CW32: =E264 ->  | DK32: 1942 | DL32: =F253 ->  | DM32: =F254 ->  | DN32: =F255 ->  | DO32: =F256 ->  | DP32: =F257 ->  | DQ32: =F258 ->  | DR32: =F259 ->  | DS32: =F260 ->  | DT32: =F261 ->  | DU32: =F262 ->  | DV32: =F263 ->  | DW32: =F264 ->  | EK32: 1942 | EL32: =G253 ->  | EM32: =G254 ->  | EN32: =G255 ->  | EO32: =G256 ->  | EP32: =G257 ->  | EQ32: =G258 ->  | ER32: =G259 ->  | ES32: =G260 ->  | ET32: =G261 ->  | EU32: =G262 ->  | EV32: =G263 ->  | EW32: =G264 -> 
A33: 1923-06-30 | B33: =INDIRECT(CONCATENATE("'",B$1,"'!",B$4,(YEAR($A33)-1921)*12+MONTH($A33)+3+IF(ISNUMBER(FIND("PRV",B$6)),1,0)))*IF(AND(B$3>0,TRIM(B$9)="CFS"),Conversions!$C33,1) -> 2882.126203 | C33: =INDIRECT(CONCATENATE("'",C$1,"'!",C$4,(YEAR($A33)-1921)*12+MONTH($A33)+3+IF(ISNUMBER(FIND("PRV",C$6)),1,0)))*IF(AND(C$3>0,TRIM(C$9)="CFS"),Conversions!$C33,1) -> 2897.659967 | D33: =INDIRECT(CONCATENATE("'",D$1,"'!",D$4,(YEAR($A33)-1921)*12+MONTH($A33)+3+IF(ISNUMBER(FIND("PRV",D$6)),1,0)))*IF(AND(D$3>0,TRIM(D$9)="CFS"),Conversions!$C33,1) -> 2897.659967 | E33: =INDIRECT(CONCATENATE("'",E$1,"'!",E$4,(YEAR($A33)-1921)*12+MONTH($A33)+3+IF(ISNUMBER(FIND("PRV",E$6)),1,0)))*IF(AND(E$3>0,TRIM(E$9)="CFS"),Conversions!$C33,1) ->  | F33: =INDIRECT(CONCATENATE("'",F$1,"'!",F$4,(YEAR($A33)-1921)*12+MONTH($A33)+3+IF(ISNUMBER(FIND("PRV",F$6)),1,0)))*IF(AND(F$3>0,TRIM(F$9)="CFS"),Conversions!$C33,1) ->  | G33: =INDIRECT(CONCATENATE("'",G$1,"'!",G$4,(YEAR($A33)-1921)*12+MONTH($A33)+3+IF(ISNUMBER(FIND("PRV",G$6)),1,0)))*IF(AND(G$3>0,TRIM(G$9)="CFS"),Conversions!$C33,1) ->  | K33: 1943 | L33: =B265 -> 2229.999722 | M33: =B266 -> 2281.27622 | N33: =B267 -> 2523.263745 | O33: =B268 -> 2788 | P33: =B269 -> 2890 | Q33: =B270 -> 2937 | R33: =B271 -> 3350 | S33: =B272 -> 3526.168583 | T33: =B273 -> 3538 | U33: =B274 -> 3010.281986 | V33: =B275 -> 2689.90822 | W33: =B276 -> 2224.783931 | Y33: 2706.229838 | Z33: 2529.902027 | AA33: 2832.390201 | AC33: 2613.207965 | AD33: 2474.746681 | AE33: 2412.692617 | AF33: 2632.300618 | AG33: 3256.792146 | AH33: 3028.416616 | AI33: 2173.807583 | AK33: 1943 | AL33: =C265 -> 2230.399537 | AM33: =C266 -> 2281.676301 | AN33: =C267 -> 2523.664272 | AO33: =C268 -> 2788 | AP33: =C269 -> 2890 | AQ33: =C270 -> 2937 | AR33: =C271 -> 3350 | AS33: =C272 -> 3526.168583 | AT33: =C273 -> 3538 | AU33: =C274 -> 3017.263677 | AV33: =C275 -> 2672.839531 | AW33: =C276 -> 2208.027701 | AY33: 2699.847019 | AZ33: 2520.804293 | BA33: 2830.2533 | BC33: 2613.408068 | BD33: 2461.84486 | BE33: 2413.042741 | BF33: 2632.500807 | BG33: 3256.792146 | BH33: 3023.800337 | BI33: 2157.004171 | BK33: 1943 | BL33: =D265 -> 2230.342036 | BM33: =D266 -> 2281.618763 | BN33: =D267 -> 2523.606669 | BO33: =D268 -> 2788 | BP33: =D269 -> 2890 | BQ33: =D270 -> 2937 | BR33: =D271 -> 3350 | BS33: =D272 -> 3526.168583 | BT33: =D273 -> 3538 | BU33: =D274 -> 3017.263442 | BV33: =D275 -> 2673.63518 | BW33: =D276 -> 2208.817734 | BY33: 2700.17576 | BZ33: 2521.263339 | CA33: 2830.371034 | CC33: 2613.37929 | CD33: 2462.504949 | CE33: 2412.992387 | CF33: 2632.472017 | CG33: 3256.792146 | CH33: 3024.097945 | CI33: 2157.79491 | CK33: 1943 | CL33: =E265 ->  | CM33: =E266 ->  | CN33: =E267 ->  | CO33: =E268 ->  | CP33: =E269 ->  | CQ33: =E270 ->  | CR33: =E271 ->  | CS33: =E272 ->  | CT33: =E273 ->  | CU33: =E274 ->  | CV33: =E275 ->  | CW33: =E276 ->  | DK33: 1943 | DL33: =F265 ->  | DM33: =F266 ->  | DN33: =F267 ->  | DO33: =F268 ->  | DP33: =F269 ->  | DQ33: =F270 ->  | DR33: =F271 ->  | DS33: =F272 ->  | DT33: =F273 ->  | DU33: =F274 ->  | DV33: =F275 ->  | DW33: =F276 ->  | EK33: 1943 | EL33: =G265 ->  | EM33: =G266 ->  | EN33: =G267 ->  | EO33: =G268 ->  | EP33: =G269 ->  | EQ33: =G270 ->  | ER33: =G271 ->  | ES33: =G272 ->  | ET33: =G273 ->  | EU33: =G274 ->  | EV33: =G275 ->  | EW33: =G276 -> 
A34: 1923-07-31 | B34: =INDIRECT(CONCATENATE("'",B$1,"'!",B$4,(YEAR($A34)-1921)*12+MONTH($A34)+3+IF(ISNUMBER(FIND("PRV",B$6)),1,0)))*IF(AND(B$3>0,TRIM(B$9)="CFS"),Conversions!$C34,1) -> 2323.081116 | C34: =INDIRECT(CONCATENATE("'",C$1,"'!",C$4,(YEAR($A34)-1921)*12+MONTH($A34)+3+IF(ISNUMBER(FIND("PRV",C$6)),1,0)))*IF(AND(C$3>0,TRIM(C$9)="CFS"),Conversions!$C34,1) -> 2364.899675 | D34: =INDIRECT(CONCATENATE("'",D$1,"'!",D$4,(YEAR($A34)-1921)*12+MONTH($A34)+3+IF(ISNUMBER(FIND("PRV",D$6)),1,0)))*IF(AND(D$3>0,TRIM(D$9)="CFS"),Conversions!$C34,1) -> 2337.683045 | E34: =INDIRECT(CONCATENATE("'",E$1,"'!",E$4,(YEAR($A34)-1921)*12+MONTH($A34)+3+IF(ISNUMBER(FIND("PRV",E$6)),1,0)))*IF(AND(E$3>0,TRIM(E$9)="CFS"),Conversions!$C34,1) ->  | F34: =INDIRECT(CONCATENATE("'",F$1,"'!",F$4,(YEAR($A34)-1921)*12+MONTH($A34)+3+IF(ISNUMBER(FIND("PRV",F$6)),1,0)))*IF(AND(F$3>0,TRIM(F$9)="CFS"),Conversions!$C34,1) ->  | G34: =INDIRECT(CONCATENATE("'",G$1,"'!",G$4,(YEAR($A34)-1921)*12+MONTH($A34)+3+IF(ISNUMBER(FIND("PRV",G$6)),1,0)))*IF(AND(G$3>0,TRIM(G$9)="CFS"),Conversions!$C34,1) ->  | K34: 1944 | L34: =B277 -> 2008.813797 | M34: =B278 -> 1885.741826 | N34: =B279 -> 1626.059718 | O34: =B280 -> 1698.749912 | P34: =B281 -> 1863.316353 | Q34: =B282 -> 2105.597933 | R34: =B283 -> 2231.133326 | S34: =B284 -> 2442.571188 | T34: =B285 -> 2160.219139 | U34: =B286 -> 1558.975687 | V34: =B287 -> 1408.680231 | W34: =B288 -> 1307.229582 | Y34: 1694.151369 | Z34: 1671.511485 | AA34: 1858.090724 | AC34: 1826.214735 | AD34: 1360.327492 | AE34: 1870.595566 | AF34: 1733.112906 | AG34: 2197.767548 | AH34: 1750.693861 | AI34: 1251.637838 | AK34: 1944 | AL34: =C277 -> 1992.071023 | AM34: =C278 -> 1868.988048 | AN34: =C279 -> 1609.805671 | AO34: =C280 -> 1682.467334 | AP34: =C281 -> 1847.019951 | AQ34: =C282 -> 2089.251544 | AR34: =C283 -> 2214.809715 | AS34: =C284 -> 2426.946455 | AT34: =C285 -> 2205.246283 | AU34: =C286 -> 1689.838249 | AV34: =C287 -> 1539.374873 | AW34: =C288 -> 1418.503028 | AY34: 1737.765352 | AZ34: 1728.225434 | BA34: 1882.026848 | BC34: 1809.788457 | BD34: 1473.134823 | BE34: 1854.028065 | BF34: 1716.759001 | BG34: 2189.285208 | BH34: 1839.296037 | BI34: 1341.546898 | BK34: 1944 | BL34: =D277 -> 1992.860422 | BM34: =D278 -> 1869.777966 | BN34: =D279 -> 1610.585799 | BO34: =D280 -> 1683.248831 | BP34: =D281 -> 1847.802111 | BQ34: =D282 -> 2090.033951 | BR34: =D283 -> 2215.584854 | BS34: =D284 -> 2427.704552 | BT34: =D285 -> 2149.852445 | BU34: =D286 -> 1558.989726 | BV34: =D287 -> 1409.049578 | BW34: =D288 -> 1307.633795 | BY34: 1687.053317 | BZ34: 1667.077423 | CA34: 1846.927003 | CC34: 1810.572379 | CD34: 1360.661709 | CE34: 1854.814367 | CF34: 1717.541556 | CG34: 2183.037659 | CH34: 1746.390231 | CI34: 1252.060594 | CK34: 1944 | CL34: =E277 ->  | CM34: =E278 ->  | CN34: =E279 ->  | CO34: =E280 ->  | CP34: =E281 ->  | CQ34: =E282 ->  | CR34: =E283 ->  | CS34: =E284 ->  | CT34: =E285 ->  | CU34: =E286 ->  | CV34: =E287 ->  | CW34: =E288 ->  | DK34: 1944 | DL34: =F277 ->  | DM34: =F278 ->  | DN34: =F279 ->  | DO34: =F280 ->  | DP34: =F281 ->  | DQ34: =F282 ->  | DR34: =F283 ->  | DS34: =F284 ->  | DT34: =F285 ->  | DU34: =F286 ->  | DV34: =F287 ->  | DW34: =F288 ->  | EK34: 1944 | EL34: =G277 ->  | EM34: =G278 ->  | EN34: =G279 ->  | EO34: =G280 ->  | EP34: =G281 ->  | EQ34: =G282 ->  | ER34: =G283 ->  | ES34: =G284 ->  | ET34: =G285 ->  | EU34: =G286 ->  | EV34: =G287 ->  | EW34: =G288 -> 
A35: 1923-08-31 | B35: =INDIRECT(CONCATENATE("'",B$1,"'!",B$4,(YEAR($A35)-1921)*12+MONTH($A35)+3+IF(ISNUMBER(FIND("PRV",B$6)),1,0)))*IF(AND(B$3>0,TRIM(B$9)="CFS"),Conversions!$C35,1) -> 1819.815458 | C35: =INDIRECT(CONCATENATE("'",C$1,"'!",C$4,(YEAR($A35)-1921)*12+MONTH($A35)+3+IF(ISNUMBER(FIND("PRV",C$6)),1,0)))*IF(AND(C$3>0,TRIM(C$9)="CFS"),Conversions!$C35,1) -> 1861.431609 | D35: =INDIRECT(CONCATENATE("'",D$1,"'!",D$4,(YEAR($A35)-1921)*12+MONTH($A35)+3+IF(ISNUMBER(FIND("PRV",D$6)),1,0)))*IF(AND(D$3>0,TRIM(D$9)="CFS"),Conversions!$C35,1) -> 1834.257634 | E35: =INDIRECT(CONCATENATE("'",E$1,"'!",E$4,(YEAR($A35)-1921)*12+MONTH($A35)+3+IF(ISNUMBER(FIND("PRV",E$6)),1,0)))*IF(AND(E$3>0,TRIM(E$9)="CFS"),Conversions!$C35,1) ->  | F35: =INDIRECT(CONCATENATE("'",F$1,"'!",F$4,(YEAR($A35)-1921)*12+MONTH($A35)+3+IF(ISNUMBER(FIND("PRV",F$6)),1,0)))*IF(AND(F$3>0,TRIM(F$9)="CFS"),Conversions!$C35,1) ->  | G35: =INDIRECT(CONCATENATE("'",G$1,"'!",G$4,(YEAR($A35)-1921)*12+MONTH($A35)+3+IF(ISNUMBER(FIND("PRV",G$6)),1,0)))*IF(AND(G$3>0,TRIM(G$9)="CFS"),Conversions!$C35,1) ->  | K35: 1945 | L35: =B289 -> 1171.169636 | M35: =B290 -> 1144.348359 | N35: =B291 -> 1237.825077 | O35: =B292 -> 1363.526793 | P35: =B293 -> 1926.860869 | Q35: =B294 -> 2218.982535 | R35: =B295 -> 2462.592626 | S35: =B296 -> 2726.853677 | T35: =B297 -> 2611.182007 | U35: =B298 -> 2039.915256 | V35: =B299 -> 1635.844135 | W35: =B300 -> 1581.598119 | Y35: 1960.175734 | Z35: 2098.639716 | AA35: 1843.391591 | AC35: 1473.527436 | AD35: 1659.254093 | AE35: 1222.180315 | AF35: 1378.985494 | AG35: 2419.362569 | AH35: 2110.291824 | AI35: 1537.204985 | AK35: 1945 | AL35: =C289 -> 1233.214885 | AM35: =C290 -> 1206.470687 | AN35: =C291 -> 1300.041217 | AO35: =C292 -> 1425.824284 | AP35: =C293 -> 1989.183991 | AQ35: =C294 -> 2281.192599 | AR35: =C295 -> 2524.763655 | AS35: =C296 -> 2788.941946 | AT35: =C297 -> 2694.849641 | AU35: =C298 -> 2142.788057 | AV35: =C299 -> 1709.141521 | AW35: =C300 -> 1631.440173 | AY35: 2028.184506 | AZ35: 2167.143235 | BA35: 1910.654388 | BC35: 1535.744784 | BD35: 1728.287746 | BE35: 1290.472611 | BF35: 1441.230947 | BG35: 2484.228754 | BH35: 2189.24257 | BI35: 1598.568608 | BK35: 1945 | BL35: =D289 -> 1171.613785 | BM35: =D290 -> 1144.818826 | BN35: =D291 -> 1238.307352 | BO35: =D292 -> 1364.005694 | BP35: =D293 -> 1927.334521 | BQ35: =D294 -> 2219.436462 | BR35: =D295 -> 2463.046257 | BS35: =D296 -> 2727.306734 | BT35: =D297 -> 2616.743177 | BU35: =D298 -> 2042.735061 | BV35: =D299 -> 1611.532919 | BW35: =D300 -> 1557.195853 | BY35: 1950.911933 | BZ35: 2085.206519 | CA35: 1840.33972 | CC35: 1473.998304 | CD35: 1639.426393 | CE35: 1222.639927 | CF35: 1379.46324 | CG35: 2420.457076 | CH35: 2103.315612 | CI35: 1512.836417 | CK35: 1945 | CL35: =E289 ->  | CM35: =E290 ->  | CN35: =E291 ->  | CO35: =E292 ->  | CP35: =E293 ->  | CQ35: =E294 ->  | CR35: =E295 ->  | CS35: =E296 ->  | CT35: =E297 ->  | CU35: =E298 ->  | CV35: =E299 ->  | CW35: =E300 ->  | DK35: 1945 | DL35: =F289 ->  | DM35: =F290 ->  | DN35: =F291 ->  | DO35: =F292 ->  | DP35: =F293 ->  | DQ35: =F294 ->  | DR35: =F295 ->  | DS35: =F296 ->  | DT35: =F297 ->  | DU35: =F298 ->  | DV35: =F299 ->  | DW35: =F300 ->  | EK35: 1945 | EL35: =G289 ->  | EM35: =G290 ->  | EN35: =G291 ->  | EO35: =G292 ->  | EP35: =G293 ->  | EQ35: =G294 ->  | ER35: =G295 ->  | ES35: =G296 ->  | ET35: =G297 ->  | EU35: =G298 ->  | EV35: =G299 ->  | EW35: =G300 -> 
A36: 1923-09-30 | B36: =INDIRECT(CONCATENATE("'",B$1,"'!",B$4,(YEAR($A36)-1921)*12+MONTH($A36)+3+IF(ISNUMBER(FIND("PRV",B$6)),1,0)))*IF(AND(B$3>0,TRIM(B$9)="CFS"),Conversions!$C36,1) -> 1702.942332 | C36: =INDIRECT(CONCATENATE("'",C$1,"'!",C$4,(YEAR($A36)-1921)*12+MONTH($A36)+3+IF(ISNUMBER(FIND("PRV",C$6)),1,0)))*IF(AND(C$3>0,TRIM(C$9)="CFS"),Conversions!$C36,1) -> 1673.339507 | D36: =INDIRECT(CONCATENATE("'",D$1,"'!",D$4,(YEAR($A36)-1921)*12+MONTH($A36)+3+IF(ISNUMBER(FIND("PRV",D$6)),1,0)))*IF(AND(D$3>0,TRIM(D$9)="CFS"),Conversions!$C36,1) -> 1688.081543 | E36: =INDIRECT(CONCATENATE("'",E$1,"'!",E$4,(YEAR($A36)-1921)*12+MONTH($A36)+3+IF(ISNUMBER(FIND("PRV",E$6)),1,0)))*IF(AND(E$3>0,TRIM(E$9)="CFS"),Conversions!$C36,1) ->  | F36: =INDIRECT(CONCATENATE("'",F$1,"'!",F$4,(YEAR($A36)-1921)*12+MONTH($A36)+3+IF(ISNUMBER(FIND("PRV",F$6)),1,0)))*IF(AND(F$3>0,TRIM(F$9)="CFS"),Conversions!$C36,1) ->  | G36: =INDIRECT(CONCATENATE("'",G$1,"'!",G$4,(YEAR($A36)-1921)*12+MONTH($A36)+3+IF(ISNUMBER(FIND("PRV",G$6)),1,0)))*IF(AND(G$3>0,TRIM(G$9)="CFS"),Conversions!$C36,1) ->  | K36: 1946 | L36: =B301 -> 1480.724792 | M36: =B302 -> 1462.739951 | N36: =B303 -> 2011.288048 | O36: =B304 -> 2373.676829 | P36: =B305 -> 2578.278623 | Q36: =B306 -> 2869.967588 | R36: =B307 -> 3194.713626 | S36: =B308 -> 3407.657036 | T36: =B309 -> 3206.519268 | U36: =B310 -> 2621.231241 | V36: =B311 -> 2114.801256 | W36: =B312 -> 1746.571691 | Y36: 2402.671101 | Z36: 2275.514623 | AA36: 2422.347496 | AC36: 2120.265928 | AD36: 1990.245426 | AE36: 1733.097566 | AF36: 2135.158054 | AG36: 3091.184299 | AH36: 2629.916532 | AI36: 1725.70437 | AK36: 1946 | AL36: =C301 -> 1545.775029 | AM36: =C302 -> 1527.83972 | AN36: =C303 -> 2076.473462 | AO36: =C304 -> 2438.923096 | AP36: =C305 -> 2643.589918 | AQ36: =C306 -> 2935.29775 | AR36: =C307 -> 3260.009868 | AS36: =C308 -> 3472.864477 | AT36: =C309 -> 3280.799236 | AU36: =C310 -> 2706.859403 | AV36: =C311 -> 2200.568526 | AW36: =C312 -> 1834.523652 | AY36: 2460.613844 | AZ36: 2323.768558 | BA36: 2493.627011 | BC36: 2185.472517 | BD36: 2065.903963 | BE36: 1796.317461 | BF36: 2200.370459 | BG36: 3157.591668 | BH36: 2710.480307 | BI36: 1777.477759 | BK36: 1946 | BL36: =D301 -> 1456.365756 | BM36: =D302 -> 1438.362366 | BN36: =D303 -> 1986.878392 | BO36: =D304 -> 2349.162944 | BP36: =D305 -> 2553.712306 | BQ36: =D306 -> 2845.394174 | BR36: =D307 -> 3170.152972 | BS36: =D308 -> 3383.129782 | BT36: =D309 -> 3182.26013 | BU36: =D310 -> 2596.600181 | BV36: =D311 -> 2090.398299 | BW36: =D312 -> 1724.412273 | BY36: 2384.490494 | BZ36: 2261.429074 | CA36: 2398.069131 | CC36: 2095.799195 | CD36: 1970.620946 | CE36: 1708.696478 | CF36: 2110.692891 | CG36: 3066.665786 | CH36: 2605.75741 | CI36: 1714.255203 | CK36: 1946 | CL36: =E301 ->  | CM36: =E302 ->  | CN36: =E303 ->  | CO36: =E304 ->  | CP36: =E305 ->  | CQ36: =E306 ->  | CR36: =E307 ->  | CS36: =E308 ->  | CT36: =E309 ->  | CU36: =E310 ->  | CV36: =E311 ->  | CW36: =E312 ->  | DK36: 1946 | DL36: =F301 ->  | DM36: =F302 ->  | DN36: =F303 ->  | DO36: =F304 ->  | DP36: =F305 ->  | DQ36: =F306 ->  | DR36: =F307 ->  | DS36: =F308 ->  | DT36: =F309 ->  | DU36: =F310 ->  | DV36: =F311 ->  | DW36: =F312 ->  | EK36: 1946 | EL36: =G301 ->  | EM36: =G302 ->  | EN36: =G303 ->  | EO36: =G304 ->  | EP36: =G305 ->  | EQ36: =G306 ->  | ER36: =G307 ->  | ES36: =G308 ->  | ET36: =G309 ->  | EU36: =G310 ->  | EV36: =G311 ->  | EW36: =G312 -> 
A37: 1923-10-31 | B37: =INDIRECT(CONCATENATE("'",B$1,"'!",B$4,(YEAR($A37)-1921)*12+MONTH($A37)+3+IF(ISNUMBER(FIND("PRV",B$6)),1,0)))*IF(AND(B$3>0,TRIM(B$9)="CFS"),Conversions!$C37,1) -> 1580.537651 | C37: =INDIRECT(CONCATENATE("'",C$1,"'!",C$4,(YEAR($A37)-1921)*12+MONTH($A37)+3+IF(ISNUMBER(FIND("PRV",C$6)),1,0)))*IF(AND(C$3>0,TRIM(C$9)="CFS"),Conversions!$C37,1) -> 1523.719663 | D37: =INDIRECT(CONCATENATE("'",D$1,"'!",D$4,(YEAR($A37)-1921)*12+MONTH($A37)+3+IF(ISNUMBER(FIND("PRV",D$6)),1,0)))*IF(AND(D$3>0,TRIM(D$9)="CFS"),Conversions!$C37,1) -> 1565.688597 | E37: =INDIRECT(CONCATENATE("'",E$1,"'!",E$4,(YEAR($A37)-1921)*12+MONTH($A37)+3+IF(ISNUMBER(FIND("PRV",E$6)),1,0)))*IF(AND(E$3>0,TRIM(E$9)="CFS"),Conversions!$C37,1) ->  | F37: =INDIRECT(CONCATENATE("'",F$1,"'!",F$4,(YEAR($A37)-1921)*12+MONTH($A37)+3+IF(ISNUMBER(FIND("PRV",F$6)),1,0)))*IF(AND(F$3>0,TRIM(F$9)="CFS"),Conversions!$C37,1) ->  | G37: =INDIRECT(CONCATENATE("'",G$1,"'!",G$4,(YEAR($A37)-1921)*12+MONTH($A37)+3+IF(ISNUMBER(FIND("PRV",G$6)),1,0)))*IF(AND(G$3>0,TRIM(G$9)="CFS"),Conversions!$C37,1) ->  | K37: 1947 | L37: =B313 -> 1597.495423 | M37: =B314 -> 1551.290735 | N37: =B315 -> 1569.849896 | O37: =B316 -> 1595.054819 | P37: =B317 -> 1831.022901 | Q37: =B318 -> 2159.755097 | R37: =B319 -> 2316.140954 | S37: =B320 -> 2194.995473 | T37: =B321 -> 1932.591925 | U37: =B322 -> 1589.375007 | V37: =B323 -> 1434.045042 | W37: =B324 -> 1326.794924 | Y37: 1663.725373 | Z37: 1618.797772 | AA37: 1758.201016 | AC37: 1685.168722 | AD37: 1398.349651 | AE37: 1597.362327 | AF37: 1618.687178 | AG37: 2138.174734 | AH37: 1679.226793 | AI37: 1305.275843 | AK37: 1947 | AL37: =C313 -> 1618.38002 | AM37: =C314 -> 1558.490685 | AN37: =C315 -> 1577.059492 | AO37: =C316 -> 1602.216079 | AP37: =C317 -> 1838.153503 | AQ37: =C318 -> 2166.158561 | AR37: =C319 -> 2322.419121 | AS37: =C320 -> 2201.179594 | AT37: =C321 -> 2008.940951 | AU37: =C322 -> 1717.563195 | AV37: =C323 -> 1537.83658 | AW37: =C324 -> 1408.641669 | AY37: 1700.789707 | AZ37: 1653.794558 | BA37: 1796.419954 | BC37: 1693.63781 | BD37: 1486.89506 | BE37: 1618.075016 | BF37: 1625.865888 | BG37: 2153.326126 | BH37: 1767.312839 | BI37: 1359.605661 | BK37: 1947 | BL37: =D313 -> 1597.504352 | BM37: =D314 -> 1551.299671 | BN37: =D315 -> 1569.858844 | BO37: =D316 -> 1595.085051 | BP37: =D317 -> 1831.053163 | BQ37: =D318 -> 2159.941966 | BR37: =D319 -> 2316.356398 | BS37: =D320 -> 2195.221294 | BT37: =D321 -> 1932.284214 | BU37: =D322 -> 1589.375424 | BV37: =D323 -> 1432.735993 | BW37: =D324 -> 1325.595138 | BY37: 1663.122462 | BZ37: 1617.911882 | CA37: 1758.025959 | CC37: 1685.203978 | CD37: 1397.221128 | CE37: 1594.602882 | CF37: 1618.706771 | CG37: 2138.297087 | CH37: 1678.700962 | CI37: 1303.791484 | CK37: 1947 | CL37: =E313 ->  | CM37: =E314 ->  | CN37: =E315 ->  | CO37: =E316 ->  | CP37: =E317 ->  | CQ37: =E318 ->  | CR37: =E319 ->  | CS37: =E320 ->  | CT37: =E321 ->  | CU37: =E322 ->  | CV37: =E323 ->  | CW37: =E324 ->  | DK37: 1947 | DL37: =F313 ->  | DM37: =F314 ->  | DN37: =F315 ->  | DO37: =F316 ->  | DP37: =F317 ->  | DQ37: =F318 ->  | DR37: =F319 ->  | DS37: =F320 ->  | DT37: =F321 ->  | DU37: =F322 ->  | DV37: =F323 ->  | DW37: =F324 ->  | EK37: 1947 | EL37: =G313 ->  | EM37: =G314 ->  | EN37: =G315 ->  | EO37: =G316 ->  | EP37: =G317 ->  | EQ37: =G318 ->  | ER37: =G319 ->  | ES37: =G320 ->  | ET37: =G321 ->  | EU37: =G322 ->  | EV37: =G323 ->  | EW37: =G324 -> 
A38: 1923-11-30 | B38: =INDIRECT(CONCATENATE("'",B$1,"'!",B$4,(YEAR($A38)-1921)*12+MONTH($A38)+3+IF(ISNUMBER(FIND("PRV",B$6)),1,0)))*IF(AND(B$3>0,TRIM(B$9)="CFS"),Conversions!$C38,1) -> 1398.370264 | C38: =INDIRECT(CONCATENATE("'",C$1,"'!",C$4,(YEAR($A38)-1921)*12+MONTH($A38)+3+IF(ISNUMBER(FIND("PRV",C$6)),1,0)))*IF(AND(C$3>0,TRIM(C$9)="CFS"),Conversions!$C38,1) -> 1341.514324 | D38: =INDIRECT(CONCATENATE("'",D$1,"'!",D$4,(YEAR($A38)-1921)*12+MONTH($A38)+3+IF(ISNUMBER(FIND("PRV",D$6)),1,0)))*IF(AND(D$3>0,TRIM(D$9)="CFS"),Conversions!$C38,1) -> 1383.511292 | E38: =INDIRECT(CONCATENATE("'",E$1,"'!",E$4,(YEAR($A38)-1921)*12+MONTH($A38)+3+IF(ISNUMBER(FIND("PRV",E$6)),1,0)))*IF(AND(E$3>0,TRIM(E$9)="CFS"),Conversions!$C38,1) ->  | F38: =INDIRECT(CONCATENATE("'",F$1,"'!",F$4,(YEAR($A38)-1921)*12+MONTH($A38)+3+IF(ISNUMBER(FIND("PRV",F$6)),1,0)))*IF(AND(F$3>0,TRIM(F$9)="CFS"),Conversions!$C38,1) ->  | G38: =INDIRECT(CONCATENATE("'",G$1,"'!",G$4,(YEAR($A38)-1921)*12+MONTH($A38)+3+IF(ISNUMBER(FIND("PRV",G$6)),1,0)))*IF(AND(G$3>0,TRIM(G$9)="CFS"),Conversions!$C38,1) ->  | K38: 1948 | L38: =B325 -> 1279.042972 | M38: =B326 -> 1185.934224 | N38: =B327 -> 1119.951143 | O38: =B328 -> 1395.96761 | P38: =B329 -> 1490.978897 | Q38: =B330 -> 1646.981233 | R38: =B331 -> 2306.78403 | S38: =B332 -> 2771.709655 | T38: =B333 -> 2932.530217 | U38: =B334 -> 2420.007243 | V38: =B335 -> 1917.150139 | W38: =B336 -> 1823.930947 | Y38: 1943.561316 | Z38: 1957.006216 | AA38: 1857.580693 | AC38: 1331.168795 | AD38: 1920.59532 | AE38: 1236.577401 | AF38: 1284.791771 | AG38: 2234.307369 | AH38: 2391.876975 | AI38: 1722.423608 | AK38: 1948 | AL38: =C325 -> 1310.850669 | AM38: =C326 -> 1180.812709 | AN38: =C327 -> 1114.703855 | AO38: =C328 -> 1390.710891 | AP38: =C329 -> 1485.716902 | AQ38: =C330 -> 1641.783427 | AR38: =C331 -> 2301.621352 | AS38: =C332 -> 2766.966407 | AT38: =C333 -> 2928.332393 | AU38: =C334 -> 2422.273561 | AV38: =C335 -> 1918.822642 | AW38: =C336 -> 1826.569635 | AY38: 1929.732 | AZ38: 1933.776172 | BA38: 1857.43037 | BC38: 1329.652281 | BD38: 1919.21256 | BE38: 1251.510878 | BF38: 1279.559851 | BG38: 2229.348958 | BH38: 2391.549154 | BI38: 1706.853206 | BK38: 1948 | BL38: =D325 -> 1277.289086 | BM38: =D326 -> 1184.244465 | BN38: =D327 -> 1118.287348 | BO38: =D328 -> 1394.300825 | BP38: =D329 -> 1489.310438 | BQ38: =D330 -> 1645.306511 | BR38: =D331 -> 2305.109164 | BS38: =D332 -> 2770.029261 | BT38: =D333 -> 2930.843008 | BU38: =D334 -> 2419.747432 | BV38: =D335 -> 1916.247535 | BW38: =D336 -> 1823.01186 | BY38: 1929.822685 | BZ38: 1932.802085 | CA38: 1856.143911 | CC38: 1329.488175 | CD38: 1915.91182 | CE38: 1234.94222 | CF38: 1283.121875 | CG38: 2232.630415 | CH38: 2390.839634 | CI38: 1703.19765 | CK38: 1948 | CL38: =E325 ->  | CM38: =E326 ->  | CN38: =E327 ->  | CO38: =E328 ->  | CP38: =E329 ->  | CQ38: =E330 ->  | CR38: =E331 ->  | CS38: =E332 ->  | CT38: =E333 ->  | CU38: =E334 ->  | CV38: =E335 ->  | CW38: =E336 ->  | DK38: 1948 | DL38: =F325 ->  | DM38: =F326 ->  | DN38: =F327 ->  | DO38: =F328 ->  | DP38: =F329 ->  | DQ38: =F330 ->  | DR38: =F331 ->  | DS38: =F332 ->  | DT38: =F333 ->  | DU38: =F334 ->  | DV38: =F335 ->  | DW38: =F336 ->  | EK38: 1948 | EL38: =G325 ->  | EM38: =G326 ->  | EN38: =G327 ->  | EO38: =G328 ->  | EP38: =G329 ->  | EQ38: =G330 ->  | ER38: =G331 ->  | ES38: =G332 ->  | ET38: =G333 ->  | EU38: =G334 ->  | EV38: =G335 ->  | EW38: =G336 -> 
A39: 1923-12-31 | B39: =INDIRECT(CONCATENATE("'",B$1,"'!",B$4,(YEAR($A39)-1921)*12+MONTH($A39)+3+IF(ISNUMBER(FIND("PRV",B$6)),1,0)))*IF(AND(B$3>0,TRIM(B$9)="CFS"),Conversions!$C39,1) -> 1255.615981 | C39: =INDIRECT(CONCATENATE("'",C$1,"'!",C$4,(YEAR($A39)-1921)*12+MONTH($A39)+3+IF(ISNUMBER(FIND("PRV",C$6)),1,0)))*IF(AND(C$3>0,TRIM(C$9)="CFS"),Conversions!$C39,1) -> 1198.756588 | D39: =INDIRECT(CONCATENATE("'",D$1,"'!",D$4,(YEAR($A39)-1921)*12+MONTH($A39)+3+IF(ISNUMBER(FIND("PRV",D$6)),1,0)))*IF(AND(D$3>0,TRIM(D$9)="CFS"),Conversions!$C39,1) -> 1240.765316 | E39: =INDIRECT(CONCATENATE("'",E$1,"'!",E$4,(YEAR($A39)-1921)*12+MONTH($A39)+3+IF(ISNUMBER(FIND("PRV",E$6)),1,0)))*IF(AND(E$3>0,TRIM(E$9)="CFS"),Conversions!$C39,1) ->  | F39: =INDIRECT(CONCATENATE("'",F$1,"'!",F$4,(YEAR($A39)-1921)*12+MONTH($A39)+3+IF(ISNUMBER(FIND("PRV",F$6)),1,0)))*IF(AND(F$3>0,TRIM(F$9)="CFS"),Conversions!$C39,1) ->  | G39: =INDIRECT(CONCATENATE("'",G$1,"'!",G$4,(YEAR($A39)-1921)*12+MONTH($A39)+3+IF(ISNUMBER(FIND("PRV",G$6)),1,0)))*IF(AND(G$3>0,TRIM(G$9)="CFS"),Conversions!$C39,1) ->  | K39: 1949 | L39: =B337 -> 1621.402505 | M39: =B338 -> 1526.724603 | N39: =B339 -> 1468.568716 | O39: =B340 -> 1483.640751 | P39: =B341 -> 1564.644557 | Q39: =B342 -> 1811.777255 | R39: =B343 -> 2104.384822 | S39: =B344 -> 2274.806309 | T39: =B345 -> 2018.387075 | U39: =B346 -> 1558.835494 | V39: =B347 -> 1438.781942 | W39: =B348 -> 1348.798787 | Y39: 1581.600621 | Z39: 1579.831736 | AA39: 1685.062735 | AC39: 1552.033702 | AD39: 1391.994502 | AE39: 1567.620418 | AF39: 1499.298016 | AG39: 1995.621051 | AH39: 1706.951765 | AI39: 1280.104962 | AK39: 1949 | AL39: =C337 -> 1602.217243 | AM39: =C338 -> 1464.722841 | AN39: =C339 -> 1407.046711 | AO39: =C340 -> 1422.007961 | AP39: =C341 -> 1502.949897 | AQ39: =C342 -> 1749.618177 | AR39: =C343 -> 2042.055438 | AS39: =C344 -> 2252.031728 | AT39: =C345 -> 2047.152915 | AU39: =C346 -> 1610.404094 | AV39: =C347 -> 1489.668989 | AW39: =C348 -> 1397.873771 | AY39: 1572.892789 | AZ39: 1580.516579 | BA39: 1665.645813 | BC39: 1494.529024 | BD39: 1433.242069 | BE39: 1524.568898 | BF39: 1437.630347 | BG39: 1954.689187 | BH39: 1743.044687 | BI39: 1302.791868 | BK39: 1949 | BL39: =D337 -> 1597.204695 | BM39: =D338 -> 1462.505256 | BN39: =D339 -> 1404.25624 | BO39: =D340 -> 1419.212465 | BP39: =D341 -> 1500.151595 | BQ39: =D342 -> 1747.171686 | BR39: =D343 -> 2039.810338 | BS39: =D344 -> 2220.774819 | BT39: =D345 -> 1964.888189 | BU39: =D346 -> 1558.908526 | BV39: =D347 -> 1438.506243 | BW39: =D348 -> 1348.27136 | BY39: 1550.875588 | BZ39: 1559.708828 | CA39: 1641.805118 | CC39: 1491.662749 | CD39: 1391.623552 | CE39: 1521.269588 | CF39: 1434.932377 | CG39: 1935.069184 | CH39: 1686.706512 | CI39: 1279.519116 | CK39: 1949 | CL39: =E337 ->  | CM39: =E338 ->  | CN39: =E339 ->  | CO39: =E340 ->  | CP39: =E341 ->  | CQ39: =E342 ->  | CR39: =E343 ->  | CS39: =E344 ->  | CT39: =E345 ->  | CU39: =E346 ->  | CV39: =E347 ->  | CW39: =E348 ->  | DK39: 1949 | DL39: =F337 ->  | DM39: =F338 ->  | DN39: =F339 ->  | DO39: =F340 ->  | DP39: =F341 ->  | DQ39: =F342 ->  | DR39: =F343 ->  | DS39: =F344 ->  | DT39: =F345 ->  | DU39: =F346 ->  | DV39: =F347 ->  | DW39: =F348 ->  | EK39: 1949 | EL39: =G337 ->  | EM39: =G338 ->  | EN39: =G339 ->  | EO39: =G340 ->  | EP39: =G341 ->  | EQ39: =G342 ->  | ER39: =G343 ->  | ES39: =G344 ->  | ET39: =G345 ->  | EU39: =G346 ->  | EV39: =G347 ->  | EW39: =G348 -> 
A40: 1924-01-31 | B40: =INDIRECT(CONCATENATE("'",B$1,"'!",B$4,(YEAR($A40)-1921)*12+MONTH($A40)+3+IF(ISNUMBER(FIND("PRV",B$6)),1,0)))*IF(AND(B$3>0,TRIM(B$9)="CFS"),Conversions!$C40,1) -> 1275.111937 | C40: =INDIRECT(CONCATENATE("'",C$1,"'!",C$4,(YEAR($A40)-1921)*12+MONTH($A40)+3+IF(ISNUMBER(FIND("PRV",C$6)),1,0)))*IF(AND(C$3>0,TRIM(C$9)="CFS"),Conversions!$C40,1) -> 1218.150353 | D40: =INDIRECT(CONCATENATE("'",D$1,"'!",D$4,(YEAR($A40)-1921)*12+MONTH($A40)+3+IF(ISNUMBER(FIND("PRV",D$6)),1,0)))*IF(AND(D$3>0,TRIM(D$9)="CFS"),Conversions!$C40,1) -> 1260.234582 | E40: =INDIRECT(CONCATENATE("'",E$1,"'!",E$4,(YEAR($A40)-1921)*12+MONTH($A40)+3+IF(ISNUMBER(FIND("PRV",E$6)),1,0)))*IF(AND(E$3>0,TRIM(E$9)="CFS"),Conversions!$C40,1) ->  | F40: =INDIRECT(CONCATENATE("'",F$1,"'!",F$4,(YEAR($A40)-1921)*12+MONTH($A40)+3+IF(ISNUMBER(FIND("PRV",F$6)),1,0)))*IF(AND(F$3>0,TRIM(F$9)="CFS"),Conversions!$C40,1) ->  | G40: =INDIRECT(CONCATENATE("'",G$1,"'!",G$4,(YEAR($A40)-1921)*12+MONTH($A40)+3+IF(ISNUMBER(FIND("PRV",G$6)),1,0)))*IF(AND(G$3>0,TRIM(G$9)="CFS"),Conversions!$C40,1) ->  | K40: 1950 | L40: =B349 -> 1217.970058 | M40: =B350 -> 1108.310138 | N40: =B351 -> 1048.870263 | O40: =B352 -> 1303.185037 | P40: =B353 -> 1723.873653 | Q40: =B354 -> 2162.628815 | R40: =B355 -> 2656.661375 | S40: =B356 -> 2959.604322 | T40: =B357 -> 3018.657826 | U40: =B358 -> 2463.684517 | V40: =B359 -> 1977.045821 | W40: =B360 -> 1920.064252 | Y40: 2271.415273 | Z40: 2500.077049 | AA40: 1963.379673 | AC40: 1374.907706 | AD40: 2021.851448 | AE40: 1175.285593 | AF40: 1256.049065 | AG40: 2537.540063 | AH40: 2474.805612 | AI40: 1982.659335 | AK40: 1950 | AL40: =C349 -> 1213.962801 | AM40: =C350 -> 1103.409077 | AN40: =C351 -> 1043.578617 | AO40: =C352 -> 1297.884986 | AP40: =C353 -> 1718.558356 | AQ40: =C354 -> 2157.268069 | AR40: =C355 -> 2651.271189 | AS40: =C356 -> 2954.169045 | AT40: =C357 -> 3013.159875 | AU40: =C358 -> 2475.133596 | AV40: =C359 -> 1988.204787 | AW40: =C360 -> 1930.674195 | AY40: 2270.17888 | AZ40: 2499.725268 | BA40: 1962.272883 | BC40: 1369.809294 | BD40: 2029.709915 | BE40: 1177.207468 | BF40: 1250.815773 | BG40: 2532.141855 | BH40: 2479.72997 | BI40: 1984.123928 | BK40: 1950 | BL40: =D349 -> 1217.277579 | BM40: =D350 -> 1107.510576 | BN40: =D351 -> 1048.023681 | BO40: =D352 -> 1302.33711 | BP40: =D353 -> 1723.025836 | BQ40: =D354 -> 2161.782367 | BR40: =D355 -> 2655.818352 | BS40: =D356 -> 2958.767051 | BT40: =D357 -> 3017.828455 | BU40: =D358 -> 2461.19445 | BV40: =D359 -> 1974.357433 | BW40: =D360 -> 1917.393418 | BY40: 2269.89759 | BZ40: 2498.700678 | CA40: 1962.109692 | CC40: 1374.085435 | CD40: 2019.207001 | CE40: 1174.529018 | CF40: 1255.209666 | CG40: 2536.698729 | CH40: 2472.865143 | CI40: 1979.992789 | CK40: 1950 | CL40: =E349 ->  | CM40: =E350 ->  | CN40: =E351 ->  | CO40: =E352 ->  | CP40: =E353 ->  | CQ40: =E354 ->  | CR40: =E355 ->  | CS40: =E356 ->  | CT40: =E357 ->  | CU40: =E358 ->  | CV40: =E359 ->  | CW40: =E360 ->  | DK40: 1950 | DL40: =F349 ->  | DM40: =F350 ->  | DN40: =F351 ->  | DO40: =F352 ->  | DP40: =F353 ->  | DQ40: =F354 ->  | DR40: =F355 ->  | DS40: =F356 ->  | DT40: =F357 ->  | DU40: =F358 ->  | DV40: =F359 ->  | DW40: =F360 ->  | EK40: 1950 | EL40: =G349 ->  | EM40: =G350 ->  | EN40: =G351 ->  | EO40: =G352 ->  | EP40: =G353 ->  | EQ40: =G354 ->  | ER40: =G355 ->  | ES40: =G356 ->  | ET40: =G357 ->  | EU40: =G358 ->  | EV40: =G359 ->  | EW40: =G360 -> 
A41: 1924-02-29 | B41: =INDIRECT(CONCATENATE("'",B$1,"'!",B$4,(YEAR($A41)-1921)*12+MONTH($A41)+3+IF(ISNUMBER(FIND("PRV",B$6)),1,0)))*IF(AND(B$3>0,TRIM(B$9)="CFS"),Conversions!$C41,1) -> 1454.94053 | C41: =INDIRECT(CONCATENATE("'",C$1,"'!",C$4,(YEAR($A41)-1921)*12+MONTH($A41)+3+IF(ISNUMBER(FIND("PRV",C$6)),1,0)))*IF(AND(C$3>0,TRIM(C$9)="CFS"),Conversions!$C41,1) -> 1397.922949 | D41: =INDIRECT(CONCATENATE("'",D$1,"'!",D$4,(YEAR($A41)-1921)*12+MONTH($A41)+3+IF(ISNUMBER(FIND("PRV",D$6)),1,0)))*IF(AND(D$3>0,TRIM(D$9)="CFS"),Conversions!$C41,1) -> 1440.048549 | E41: =INDIRECT(CONCATENATE("'",E$1,"'!",E$4,(YEAR($A41)-1921)*12+MONTH($A41)+3+IF(ISNUMBER(FIND("PRV",E$6)),1,0)))*IF(AND(E$3>0,TRIM(E$9)="CFS"),Conversions!$C41,1) ->  | F41: =INDIRECT(CONCATENATE("'",F$1,"'!",F$4,(YEAR($A41)-1921)*12+MONTH($A41)+3+IF(ISNUMBER(FIND("PRV",F$6)),1,0)))*IF(AND(F$3>0,TRIM(F$9)="CFS"),Conversions!$C41,1) ->  | G41: =INDIRECT(CONCATENATE("'",G$1,"'!",G$4,(YEAR($A41)-1921)*12+MONTH($A41)+3+IF(ISNUMBER(FIND("PRV",G$6)),1,0)))*IF(AND(G$3>0,TRIM(G$9)="CFS"),Conversions!$C41,1) ->  | K41: 1951 | L41: =B361 -> 1873.204025 | M41: =B362 -> 2332.373635 | N41: =B363 -> 2866 | O41: =B364 -> 2846 | P41: =B365 -> 2925 | Q41: =B366 -> 3105 | R41: =B367 -> 3361.564475 | S41: =B368 -> 3538 | T41: =B369 -> 3420.124748 | U41: =B370 -> 2847.991797 | V41: =B371 -> 2383.826206 | W41: =B372 -> 1944.784015 | Y41: 2664.815746 | Z41: 2633.564305 | AA41: 2786.989075 | AC41: 2691.695129 | AD41: 2212.394846 | AE41: 2363.652446 | AF41: 2780.228939 | AG41: 3294.281712 | AH41: 2848.33369 | AI41: 1920.749113 | AK41: 1951 | AL41: =C361 -> 1865.367933 | AM41: =C362 -> 2324.454526 | AN41: =C363 -> 2866 | AO41: =C364 -> 2846 | AP41: =C365 -> 2925 | AQ41: =C366 -> 3105 | AR41: =C367 -> 3361.564475 | AS41: =C368 -> 3538 | AT41: =C369 -> 3420.26902 | AU41: =C370 -> 2858.721264 | AV41: =C371 -> 2394.426857 | AW41: =C372 -> 1953.689315 | AY41: 2669.608287 | AZ41: 2639.118524 | BA41: 2788.207783 | BC41: 2689.327698 | BD41: 2222.168048 | BE41: 2361.039889 | BF41: 2778.909088 | BG41: 3294.299746 | BH41: 2854.81545 | BI41: 1929.968199 | BK41: 1951 | BL41: =D361 -> 1870.545855 | BM41: =D362 -> 2329.720756 | BN41: =D363 -> 2866 | BO41: =D364 -> 2846 | BP41: =D365 -> 2925 | BQ41: =D366 -> 3105 | BR41: =D367 -> 3361.564475 | BS41: =D368 -> 3538 | BT41: =D369 -> 3420.27128 | BU41: =D370 -> 2858.738816 | BV41: =D371 -> 2394.439404 | BW41: =D372 -> 1953.697126 | BY41: 2669.612 | BZ41: 2639.121645 | CA41: 2789.081476 | CC41: 2690.898737 | CD41: 2222.179061 | CE41: 2361.99083 | CF41: 2779.786793 | CG41: 3294.300029 | CH41: 2854.824516 | CI41: 1929.976108 | CK41: 1951 | CL41: =E361 ->  | CM41: =E362 ->  | CN41: =E363 ->  | CO41: =E364 ->  | CP41: =E365 ->  | CQ41: =E366 ->  | CR41: =E367 ->  | CS41: =E368 ->  | CT41: =E369 ->  | CU41: =E370 ->  | CV41: =E371 ->  | CW41: =E372 ->  | DK41: 1951 | DL41: =F361 ->  | DM41: =F362 ->  | DN41: =F363 ->  | DO41: =F364 ->  | DP41: =F365 ->  | DQ41: =F366 ->  | DR41: =F367 ->  | DS41: =F368 ->  | DT41: =F369 ->  | DU41: =F370 ->  | DV41: =F371 ->  | DW41: =F372 ->  | EK41: 1951 | EL41: =G361 ->  | EM41: =G362 ->  | EN41: =G363 ->  | EO41: =G364 ->  | EP41: =G365 ->  | EQ41: =G366 ->  | ER41: =G367 ->  | ES41: =G368 ->  | ET41: =G369 ->  | EU41: =G370 ->  | EV41: =G371 ->  | EW41: =G372 -> 
A42: 1924-03-31 | B42: =INDIRECT(CONCATENATE("'",B$1,"'!",B$4,(YEAR($A42)-1921)*12+MONTH($A42)+3+IF(ISNUMBER(FIND("PRV",B$6)),1,0)))*IF(AND(B$3>0,TRIM(B$9)="CFS"),Conversions!$C42,1) -> 1419.217207 | C42: =INDIRECT(CONCATENATE("'",C$1,"'!",C$4,(YEAR($A42)-1921)*12+MONTH($A42)+3+IF(ISNUMBER(FIND("PRV",C$6)),1,0)))*IF(AND(C$3>0,TRIM(C$9)="CFS"),Conversions!$C42,1) -> 1362.286378 | D42: =INDIRECT(CONCATENATE("'",D$1,"'!",D$4,(YEAR($A42)-1921)*12+MONTH($A42)+3+IF(ISNUMBER(FIND("PRV",D$6)),1,0)))*IF(AND(D$3>0,TRIM(D$9)="CFS"),Conversions!$C42,1) -> 1404.42138 | E42: =INDIRECT(CONCATENATE("'",E$1,"'!",E$4,(YEAR($A42)-1921)*12+MONTH($A42)+3+IF(ISNUMBER(FIND("PRV",E$6)),1,0)))*IF(AND(E$3>0,TRIM(E$9)="CFS"),Conversions!$C42,1) ->  | F42: =INDIRECT(CONCATENATE("'",F$1,"'!",F$4,(YEAR($A42)-1921)*12+MONTH($A42)+3+IF(ISNUMBER(FIND("PRV",F$6)),1,0)))*IF(AND(F$3>0,TRIM(F$9)="CFS"),Conversions!$C42,1) ->  | G42: =INDIRECT(CONCATENATE("'",G$1,"'!",G$4,(YEAR($A42)-1921)*12+MONTH($A42)+3+IF(ISNUMBER(FIND("PRV",G$6)),1,0)))*IF(AND(G$3>0,TRIM(G$9)="CFS"),Conversions!$C42,1) ->  | K42: 1952 | L42: =B373 -> 1769.156838 | M42: =B374 -> 1712.786766 | N42: =B375 -> 2123.55411 | O42: =B376 -> 2563.98271 | P42: =B377 -> 2832 | Q42: =B378 -> 2988 | R42: =B379 -> 3452 | S42: =B380 -> 3538 | T42: =B381 -> 3538 | U42: =B382 -> 3538 | V42: =B383 -> 3477.267417 | W42: =B384 -> 3122.354132 | Y42: 3140.131039 | Z42: 3179.385794 | AA42: 2887.925164 | AC42: 2322.180401 | AD42: 3273.242219 | AE42: 1964.970269 | AF42: 2319.976734 | AG42: 3290.75 | AH42: 3470.861121 | AI42: 3056.359017 | AK42: 1952 | AL42: =C373 -> 1778.054682 | AM42: =C374 -> 1721.894341 | AN42: =C375 -> 2132.679485 | AO42: =C376 -> 2573.122845 | AP42: =C377 -> 2832 | AQ42: =C378 -> 2988 | AR42: =C379 -> 3452 | AS42: =C380 -> 3538 | AT42: =C381 -> 3538 | AU42: =C382 -> 3538 | AV42: =C383 -> 3476.815389 | AW42: =C384 -> 3138.24401 | AY42: 3144.826172 | AZ42: 3183.319249 | BA42: 2892.234229 | BC42: 2328.544802 | BD42: 3281.034335 | BE42: 1974.008647 | BF42: 2327.583167 | BG42: 3290.75 | BH42: 3472.734348 | BI42: 3069.520406 | BK42: 1952 | BL42: =D373 -> 1778.062487 | BM42: =D374 -> 1721.898015 | BN42: =D375 -> 2132.672395 | BO42: =D376 -> 2573.115743 | BP42: =D377 -> 2832 | BQ42: =D378 -> 2988 | BR42: =D379 -> 3452 | BS42: =D380 -> 3538 | BT42: =D381 -> 3538 | BU42: =D382 -> 3538 | BV42: =D383 -> 3476.83181 | BW42: =D384 -> 3140.323558 | BY42: 3145.346659 | BZ42: 3183.840329 | CA42: 2892.408667 | CC42: 2328.543479 | CD42: 3282.079301 | CE42: 1974.009833 | CF42: 2327.579048 | CG42: 3290.75 | CH42: 3472.998397 | CI42: 3071.255466 | CK42: 1952 | CL42: =E373 ->  | CM42: =E374 ->  | CN42: =E375 ->  | CO42: =E376 ->  | CP42: =E377 ->  | CQ42: =E378 ->  | CR42: =E379 ->  | CS42: =E380 ->  | CT42: =E381 ->  | CU42: =E382 ->  | CV42: =E383 ->  | CW42: =E384 ->  | DK42: 1952 | DL42: =F373 ->  | DM42: =F374 ->  | DN42: =F375 ->  | DO42: =F376 ->  | DP42: =F377 ->  | DQ42: =F378 ->  | DR42: =F379 ->  | DS42: =F380 ->  | DT42: =F381 ->  | DU42: =F382 ->  | DV42: =F383 ->  | DW42: =F384 ->  | EK42: 1952 | EL42: =G373 ->  | EM42: =G374 ->  | EN42: =G375 ->  | EO42: =G376 ->  | EP42: =G377 ->  | EQ42: =G378 ->  | ER42: =G379 ->  | ES42: =G380 ->  | ET42: =G381 ->  | EU42: =G382 ->  | EV42: =G383 ->  | EW42: =G384 -> 
A43: 1924-04-30 | B43: =INDIRECT(CONCATENATE("'",B$1,"'!",B$4,(YEAR($A43)-1921)*12+MONTH($A43)+3+IF(ISNUMBER(FIND("PRV",B$6)),1,0)))*IF(AND(B$3>0,TRIM(B$9)="CFS"),Conversions!$C43,1) -> 1400.011192 | C43: =INDIRECT(CONCATENATE("'",C$1,"'!",C$4,(YEAR($A43)-1921)*12+MONTH($A43)+3+IF(ISNUMBER(FIND("PRV",C$6)),1,0)))*IF(AND(C$3>0,TRIM(C$9)="CFS"),Conversions!$C43,1) -> 1343.191673 | D43: =INDIRECT(CONCATENATE("'",D$1,"'!",D$4,(YEAR($A43)-1921)*12+MONTH($A43)+3+IF(ISNUMBER(FIND("PRV",D$6)),1,0)))*IF(AND(D$3>0,TRIM(D$9)="CFS"),Conversions!$C43,1) -> 1385.293622 | E43: =INDIRECT(CONCATENATE("'",E$1,"'!",E$4,(YEAR($A43)-1921)*12+MONTH($A43)+3+IF(ISNUMBER(FIND("PRV",E$6)),1,0)))*IF(AND(E$3>0,TRIM(E$9)="CFS"),Conversions!$C43,1) ->  | F43: =INDIRECT(CONCATENATE("'",F$1,"'!",F$4,(YEAR($A43)-1921)*12+MONTH($A43)+3+IF(ISNUMBER(FIND("PRV",F$6)),1,0)))*IF(AND(F$3>0,TRIM(F$9)="CFS"),Conversions!$C43,1) ->  | G43: =INDIRECT(CONCATENATE("'",G$1,"'!",G$4,(YEAR($A43)-1921)*12+MONTH($A43)+3+IF(ISNUMBER(FIND("PRV",G$6)),1,0)))*IF(AND(G$3>0,TRIM(G$9)="CFS"),Conversions!$C43,1) ->  | K43: 1953 | L43: =B385 -> 2902.210213 | M43: =B386 -> 2811.757994 | N43: =B387 -> 2918 | O43: =B388 -> 2809 | P43: =B389 -> 3058.039775 | Q43: =B390 -> 3059 | R43: =B391 -> 3284 | S43: =B392 -> 3538 | T43: =B393 -> 3538 | U43: =B394 -> 3084.132513 | V43: =B395 -> 2714.151989 | W43: =B396 -> 2306.726283 | Y43: 2798.316328 | Z43: 2688.297242 | AA43: 3001.918231 | AC43: 2915.480575 | AD43: 2538.962357 | AE43: 2899.411318 | AF43: 2887.299628 | AG43: 3294.754972 | AH43: 3064.661911 | AI43: 2278.508361 | AK43: 1953 | AL43: =C385 -> 2918.08721 | AM43: =C386 -> 2827.644606 | AN43: =C387 -> 2918 | AO43: =C388 -> 2809 | AP43: =C389 -> 3058.039775 | AQ43: =C390 -> 3059 | AR43: =C391 -> 3284 | AS43: =C392 -> 3538 | AT43: =C393 -> 3538 | AU43: =C394 -> 3084.338592 | AV43: =C395 -> 2711.305919 | AW43: =C396 -> 2303.968474 | AY43: 2797.282589 | AZ43: 2687.017216 | BA43: 3004.115381 | BC43: 2920.245597 | BD43: 2536.669508 | BE43: 2909.338455 | BF43: 2889.947397 | BG43: 3294.754972 | BH43: 3063.657187 | BI43: 2275.736746 | BK43: 1953 | BL43: =D385 -> 2920.165072 | BM43: =D386 -> 2829.723727 | BN43: =D387 -> 2918 | BO43: =D388 -> 2809 | BP43: =D389 -> 3058.039775 | BQ43: =D390 -> 3059 | BR43: =D391 -> 3284 | BS43: =D392 -> 3538 | BT43: =D393 -> 3538 | BU43: =D394 -> 3084.335353 | BV43: =D395 -> 2711.271061 | BW43: =D396 -> 2303.915015 | BY43: 2797.261017 | BZ43: 2686.983892 | CA43: 3004.454167 | CC43: 2920.869208 | CD43: 2536.630627 | CE43: 2910.637645 | CF43: 2890.293917 | CG43: 3294.754972 | CH43: 3063.64098 | CI43: 2275.686405 | CK43: 1953 | CL43: =E385 ->  | CM43: =E386 ->  | CN43: =E387 ->  | CO43: =E388 ->  | CP43: =E389 ->  | CQ43: =E390 ->  | CR43: =E391 ->  | CS43: =E392 ->  | CT43: =E393 ->  | CU43: =E394 ->  | CV43: =E395 ->  | CW43: =E396 ->  | DK43: 1953 | DL43: =F385 ->  | DM43: =F386 ->  | DN43: =F387 ->  | DO43: =F388 ->  | DP43: =F389 ->  | DQ43: =F390 ->  | DR43: =F391 ->  | DS43: =F392 ->  | DT43: =F393 ->  | DU43: =F394 ->  | DV43: =F395 ->  | DW43: =F396 ->  | EK43: 1953 | EL43: =G385 ->  | EM43: =G386 ->  | EN43: =G387 ->  | EO43: =G388 ->  | EP43: =G389 ->  | EQ43: =G390 ->  | ER43: =G391 ->  | ES43: =G392 ->  | ET43: =G393 ->  | EU43: =G394 ->  | EV43: =G395 ->  | EW43: =G396 -> 
A44: 1924-05-31 | B44: =INDIRECT(CONCATENATE("'",B$1,"'!",B$4,(YEAR($A44)-1921)*12+MONTH($A44)+3+IF(ISNUMBER(FIND("PRV",B$6)),1,0)))*IF(AND(B$3>0,TRIM(B$9)="CFS"),Conversions!$C44,1) -> 1251.606961 | C44: =INDIRECT(CONCATENATE("'",C$1,"'!",C$4,(YEAR($A44)-1921)*12+MONTH($A44)+3+IF(ISNUMBER(FIND("PRV",C$6)),1,0)))*IF(AND(C$3>0,TRIM(C$9)="CFS"),Conversions!$C44,1) -> 1195.889377 | D44: =INDIRECT(CONCATENATE("'",D$1,"'!",D$4,(YEAR($A44)-1921)*12+MONTH($A44)+3+IF(ISNUMBER(FIND("PRV",D$6)),1,0)))*IF(AND(D$3>0,TRIM(D$9)="CFS"),Conversions!$C44,1) -> 1237.911243 | E44: =INDIRECT(CONCATENATE("'",E$1,"'!",E$4,(YEAR($A44)-1921)*12+MONTH($A44)+3+IF(ISNUMBER(FIND("PRV",E$6)),1,0)))*IF(AND(E$3>0,TRIM(E$9)="CFS"),Conversions!$C44,1) ->  | F44: =INDIRECT(CONCATENATE("'",F$1,"'!",F$4,(YEAR($A44)-1921)*12+MONTH($A44)+3+IF(ISNUMBER(FIND("PRV",F$6)),1,0)))*IF(AND(F$3>0,TRIM(F$9)="CFS"),Conversions!$C44,1) ->  | G44: =INDIRECT(CONCATENATE("'",G$1,"'!",G$4,(YEAR($A44)-1921)*12+MONTH($A44)+3+IF(ISNUMBER(FIND("PRV",G$6)),1,0)))*IF(AND(G$3>0,TRIM(G$9)="CFS"),Conversions!$C44,1) ->  | K44: 1954 | L44: =B397 -> 2107.885086 | M44: =B398 -> 2127.675437 | N44: =B399 -> 1953.184858 | O44: =B400 -> 2089.828419 | P44: =B401 -> 2456.982321 | Q44: =B402 -> 2943 | R44: =B403 -> 3292 | S44: =B404 -> 3426.181943 | T44: =B405 -> 3273.813273 | U44: =B406 -> 2721.9398 | V44: =B407 -> 2275.151067 | W44: =B408 -> 1837.180466 | Y44: 2423.996971 | Z44: 2327.384906 | AA44: 2542.068556 | AC44: 2230.622716 | AD44: 2092.752454 | AE44: =IF(AE$11="AVG",IF(AE$1="INST-VAL",AVERAGE(W43,L44:N44,L44:O44),AVERAGE(L44:O44)),SUM(L44:O44)) -> 2096.755683 | AF44: 2111.780719 | AG44: 3131.644935 | AH44: 2725.646336 | AI44: 1789.737947 | AK44: 1954 | AL44: =C397 -> 2105.12967 | AM44: =C398 -> 2124.91827 | AN44: =C399 -> 1951.69037 | AO44: =C400 -> 2088.35083 | AP44: =C401 -> 2455.504467 | AQ44: =C402 -> 2943 | AR44: =C403 -> 3292 | AS44: =C404 -> 3428.175915 | AT44: =C405 -> 3274.955566 | AU44: =C406 -> 2723.933109 | AV44: =C407 -> 2277.453741 | AW44: =C408 -> 1839.950833 | AY44: 2425.293592 | AZ44: 2329.390846 | BA44: 2542.088564 | BC44: 2228.905755 | BD44: 2095.237032 | BE44: 2094.474491 | BF44: 2110.08419 | BG44: 3132.101483 | BH44: 2727.601447 | BI44: 1792.429581 | BK44: 1954 | BL44: =D397 -> 2105.076257 | BM44: =D398 -> 2124.864824 | BN44: =D399 -> 1951.629917 | BO44: =D400 -> 2088.28032 | BP44: =D401 -> 2455.433952 | BQ44: =D402 -> 2943 | BR44: =D403 -> 3292 | BS44: =D404 -> 3428.155261 | BT44: =D405 -> 3274.921446 | BU44: =D406 -> 2723.895301 | BV44: =D407 -> 2277.41177 | BW44: =D408 -> 1839.904453 | BY44: 2425.255165 | BZ44: 2329.356421 | CA44: 2542.047792 | CC44: 2228.849428 | CD44: 2095.193557 | CE44: =IF(CE$11="AVG",IF(CE$1="INST-VAL",AVERAGE(BW43,BL44:BN44,BL44:BO44),AVERAGE(BL44:BO44)),SUM(BL44:BO44)) -> 2094.417167 | CF44: =IF(CF$11="AVG",IF(CE$1="INST-VAL",AVERAGE(BM44:BO44,BN44:BP44),AVERAGE(BN44:BP44)),SUM(BN44:BP44)) -> 2110.019875 | CG44: =IF(CG$11="AVG",IF(CE$1="INST-VAL",AVERAGE(BP44:BS44,BQ44:BT44),AVERAGE(BQ44:BT44)),SUM(BQ44:BT44)) -> 3132.08324 | CH44: =IF(CH$11="AVG",IF(CE$1="INST-VAL",AVERAGE(BS44:BV44,BT44:BW44),AVERAGE(BT44:BW44)),SUM(BT44:BW44)) -> 2727.564593 | CI44: =IF(CI$11="AVG",IF(CE$1="INST-VAL",AVERAGE(BV44:BW44,BL45,BW44,BL45:BM45),AVERAGE(BW44,BL45:BM45)),SUM(BW44,BL45:BM45)) -> 1792.383949 | CK44: 1954 | CL44: =E397 ->  | CM44: =E398 ->  | CN44: =E399 ->  | CO44: =E400 ->  | CP44: =E401 ->  | CQ44: =E402 ->  | CR44: =E403 ->  | CS44: =E404 ->  | CT44: =E405 ->  | CU44: =E406 ->  | CV44: =E407 ->  | CW44: =E408 ->  | DK44: 1954 | DL44: =F397 ->  | DM44: =F398 ->  | DN44: =F399 ->  | DO44: =F400 ->  | DP44: =F401 ->  | DQ44: =F402 ->  | DR44: =F403 ->  | DS44: =F404 ->  | DT44: =F405 ->  | DU44: =F406 ->  | DV44: =F407 ->  | DW44: =F408 ->  | EK44: 1954 | EL44: =G397 ->  | EM44: =G398 ->  | EN44: =G399 ->  | EO44: =G400 ->  | EP44: =G401 ->  | EQ44: =G402 ->  | ER44: =G403 ->  | ES44: =G404 ->  | ET44: =G405 ->  | EU44: =G406 ->  | EV44: =G407 ->  | EW44: =G408 -> 
A45: 1924-06-30 | B45: =INDIRECT(CONCATENATE("'",B$1,"'!",B$4,(YEAR($A45)-1921)*12+MONTH($A45)+3+IF(ISNUMBER(FIND("PRV",B$6)),1,0)))*IF(AND(B$3>0,TRIM(B$9)="CFS"),Conversions!$C45,1) -> 1020.595045 | C45: =INDIRECT(CONCATENATE("'",C$1,"'!",C$4,(YEAR($A45)-1921)*12+MONTH($A45)+3+IF(ISNUMBER(FIND("PRV",C$6)),1,0)))*IF(AND(C$3>0,TRIM(C$9)="CFS"),Conversions!$C45,1) -> 1028.641445 | D45: =INDIRECT(CONCATENATE("'",D$1,"'!",D$4,(YEAR($A45)-1921)*12+MONTH($A45)+3+IF(ISNUMBER(FIND("PRV",D$6)),1,0)))*IF(AND(D$3>0,TRIM(D$9)="CFS"),Conversions!$C45,1) -> 1006.829177 | E45: =INDIRECT(CONCATENATE("'",E$1,"'!",E$4,(YEAR($A45)-1921)*12+MONTH($A45)+3+IF(ISNUMBER(FIND("PRV",E$6)),1,0)))*IF(AND(E$3>0,TRIM(E$9)="CFS"),Conversions!$C45,1) ->  | F45: =INDIRECT(CONCATENATE("'",F$1,"'!",F$4,(YEAR($A45)-1921)*12+MONTH($A45)+3+IF(ISNUMBER(FIND("PRV",F$6)),1,0)))*IF(AND(F$3>0,TRIM(F$9)="CFS"),Conversions!$C45,1) ->  | G45: =INDIRECT(CONCATENATE("'",G$1,"'!",G$4,(YEAR($A45)-1921)*12+MONTH($A45)+3+IF(ISNUMBER(FIND("PRV",G$6)),1,0)))*IF(AND(G$3>0,TRIM(G$9)="CFS"),Conversions!$C45,1) ->  | K45: 1955 | L45: =B409 -> 1609.911856 | M45: =B410 -> 1569.091973 | N45: =B411 -> 1592.882537 | O45: =B412 -> 1649.935737 | P45: =B413 -> 1737.530215 | Q45: =B414 -> 1862.111729 | R45: =B415 -> 1931.648231 | S45: =B416 -> 2088.458176 | T45: =B417 -> 1851.085639 | U45: =B418 -> 1589.83471 | V45: =B419 -> 1487.036898 | W45: =B420 -> 1414.871578 | Y45: 1713.531272 | Z45: 1895.909109 | AA45: 1698.69994 | AC45: 1657.090451 | AD45: 1441.382129 | AE45: 1628.861117 | AF45: 1632.043123 | AG45: 1919.131516 | AH45: 1669.905531 | AI45: 1324.940203 | AK45: 1955 | AL45: =C409 -> 1612.679938 | AM45: =C410 -> 1571.862201 | AN45: =C411 -> 1595.656505 | AO45: =C412 -> 1652.713412 | AP45: =C413 -> 1740.308931 | AQ45: =C414 -> 1864.902798 | AR45: =C415 -> 1934.455545 | AS45: =C416 -> 2091.272793 | AT45: =C417 -> 1910.702935 | AU45: =C418 -> 1619.303413 | AV45: =C419 -> 1489.964603 | AW45: =C420 -> 1417.801923 | AY45: 1709.337058 | AZ45: 1891.251862 | BA45: 1708.46875 | BC45: 1659.866483 | BD45: 1440.541029 | BE45: 1631.632691 | BF45: 1634.818494 | BG45: 1929.034267 | BH45: 1693.627077 | BI45: 1301.582568 | BK45: 1955 | BL45: =D409 -> 1612.633596 | BM45: =D410 -> 1571.815823 | BN45: =D411 -> 1595.610065 | BO45: =D412 -> 1652.666916 | BP45: =D413 -> 1740.262425 | BQ45: =D414 -> 1864.856378 | BR45: =D415 -> 1934.399376 | BS45: =D416 -> 2091.206851 | BT45: =D417 -> 1850.831194 | BU45: =D418 -> 1589.835054 | BV45: =D419 -> 1489.01596 | BW45: =D420 -> 1416.855499 | BY45: 1715.481593 | BZ45: 1897.404148 | CA45: 1700.832428 | CC45: 1659.820043 | CD45: 1443.034807 | CE45: 1631.586292 | CF45: 1634.772035 | CG45: 1921.502354 | CH45: 1670.928346 | CI45: 1326.927311 | CK45: 1955 | CL45: =E409 ->  | CM45: =E410 ->  | CN45: =E411 ->  | CO45: =E412 ->  | CP45: =E413 ->  | CQ45: =E414 ->  | CR45: =E415 ->  | CS45: =E416 ->  | CT45: =E417 ->  | CU45: =E418 ->  | CV45: =E419 ->  | CW45: =E420 ->  | DK45: 1955 | DL45: =F409 ->  | DM45: =F410 ->  | DN45: =F411 ->  | DO45: =F412 ->  | DP45: =F413 ->  | DQ45: =F414 ->  | DR45: =F415 ->  | DS45: =F416 ->  | DT45: =F417 ->  | DU45: =F418 ->  | DV45: =F419 ->  | DW45: =F420 ->  | EK45: 1955 | EL45: =G409 ->  | EM45: =G410 ->  | EN45: =G411 ->  | EO45: =G412 ->  | EP45: =G413 ->  | EQ45: =G414 ->  | ER45: =G415 ->  | ES45: =G416 ->  | ET45: =G417 ->  | EU45: =G418 ->  | EV45: =G419 ->  | EW45: =G420 -> 
A46: 1924-07-31 | B46: =INDIRECT(CONCATENATE("'",B$1,"'!",B$4,(YEAR($A46)-1921)*12+MONTH($A46)+3+IF(ISNUMBER(FIND("PRV",B$6)),1,0)))*IF(AND(B$3>0,TRIM(B$9)="CFS"),Conversions!$C46,1) -> 768.3293818 | C46: =INDIRECT(CONCATENATE("'",C$1,"'!",C$4,(YEAR($A46)-1921)*12+MONTH($A46)+3+IF(ISNUMBER(FIND("PRV",C$6)),1,0)))*IF(AND(C$3>0,TRIM(C$9)="CFS"),Conversions!$C46,1) -> 776.2056258 | D46: =INDIRECT(CONCATENATE("'",D$1,"'!",D$4,(YEAR($A46)-1921)*12+MONTH($A46)+3+IF(ISNUMBER(FIND("PRV",D$6)),1,0)))*IF(AND(D$3>0,TRIM(D$9)="CFS"),Conversions!$C46,1) -> 754.4423851 | E46: =INDIRECT(CONCATENATE("'",E$1,"'!",E$4,(YEAR($A46)-1921)*12+MONTH($A46)+3+IF(ISNUMBER(FIND("PRV",E$6)),1,0)))*IF(AND(E$3>0,TRIM(E$9)="CFS"),Conversions!$C46,1) ->  | F46: =INDIRECT(CONCATENATE("'",F$1,"'!",F$4,(YEAR($A46)-1921)*12+MONTH($A46)+3+IF(ISNUMBER(FIND("PRV",F$6)),1,0)))*IF(AND(F$3>0,TRIM(F$9)="CFS"),Conversions!$C46,1) ->  | G46: =INDIRECT(CONCATENATE("'",G$1,"'!",G$4,(YEAR($A46)-1921)*12+MONTH($A46)+3+IF(ISNUMBER(FIND("PRV",G$6)),1,0)))*IF(AND(G$3>0,TRIM(G$9)="CFS"),Conversions!$C46,1) ->  | K46: 1956 | L46: =B421 -> 1254.641112 | M46: =B422 -> 1123.578939 | N46: =B423 -> 2571.642295 | O46: =B424 -> 2788 | P46: =B425 -> 2788 | Q46: =B426 -> 3018 | R46: =B427 -> 3427 | S46: =B428 -> 3538 | T46: =B429 -> 3538 | U46: =B430 -> 3172.400745 | V46: =B431 -> 3069.974966 | W46: =B432 -> 2779.460002 | Y46: 2965.463469 | Z46: 2926.267463 | AA46: 2755.724838 | AC46: 2281.508358 | AD46: 2916.514938 | AE46: 1762.824534 | AF46: 2438.477255 | AG46: 3286.5 | AH46: 3234.776428 | AI46: 2737.344385 | AK46: 1956 | AL46: =C421 -> 1208.409711 | AM46: =C422 -> 1067.107537 | AN46: =C423 -> 2515.101089 | AO46: =C424 -> 2788 | AP46: =C425 -> 2788 | AQ46: =C426 -> 3018 | AR46: =C427 -> 3427 | AS46: =C428 -> 3538 | AT46: =C429 -> 3538 | AU46: =C430 -> 3166.007051 | AV46: =C431 -> 3063.569015 | AW46: =C432 -> 2771.59292 | AY46: 2961.86921 | AZ46: 2921.549586 | BA46: 2740.732277 | BC46: 2254.282696 | BD46: 2909.381403 | BE46: 1723.379825 | BF46: 2410.218286 | BG46: 3286.5 | BH46: 3230.593132 | BI46: 2729.722889 | BK46: 1956 | BL46: =D421 -> 1256.630872 | BM46: =D422 -> 1125.575162 | BN46: =D423 -> 2573.643429 | BO46: =D424 -> 2788 | BP46: =D425 -> 2788 | BQ46: =D426 -> 3018 | BR46: =D427 -> 3427 | BS46: =D428 -> 3538 | BT46: =D429 -> 3538 | BU46: =D430 -> 3165.999359 | BV46: =D431 -> 3063.553326 | BW46: =D432 -> 2771.546501 | BY46: 2961.850506 | BZ46: 2921.517177 | CA46: 2754.495721 | CC46: 2282.506805 | CD46: 2909.351688 | CE46: 1764.569303 | CF46: 2439.477003 | CG46: 3286.5 | CH46: 3230.581484 | CI46: 2729.681604 | CK46: 1956 | CL46: =E421 ->  | CM46: =E422 ->  | CN46: =E423 ->  | CO46: =E424 ->  | CP46: =E425 ->  | CQ46: =E426 ->  | CR46: =E427 ->  | CS46: =E428 ->  | CT46: =E429 ->  | CU46: =E430 ->  | CV46: =E431 ->  | CW46: =E432 ->  | DK46: 1956 | DL46: =F421 ->  | DM46: =F422 ->  | DN46: =F423 ->  | DO46: =F424 ->  | DP46: =F425 ->  | DQ46: =F426 ->  | DR46: =F427 ->  | DS46: =F428 ->  | DT46: =F429 ->  | DU46: =F430 ->  | DV46: =F431 ->  | DW46: =F432 ->  | EK46: 1956 | EL46: =G421 ->  | EM46: =G422 ->  | EN46: =G423 ->  | EO46: =G424 ->  | EP46: =G425 ->  | EQ46: =G426 ->  | ER46: =G427 ->  | ES46: =G428 ->  | ET46: =G429 ->  | EU46: =G430 ->  | EV46: =G431 ->  | EW46: =G432 -> 
A47: 1924-08-31 | B47: =INDIRECT(CONCATENATE("'",B$1,"'!",B$4,(YEAR($A47)-1921)*12+MONTH($A47)+3+IF(ISNUMBER(FIND("PRV",B$6)),1,0)))*IF(AND(B$3>0,TRIM(B$9)="CFS"),Conversions!$C47,1) -> 597.897665 | C47: =INDIRECT(CONCATENATE("'",C$1,"'!",C$4,(YEAR($A47)-1921)*12+MONTH($A47)+3+IF(ISNUMBER(FIND("PRV",C$6)),1,0)))*IF(AND(C$3>0,TRIM(C$9)="CFS"),Conversions!$C47,1) -> 597.8837941 | D47: =INDIRECT(CONCATENATE("'",D$1,"'!",D$4,(YEAR($A47)-1921)*12+MONTH($A47)+3+IF(ISNUMBER(FIND("PRV",D$6)),1,0)))*IF(AND(D$3>0,TRIM(D$9)="CFS"),Conversions!$C47,1) -> 596.2674273 | E47: =INDIRECT(CONCATENATE("'",E$1,"'!",E$4,(YEAR($A47)-1921)*12+MONTH($A47)+3+IF(ISNUMBER(FIND("PRV",E$6)),1,0)))*IF(AND(E$3>0,TRIM(E$9)="CFS"),Conversions!$C47,1) ->  | F47: =INDIRECT(CONCATENATE("'",F$1,"'!",F$4,(YEAR($A47)-1921)*12+MONTH($A47)+3+IF(ISNUMBER(FIND("PRV",F$6)),1,0)))*IF(AND(F$3>0,TRIM(F$9)="CFS"),Conversions!$C47,1) ->  | G47: =INDIRECT(CONCATENATE("'",G$1,"'!",G$4,(YEAR($A47)-1921)*12+MONTH($A47)+3+IF(ISNUMBER(FIND("PRV",G$6)),1,0)))*IF(AND(G$3>0,TRIM(G$9)="CFS"),Conversions!$C47,1) ->  | K47: 1957 | L47: =B433 -> 2627.818947 | M47: =B434 -> 2539.533448 | N47: =B435 -> 2299.373517 | O47: =B436 -> 2381.069297 | P47: =B437 -> 2724.578634 | Q47: =B438 -> 2990 | R47: =B439 -> 3165.615883 | S47: =B440 -> 3457.254583 | T47: =B441 -> 3409.015672 | U47: =B442 -> 2923.96315 | V47: =B443 -> 2457.130947 | W47: =B444 -> 2036.328409 | Y47: 2620.143902 | Z47: 2619.497508 | AA47: 2750.973541 | AC47: 2550.692874 | AD47: 2314.69549 | AE47: 2511.74764 | AF47: 2437.499618 | AG47: 3169.916905 | AH47: 2884.225316 | AI47: 2062.014125 | AK47: 1957 | AL47: =C433 -> 2619.9575 | AM47: =C434 -> 2531.66748 | AN47: =C435 -> 2292.636559 | AO47: =C436 -> 2374.324923 | AP47: =C437 -> 2717.839585 | AQ47: =C438 -> 2990 | AR47: =C439 -> 3165.606399 | AS47: =C440 -> 3457.229978 | AT47: =C441 -> 3407.389187 | AU47: =C442 -> 2921.463472 | AV47: =C443 -> 2454.494884 | AW47: =C444 -> 2033.820122 | AY47: 2606.7501 | AZ47: 2603.377209 | BA47: 2747.202507 | BC47: 2544.289459 | BD47: 2304.934054 | BE47: 2504.305115 | BF47: 2430.571672 | BG47: 3168.862691 | BH47: 2882.218148 | BI47: 2037.80426 | BK47: 1957 | BL47: =D433 -> 2619.911113 | BM47: =D434 -> 2531.621067 | BN47: =D435 -> 2292.574706 | BO47: =D436 -> 2374.25031 | BP47: =D437 -> 2717.74974 | BQ47: =D438 -> 2990 | BR47: =D439 -> 3165.547342 | BS47: =D440 -> 3457.076755 | BT47: =D441 -> 3407.130682 | BU47: =D442 -> 2920.646745 | BV47: =D443 -> 2453.649603 | BW47: =D444 -> 2032.960088 | BY47: 2606.194616 | BZ47: 2602.731472 | CA47: 2746.926513 | CC47: 2544.230276 | CD47: 2304.051387 | CE47: 2504.251323 | CF47: 2430.503473 | CG47: 3168.766077 | CH47: 2881.611363 | CI47: 2036.822605 | CK47: 1957 | CL47: =E433 ->  | CM47: =E434 ->  | CN47: =E435 ->  | CO47: =E436 ->  | CP47: =E437 ->  | CQ47: =E438 ->  | CR47: =E439 ->  | CS47: =E440 ->  | CT47: =E441 ->  | CU47: =E442 ->  | CV47: =E443 ->  | CW47: =E444 ->  | DK47: 1957 | DL47: =F433 ->  | DM47: =F434 ->  | DN47: =F435 ->  | DO47: =F436 ->  | DP47: =F437 ->  | DQ47: =F438 ->  | DR47: =F439 ->  | DS47: =F440 ->  | DT47: =F441 ->  | DU47: =F442 ->  | DV47: =F443 ->  | DW47: =F444 ->  | EK47: 1957 | EL47: =G433 ->  | EM47: =G434 ->  | EN47: =G435 ->  | EO47: =G436 ->  | EP47: =G437 ->  | EQ47: =G438 ->  | ER47: =G439 ->  | ES47: =G440 ->  | ET47: =G441 ->  | EU47: =G442 ->  | EV47: =G443 ->  | EW47: =G444 -> 
A48: 1924-09-30 | B48: =INDIRECT(CONCATENATE("'",B$1,"'!",B$4,(YEAR($A48)-1921)*12+MONTH($A48)+3+IF(ISNUMBER(FIND("PRV",B$6)),1,0)))*IF(AND(B$3>0,TRIM(B$9)="CFS"),Conversions!$C48,1) -> 563.5488974 | C48: =INDIRECT(CONCATENATE("'",C$1,"'!",C$4,(YEAR($A48)-1921)*12+MONTH($A48)+3+IF(ISNUMBER(FIND("PRV",C$6)),1,0)))*IF(AND(C$3>0,TRIM(C$9)="CFS"),Conversions!$C48,1) -> 499.8781998 | D48: =INDIRECT(CONCATENATE("'",D$1,"'!",D$4,(YEAR($A48)-1921)*12+MONTH($A48)+3+IF(ISNUMBER(FIND("PRV",D$6)),1,0)))*IF(AND(D$3>0,TRIM(D$9)="CFS"),Conversions!$C48,1) -> 562.1288713 | E48: =INDIRECT(CONCATENATE("'",E$1,"'!",E$4,(YEAR($A48)-1921)*12+MONTH($A48)+3+IF(ISNUMBER(FIND("PRV",E$6)),1,0)))*IF(AND(E$3>0,TRIM(E$9)="CFS"),Conversions!$C48,1) ->  | F48: =INDIRECT(CONCATENATE("'",F$1,"'!",F$4,(YEAR($A48)-1921)*12+MONTH($A48)+3+IF(ISNUMBER(FIND("PRV",F$6)),1,0)))*IF(AND(F$3>0,TRIM(F$9)="CFS"),Conversions!$C48,1) ->  | G48: =INDIRECT(CONCATENATE("'",G$1,"'!",G$4,(YEAR($A48)-1921)*12+MONTH($A48)+3+IF(ISNUMBER(FIND("PRV",G$6)),1,0)))*IF(AND(G$3>0,TRIM(G$9)="CFS"),Conversions!$C48,1) ->  | K48: 1958 | L48: =B445 -> 1977.291079 | M48: =B446 -> 1887.714827 | N48: =B447 -> 2031.764346 | O48: =B448 -> 2309.891202 | P48: =B449 -> 2788 | Q48: =B450 -> 2788 | R48: =B451 -> 3235 | S48: =B452 -> 3538 | T48: =B453 -> 3538 | U48: =B454 -> 3526.162081 | V48: =B455 -> 3466.794159 | W48: =B456 -> 3141.545859 | Y48: 3055.527043 | Z48: 3109.111327 | AA48: 2852.346963 | AC48: 2280.003183 | AD48: 3276.678742 | AE48: 2017.470014 | AF48: 2226.50432 | AG48: 3181 | AH48: 3467.682292 | AI48: 3066.618774 | AK48: 1958 | AL48: =C445 -> 1931.510842 | AM48: =C446 -> 1841.668749 | AN48: =C447 -> 1985.653061 | AO48: =C448 -> 2263.689819 | AP48: =C449 -> 2788 | AQ48: =C450 -> 2788 | AR48: =C451 -> 3235 | AS48: =C452 -> 3538 | AT48: =C453 -> 3538 | AU48: =C454 -> 3526.706139 | AV48: =C455 -> 3467.16818 | AW48: =C456 -> 3141.545861 | AY48: 3052.086591 | AZ48: 3109.854237 | BA48: 2837.078554 | BC48: 2247.75341 | BD48: 3276.894092 | BE48: 1976.896906 | BF48: 2188.059085 | BG48: 3181 | BH48: 3467.911812 | BI48: 3066.681113 | BK48: 1958 | BL48: =D445 -> 1930.442198 | BM48: =D446 -> 1840.481458 | BN48: =D447 -> 1984.400474 | BO48: =D448 -> 2262.442319 | BP48: =D449 -> 2788 | BQ48: =D450 -> 2788 | BR48: =D451 -> 3235 | BS48: =D452 -> 3538 | BT48: =D453 -> 3538 | BU48: =D454 -> 3526.678989 | BV48: =D455 -> 3467.113382 | BW48: =D456 -> 3141.54586 | BY48: 3051.83446 | BZ48: 3109.564682 | CA48: 2836.67539 | CC48: 2246.90907 | CD48: 3276.871301 | CE48: 1975.756333 | CF48: 2187.027841 | CG48: 3181 | CH48: 3467.891325 | CI48: 3066.671979 | CK48: 1958 | CL48: =E445 ->  | CM48: =E446 ->  | CN48: =E447 ->  | CO48: =E448 ->  | CP48: =E449 ->  | CQ48: =E450 ->  | CR48: =E451 ->  | CS48: =E452 ->  | CT48: =E453 ->  | CU48: =E454 ->  | CV48: =E455 ->  | CW48: =E456 ->  | DK48: 1958 | DL48: =F445 ->  | DM48: =F446 ->  | DN48: =F447 ->  | DO48: =F448 ->  | DP48: =F449 ->  | DQ48: =F450 ->  | DR48: =F451 ->  | DS48: =F452 ->  | DT48: =F453 ->  | DU48: =F454 ->  | DV48: =F455 ->  | DW48: =F456 ->  | EK48: 1958 | EL48: =G445 ->  | EM48: =G446 ->  | EN48: =G447 ->  | EO48: =G448 ->  | EP48: =G449 ->  | EQ48: =G450 ->  | ER48: =G451 ->  | ES48: =G452 ->  | ET48: =G453 ->  | EU48: =G454 ->  | EV48: =G455 ->  | EW48: =G456 -> 
A49: 1924-10-31 | B49: =INDIRECT(CONCATENATE("'",B$1,"'!",B$4,(YEAR($A49)-1921)*12+MONTH($A49)+3+IF(ISNUMBER(FIND("PRV",B$6)),1,0)))*IF(AND(B$3>0,TRIM(B$9)="CFS"),Conversions!$C49,1) -> 571.3510073 | C49: =INDIRECT(CONCATENATE("'",C$1,"'!",C$4,(YEAR($A49)-1921)*12+MONTH($A49)+3+IF(ISNUMBER(FIND("PRV",C$6)),1,0)))*IF(AND(C$3>0,TRIM(C$9)="CFS"),Conversions!$C49,1) -> 507.5243684 | D49: =INDIRECT(CONCATENATE("'",D$1,"'!",D$4,(YEAR($A49)-1921)*12+MONTH($A49)+3+IF(ISNUMBER(FIND("PRV",D$6)),1,0)))*IF(AND(D$3>0,TRIM(D$9)="CFS"),Conversions!$C49,1) -> 569.9269895 | E49: =INDIRECT(CONCATENATE("'",E$1,"'!",E$4,(YEAR($A49)-1921)*12+MONTH($A49)+3+IF(ISNUMBER(FIND("PRV",E$6)),1,0)))*IF(AND(E$3>0,TRIM(E$9)="CFS"),Conversions!$C49,1) ->  | F49: =INDIRECT(CONCATENATE("'",F$1,"'!",F$4,(YEAR($A49)-1921)*12+MONTH($A49)+3+IF(ISNUMBER(FIND("PRV",F$6)),1,0)))*IF(AND(F$3>0,TRIM(F$9)="CFS"),Conversions!$C49,1) ->  | G49: =INDIRECT(CONCATENATE("'",G$1,"'!",G$4,(YEAR($A49)-1921)*12+MONTH($A49)+3+IF(ISNUMBER(FIND("PRV",G$6)),1,0)))*IF(AND(G$3>0,TRIM(G$9)="CFS"),Conversions!$C49,1) ->  | K49: 1959 | L49: =B457 -> 2917.230333 | M49: =B458 -> 2815.366104 | N49: =B459 -> 2602.334783 | O49: =B460 -> 2901.902603 | P49: =B461 -> 2839 | Q49: =B462 -> 3054 | R49: =B463 -> 3135.260084 | S49: =B464 -> 3118.514523 | T49: =B465 -> 2891.916866 | U49: =B466 -> 2226.688246 | V49: =B467 -> 1711.590755 | W49: =B468 -> 1594.164513 | Y49: 2295.458984 | Z49: 2090.678218 | AA49: 2650.664068 | AC49: 2828.843731 | AD49: 1719.33196 | AE49: 2839.163863 | AF49: 2777.140146 | AG49: 3043.30826 | AH49: 2296.633846 | AI49: 1531.371554 | AK49: 1959 | AL49: =C457 -> 2917.230334 | AM49: =C458 -> 2815.366106 | AN49: =C459 -> 2606.332655 | AO49: =C460 -> 2905.901569 | AP49: =C461 -> 2839 | AQ49: =C462 -> 3054 | AR49: =C463 -> 3135.28268 | AS49: =C464 -> 3126.004812 | AT49: =C465 -> 2904.00469 | AU49: =C466 -> 2245.901016 | AV49: =C467 -> 1730.797361 | AW49: =C468 -> 1606.670474 | AY49: 2301.659639 | AZ49: 2096.539095 | BA49: 2657.207642 | BC49: 2830.443099 | BD49: 1733.098441 | BE49: 2840.663203 | BF49: 2779.805759 | BG49: 3046.697459 | BH49: 2311.760178 | BI49: 1538.721795 | BK49: 1959 | BL49: =D457 -> 2917.230334 | BM49: =D458 -> 2815.366106 | BN49: =D459 -> 2604.636529 | BO49: =D460 -> 2904.204979 | BP49: =D461 -> 2839 | BQ49: =D462 -> 3054 | BR49: =D463 -> 3135.273054 | BS49: =D464 -> 3126.015001 | BT49: =D465 -> 2898.698501 | BU49: =D466 -> 2233.452707 | BV49: =D467 -> 1718.334224 | BW49: =D468 -> 1594.15766 | BY49: 2297.965483 | BZ49: 2092.991706 | CA49: 2653.364091 | CC49: 2829.764556 | CD49: 1722.703768 | CE49: 2840.027097 | CF49: 2778.674853 | CG49: 3046.034326 | CH49: 2302.642941 | CI49: 1532.489757 | CK49: 1959 | CL49: =E457 ->  | CM49: =E458 ->  | CN49: =E459 ->  | CO49: =E460 ->  | CP49: =E461 ->  | CQ49: =E462 ->  | CR49: =E463 ->  | CS49: =E464 ->  | CT49: =E465 ->  | CU49: =E466 ->  | CV49: =E467 ->  | CW49: =E468 ->  | DK49: 1959 | DL49: =F457 ->  | DM49: =F458 ->  | DN49: =F459 ->  | DO49: =F460 ->  | DP49: =F461 ->  | DQ49: =F462 ->  | DR49: =F463 ->  | DS49: =F464 ->  | DT49: =F465 ->  | DU49: =F466 ->  | DV49: =F467 ->  | DW49: =F468 ->  | EK49: 1959 | EL49: =G457 ->  | EM49: =G458 ->  | EN49: =G459 ->  | EO49: =G460 ->  | EP49: =G461 ->  | EQ49: =G462 ->  | ER49: =G463 ->  | ES49: =G464 ->  | ET49: =G465 ->  | EU49: =G466 ->  | EV49: =G467 ->  | EW49: =G468 -> 
A50: 1924-11-30 | B50: =INDIRECT(CONCATENATE("'",B$1,"'!",B$4,(YEAR($A50)-1921)*12+MONTH($A50)+3+IF(ISNUMBER(FIND("PRV",B$6)),1,0)))*IF(AND(B$3>0,TRIM(B$9)="CFS"),Conversions!$C50,1) -> 616.243691 | C50: =INDIRECT(CONCATENATE("'",C$1,"'!",C$4,(YEAR($A50)-1921)*12+MONTH($A50)+3+IF(ISNUMBER(FIND("PRV",C$6)),1,0)))*IF(AND(C$3>0,TRIM(C$9)="CFS"),Conversions!$C50,1) -> 552.3319659 | D50: =INDIRECT(CONCATENATE("'",D$1,"'!",D$4,(YEAR($A50)-1921)*12+MONTH($A50)+3+IF(ISNUMBER(FIND("PRV",D$6)),1,0)))*IF(AND(D$3>0,TRIM(D$9)="CFS"),Conversions!$C50,1) -> 614.8143822 | E50: =INDIRECT(CONCATENATE("'",E$1,"'!",E$4,(YEAR($A50)-1921)*12+MONTH($A50)+3+IF(ISNUMBER(FIND("PRV",E$6)),1,0)))*IF(AND(E$3>0,TRIM(E$9)="CFS"),Conversions!$C50,1) ->  | F50: =INDIRECT(CONCATENATE("'",F$1,"'!",F$4,(YEAR($A50)-1921)*12+MONTH($A50)+3+IF(ISNUMBER(FIND("PRV",F$6)),1,0)))*IF(AND(F$3>0,TRIM(F$9)="CFS"),Conversions!$C50,1) ->  | G50: =INDIRECT(CONCATENATE("'",G$1,"'!",G$4,(YEAR($A50)-1921)*12+MONTH($A50)+3+IF(ISNUMBER(FIND("PRV",G$6)),1,0)))*IF(AND(G$3>0,TRIM(G$9)="CFS"),Conversions!$C50,1) ->  | K50: 1960 | L50: =B469 -> 1477.79298 | M50: =B470 -> 1332.723581 | N50: =B471 -> 1261.95366 | O50: =B472 -> 1363.128139 | P50: =B473 -> 1920.405271 | Q50: =B474 -> 2484.733457 | R50: =B475 -> 2740.822276 | S50: =B476 -> 2800.9766 | T50: =B477 -> 2492.551692 | U50: =B478 -> 1835.625868 | V50: =B479 -> 1592.041822 | W50: =B480 -> 1525.692496 | Y50: 1900.682081 | Z50: 1885.212673 | AA50: 1902.370653 | AC50: 1571.894774 | AD50: 1577.157405 | AE50: 1387.779137 | AF50: 1417.215408 | AG50: 2558.252704 | AH50: 2020.888483 | AI50: 1459.025751 | AK50: 1960 | AL50: =C469 -> 1477.753962 | AM50: =C470 -> 1332.684537 | AN50: =C471 -> 1261.914564 | AO50: =C472 -> 1363.088973 | AP50: =C473 -> 1920.366066 | AQ50: =C474 -> 2484.692987 | AR50: =C475 -> 2722.264434 | AS50: =C476 -> 2782.360407 | AT50: =C477 -> 2536.940042 | AU50: =C478 -> 1897.874496 | AV50: =C479 -> 1615.202723 | AW50: =C480 -> 1508.697377 | AY50: 1896.5904 | AZ50: 1874.186941 | BA50: 1908.653381 | BC50: 1571.855523 | BD50: 1582.669447 | BE50: 1389.308197 | BF50: 1417.17628 | BG50: 2554.492721 | BH50: 2048.886538 | BI50: 1436.461124 | BK50: 1960 | BL50: =D469 -> 1477.786134 | BM50: =D470 -> 1332.716731 | BN50: =D471 -> 1261.9468 | BO50: =D472 -> 1363.121267 | BP50: =D473 -> 1920.398392 | BQ50: =D474 -> 2484.725363 | BR50: =D475 -> 2722.283076 | BS50: =D476 -> 2782.368233 | BT50: =D477 -> 2500.470003 | BU50: =D478 -> 1812.79506 | BV50: =D479 -> 1592.686323 | BW50: =D480 -> 1526.474938 | BY50: 1896.647985 | BZ50: 1881.299262 | CA50: 1898.147693 | CC50: 1571.887788 | CD50: 1573.957555 | CE50: 1387.772282 | CF50: 1417.208543 | CG50: 2549.952717 | CH50: 2015.093243 | CI50: 1459.78257 | CK50: 1960 | CL50: =E469 ->  | CM50: =E470 ->  | CN50: =E471 ->  | CO50: =E472 ->  | CP50: =E473 ->  | CQ50: =E474 ->  | CR50: =E475 ->  | CS50: =E476 ->  | CT50: =E477 ->  | CU50: =E478 ->  | CV50: =E479 ->  | CW50: =E480 ->  | DK50: 1960 | DL50: =F469 ->  | DM50: =F470 ->  | DN50: =F471 ->  | DO50: =F472 ->  | DP50: =F473 ->  | DQ50: =F474 ->  | DR50: =F475 ->  | DS50: =F476 ->  | DT50: =F477 ->  | DU50: =F478 ->  | DV50: =F479 ->  | DW50: =F480 ->  | EK50: 1960 | EL50: =G469 ->  | EM50: =G470 ->  | EN50: =G471 ->  | EO50: =G472 ->  | EP50: =G473 ->  | EQ50: =G474 ->  | ER50: =G475 ->  | ES50: =G476 ->  | ET50: =G477 ->  | EU50: =G478 ->  | EV50: =G479 ->  | EW50: =G480 -> 
A51: 1924-12-31 | B51: =INDIRECT(CONCATENATE("'",B$1,"'!",B$4,(YEAR($A51)-1921)*12+MONTH($A51)+3+IF(ISNUMBER(FIND("PRV",B$6)),1,0)))*IF(AND(B$3>0,TRIM(B$9)="CFS"),Conversions!$C51,1) -> 681.7636572 | C51: =INDIRECT(CONCATENATE("'",C$1,"'!",C$4,(YEAR($A51)-1921)*12+MONTH($A51)+3+IF(ISNUMBER(FIND("PRV",C$6)),1,0)))*IF(AND(C$3>0,TRIM(C$9)="CFS"),Conversions!$C51,1) -> 617.7698908 | D51: =INDIRECT(CONCATENATE("'",D$1,"'!",D$4,(YEAR($A51)-1921)*12+MONTH($A51)+3+IF(ISNUMBER(FIND("PRV",D$6)),1,0)))*IF(AND(D$3>0,TRIM(D$9)="CFS"),Conversions!$C51,1) -> 680.331594 | E51: =INDIRECT(CONCATENATE("'",E$1,"'!",E$4,(YEAR($A51)-1921)*12+MONTH($A51)+3+IF(ISNUMBER(FIND("PRV",E$6)),1,0)))*IF(AND(E$3>0,TRIM(E$9)="CFS"),Conversions!$C51,1) ->  | F51: =INDIRECT(CONCATENATE("'",F$1,"'!",F$4,(YEAR($A51)-1921)*12+MONTH($A51)+3+IF(ISNUMBER(FIND("PRV",F$6)),1,0)))*IF(AND(F$3>0,TRIM(F$9)="CFS"),Conversions!$C51,1) ->  | G51: =INDIRECT(CONCATENATE("'",G$1,"'!",G$4,(YEAR($A51)-1921)*12+MONTH($A51)+3+IF(ISNUMBER(FIND("PRV",G$6)),1,0)))*IF(AND(G$3>0,TRIM(G$9)="CFS"),Conversions!$C51,1) ->  | K51: 1961 | L51: =B481 -> 1391.849924 | M51: =B482 -> 1327.027843 | N51: =B483 -> 1333.329588 | O51: =B484 -> 1419.322405 | P51: =B485 -> 1678.57811 | Q51: =B486 -> 1935.04271 | R51: =B487 -> 2055.537509 | S51: =B488 -> 2085.440471 | T51: =B489 -> 1855.09548 | U51: =B490 -> 1589.539727 | V51: =B491 -> 1431.752275 | W51: =B492 -> 1346.989308 | Y51: 1576.304441 | Z51: 1568.568943 | AA51: 1620.792113 | AC51: 1484.340853 | AD51: 1395.512606 | AE51: 1381.178701 | AF51: 1418.48499 | AG51: 1960.714371 | AH51: 1648.150593 | AI51: 1286.236583 | AK51: 1961 | AL51: =C481 -> 1350.341983 | AM51: =C482 -> 1285.4853 | AN51: =C483 -> 1291.770006 | AO51: =C484 -> 1377.69502 | AP51: =C485 -> 1636.918511 | AQ51: =C486 -> 1893.816881 | AR51: =C487 -> 2014.373462 | AS51: =C488 -> 2044.385084 | AT51: =C489 -> 1932.388501 | AU51: =C490 -> 1689.059287 | AV51: =C491 -> 1505.685867 | AW51: =C492 -> 1420.643459 | AY51: 1584.416282 | AZ51: 1582.494001 | BA51: 1620.213614 | BC51: 1442.789654 | BD51: 1460.159482 | BE51: 1342.698372 | BF51: 1376.888978 | BG51: 1934.307233 | BH51: 1714.911982 | BI51: 1319.711717 | BK51: 1961 | BL51: =D481 -> 1392.627746 | BM51: =D482 -> 1327.80373 | BN51: =D483 -> 1334.021686 | BO51: =D484 -> 1420.030017 | BP51: =D485 -> 1679.304972 | BQ51: =D486 -> 1936.248194 | BR51: =D487 -> 2056.772369 | BS51: =D488 -> 2086.727818 | BT51: =D489 -> 1861.240742 | BU51: =D490 -> 1589.531205 | BV51: =D491 -> 1425.924402 | BW51: =D492 -> 1341.326215 | BY51: 1574.53508 | BZ51: 1565.385096 | CA51: 1620.963258 | CC51: 1485.119675 | CD51: 1390.763479 | CE51: 1381.92641 | CF51: 1419.202018 | CG51: 1962.505309 | CH51: 1647.680841 | CI51: 1280.245455 | CK51: 1961 | CL51: =E481 ->  | CM51: =E482 ->  | CN51: =E483 ->  | CO51: =E484 ->  | CP51: =E485 ->  | CQ51: =E486 ->  | CR51: =E487 ->  | CS51: =E488 ->  | CT51: =E489 ->  | CU51: =E490 ->  | CV51: =E491 ->  | CW51: =E492 ->  | DK51: 1961 | DL51: =F481 ->  | DM51: =F482 ->  | DN51: =F483 ->  | DO51: =F484 ->  | DP51: =F485 ->  | DQ51: =F486 ->  | DR51: =F487 ->  | DS51: =F488 ->  | DT51: =F489 ->  | DU51: =F490 ->  | DV51: =F491 ->  | DW51: =F492 ->  | EK51: 1961 | EL51: =G481 ->  | EM51: =G482 ->  | EN51: =G483 ->  | EO51: =G484 ->  | EP51: =G485 ->  | EQ51: =G486 ->  | ER51: =G487 ->  | ES51: =G488 ->  | ET51: =G489 ->  | EU51: =G490 ->  | EV51: =G491 ->  | EW51: =G492 -> 
A52: 1925-01-31 | B52: =INDIRECT(CONCATENATE("'",B$1,"'!",B$4,(YEAR($A52)-1921)*12+MONTH($A52)+3+IF(ISNUMBER(FIND("PRV",B$6)),1,0)))*IF(AND(B$3>0,TRIM(B$9)="CFS"),Conversions!$C52,1) -> 818.4761777 | C52: =INDIRECT(CONCATENATE("'",C$1,"'!",C$4,(YEAR($A52)-1921)*12+MONTH($A52)+3+IF(ISNUMBER(FIND("PRV",C$6)),1,0)))*IF(AND(C$3>0,TRIM(C$9)="CFS"),Conversions!$C52,1) -> 754.3417426 | D52: =INDIRECT(CONCATENATE("'",D$1,"'!",D$4,(YEAR($A52)-1921)*12+MONTH($A52)+3+IF(ISNUMBER(FIND("PRV",D$6)),1,0)))*IF(AND(D$3>0,TRIM(D$9)="CFS"),Conversions!$C52,1) -> 817.0409666 | E52: =INDIRECT(CONCATENATE("'",E$1,"'!",E$4,(YEAR($A52)-1921)*12+MONTH($A52)+3+IF(ISNUMBER(FIND("PRV",E$6)),1,0)))*IF(AND(E$3>0,TRIM(E$9)="CFS"),Conversions!$C52,1) ->  | F52: =INDIRECT(CONCATENATE("'",F$1,"'!",F$4,(YEAR($A52)-1921)*12+MONTH($A52)+3+IF(ISNUMBER(FIND("PRV",F$6)),1,0)))*IF(AND(F$3>0,TRIM(F$9)="CFS"),Conversions!$C52,1) ->  | G52: =INDIRECT(CONCATENATE("'",G$1,"'!",G$4,(YEAR($A52)-1921)*12+MONTH($A52)+3+IF(ISNUMBER(FIND("PRV",G$6)),1,0)))*IF(AND(G$3>0,TRIM(G$9)="CFS"),Conversions!$C52,1) ->  | K52: 1962 | L52: =B493 -> 1226.05274 | M52: =B494 -> 1139.583129 | N52: =B495 -> 1152.719433 | O52: =B496 -> 1236.938821 | P52: =B497 -> 1768.135711 | Q52: =B498 -> 2111.502984 | R52: =B499 -> 2614.411028 | S52: =B500 -> 2800.970793 | T52: =B501 -> 2678.414783 | U52: =B502 -> 2042.928374 | V52: =B503 -> 1590.701471 | W52: =B504 -> 1498.439329 | Y52: 2072.676151 | Z52: 2292.217766 | AA52: 1821.733216 | AC52: 1393.230991 | AD52: 1716.050469 | AE52: 1202.579841 | AF52: 1281.172558 | AG52: 2437.540013 | AH52: 2115.437422 | AI52: 1803.404341 | AK52: 1962 | AL52: =C493 -> 1219.23895 | AM52: =C494 -> 1132.819616 | AN52: =C495 -> 1145.970748 | AO52: =C496 -> 1230.178006 | AP52: =C497 -> 1761.368156 | AQ52: =C498 -> 2104.733466 | AR52: =C499 -> 2607.666083 | AS52: =C500 -> 2779.225979 | AT52: =C501 -> 2680.343641 | AU52: =C502 -> 2061.153147 | AV52: =C503 -> 1628.706705 | AW52: =C504 -> 1536.455078 | AY52: 2085.916512 | AZ52: 2309.652909 | BA52: 1823.988298 | BC52: 1386.464547 | BD52: 1750.758739 | BE52: 1205.860011 | BF52: 1274.414213 | BG52: 2428.120356 | BH52: 2132.011005 | BI52: 1841.194006 | BK52: 1962 | BL52: =D493 -> 1220.548436 | BM52: =D494 -> 1131.799024 | BN52: =D495 -> 1144.967562 | BO52: =D496 -> 1229.173017 | BP52: =D497 -> 1760.362165 | BQ52: =D498 -> 2103.661025 | BR52: =D499 -> 2606.589813 | BS52: =D500 -> 2778.131619 | BT52: =D501 -> 2662.921755 | BU52: =D502 -> 2022.066852 | BV52: =D503 -> 1590.727584 | BW52: =D504 -> 1498.585643 | BY52: 2065.194019 | BZ52: 2286.044618 | CA52: 1812.461208 | CC52: 1385.6813 | CD52: 1712.655389 | CE52: 1195.64116 | CF52: 1273.407058 | CG52: 2425.006104 | CH52: 2103.518706 | CI52: 1803.530517 | CK52: 1962 | CL52: =E493 ->  | CM52: =E494 ->  | CN52: =E495 ->  | CO52: =E496 ->  | CP52: =E497 ->  | CQ52: =E498 ->  | CR52: =E499 ->  | CS52: =E500 ->  | CT52: =E501 ->  | CU52: =E502 ->  | CV52: =E503 ->  | CW52: =E504 ->  | DK52: 1962 | DL52: =F493 ->  | DM52: =F494 ->  | DN52: =F495 ->  | DO52: =F496 ->  | DP52: =F497 ->  | DQ52: =F498 ->  | DR52: =F499 ->  | DS52: =F500 ->  | DT52: =F501 ->  | DU52: =F502 ->  | DV52: =F503 ->  | DW52: =F504 ->  | EK52: 1962 | EL52: =G493 ->  | EM52: =G494 ->  | EN52: =G495 ->  | EO52: =G496 ->  | EP52: =G497 ->  | EQ52: =G498 ->  | ER52: =G499 ->  | ES52: =G500 ->  | ET52: =G501 ->  | EU52: =G502 ->  | EV52: =G503 ->  | EW52: =G504 -> 
A53: 1925-02-28 | B53: =INDIRECT(CONCATENATE("'",B$1,"'!",B$4,(YEAR($A53)-1921)*12+MONTH($A53)+3+IF(ISNUMBER(FIND("PRV",B$6)),1,0)))*IF(AND(B$3>0,TRIM(B$9)="CFS"),Conversions!$C53,1) -> 1433.024709 | C53: =INDIRECT(CONCATENATE("'",C$1,"'!",C$4,(YEAR($A53)-1921)*12+MONTH($A53)+3+IF(ISNUMBER(FIND("PRV",C$6)),1,0)))*IF(AND(C$3>0,TRIM(C$9)="CFS"),Conversions!$C53,1) -> 1368.817306 | D53: =INDIRECT(CONCATENATE("'",D$1,"'!",D$4,(YEAR($A53)-1921)*12+MONTH($A53)+3+IF(ISNUMBER(FIND("PRV",D$6)),1,0)))*IF(AND(D$3>0,TRIM(D$9)="CFS"),Conversions!$C53,1) -> 1431.588438 | E53: =INDIRECT(CONCATENATE("'",E$1,"'!",E$4,(YEAR($A53)-1921)*12+MONTH($A53)+3+IF(ISNUMBER(FIND("PRV",E$6)),1,0)))*IF(AND(E$3>0,TRIM(E$9)="CFS"),Conversions!$C53,1) ->  | F53: =INDIRECT(CONCATENATE("'",F$1,"'!",F$4,(YEAR($A53)-1921)*12+MONTH($A53)+3+IF(ISNUMBER(FIND("PRV",F$6)),1,0)))*IF(AND(F$3>0,TRIM(F$9)="CFS"),Conversions!$C53,1) ->  | G53: =INDIRECT(CONCATENATE("'",G$1,"'!",G$4,(YEAR($A53)-1921)*12+MONTH($A53)+3+IF(ISNUMBER(FIND("PRV",G$6)),1,0)))*IF(AND(G$3>0,TRIM(G$9)="CFS"),Conversions!$C53,1) ->  | K53: 1963 | L53: =B505 -> 2075.09284 | M53: =B506 -> 2082.660237 | N53: =B507 -> 2371.917438 | O53: =B508 -> 2582.573921 | P53: =B509 -> 3057 | Q53: =B510 -> 2927 | R53: =B511 -> 3180 | S53: =B512 -> 3538 | T53: =B513 -> 3516.620562 | U53: =B514 -> 3013.054024 | V53: =B515 -> 2575.390061 | W53: =B516 -> 2131.854687 | Y53: 2722.465923 | Z53: 2625.849503 | AA53: 2754.263647 | AC53: 2519.039603 | AD53: 2405.493219 | AE53: 2142.544285 | AF53: 2508.107159 | AG53: 3232.95257 | AH53: 2984.997998 | AI53: 2156.330007 | AK53: 1963 | AL53: =C505 -> 2113.07572 | AM53: =C506 -> 2119.395736 | AN53: =C507 -> 2408.696431 | AO53: =C508 -> 2619.382928 | AP53: =C509 -> 3057 | AQ53: =C510 -> 2927 | AR53: =C511 -> 3180 | AS53: =C512 -> 3538 | AT53: =C513 -> 3537.025605 | AU53: =C514 -> 3032.778863 | AV53: =C515 -> 2594.737209 | AW53: =C516 -> 2151.714744 | AY53: 2735.031326 | AZ53: 2637.277084 | BA53: 2773.233936 | BC53: 2544.902591 | BD53: 2423.776057 | BE53: 2179.771722 | BF53: 2538.759076 | BG53: 3235.503201 | BH53: 3002.349762 | BI53: 2171.950363 | BK53: 1963 | BL53: =D505 -> 2075.239027 | BM53: =D506 -> 2082.806176 | BN53: =D507 -> 2372.06355 | BO53: =D508 -> 2582.742376 | BP53: =D509 -> 3057 | BQ53: =D510 -> 2927 | BR53: =D511 -> 3180 | BS53: =D512 -> 3538 | BT53: =D513 -> 3537.025439 | BU53: =D514 -> 3032.783568 | BV53: =D515 -> 2594.737677 | BW53: =D516 -> 2151.71347 | BY53: 2732.986633 | BZ53: 2638.954617 | CA53: 2760.92594 | CC53: 2519.146323 | CD53: 2424.443236 | CE53: 2142.693191 | CF53: 2508.236338 | CG53: 3235.50318 | CH53: 3002.350855 | CI53: 2173.956581 | CK53: 1963 | CL53: =E505 ->  | CM53: =E506 ->  | CN53: =E507 ->  | CO53: =E508 ->  | CP53: =E509 ->  | CQ53: =E510 ->  | CR53: =E511 ->  | CS53: =E512 ->  | CT53: =E513 ->  | CU53: =E514 ->  | CV53: =E515 ->  | CW53: =E516 ->  | DK53: 1963 | DL53: =F505 ->  | DM53: =F506 ->  | DN53: =F507 ->  | DO53: =F508 ->  | DP53: =F509 ->  | DQ53: =F510 ->  | DR53: =F511 ->  | DS53: =F512 ->  | DT53: =F513 ->  | DU53: =F514 ->  | DV53: =F515 ->  | DW53: =F516 ->  | EK53: 1963 | EL53: =G505 ->  | EM53: =G506 ->  | EN53: =G507 ->  | EO53: =G508 ->  | EP53: =G509 ->  | EQ53: =G510 ->  | ER53: =G511 ->  | ES53: =G512 ->  | ET53: =G513 ->  | EU53: =G514 ->  | EV53: =G515 ->  | EW53: =G516 -> 
A54: 1925-03-31 | B54: =INDIRECT(CONCATENATE("'",B$1,"'!",B$4,(YEAR($A54)-1921)*12+MONTH($A54)+3+IF(ISNUMBER(FIND("PRV",B$6)),1,0)))*IF(AND(B$3>0,TRIM(B$9)="CFS"),Conversions!$C54,1) -> 1661.571017 | C54: =INDIRECT(CONCATENATE("'",C$1,"'!",C$4,(YEAR($A54)-1921)*12+MONTH($A54)+3+IF(ISNUMBER(FIND("PRV",C$6)),1,0)))*IF(AND(C$3>0,TRIM(C$9)="CFS"),Conversions!$C54,1) -> 1600.618369 | D54: =INDIRECT(CONCATENATE("'",D$1,"'!",D$4,(YEAR($A54)-1921)*12+MONTH($A54)+3+IF(ISNUMBER(FIND("PRV",D$6)),1,0)))*IF(AND(D$3>0,TRIM(D$9)="CFS"),Conversions!$C54,1) -> 1660.142513 | E54: =INDIRECT(CONCATENATE("'",E$1,"'!",E$4,(YEAR($A54)-1921)*12+MONTH($A54)+3+IF(ISNUMBER(FIND("PRV",E$6)),1,0)))*IF(AND(E$3>0,TRIM(E$9)="CFS"),Conversions!$C54,1) ->  | F54: =INDIRECT(CONCATENATE("'",F$1,"'!",F$4,(YEAR($A54)-1921)*12+MONTH($A54)+3+IF(ISNUMBER(FIND("PRV",F$6)),1,0)))*IF(AND(F$3>0,TRIM(F$9)="CFS"),Conversions!$C54,1) ->  | G54: =INDIRECT(CONCATENATE("'",G$1,"'!",G$4,(YEAR($A54)-1921)*12+MONTH($A54)+3+IF(ISNUMBER(FIND("PRV",G$6)),1,0)))*IF(AND(G$3>0,TRIM(G$9)="CFS"),Conversions!$C54,1) ->  | K54: 1964 | L54: =B517 -> 2005.415795 | M54: =B518 -> 2088.049015 | N54: =B519 -> 2054.633013 | O54: =B520 -> 2176.542311 | P54: =B521 -> 2303.634563 | Q54: =B522 -> 2428.897163 | R54: =B523 -> 2527.624494 | S54: =B524 -> 2569.467465 | T54: =B525 -> 2335.126368 | U54: =B526 -> 1653.082792 | V54: =B527 -> 1569.608925 | W54: =B528 -> 1493.219695 | Y54: 2038.204258 | Z54: 2146.939518 | AA54: 2100.4418 | AC54: 2168.003076 | AD54: 1521.560761 | AE54: 2075.57408 | AF54: 2142.339037 | AG54: 2461.342397 | AH54: 1897.290416 | AI54: 1420.468392 | AK54: 1964 | AL54: =C517 -> 2016.97357 | AM54: =C518 -> 2099.588341 | AN54: =C519 -> 2066.174654 | AO54: =C520 -> 2188.107786 | AP54: =C521 -> 2315.224241 | AQ54: =C522 -> 2440.495078 | AR54: =C523 -> 2540.110083 | AS54: =C524 -> 2583.704222 | AT54: =C525 -> 2397.138378 | AU54: =C526 -> 1782.440052 | AV54: =C527 -> 1698.976619 | AW54: =C528 -> 1622.8599 | AY54: 2091.777525 | AZ54: 2198.58319 | BA54: 2145.982744 | BC54: 2179.565869 | BD54: 1642.854954 | BE54: 2088.161957 | BF54: 2153.896244 | BG54: 2480.122673 | BH54: 1995.459278 | BI54: 1519.997833 | BK54: 1964 | BL54: =D517 -> 2020.973555 | BM54: =D518 -> 2103.627759 | BN54: =D519 -> 2070.235749 | BO54: =D520 -> 2192.151063 | BP54: =D521 -> 2319.207122 | BQ54: =D522 -> 2444.458738 | BR54: =D523 -> 2544.02294 | BS54: =D524 -> 2588.027973 | BT54: =D525 -> 2354.249682 | BU54: =D526 -> 1672.310932 | BV54: =D527 -> 1591.043302 | BW54: =D528 -> 1514.381361 | BY54: 2055.482179 | BZ54: 2161.618997 | CA54: 2117.890848 | CC54: 2183.587568 | CD54: 1542.455931 | CE54: 2091.692332 | CF54: 2157.934751 | CG54: 2478.309513 | CH54: 1917.202146 | CI54: 1441.552398 | CK54: 1964 | CL54: =E517 ->  | CM54: =E518 ->  | CN54: =E519 ->  | CO54: =E520 ->  | CP54: =E521 ->  | CQ54: =E522 ->  | CR54: =E523 ->  | CS54: =E524 ->  | CT54: =E525 ->  | CU54: =E526 ->  | CV54: =E527 ->  | CW54: =E528 ->  | DK54: 1964 | DL54: =F517 ->  | DM54: =F518 ->  | DN54: =F519 ->  | DO54: =F520 ->  | DP54: =F521 ->  | DQ54: =F522 ->  | DR54: =F523 ->  | DS54: =F524 ->  | DT54: =F525 ->  | DU54: =F526 ->  | DV54: =F527 ->  | DW54: =F528 ->  | EK54: 1964 | EL54: =G517 ->  | EM54: =G518 ->  | EN54: =G519 ->  | EO54: =G520 ->  | EP54: =G521 ->  | EQ54: =G522 ->  | ER54: =G523 ->  | ES54: =G524 ->  | ET54: =G525 ->  | EU54: =G526 ->  | EV54: =G527 ->  | EW54: =G528 -> 
A55: 1925-04-30 | B55: =INDIRECT(CONCATENATE("'",B$1,"'!",B$4,(YEAR($A55)-1921)*12+MONTH($A55)+3+IF(ISNUMBER(FIND("PRV",B$6)),1,0)))*IF(AND(B$3>0,TRIM(B$9)="CFS"),Conversions!$C55,1) -> 1960.178307 | C55: =INDIRECT(CONCATENATE("'",C$1,"'!",C$4,(YEAR($A55)-1921)*12+MONTH($A55)+3+IF(ISNUMBER(FIND("PRV",C$6)),1,0)))*IF(AND(C$3>0,TRIM(C$9)="CFS"),Conversions!$C55,1) -> 1896.53785 | D55: =INDIRECT(CONCATENATE("'",D$1,"'!",D$4,(YEAR($A55)-1921)*12+MONTH($A55)+3+IF(ISNUMBER(FIND("PRV",D$6)),1,0)))*IF(AND(D$3>0,TRIM(D$9)="CFS"),Conversions!$C55,1) -> 1958.778415 | E55: =INDIRECT(CONCATENATE("'",E$1,"'!",E$4,(YEAR($A55)-1921)*12+MONTH($A55)+3+IF(ISNUMBER(FIND("PRV",E$6)),1,0)))*IF(AND(E$3>0,TRIM(E$9)="CFS"),Conversions!$C55,1) ->  | F55: =INDIRECT(CONCATENATE("'",F$1,"'!",F$4,(YEAR($A55)-1921)*12+MONTH($A55)+3+IF(ISNUMBER(FIND("PRV",F$6)),1,0)))*IF(AND(F$3>0,TRIM(F$9)="CFS"),Conversions!$C55,1) ->  | G55: =INDIRECT(CONCATENATE("'",G$1,"'!",G$4,(YEAR($A55)-1921)*12+MONTH($A55)+3+IF(ISNUMBER(FIND("PRV",G$6)),1,0)))*IF(AND(G$3>0,TRIM(G$9)="CFS"),Conversions!$C55,1) ->  | K55: 1965 | L55: =B529 -> 1350.624535 | M55: =B530 -> 1265.512964 | N55: =B531 -> 2785.109819 | O55: =B532 -> 2788 | P55: =B533 -> 2997 | Q55: =B534 -> 3096 | R55: =B535 -> 3354 | S55: =B536 -> 3538 | T55: =B537 -> 3538 | U55: =B538 -> 3072.632605 | V55: =B539 -> 2764.680845 | W55: =B540 -> 2403.151752 | Y55: 2867.91756 | Z55: 2808.438341 | AA55: 2746.059377 | AC55: 2411.78701 | AD55: 2605.684532 | AE55: 1885.464292 | AF55: 2568.1221 | AG55: 3313.875 | AH55: 3086.472332 | AI55: 2386.438966 | AK55: 1965 | AL55: =C529 -> 1431.016633 | AM55: =C530 -> 1313.257313 | AN55: =C531 -> 2788 | AO55: =C532 -> 2788 | AP55: =C533 -> 2997 | AQ55: =C534 -> 3096 | AR55: =C535 -> 3354 | AS55: =C536 -> 3538 | AT55: =C537 -> 3538 | AU55: =C538 -> 3070.872022 | AV55: =C539 -> 2760.434719 | AW55: =C540 -> 2402.833702 | AY55: 2867.3119 | AZ55: 2807.780268 | BA55: 2756.451199 | BC55: 2429.953126 | BD55: 2603.817173 | BE55: 1934.425974 | BF55: 2577.042885 | BG55: 3313.875 | BH55: 3084.930898 | BI55: 2385.467843 | BK55: 1965 | BL55: =D529 -> 1371.575328 | BM55: =D530 -> 1286.357711 | BN55: =D531 -> 2788 | BO55: =D532 -> 2788 | BP55: =D533 -> 2997 | BQ55: =D534 -> 3096 | BR55: =D535 -> 3354 | BS55: =D536 -> 3538 | BT55: =D537 -> 3538 | BU55: =D538 -> 3070.855812 | BV55: =D539 -> 2760.368481 | BW55: =D540 -> 2403.236805 | BY55: 2867.439938 | BZ55: 2807.976136 | CA55: 2749.282845 | CC55: 2418.629075 | CD55: 2603.994141 | CE55: 1899.28093 | CF55: 2572.559618 | CG55: 3313.875 | CH55: 3084.960674 | CI55: 2385.793488 | CK55: 1965 | CL55: =E529 ->  | CM55: =E530 ->  | CN55: =E531 ->  | CO55: =E532 ->  | CP55: =E533 ->  | CQ55: =E534 ->  | CR55: =E535 ->  | CS55: =E536 ->  | CT55: =E537 ->  | CU55: =E538 ->  | CV55: =E539 ->  | CW55: =E540 ->  | DK55: 1965 | DL55: =F529 ->  | DM55: =F530 ->  | DN55: =F531 ->  | DO55: =F532 ->  | DP55: =F533 ->  | DQ55: =F534 ->  | DR55: =F535 ->  | DS55: =F536 ->  | DT55: =F537 ->  | DU55: =F538 ->  | DV55: =F539 ->  | DW55: =F540 ->  | EK55: 1965 | EL55: =G529 ->  | EM55: =G530 ->  | EN55: =G531 ->  | EO55: =G532 ->  | EP55: =G533 ->  | EQ55: =G534 ->  | ER55: =G535 ->  | ES55: =G536 ->  | ET55: =G537 ->  | EU55: =G538 ->  | EV55: =G539 ->  | EW55: =G540 -> 
A56: 1925-05-31 | B56: =INDIRECT(CONCATENATE("'",B$1,"'!",B$4,(YEAR($A56)-1921)*12+MONTH($A56)+3+IF(ISNUMBER(FIND("PRV",B$6)),1,0)))*IF(AND(B$3>0,TRIM(B$9)="CFS"),Conversions!$C56,1) -> 2102.980615 | C56: =INDIRECT(CONCATENATE("'",C$1,"'!",C$4,(YEAR($A56)-1921)*12+MONTH($A56)+3+IF(ISNUMBER(FIND("PRV",C$6)),1,0)))*IF(AND(C$3>0,TRIM(C$9)="CFS"),Conversions!$C56,1) -> 2039.515898 | D56: =INDIRECT(CONCATENATE("'",D$1,"'!",D$4,(YEAR($A56)-1921)*12+MONTH($A56)+3+IF(ISNUMBER(FIND("PRV",D$6)),1,0)))*IF(AND(D$3>0,TRIM(D$9)="CFS"),Conversions!$C56,1) -> 2101.590005 | E56: =INDIRECT(CONCATENATE("'",E$1,"'!",E$4,(YEAR($A56)-1921)*12+MONTH($A56)+3+IF(ISNUMBER(FIND("PRV",E$6)),1,0)))*IF(AND(E$3>0,TRIM(E$9)="CFS"),Conversions!$C56,1) ->  | F56: =INDIRECT(CONCATENATE("'",F$1,"'!",F$4,(YEAR($A56)-1921)*12+MONTH($A56)+3+IF(ISNUMBER(FIND("PRV",F$6)),1,0)))*IF(AND(F$3>0,TRIM(F$9)="CFS"),Conversions!$C56,1) ->  | G56: =INDIRECT(CONCATENATE("'",G$1,"'!",G$4,(YEAR($A56)-1921)*12+MONTH($A56)+3+IF(ISNUMBER(FIND("PRV",G$6)),1,0)))*IF(AND(G$3>0,TRIM(G$9)="CFS"),Conversions!$C56,1) ->  | K56: 1966 | L56: =B541 -> 2225.80939 | M56: =B542 -> 2296.030666 | N56: =B543 -> 2341.70546 | O56: =B544 -> 2490.895323 | P56: =B545 -> 2580.354047 | Q56: =B546 -> 2802.077111 | R56: =B547 -> 3108.462879 | S56: =B548 -> 3057.017241 | T56: =B549 -> 2808.031299 | U56: =B550 -> 2187.928838 | V56: =B551 -> 1690.825551 | W56: =B552 -> 1593.90546 | Y56: 2249.184403 | Z56: 2258.434324 | AA56: 2431.920272 | AC56: 2444.585749 | AD56: 1701.972812 | AE56: 2327.642264 | AF56: 2423.597713 | AG56: 2915.437476 | AH56: 2253.061759 | AI56: 1544.102666 | AK56: 1966 | AL56: =C541 -> 2225.494175 | AM56: =C542 -> 2295.716585 | AN56: =C543 -> 2341.391599 | AO56: =C544 -> 2490.580972 | AP56: =C545 -> 2580.039443 | AQ56: =C546 -> 2801.762427 | AR56: =C547 -> 3108.148399 | AS56: =C548 -> 3051.718539 | AT56: =C549 -> 2818.156014 | AU56: =C550 -> 2208.929865 | AV56: =C551 -> 1711.648866 | AW56: =C552 -> 1614.686509 | AY56: 2255.11721 | AZ56: 2264.699115 | BA56: 2437.356116 | BC56: 2444.27138 | BD56: 1719.619759 | BE56: 2327.327424 | BF56: 2423.283528 | BG56: 2915.181773 | BH56: 2267.984317 | BI56: 1555.336398 | BK56: 1966 | BL56: =D541 -> 2225.898463 | BM56: =D542 -> 2296.121913 | BN56: =D543 -> 2341.797781 | BO56: =D544 -> 2490.987788 | BP56: =D545 -> 2580.446586 | BQ56: =D546 -> 2802.169674 | BR56: =D547 -> 3108.555382 | BS56: =D548 -> 3051.685855 | BT56: =D549 -> 2809.93127 | BU56: =D550 -> 2189.824303 | BV56: =D551 -> 1692.676627 | BW56: =D552 -> 1595.752657 | BY56: 2249.857239 | BZ56: 2259.40034 | CA56: 2432.154025 | CC56: 2444.677627 | CD56: 1703.829066 | CE56: 2327.732613 | CF56: 2423.689939 | CG56: 2914.39996 | CH56: 2254.037864 | CI56: 1545.949889 | CK56: 1966 | CL56: =E541 ->  | CM56: =E542 ->  | CN56: =E543 ->  | CO56: =E544 ->  | CP56: =E545 ->  | CQ56: =E546 ->  | CR56: =E547 ->  | CS56: =E548 ->  | CT56: =E549 ->  | CU56: =E550 ->  | CV56: =E551 ->  | CW56: =E552 ->  | DK56: 1966 | DL56: =F541 ->  | DM56: =F542 ->  | DN56: =F543 ->  | DO56: =F544 ->  | DP56: =F545 ->  | DQ56: =F546 ->  | DR56: =F547 ->  | DS56: =F548 ->  | DT56: =F549 ->  | DU56: =F550 ->  | DV56: =F551 ->  | DW56: =F552 ->  | EK56: 1966 | EL56: =G541 ->  | EM56: =G542 ->  | EN56: =G543 ->  | EO56: =G544 ->  | EP56: =G545 ->  | EQ56: =G546 ->  | ER56: =G547 ->  | ES56: =G548 ->  | ET56: =G549 ->  | EU56: =G550 ->  | EV56: =G551 ->  | EW56: =G552 -> 
A57: 1925-06-30 | B57: =INDIRECT(CONCATENATE("'",B$1,"'!",B$4,(YEAR($A57)-1921)*12+MONTH($A57)+3+IF(ISNUMBER(FIND("PRV",B$6)),1,0)))*IF(AND(B$3>0,TRIM(B$9)="CFS"),Conversions!$C57,1) -> 2019.483276 | C57: =INDIRECT(CONCATENATE("'",C$1,"'!",C$4,(YEAR($A57)-1921)*12+MONTH($A57)+3+IF(ISNUMBER(FIND("PRV",C$6)),1,0)))*IF(AND(C$3>0,TRIM(C$9)="CFS"),Conversions!$C57,1) -> 1967.26963 | D57: =INDIRECT(CONCATENATE("'",D$1,"'!",D$4,(YEAR($A57)-1921)*12+MONTH($A57)+3+IF(ISNUMBER(FIND("PRV",D$6)),1,0)))*IF(AND(D$3>0,TRIM(D$9)="CFS"),Conversions!$C57,1) -> 2012.514493 | E57: =INDIRECT(CONCATENATE("'",E$1,"'!",E$4,(YEAR($A57)-1921)*12+MONTH($A57)+3+IF(ISNUMBER(FIND("PRV",E$6)),1,0)))*IF(AND(E$3>0,TRIM(E$9)="CFS"),Conversions!$C57,1) ->  | F57: =INDIRECT(CONCATENATE("'",F$1,"'!",F$4,(YEAR($A57)-1921)*12+MONTH($A57)+3+IF(ISNUMBER(FIND("PRV",F$6)),1,0)))*IF(AND(F$3>0,TRIM(F$9)="CFS"),Conversions!$C57,1) ->  | G57: =INDIRECT(CONCATENATE("'",G$1,"'!",G$4,(YEAR($A57)-1921)*12+MONTH($A57)+3+IF(ISNUMBER(FIND("PRV",G$6)),1,0)))*IF(AND(G$3>0,TRIM(G$9)="CFS"),Conversions!$C57,1) ->  | K57: 1967 | L57: =B553 -> 1454.446011 | M57: =B554 -> 1477.087502 | N57: =B555 -> 1739.181574 | O57: =B556 -> 2370.473973 | P57: =B557 -> 2811.774456 | Q57: =B558 -> 2847 | R57: =B559 -> 3236 | S57: =B560 -> 3538 | T57: =B561 -> 3538 | U57: =B562 -> 3538 | V57: =B563 -> 3386.900008 | W57: =B564 -> 3023.259942 | Y57: 3055.645037 | Z57: 3114.124334 | AA57: 2746.676955 | AC57: 2109.848102 | AD57: 3196.691639 | AE57: 1663.226201 | AF57: 2084.695508 | AG57: 3198.971807 | AH57: 3435.882495 | AI57: 2974.994535 | AK57: 1967 | AL57: =C553 -> 1456.117939 | AM57: =C554 -> 1478.760627 | AN57: =C555 -> 1740.856918 | AO57: =C556 -> 2372.150798 | AP57: =C557 -> 2813.452473 | AQ57: =C558 -> 2847 | AR57: =C559 -> 3236 | AS57: =C560 -> 3538 | AT57: =C561 -> 3538 | AU57: =C562 -> 3538 | AV57: =C563 -> 3393.808689 | AW57: =C564 -> 3028.991012 | AY57: 3058.410613 | AZ57: 3116.61034 | BA57: 2748.428205 | BC57: 2111.355957 | BD57: 3201.859333 | BE57: 1667.288534 | BF57: 2086.371422 | BG57: 3199.181559 | BH57: 3438.326049 | BI57: 2980.920184 | BK57: 1967 | BL57: =D553 -> 1456.291528 | BM57: =D554 -> 1478.93434 | BN57: =D555 -> 1741.030862 | BO57: =D556 -> 2372.324895 | BP57: =D557 -> 2813.626694 | BQ57: =D558 -> 2847 | BR57: =D559 -> 3236 | BS57: =D560 -> 3538 | BT57: =D561 -> 3538 | BU57: =D562 -> 3538 | BV57: =D563 -> 3385.967232 | BW57: =D564 -> 3021.89808 | BY57: 3055.421966 | BZ57: 3113.592667 | CA57: 2747.256136 | CC57: 2111.512511 | CD57: 3195.699957 | CE57: 1665.073876 | CF57: 2086.545425 | CG57: 3199.203337 | CH57: 3435.479068 | CI57: 2973.704589 | CK57: 1967 | CL57: =E553 ->  | CM57: =E554 ->  | CN57: =E555 ->  | CO57: =E556 ->  | CP57: =E557 ->  | CQ57: =E558 ->  | CR57: =E559 ->  | CS57: =E560 ->  | CT57: =E561 ->  | CU57: =E562 ->  | CV57: =E563 ->  | CW57: =E564 ->  | DK57: 1967 | DL57: =F553 ->  | DM57: =F554 ->  | DN57: =F555 ->  | DO57: =F556 ->  | DP57: =F557 ->  | DQ57: =F558 ->  | DR57: =F559 ->  | DS57: =F560 ->  | DT57: =F561 ->  | DU57: =F562 ->  | DV57: =F563 ->  | DW57: =F564 ->  | EK57: 1967 | EL57: =G553 ->  | EM57: =G554 ->  | EN57: =G555 ->  | EO57: =G556 ->  | EP57: =G557 ->  | EQ57: =G558 ->  | ER57: =G559 ->  | ES57: =G560 ->  | ET57: =G561 ->  | EU57: =G562 ->  | EV57: =G563 ->  | EW57: =G564 -> 
A58: 1925-07-31 | B58: =INDIRECT(CONCATENATE("'",B$1,"'!",B$4,(YEAR($A58)-1921)*12+MONTH($A58)+3+IF(ISNUMBER(FIND("PRV",B$6)),1,0)))*IF(AND(B$3>0,TRIM(B$9)="CFS"),Conversions!$C58,1) -> 1616.250474 | C58: =INDIRECT(CONCATENATE("'",C$1,"'!",C$4,(YEAR($A58)-1921)*12+MONTH($A58)+3+IF(ISNUMBER(FIND("PRV",C$6)),1,0)))*IF(AND(C$3>0,TRIM(C$9)="CFS"),Conversions!$C58,1) -> 1653.583227 | D58: =INDIRECT(CONCATENATE("'",D$1,"'!",D$4,(YEAR($A58)-1921)*12+MONTH($A58)+3+IF(ISNUMBER(FIND("PRV",D$6)),1,0)))*IF(AND(D$3>0,TRIM(D$9)="CFS"),Conversions!$C58,1) -> 1620.486878 | E58: =INDIRECT(CONCATENATE("'",E$1,"'!",E$4,(YEAR($A58)-1921)*12+MONTH($A58)+3+IF(ISNUMBER(FIND("PRV",E$6)),1,0)))*IF(AND(E$3>0,TRIM(E$9)="CFS"),Conversions!$C58,1) ->  | F58: =INDIRECT(CONCATENATE("'",F$1,"'!",F$4,(YEAR($A58)-1921)*12+MONTH($A58)+3+IF(ISNUMBER(FIND("PRV",F$6)),1,0)))*IF(AND(F$3>0,TRIM(F$9)="CFS"),Conversions!$C58,1) ->  | G58: =INDIRECT(CONCATENATE("'",G$1,"'!",G$4,(YEAR($A58)-1921)*12+MONTH($A58)+3+IF(ISNUMBER(FIND("PRV",G$6)),1,0)))*IF(AND(G$3>0,TRIM(G$9)="CFS"),Conversions!$C58,1) ->  | K58: 1968 | L58: =B565 -> 2821.829932 | M58: =B566 -> 2772.887456 | N58: =B567 -> 2783.614672 | O58: =B568 -> 2922 | P58: =B569 -> 2962 | Q58: =B570 -> 3036 | R58: =B571 -> 3198.24995 | S58: =B572 -> 3260.669127 | T58: =B573 -> 3094.278047 | U58: =B574 -> 2453.105672 | V58: =B575 -> 2015.932109 | W58: =B576 -> 1676.33155 | Y58: 2453.591674 | Z58: 2427.925007 | AA58: 2749.741543 | AC58: 2873.883419 | AD58: 1905.927495 | AE58: 2837.740508 | AF58: 2857.686133 | AG58: 3130.764525 | AH58: 2507.954042 | AI58: 1686.493306 | AK58: 1968 | AL58: =C565 -> 2827.556594 | AM58: =C566 -> 2778.617205 | AN58: =C567 -> 2789.350583 | AO58: =C568 -> 2922 | AP58: =C569 -> 2962 | AQ58: =C570 -> 3036 | AR58: =C571 -> 3198.255571 | AS58: =C572 -> 3260.679737 | AT58: =C573 -> 3104.485036 | AU58: =C574 -> 2476.470414 | AV58: =C575 -> 2039.879468 | AW58: =C576 -> 1698.282163 | AY58: 2461.735863 | AZ58: 2436.069196 | BA58: 2757.798064 | BC58: 2876.749217 | BD58: 1928.164763 | BE58: 2842.754972 | BF58: 2860.553062 | BG58: 3132.044457 | BH58: 2525.078967 | BI58: 1703.887495 | BK58: 1968 | BL58: =D565 -> 2820.469117 | BM58: =D566 -> 2771.525909 | BN58: =D567 -> 2782.25166 | BO58: =D568 -> 2922 | BP58: =D569 -> 2962 | BQ58: =D570 -> 3036 | BR58: =D571 -> 3198.245502 | BS58: =D572 -> 3260.660324 | BT58: =D573 -> 3094.573361 | BU58: =D574 -> 2453.400262 | BV58: =D575 -> 2016.84685 | BW58: =D576 -> 1675.285761 | BY58: 2453.628932 | BZ58: 2427.962265 | CA58: 2749.438229 | CC58: 2873.202425 | CD58: 1905.932994 | CE58: 2836.548932 | CF58: 2857.004871 | CG58: 3130.798126 | CH58: 2508.198379 | CI58: 1686.297414 | CK58: 1968 | CL58: =E565 ->  | CM58: =E566 ->  | CN58: =E567 ->  | CO58: =E568 ->  | CP58: =E569 ->  | CQ58: =E570 ->  | CR58: =E571 ->  | CS58: =E572 ->  | CT58: =E573 ->  | CU58: =E574 ->  | CV58: =E575 ->  | CW58: =E576 ->  | DK58: 1968 | DL58: =F565 ->  | DM58: =F566 ->  | DN58: =F567 ->  | DO58: =F568 ->  | DP58: =F569 ->  | DQ58: =F570 ->  | DR58: =F571 ->  | DS58: =F572 ->  | DT58: =F573 ->  | DU58: =F574 ->  | DV58: =F575 ->  | DW58: =F576 ->  | EK58: 1968 | EL58: =G565 ->  | EM58: =G566 ->  | EN58: =G567 ->  | EO58: =G568 ->  | EP58: =G569 ->  | EQ58: =G570 ->  | ER58: =G571 ->  | ES58: =G572 ->  | ET58: =G573 ->  | EU58: =G574 ->  | EV58: =G575 ->  | EW58: =G576 -> 
A59: 1925-08-31 | B59: =INDIRECT(CONCATENATE("'",B$1,"'!",B$4,(YEAR($A59)-1921)*12+MONTH($A59)+3+IF(ISNUMBER(FIND("PRV",B$6)),1,0)))*IF(AND(B$3>0,TRIM(B$9)="CFS"),Conversions!$C59,1) -> 1524.884455 | C59: =INDIRECT(CONCATENATE("'",C$1,"'!",C$4,(YEAR($A59)-1921)*12+MONTH($A59)+3+IF(ISNUMBER(FIND("PRV",C$6)),1,0)))*IF(AND(C$3>0,TRIM(C$9)="CFS"),Conversions!$C59,1) -> 1498.558903 | D59: =INDIRECT(CONCATENATE("'",D$1,"'!",D$4,(YEAR($A59)-1921)*12+MONTH($A59)+3+IF(ISNUMBER(FIND("PRV",D$6)),1,0)))*IF(AND(D$3>0,TRIM(D$9)="CFS"),Conversions!$C59,1) -> 1526.926013 | E59: =INDIRECT(CONCATENATE("'",E$1,"'!",E$4,(YEAR($A59)-1921)*12+MONTH($A59)+3+IF(ISNUMBER(FIND("PRV",E$6)),1,0)))*IF(AND(E$3>0,TRIM(E$9)="CFS"),Conversions!$C59,1) ->  | F59: =INDIRECT(CONCATENATE("'",F$1,"'!",F$4,(YEAR($A59)-1921)*12+MONTH($A59)+3+IF(ISNUMBER(FIND("PRV",F$6)),1,0)))*IF(AND(F$3>0,TRIM(F$9)="CFS"),Conversions!$C59,1) ->  | G59: =INDIRECT(CONCATENATE("'",G$1,"'!",G$4,(YEAR($A59)-1921)*12+MONTH($A59)+3+IF(ISNUMBER(FIND("PRV",G$6)),1,0)))*IF(AND(G$3>0,TRIM(G$9)="CFS"),Conversions!$C59,1) ->  | K59: 1969 | L59: =B577 -> 1597.931983 | M59: =B578 -> 1554.500658 | N59: =B579 -> 1672.10099 | O59: =B580 -> 2788 | P59: =B581 -> 2788 | Q59: =B582 -> 3027 | R59: =B583 -> 3470 | S59: =B584 -> 3538 | T59: =B585 -> 3538 | U59: =B586 -> 3338.453341 | V59: =B587 -> 3012.883527 | W59: =B588 -> 2758.874512 | Y59: 3033.620223 | Z59: 3033.453556 | AA59: 2756.978751 | AC59: 2223.013528 | AD59: 2924.766214 | AE59: 1764.174852 | AF59: 2210.45044 | AG59: 3299.5 | AH59: 3259.443531 | AI59: 2755.915285 | AK59: 1969 | AL59: =C577 -> 1616.194899 | AM59: =C578 -> 1554.491375 | AN59: =C579 -> 1672.091695 | AO59: =C580 -> 2788 | AP59: =C581 -> 2788 | AQ59: =C582 -> 3027 | AR59: =C583 -> 3470 | AS59: =C584 -> 3538 | AT59: =C585 -> 3538 | AU59: =C586 -> 3330.598067 | AV59: =C587 -> 3036.728005 | AW59: =C588 -> 2780.868417 | AY59: 3039.984432 | AZ59: 3039.817766 | BA59: 2761.664371 | BC59: 2224.836104 | BD59: 2942.49647 | BE59: 1771.479763 | BF59: 2210.445794 | BG59: 3299.5 | BH59: 3266.19007 | BI59: 2777.378575 | BK59: 1969 | BL59: =D577 -> 1597.93248 | BM59: =D578 -> 1554.501155 | BN59: =D579 -> 1672.101488 | BO59: =D580 -> 2788 | BP59: =D581 -> 2788 | BQ59: =D582 -> 3027 | BR59: =D583 -> 3470 | BS59: =D584 -> 3538 | BT59: =D585 -> 3538 | BU59: =D586 -> 3330.589734 | BV59: =D587 -> 3036.671929 | BW59: =D588 -> 2780.793088 | BY59: 3039.956701 | BZ59: 3039.790034 | CA59: 2760.132489 | CC59: 2223.013777 | CD59: 2942.435198 | CE59: 1764.044501 | CF59: 2210.450688 | CG59: 3299.5 | CH59: 3266.164552 | CI59: 2777.295865 | CK59: 1969 | CL59: =E577 ->  | CM59: =E578 ->  | CN59: =E579 ->  | CO59: =E580 ->  | CP59: =E581 ->  | CQ59: =E582 ->  | CR59: =E583 ->  | CS59: =E584 ->  | CT59: =E585 ->  | CU59: =E586 ->  | CV59: =E587 ->  | CW59: =E588 ->  | DK59: 1969 | DL59: =F577 ->  | DM59: =F578 ->  | DN59: =F579 ->  | DO59: =F580 ->  | DP59: =F581 ->  | DQ59: =F582 ->  | DR59: =F583 ->  | DS59: =F584 ->  | DT59: =F585 ->  | DU59: =F586 ->  | DV59: =F587 ->  | DW59: =F588 ->  | EK59: 1969 | EL59: =G577 ->  | EM59: =G578 ->  | EN59: =G579 ->  | EO59: =G580 ->  | EP59: =G581 ->  | EQ59: =G582 ->  | ER59: =G583 ->  | ES59: =G584 ->  | ET59: =G585 ->  | EU59: =G586 ->  | EV59: =G587 ->  | EW59: =G588 -> 
A60: 1925-09-30 | B60: =INDIRECT(CONCATENATE("'",B$1,"'!",B$4,(YEAR($A60)-1921)*12+MONTH($A60)+3+IF(ISNUMBER(FIND("PRV",B$6)),1,0)))*IF(AND(B$3>0,TRIM(B$9)="CFS"),Conversions!$C60,1) -> 1456.706069 | C60: =INDIRECT(CONCATENATE("'",C$1,"'!",C$4,(YEAR($A60)-1921)*12+MONTH($A60)+3+IF(ISNUMBER(FIND("PRV",C$6)),1,0)))*IF(AND(C$3>0,TRIM(C$9)="CFS"),Conversions!$C60,1) -> 1430.222981 | D60: =INDIRECT(CONCATENATE("'",D$1,"'!",D$4,(YEAR($A60)-1921)*12+MONTH($A60)+3+IF(ISNUMBER(FIND("PRV",D$6)),1,0)))*IF(AND(D$3>0,TRIM(D$9)="CFS"),Conversions!$C60,1) -> 1458.753333 | E60: =INDIRECT(CONCATENATE("'",E$1,"'!",E$4,(YEAR($A60)-1921)*12+MONTH($A60)+3+IF(ISNUMBER(FIND("PRV",E$6)),1,0)))*IF(AND(E$3>0,TRIM(E$9)="CFS"),Conversions!$C60,1) ->  | F60: =INDIRECT(CONCATENATE("'",F$1,"'!",F$4,(YEAR($A60)-1921)*12+MONTH($A60)+3+IF(ISNUMBER(FIND("PRV",F$6)),1,0)))*IF(AND(F$3>0,TRIM(F$9)="CFS"),Conversions!$C60,1) ->  | G60: =INDIRECT(CONCATENATE("'",G$1,"'!",G$4,(YEAR($A60)-1921)*12+MONTH($A60)+3+IF(ISNUMBER(FIND("PRV",G$6)),1,0)))*IF(AND(G$3>0,TRIM(G$9)="CFS"),Conversions!$C60,1) ->  | K60: 1970 | L60: =B589 -> 2666.627864 | M60: =B590 -> 2671.60343 | N60: =B591 -> 2806 | O60: =B592 -> 2787 | P60: =B593 -> 2787 | Q60: =B594 -> 3163 | R60: =B595 -> 3247.92308 | S60: =B596 -> 3301.773045 | T60: =B597 -> 3113.41423 | U60: =B598 -> 2533.204539 | V60: =B599 -> 2085.436045 | W60: =B600 -> 1642.517805 | Y60: 2498.15063 | Z60: 2453.461246 | AA60: 2733.79167 | AC60: 2793.283472 | AD60: 1931.160462 | AE60: 2729.292137 | AF60: 2774.100572 | AG60: 3165.72581 | AH60: 2551.05006 | AI60: 1708.369617 | AK60: 1970 | AL60: =C589 -> 2689.187912 | AM60: =C590 -> 2687.430787 | AN60: =C591 -> 2806 | AO60: =C592 -> 2787 | AP60: =C593 -> 2787 | AQ60: =C594 -> 3163 | AR60: =C595 -> 3247.932697 | AS60: =C596 -> 3301.782648 | AT60: =C597 -> 3112.995156 | AU60: =C598 -> 2532.842538 | AV60: =C599 -> 2085.103026 | AW60: =C600 -> 1642.228717 | AY60: 2498.035332 | AZ60: 2453.34597 | BA60: 2736.87529 | BC60: 2798.704949 | BD60: 1930.892782 | BE60: 2741.638227 | BF60: 2776.738465 | BG60: 3165.678231 | BH60: 2550.736601 | BI60: 1708.217817 | BK60: 1970 | BL60: =D589 -> 2689.091421 | BM60: =D590 -> 2687.334241 | BN60: =D591 -> 2806 | BO60: =D592 -> 2787 | BP60: =D593 -> 2787 | BQ60: =D594 -> 3163 | BR60: =D595 -> 3247.926085 | BS60: =D596 -> 3301.776046 | BT60: =D597 -> 3112.981554 | BU60: =D598 -> 2532.830492 | BV60: =D599 -> 2085.087127 | BW60: =D600 -> 1642.209114 | BY60: 2498.029138 | BZ60: 2453.339777 | CA60: 2736.853007 | CC60: 2798.67599 | CD60: 1930.878942 | CE60: 2741.580551 | CF60: 2776.722373 | CG60: 3165.673227 | CH60: 2550.722939 | CI60: 1708.208638 | CK60: 1970 | CL60: =E589 ->  | CM60: =E590 ->  | CN60: =E591 ->  | CO60: =E592 ->  | CP60: =E593 ->  | CQ60: =E594 ->  | CR60: =E595 ->  | CS60: =E596 ->  | CT60: =E597 ->  | CU60: =E598 ->  | CV60: =E599 ->  | CW60: =E600 ->  | DK60: 1970 | DL60: =F589 ->  | DM60: =F590 ->  | DN60: =F591 ->  | DO60: =F592 ->  | DP60: =F593 ->  | DQ60: =F594 ->  | DR60: =F595 ->  | DS60: =F596 ->  | DT60: =F597 ->  | DU60: =F598 ->  | DV60: =F599 ->  | DW60: =F600 ->  | EK60: 1970 | EL60: =G589 ->  | EM60: =G590 ->  | EN60: =G591 ->  | EO60: =G592 ->  | EP60: =G593 ->  | EQ60: =G594 ->  | ER60: =G595 ->  | ES60: =G596 ->  | ET60: =G597 ->  | EU60: =G598 ->  | EV60: =G599 ->  | EW60: =G600 -> 
A61: 1925-10-31 | B61: =INDIRECT(CONCATENATE("'",B$1,"'!",B$4,(YEAR($A61)-1921)*12+MONTH($A61)+3+IF(ISNUMBER(FIND("PRV",B$6)),1,0)))*IF(AND(B$3>0,TRIM(B$9)="CFS"),Conversions!$C61,1) -> 1340.856461 | C61: =INDIRECT(CONCATENATE("'",C$1,"'!",C$4,(YEAR($A61)-1921)*12+MONTH($A61)+3+IF(ISNUMBER(FIND("PRV",C$6)),1,0)))*IF(AND(C$3>0,TRIM(C$9)="CFS"),Conversions!$C61,1) -> 1314.56882 | D61: =INDIRECT(CONCATENATE("'",D$1,"'!",D$4,(YEAR($A61)-1921)*12+MONTH($A61)+3+IF(ISNUMBER(FIND("PRV",D$6)),1,0)))*IF(AND(D$3>0,TRIM(D$9)="CFS"),Conversions!$C61,1) -> 1342.917868 | E61: =INDIRECT(CONCATENATE("'",E$1,"'!",E$4,(YEAR($A61)-1921)*12+MONTH($A61)+3+IF(ISNUMBER(FIND("PRV",E$6)),1,0)))*IF(AND(E$3>0,TRIM(E$9)="CFS"),Conversions!$C61,1) ->  | F61: =INDIRECT(CONCATENATE("'",F$1,"'!",F$4,(YEAR($A61)-1921)*12+MONTH($A61)+3+IF(ISNUMBER(FIND("PRV",F$6)),1,0)))*IF(AND(F$3>0,TRIM(F$9)="CFS"),Conversions!$C61,1) ->  | G61: =INDIRECT(CONCATENATE("'",G$1,"'!",G$4,(YEAR($A61)-1921)*12+MONTH($A61)+3+IF(ISNUMBER(FIND("PRV",G$6)),1,0)))*IF(AND(G$3>0,TRIM(G$9)="CFS"),Conversions!$C61,1) ->  | K61: 1971 | L61: =B601 -> 1597.850537 | M61: =B602 -> 1684.044977 | N61: =B603 -> 2034.643298 | O61: =B604 -> 2370.693851 | P61: =B605 -> 2667.033545 | Q61: =B606 -> 3162 | R61: =B607 -> 3433 | S61: =B608 -> 3538 | T61: =B609 -> 3538 | U61: =B610 -> 3090.133507 | V61: =B611 -> 2695.559553 | W61: =B612 -> 2343.026006 | Y61: 2789.05284 | Z61: 2789.041671 | AA61: 2679.498773 | AC61: 2227.268188 | AD61: 2563.114356 | AE61: 1830.78616 | AF61: 2193.62547 | AG61: 3308.879193 | AH61: 3066.051516 | AI61: 2331.489623 | AK61: 1971 | AL61: =C601 -> 1597.850667 | AM61: =C602 -> 1684.045108 | AN61: =C603 -> 2034.643429 | AO61: =C604 -> 2370.693982 | AP61: =C605 -> 2667.033677 | AQ61: =C606 -> 3162 | AR61: =C607 -> 3433 | AS61: =C608 -> 3538 | AT61: =C609 -> 3538 | AU61: =C610 -> 3090.384156 | AV61: =C611 -> 2693.102366 | AW61: =C612 -> 2340.706342 | AY61: 2788.097656 | AZ61: 2787.700566 | BA61: 2679.121644 | BC61: 2227.268306 | BD61: 2561.178837 | BE61: 1830.750139 | BF61: 2193.625601 | BG61: 3308.87921 | BH61: 3065.209923 | BI61: 2329.15157 | BK61: 1971 | BL61: =D601 -> 1597.850676 | BM61: =D602 -> 1684.045117 | BN61: =D603 -> 2034.643438 | BO61: =D604 -> 2370.693991 | BP61: =D605 -> 2667.033686 | BQ61: =D606 -> 3162 | BR61: =D607 -> 3433 | BS61: =D608 -> 3538 | BT61: =D609 -> 3538 | BU61: =D610 -> 3090.380349 | BV61: =D611 -> 2693.063594 | BW61: =D612 -> 2340.649235 | BY61: 2788.070192 | BZ61: 2787.660316 | CA61: 2679.113341 | CC61: 2227.268314 | CD61: 2561.133481 | CE61: 1830.747696 | CF61: 2193.62561 | CG61: 3308.879211 | CH61: 3065.19214 | CI61: 2329.08778 | CK61: 1971 | CL61: =E601 ->  | CM61: =E602 ->  | CN61: =E603 ->  | CO61: =E604 ->  | CP61: =E605 ->  | CQ61: =E606 ->  | CR61: =E607 ->  | CS61: =E608 ->  | CT61: =E609 ->  | CU61: =E610 ->  | CV61: =E611 ->  | CW61: =E612 ->  | DK61: 1971 | DL61: =F601 ->  | DM61: =F602 ->  | DN61: =F603 ->  | DO61: =F604 ->  | DP61: =F605 ->  | DQ61: =F606 ->  | DR61: =F607 ->  | DS61: =F608 ->  | DT61: =F609 ->  | DU61: =F610 ->  | DV61: =F611 ->  | DW61: =F612 ->  | EK61: 1971 | EL61: =G601 ->  | EM61: =G602 ->  | EN61: =G603 ->  | EO61: =G604 ->  | EP61: =G605 ->  | EQ61: =G606 ->  | ER61: =G607 ->  | ES61: =G608 ->  | ET61: =G609 ->  | EU61: =G610 ->  | EV61: =G611 ->  | EW61: =G612 -> 
